Workbook

Sheet Sys Pre-CPB
A1: Subject ID | B1: Median | C1: IQR | D1: Coef of variation | E1: Standard deviation | F1: Standard deviation of rate of change (mmHg/min) | J1: Coefficient of variation of absolute rate of change | N1: Poincare long axis, +45 deg (mm Hg) | R1: Poincare short axis, -45 deg (mm Hg) | V1: Eccentricity of Poincare plot ellipse | Z1: Outcomes | AB1: Surgery Type
B2: (mm Hg) | C2: (mm Hg) | E2: (mmHg) | F2: 15 sec | G2: 1 min | H2: 5 min | I2: 20 min | J2: 15 sec | K2: 1 min | L2: 5 min | M2: 20 min | N2: 15 sec | O2: 1 min | P2: 5 min | Q2: 20 min | R2: 15 sec | S2: 1 min | T2: 5 min | U2: 20 min | V2: 15 sec | W2: 1 min | X2: 5 min | Y2: 20 min | Z2: 30-day Mortality | AA2: Renal Failure | AB2: CABG Only | AC2: Valve Only | AD2: CABG and Valve | AE2: Other | AF2: S1/S2
A3: 60 | B3: 169 | C3: 69 | D3: 0.249 | E3: 38.683 | F3: 17.13 | G3: 8.95 | H3: 3.54 | I3: 1.71 | J3: 0.94 | K3: 0.89 | L3: 0.75 | M3: 0.82 | N3: 54.52 | O3: 53.97 | P3: 53.06 | Q3: 45.72 | R3: 3.03 | S3: 6.33 | T3: 12.52 | U3: 24.12 | V3: 1.00 | W3: 0.99 | X3: 0.97 | Y3: 0.85 | Z3: 1 | AA3: 1 | AB3: 0 | AC3: 0 | AD3: 1 | AE3: 0 | AF3: =R3/N3 -> 0.05554782261 | AG3: =ROUND(AF3,4) -> 0.0555
A4: 70 | B4: 108 | C4: 26.5 | D4: 0.176 | E4: 19.086 | F4: 13.08 | G4: 8.65 | H4: 3.50 | I4: 1.53 | J4: 1.56 | K4: 1.21 | L4: 0.63 | M4: 0.67 | N4: 26.66 | O4: 25.59 | P4: 23.20 | Q4: 13.80 | R4: 2.31 | S4: 6.11 | T4: 12.37 | U4: 21.65 | V4: 1.00 | W4: 0.97 | X4: 0.85 | Y4: 0.77 | Z4: 1 | AA4: 1 | AB4: 0 | AC4: 0 | AD4: 0 | AE4: 1 | AF4: 0.08674306383 | AG4: =ROUND(AF4,4) -> 0.0867
A5: 81 | B5: 113 | C5: 15 | D5: 0.146 | E5: 15.995 | F5: 15.39 | G5: 7.50 | H5: 3.20 | I5: 0.98 | J5: 1.40 | K5: 1.15 | L5: 0.93 | M5: 0.90 | N5: 22.37 | O5: 21.59 | P5: 17.60 | Q5: 12.74 | R5: 2.72 | S5: 5.31 | T5: 11.31 | U5: 13.85 | V5: 0.99 | W5: 0.97 | X5: 0.77 | Y5: 0.39 | Z5: 1 | AA5: 1 | AB5: 0 | AC5: 0 | AD5: 1 | AE5: 0 | AF5: 0.1216780764 | AG5: 0.1217
A6: 87 | B6: 114 | C6: 21 | D6: 0.147 | E6: 16.968 | F6: 17.23 | G6: 9.17 | H6: 3.32 | I6: 1.03 | J6: 1.16 | K6: 1.29 | L6: 1.04 | M6: 0.72 | N6: 23.74 | O6: 22.83 | P6: 20.03 | Q6: 17.23 | R6: 3.05 | S6: 6.48 | T6: 11.74 | U6: 14.56 | V6: 0.99 | W6: 0.96 | X6: 0.81 | Y6: 0.53 | Z6: 1 | AA6: 0 | AB6: 0 | AC6: 1 | AD6: 0 | AE6: 0 | AF6: 0.1282913765 | AG6: 0.1283
A7: 134 | B7: 114 | C7: 27 | D7: 0.238 | E7: 26.643 | F7: 22.56 | G7: 9.79 | H7: 4.12 | I7: 1.21 | J7: 1.74 | K7: 1.16 | L7: 0.89 | M7: 0.75 | N7: 35.49 | O7: 35.06 | P7: 32.22 | Q7: 28.14 | R7: 3.99 | S7: 6.93 | T7: 14.56 | U7: 17.07 | V7: 0.99 | W7: 0.98 | X7: 0.89 | Y7: 0.79 | Z7: 1 | AA7: 1 | AB7: 0 | AC7: 0 | AD7: 1 | AE7: 0 | AF7: 0.1123795096 | AG7: 0.1124
A8: 173 | B8: 106 | C8: 22 | D8: 0.176 | E8: 19.299 | F8: 38.94 | G8: 14.94 | H8: 3.90 | I8: 1.22 | J8: 2.51 | K8: 1.84 | L8: 1.24 | M8: 0.89 | N8: 26.15 | O8: 24.19 | P8: 20.09 | Q8: 16.65 | R8: 6.88 | S8: 10.57 | T8: 13.78 | U8: 17.29 | V8: 0.96 | W8: 0.90 | X8: 0.73 | Y8: 0.27 | Z8: 1 | AA8: 0 | AB8: 0 | AC8: 0 | AD8: 1 | AE8: 0 | AF8: 0.2632593754 | AG8: 0.2633
A9: 193 | B9: 47 | C9: 7 | D9: 0.146 | E9: 6.873 | F9: 9.90 | G9: 4.02 | H9: 1.29 | I9: 0.32 | J9: 1.54 | K9: 1.31 | L9: 1.01 | M9: 0.76 | N9: 9.54 | O9: 9.16 | P9: 7.76 | Q9: 6.54 | R9: 1.75 | S9: 2.85 | T9: 4.56 | U9: 4.47 | V9: 0.98 | W9: 0.95 | X9: 0.81 | Y9: 0.73 | Z9: 1 | AA9: 1 | AB9: 0 | AC9: 0 | AD9: 0 | AE9: 1 | AF9: 0.183542452 | AG9: 0.1835
A10: 202 | B10: 102 | C10: 15 | D10: 0.357 | E10: 40.097 | F10: 92.85 | G10: 26.61 | H10: 6.37 | I10: 2.08 | J10: 3.49 | K10: 2.77 | L10: 1.69 | M10: 1.68 | N10: 39.91 | O10: 36.47 | P10: 32.68 | Q10: 30.87 | R10: 16.41 | S10: 18.82 | T10: 22.51 | U10: 29.40 | V10: 0.91 | W10: 0.86 | X10: 0.72 | Y10: 0.30 | Z10: 1 | AA10: 0 | AB10: 0 | AC10: 0 | AD10: 1 | AE10: 0 | AF10: 0.4113068148 | AG10: 0.4113
A11: 253 | B11: 103 | C11: 13 | D11: 0.127 | E11: 13.053 | F11: 18.30 | G11: 9.19 | H11: 3.04 | I11: 0.75 | J11: 1.43 | K11: 1.07 | L11: 0.94 | M11: 0.79 | N11: 18.05 | O11: 16.76 | P11: 13.05 | Q11: 13.00 | R11: 3.24 | S11: 6.50 | T11: 10.75 | U11: 10.62 | V11: 0.98 | W11: 0.92 | X11: 0.57 | Y11: 0.58 | Z11: 1 | AA11: 1 | AB11: 0 | AC11: 0 | AD11: 1 | AE11: 0 | AF11: 0.1792493999 | AG11: 0.1792
A12: 257 | B12: 106 | C12: 44 | D12: 0.319 | E12: 33.990 | F12: 21.62 | G12: 16.47 | H12: 7.69 | I12: 1.91 | J12: 1.18 | K12: 0.98 | L12: 0.62 | M12: 0.67 | N12: 42.52 | O12: 40.89 | P12: 30.88 | Q12: 28.69 | R12: 3.82 | S12: 11.64 | T12: 27.18 | U12: 26.99 | V12: 1.00 | W12: 0.96 | X12: 0.47 | Y12: 0.34 | Z12: 1 | AA12: 0 | AB12: 0 | AC12: 0 | AD12: 0 | AE12: 1 | AF12: 0.08987084257 | AG12: 0.0899
A13: 261 | B13: 110 | C13: 17 | D13: 0.177 | E13: 19.084 | F13: 16.60 | G13: 7.71 | H13: 2.57 | I13: 1.15 | J13: 1.55 | K13: 1.30 | L13: 0.95 | M13: 0.70 | N13: 26.05 | O13: 25.29 | P13: 23.10 | Q13: 14.92 | R13: 2.93 | S13: 5.45 | T13: 9.10 | U13: 16.22 | V13: 0.99 | W13: 0.98 | X13: 0.92 | Y13: 0.39 | Z13: 1 | AA13: 1 | AB13: 0 | AC13: 1 | AD13: 0 | AE13: 0 | AF13: 0.1126623976 | AG13: 0.1127
A14: 286 | B14: 142 | C14: 42 | D14: 0.236 | E14: 34.070 | F14: 39.04 | G14: 20.76 | H14: 7.95 | I14: 2.26 | J14: 1.95 | K14: 1.39 | L14: 0.86 | M14: 0.68 | N14: 47.58 | O14: 45.26 | P14: 37.51 | Q14: 29.97 | R14: 6.90 | S14: 14.68 | T14: 28.11 | U14: 31.90 | V14: 0.99 | W14: 0.95 | X14: 0.66 | Y14: 0.34 | Z14: 1 | AA14: 1 | AB14: 0 | AC14: 0 | AD14: 0 | AE14: 1 | AF14: 0.1450380403 | AG14: 0.145
A15: 289 | B15: 125 | C15: 70 | D15: 0.352 | E15: 49.796 | F15: 43.27 | G15: 27.99 | H15: 13.42 | I15: 3.78 | J15: 1.29 | K15: 1.02 | L15: 0.65 | M15: 0.88 | N15: 69.97 | O15: 67.48 | P15: 51.54 | Q15: 36.62 | R15: 7.65 | S15: 19.79 | T15: 47.43 | U15: 53.40 | V15: 0.99 | W15: 0.96 | X15: 0.39 | Y15: 0.73 | Z15: 1 | AA15: 1 | AB15: 1 | AC15: 0 | AD15: 0 | AE15: 0 | AF15: 0.1093300882 | AG15: 0.1093
A16: 322 | B16: 111 | C16: 26 | D16: 0.186 | E16: 21.006 | F16: 16.84 | G16: 9.74 | H16: 3.66 | I16: 1.11 | J16: 1.13 | K16: 0.96 | L16: 0.94 | M16: 0.72 | N16: 25.24 | O16: 24.15 | P16: 20.30 | Q16: 18.25 | R16: 2.98 | S16: 6.89 | T16: 12.94 | U16: 15.74 | V16: 0.99 | W16: 0.96 | X16: 0.77 | Y16: 0.51 | Z16: 1 | AA16: 0 | AB16: 1 | AC16: 0 | AD16: 0 | AE16: 0 | AF16: 0.1179404069 | AG16: 0.1179
A17: 385 | B17: 120 | C17: 30 | D17: 0.193 | E17: 23.269 | F17: 19.25 | G17: 12.02 | H17: 5.74 | I17: 1.24 | J17: 1.28 | K17: 1.21 | L17: 0.88 | M17: 0.80 | N17: 32.03 | O17: 30.75 | P17: 22.90 | Q17: 24.92 | R17: 3.40 | S17: 8.50 | T17: 20.28 | U17: 17.60 | V17: 0.99 | W17: 0.96 | X17: 0.46 | Y17: 0.71 | Z17: 1 | AA17: 0 | AB17: 1 | AC17: 0 | AD17: 0 | AE17: 0 | AF17: 0.1062631143 | AG17: 0.1063
A18: 404 | B18: 140 | C18: 63 | D18: 0.285 | E18: 39.335 | F18: 28.72 | G18: 18.82 | H18: 7.20 | I18: 1.96 | J18: 1.37 | K18: 1.11 | L18: 0.86 | M18: 0.66 | N18: 55.22 | O18: 53.48 | P18: 48.26 | Q18: 44.11 | R18: 5.08 | S18: 13.31 | T18: 25.47 | U18: 27.77 | V18: 1.00 | W18: 0.97 | X18: 0.85 | Y18: 0.78 | Z18: 1 | AA18: 0 | AB18: 0 | AC18: 0 | AD18: 1 | AE18: 0 | AF18: 0.09193999594 | AG18: 0.0919
A19: 463 | B19: 101 | C19: 15 | D19: 0.166 | E19: 16.358 | F19: 22.82 | G19: 11.35 | H19: 2.94 | I19: 0.79 | J19: 1.68 | K19: 1.56 | L19: 0.93 | M19: 0.86 | N19: 22.64 | O19: 21.37 | P19: 18.82 | Q19: 16.44 | R19: 4.03 | S19: 8.03 | T19: 10.40 | U19: 11.21 | V19: 0.98 | W19: 0.93 | X19: 0.83 | Y19: 0.73 | Z19: 1 | AA19: 1 | AB19: 0 | AC19: 0 | AD19: 0 | AE19: 1 | AF19: 0.1781918819 | AG19: 0.1782
A20: 533 | B20: 101 | C20: 23 | D20: 0.233 | E20: 25.270 | F20: 43.21 | G20: 13.47 | H20: 4.72 | I20: 1.53 | J20: 3.42 | K20: 1.79 | L20: 1.37 | M20: 1.08 | N20: 32.80 | O20: 32.04 | P20: 26.89 | Q20: 21.19 | R20: 7.64 | S20: 9.52 | T20: 16.68 | U20: 21.64 | V20: 0.97 | W20: 0.95 | X20: 0.78 | Y20: 0.20 | Z20: 1 | AA20: 0 | AB20: 0 | AC20: 1 | AD20: 0 | AE20: 0 | AF20: 0.232865415 | AG20: 0.2329
A21: 598 | B21: 131 | C21: 34 | D21: 0.230 | E21: 29.697 | F21: 35.06 | G21: 20.47 | H21: 7.50 | I21: 2.22 | J21: 1.60 | K21: 1.41 | L21: 0.90 | M21: 0.86 | N21: 41.47 | O21: 39.16 | P21: 31.92 | Q21: 27.11 | R21: 6.20 | S21: 14.48 | T21: 26.51 | U21: 31.33 | V21: 0.99 | W21: 0.93 | X21: 0.56 | Y21: 0.50 | Z21: 1 | AA21: 0 | AB21: 0 | AC21: 0 | AD21: 1 | AE21: 0 | AF21: 0.1494719701 | AG21: 0.1495
A22: 623 | B22: 110 | C22: 46 | D22: 0.265 | E22: 29.185 | F22: 34.16 | G22: 18.68 | H22: 7.56 | I22: 2.17 | J22: 1.79 | K22: 1.18 | L22: 0.75 | M22: 0.70 | N22: 40.84 | O22: 39.14 | P22: 31.15 | Q22: 27.93 | R22: 6.04 | S22: 13.21 | T22: 26.72 | U22: 30.67 | V22: 0.99 | W22: 0.94 | X22: 0.51 | Y22: 0.41 | Z22: 1 | AA22: 0 | AB22: 0 | AC22: 0 | AD22: 0 | AE22: 1 | AF22: 0.1478544023 | AG22: 0.1479
A23: 654 | B23: 110 | C23: 40 | D23: 0.258 | E23: 29.600 | F23: 26.37 | G23: 17.22 | H23: 7.73 | I23: 1.54 | J23: 1.40 | K23: 1.02 | L23: 0.71 | M23: 0.74 | N23: 41.30 | O23: 39.40 | P23: 30.17 | Q23: 33.77 | R23: 4.66 | S23: 12.18 | T23: 27.34 | U23: 21.77 | V23: 0.99 | W23: 0.95 | X23: 0.42 | Y23: 0.76 | Z23: 1 | AA23: 1 | AB23: 0 | AC23: 0 | AD23: 1 | AE23: 0 | AF23: 0.112890851 | AG23: 0.1129
A24: 702 | B24: 109 | C24: 17 | D24: 0.174 | E24: 19.086 | F24: 33.89 | G24: 13.64 | H24: 4.32 | I24: 1.15 | J24: 2.34 | K24: 1.43 | L24: 1.07 | M24: 1.00 | N24: 26.24 | O24: 24.71 | P24: 19.66 | Q24: 16.71 | R24: 5.99 | S24: 9.64 | T24: 15.28 | U24: 16.30 | V24: 0.97 | W24: 0.92 | X24: 0.63 | Y24: 0.22 | Z24: 1 | AA24: 0 | AB24: 0 | AC24: 0 | AD24: 0 | AE24: 1 | AF24: 0.2283670439 | AG24: 0.2284
A25: 705 | B25: 110 | C25: 15 | D25: 0.105 | E25: 11.438 | F25: 11.74 | G25: 5.52 | H25: 2.24 | I25: 0.72 | J25: 2.36 | K25: 1.35 | L25: 0.94 | M25: 0.89 | N25: 15.24 | O25: 14.85 | P25: 12.06 | Q25: 10.06 | R25: 2.08 | S25: 3.90 | T25: 7.92 | U25: 10.24 | V25: 0.99 | W25: 0.96 | X25: 0.75 | Y25: 0.19 | Z25: 1 | AA25: 0 | AB25: 1 | AC25: 0 | AD25: 0 | AE25: 0 | AF25: 0.1361886024 | AG25: 0.1362
A26: 780 | B26: 100 | C26: 11 | D26: 0.489 | E26: 54.037 | F26: 10.99 | G26: 4.65 | H26: 1.74 | I26: 0.61 | J26: 2.18 | K26: 1.74 | L26: 1.03 | M26: 0.94 | N26: 14.26 | O26: 13.77 | P26: 12.42 | Q26: 10.45 | R26: 1.94 | S26: 3.29 | T26: 6.16 | U26: 8.59 | V26: 0.99 | W26: 0.97 | X26: 0.87 | Y26: 0.57 | Z26: 1 | AA26: 0 | AB26: 0 | AC26: 0 | AD26: 0 | AE26: 1 | AF26: 0.1363057519 | AG26: 0.1363
A27: 821 | B27: 79 | C27: 19.75 | D27: 0.178 | E27: 13.818 | F27: 19.42 | G27: 9.87 | H27: 2.81 | I27: 0.70 | J27: 1.13 | K27: 0.86 | L27: 0.74 | M27: 0.72 | N27: 19.25 | O27: 18.27 | P27: 15.59 | Q27: 11.27 | R27: 3.43 | S27: 6.98 | T27: 9.93 | U27: 9.96 | V27: 0.98 | W27: 0.92 | X27: 0.77 | Y27: 0.47 | Z27: 1 | AA27: 0 | AB27: 0 | AC27: 0 | AD27: 0 | AE27: 1 | AF27: 0.178409446 | AG27: 0.1784
A28: 853 | B28: 121 | C28: 25 | D28: 0.264 | E28: 29.463 | F28: 36.08 | G28: 11.70 | H28: 3.64 | I28: 0.93 | J28: 3.10 | K28: 2.25 | L28: 1.60 | M28: 0.81 | N28: 34.05 | O28: 32.80 | P28: 30.08 | Q28: 26.01 | R28: 6.38 | S28: 8.27 | T28: 12.86 | U28: 13.19 | V28: 0.98 | W28: 0.97 | X28: 0.90 | Y28: 0.86 | Z28: 1 | AA28: 0 | AB28: 0 | AC28: 0 | AD28: 1 | AE28: 0 | AF28: 0.1873204568 | AG28: 0.1873
A29: 882 | B29: 115 | C29: 21 | D29: 0.170 | E29: 19.237 | F29: 19.01 | G29: 8.00 | H29: 3.08 | I29: 0.83 | J29: 1.40 | K29: 1.15 | L29: 0.72 | M29: 0.82 | N29: 26.84 | O29: 26.27 | P29: 22.80 | Q29: 19.89 | R29: 3.36 | S29: 5.66 | T29: 10.90 | U29: 11.69 | V29: 0.99 | W29: 0.98 | X29: 0.88 | Y29: 0.81 | Z29: 1 | AA29: 0 | AB29: 1 | AC29: 0 | AD29: 0 | AE29: 0 | AF29: 0.1252225493 | AG29: 0.1252
A30: 895 | B30: 111 | C30: 10 | D30: 0.102 | E30: 11.154 | F30: 10.51 | G30: 5.65 | H30: 2.62 | I30: 0.65 | J30: 1.40 | K30: 1.36 | L30: 1.12 | M30: 0.89 | N30: 15.49 | O30: 14.77 | P30: 11.15 | Q30: 11.46 | R30: 1.86 | S30: 3.99 | T30: 9.25 | U30: 9.21 | V30: 0.99 | W30: 0.96 | X30: 0.56 | Y30: 0.60 | Z30: 1 | AA30: 1 | AB30: 0 | AC30: 0 | AD30: 1 | AE30: 0 | AF30: 0.1199896539 | AG30: 0.12
A31: 913 | B31: 110 | C31: 18 | D31: 0.190 | E31: 21.248 | F31: 33.76 | G31: 17.30 | H31: 4.40 | I31: 1.04 | J31: 1.80 | K31: 1.32 | L31: 1.02 | M31: 0.99 | N31: 25.46 | O31: 22.62 | P31: 18.89 | Q31: 17.09 | R31: 5.97 | S31: 12.23 | T31: 15.55 | U31: 14.76 | V31: 0.97 | W31: 0.84 | X31: 0.57 | Y31: 0.50 | Z31: 1 | AA31: 0 | AB31: 0 | AC31: 0 | AD31: 0 | AE31: 1 | AF31: 0.2344600049 | AG31: 0.2345
A32: 917 | B32: 110 | C32: 21 | D32: 0.174 | E32: 19.023 | F32: 20.87 | G32: 11.04 | H32: 3.68 | I32: 1.26 | J32: 1.24 | K32: 1.05 | L32: 0.74 | M32: 0.71 | N32: 24.59 | O32: 23.38 | P32: 19.67 | Q32: 14.80 | R32: 3.69 | S32: 7.81 | T32: 13.02 | U32: 17.89 | V32: 0.99 | W32: 0.94 | X32: 0.75 | Y32: 0.56 | Z32: 1 | AA32: 0 | AB32: 1 | AC32: 0 | AD32: 0 | AE32: 0 | AF32: 0.1500618348 | AG32: 0.1501
A33: 918 | B33: 110 | C33: 39 | D33: 0.307 | E33: 35.432 | F33: 30.95 | G33: 20.30 | H33: 6.06 | I33: 2.09 | J33: 2.18 | K33: 1.76 | L33: 0.93 | M33: 0.77 | N33: 45.15 | O33: 42.67 | P33: 34.84 | Q33: 27.36 | R33: 5.47 | S33: 14.35 | T33: 21.43 | U33: 29.60 | V33: 0.99 | W33: 0.94 | X33: 0.79 | Y33: 0.38 | Z33: 1 | AA33: 0 | AB33: 0 | AC33: 0 | AD33: 0 | AE33: 1 | AF33: 0.1211960614 | AG33: 0.1212
A34: 995 | B34: 96 | C34: 12 | D34: 0.299 | E34: 28.503 | F34: 35.28 | G34: 16.69 | H34: 4.93 | I34: 1.23 | J34: 3.35 | K34: 2.31 | L34: 1.51 | M34: 1.36 | N34: 24.99 | O34: 23.91 | P34: 19.50 | Q34: 20.54 | R34: 6.24 | S34: 11.80 | T34: 17.42 | U34: 17.36 | V34: 0.97 | W34: 0.87 | X34: 0.45 | Y34: 0.53 | Z34: 1 | AA34: 0 | AB34: 1 | AC34: 0 | AD34: 0 | AE34: 0 | AF34: 0.2495646483 | AG34: 0.2496
A35: 1068 | B35: 111 | C35: 41 | D35: 0.282 | E35: 32.198 | F35: 37.05 | G35: 21.66 | H35: 6.78 | I35: 1.79 | J35: 1.52 | K35: 1.16 | L35: 0.80 | M35: 0.82 | N35: 39.40 | O35: 37.14 | P35: 31.65 | Q35: 29.81 | R35: 6.55 | S35: 15.32 | T35: 23.99 | U35: 25.36 | V35: 0.99 | W35: 0.91 | X35: 0.65 | Y35: 0.53 | Z35: 1 | AA35: 1 | AB35: 0 | AC35: 0 | AD35: 1 | AE35: 0 | AF35: 0.1662443274 | AG35: 0.1662
A36: 1143 | B36: 122 | C36: 32 | D36: 0.191 | E36: 23.874 | F36: 19.46 | G36: 8.68 | H36: 4.08 | I36: 1.20 | J36: 2.31 | K36: 1.28 | L36: 0.80 | M36: 0.88 | N36: 33.22 | O36: 32.43 | P36: 28.30 | Q36: 23.83 | R36: 3.44 | S36: 6.14 | T36: 14.43 | U36: 17.00 | V36: 0.99 | W36: 0.98 | X36: 0.86 | Y36: 0.70 | Z36: 1 | AA36: 0 | AB36: 1 | AC36: 0 | AD36: 0 | AE36: 0 | AF36: 0.1035684606 | AG36: 0.1036
A37: 1193 | B37: 112 | C37: 15 | D37: 0.158 | E37: 17.879 | F37: 49.54 | G37: 15.16 | H37: 3.52 | I37: 0.85 | J37: 2.24 | K37: 1.57 | L37: 1.10 | M37: 1.01 | N37: 23.59 | O37: 22.31 | P37: 20.13 | Q37: 16.74 | R37: 8.76 | S37: 10.72 | T37: 12.45 | U37: 11.96 | V37: 0.93 | W37: 0.88 | X37: 0.79 | Y37: 0.70 | Z37: 1 | AA37: 1 | AB37: 0 | AC37: 0 | AD37: 1 | AE37: 0 | AF37: 0.3711378932 | AG37: 0.3711
A38: 1296 | B38: 108 | C38: 38 | D38: 0.203 | E38: 22.871 | F38: 26.93 | G38: 14.42 | H38: 4.94 | I38: 1.45 | J38: 1.93 | K38: 1.27 | L38: 1.02 | M38: 0.74 | N38: 31.77 | O38: 30.41 | P38: 27.00 | Q38: 23.08 | R38: 4.76 | S38: 10.20 | T38: 17.47 | U38: 20.49 | V38: 0.99 | W38: 0.94 | X38: 0.76 | Y38: 0.46 | Z38: 1 | AA38: 0 | AB38: 1 | AC38: 0 | AD38: 0 | AE38: 0 | AF38: 0.1498474965 | AG38: 0.1498
A39: 1302 | B39: 111 | C39: 31 | D39: 0.238 | E39: 26.642 | F39: 24.05 | G39: 15.17 | H39: 6.53 | I39: 1.79 | J39: 1.23 | K39: 1.00 | L39: 0.72 | M39: 0.73 | N39: 37.01 | O39: 35.48 | P39: 27.44 | Q39: 22.97 | R39: 4.25 | S39: 10.73 | T39: 23.08 | U39: 25.37 | V39: 0.99 | W39: 0.95 | X39: 0.54 | Y39: 0.42 | Z39: 1 | AA39: 0 | AB39: 0 | AC39: 0 | AD39: 0 | AE39: 1 | AF39: 0.1148578591 | AG39: 0.1149
A40: 1325 | B40: 90 | C40: 18 | D40: 0.306 | E40: 27.937 | F40: 28.35 | G40: 12.80 | H40: 3.94 | I40: 0.95 | J40: 1.56 | K40: 1.47 | L40: 0.85 | M40: 0.60 | N40: 19.28 | O40: 17.71 | P40: 14.88 | Q40: 15.25 | R40: 5.01 | S40: 9.05 | T40: 13.93 | U40: 13.36 | V40: 0.97 | W40: 0.86 | X40: 0.35 | Y40: 0.48 | Z40: 1 | AA40: 0 | AB40: 0 | AC40: 0 | AD40: 0 | AE40: 1 | AF40: 0.2599386605 | AG40: 0.2599
A41: 1387 | B41: 101 | C41: 20 | D41: 0.153 | E41: 15.776 | F41: 33.58 | G41: 9.93 | H41: 3.13 | I41: 1.09 | J41: 3.07 | K41: 1.82 | L41: 1.12 | M41: 0.80 | N41: 21.47 | O41: 21.08 | P41: 18.45 | Q41: 14.44 | R41: 5.94 | S41: 7.02 | T41: 11.06 | U41: 15.38 | V41: 0.96 | W41: 0.94 | X41: 0.80 | Y41: 0.34 | Z41: 1 | AA41: 0 | AB41: 0 | AC41: 0 | AD41: 0 | AE41: 1 | AF41: 0.2765728208 | AG41: 0.2766
A42: 1455 | B42: 117 | C42: 29.5 | D42: 0.245 | E42: 30.166 | F42: 42.36 | G42: 22.07 | H42: 7.18 | I42: 1.61 | J42: 2.21 | K42: 1.36 | L42: 1.02 | M42: 0.87 | N42: 41.77 | O42: 39.29 | P42: 33.00 | Q42: 32.12 | R42: 7.49 | S42: 15.61 | T42: 25.37 | U42: 22.70 | V42: 0.98 | W42: 0.92 | X42: 0.64 | Y42: 0.71 | Z42: 1 | AA42: 1 | AB42: 0 | AC42: 0 | AD42: 1 | AE42: 0 | AF42: 0.1792608435 | AG42: 0.1793
A43: 1547 | B43: 117 | C43: 26 | D43: 0.191 | E43: 22.683 | F43: 23.05 | G43: 10.89 | H43: 4.11 | I43: 1.33 | J43: 1.34 | K43: 1.08 | L43: 0.93 | M43: 0.96 | N43: 27.11 | O43: 26.08 | P43: 22.21 | Q43: 18.04 | R43: 4.08 | S43: 7.70 | T43: 14.54 | U43: 18.82 | V43: 0.99 | W43: 0.96 | X43: 0.76 | Y43: 0.28 | Z43: 1 | AA43: 0 | AB43: 0 | AC43: 0 | AD43: 0 | AE43: 1 | AF43: 0.1503183966 | AG43: 0.1503
A44: 1844 | B44: 124 | C44: 40.5 | D44: 0.252 | E44: 32.062 | F44: 41.31 | G44: 15.46 | H44: 4.50 | I44: 1.26 | J44: 1.36 | K44: 1.10 | L44: 0.97 | M44: 0.68 | N44: 34.84 | O44: 33.63 | P44: 31.96 | Q44: 29.49 | R44: 7.30 | S44: 10.93 | T44: 15.90 | U44: 17.83 | V44: 0.98 | W44: 0.95 | X44: 0.87 | Y44: 0.80 | Z44: 1 | AA44: 1 | AB44: 1 | AC44: 0 | AD44: 0 | AE44: 0 | AF44: 0.2096189046 | AG44: 0.2096
A45: 1848 | B45: 117 | C45: 31 | D45: 0.169 | E45: 19.889 | F45: 18.44 | G45: 11.76 | H45: 4.20 | I45: 1.07 | J45: 1.42 | K45: 1.18 | L45: 0.86 | M45: 0.72 | N45: 27.74 | O45: 25.97 | P45: 21.64 | Q45: 21.34 | R45: 3.26 | S45: 8.31 | T45: 14.87 | U45: 15.16 | V45: 0.99 | W45: 0.95 | X45: 0.73 | Y45: 0.70 | Z45: 1 | AA45: 0 | AB45: 1 | AC45: 0 | AD45: 0 | AE45: 0 | AF45: 0.1175323333 | AG45: 0.1175
A46: 1860 | B46: 117 | C46: 36 | D46: 0.288 | E46: 33.651 | F46: 52.52 | G46: 23.53 | H46: 6.38 | I46: 1.87 | J46: 3.55 | K46: 1.97 | L46: 1.04 | M46: 0.88 | N46: 36.95 | O46: 34.03 | P46: 29.03 | Q46: 24.30 | R46: 9.28 | S46: 16.64 | T46: 22.56 | U46: 26.40 | V46: 0.97 | W46: 0.87 | X46: 0.63 | Y46: 0.39 | Z46: 1 | AA46: 0 | AB46: 1 | AC46: 0 | AD46: 0 | AE46: 0 | AF46: 0.2512547202 | AG46: 0.2513
A47: 1927 | B47: 107 | C47: 14.5 | D47: 0.141 | E47: 15.056 | F47: 25.96 | G47: 12.34 | H47: 3.96 | I47: 0.97 | J47: 1.07 | K47: 1.02 | L47: 0.93 | M47: 0.95 | N47: 20.69 | O47: 18.99 | P47: 15.03 | Q47: 14.84 | R47: 4.59 | S47: 8.73 | T47: 14.02 | U47: 13.69 | V47: 0.98 | W47: 0.89 | X47: 0.36 | Y47: 0.39 | Z47: 1 | AA47: 0 | AB47: 0 | AC47: 1 | AD47: 0 | AE47: 0 | AF47: 0.2218186464 | AG47: 0.2218
A48: 1978 | B48: 102 | C48: 14 | D48: 0.241 | E48: 25.582 | F48: 61.36 | G48: 22.22 | H48: 4.68 | I48: 1.18 | J48: 5.82 | K48: 3.80 | L48: 2.23 | M48: 1.59 | N48: 25.47 | O48: 23.85 | P48: 22.13 | Q48: 20.21 | R48: 10.85 | S48: 15.71 | T48: 16.56 | U48: 16.72 | V48: 0.90 | W48: 0.75 | X48: 0.66 | Y48: 0.56 | Z48: 1 | AA48: 0 | AB48: 0 | AC48: 0 | AD48: 1 | AE48: 0 | AF48: 0.4259277529 | AG48: 0.4259
A49: 2014 | B49: 110 | C49: 21 | D49: 0.160 | E49: 18.094 | F49: 11.57 | G49: 6.97 | H49: 2.74 | I49: 1.30 | J49: 1.77 | K49: 1.61 | L49: 1.02 | M49: 0.80 | N49: 25.47 | O49: 24.88 | P49: 22.90 | Q49: 16.49 | R49: 2.05 | S49: 4.93 | T49: 9.67 | U49: 18.34 | V49: 1.00 | W49: 0.98 | X49: 0.91 | Y49: 0.44 | Z49: 1 | AA49: 1 | AB49: 0 | AC49: 0 | AD49: 1 | AE49: 0 | AF49: 0.08031542296 | AG49: 0.0803
A50: 2053 | B50: 117 | C50: 21.75 | D50: 0.190 | E50: 21.770 | F50: 61.01 | G50: 18.68 | H50: 4.77 | I50: 1.31 | J50: 2.76 | K50: 1.84 | L50: 1.15 | M50: 1.03 | N50: 27.15 | O50: 25.79 | P50: 23.19 | Q50: 18.63 | R50: 10.79 | S50: 13.21 | T50: 16.87 | U50: 18.52 | V50: 0.92 | W50: 0.86 | X50: 0.69 | Y50: 0.11 | Z50: 1 | AA50: 0 | AB50: 0 | AC50: 0 | AD50: 0 | AE50: 1 | AF50: 0.3972103539 | AG50: 0.3972
A51: 2065 | B51: 104 | C51: 12 | D51: 0.113 | E51: 11.386 | F51: 9.82 | G51: 4.89 | H51: 1.87 | I51: 0.56 | J51: 1.59 | K51: 1.27 | L51: 1.12 | M51: 0.86 | N51: 15.84 | O51: 15.30 | P51: 13.19 | Q51: 11.07 | R51: 1.74 | S51: 3.46 | T51: 6.59 | U51: 7.87 | V51: 0.99 | W51: 0.97 | X51: 0.87 | Y51: 0.70 | Z51: 1 | AA51: 0 | AB51: 0 | AC51: 0 | AD51: 0 | AE51: 1 | AF51: 0.1095588313 | AG51: 0.1096
A52: 2074 | B52: 94 | C52: 16.5 | D52: 0.290 | E52: 26.715 | F52: 29.69 | G52: 14.03 | H52: 6.03 | I52: 1.44 | J52: 1.91 | K52: 1.49 | L52: 1.24 | M52: 1.04 | N52: 33.10 | O52: 31.14 | P52: 20.48 | Q52: 19.77 | R52: 5.25 | S52: 9.92 | T52: 21.32 | U52: 20.32 | V52: 0.99 | W52: 0.95 | X52: 0.28 | Y52: 0.23 | Z52: 1 | AA52: 1 | AB52: 0 | AC52: 0 | AD52: 0 | AE52: 1 | AF52: 0.1585610924 | AG52: 0.1586
A53: 2376 | B53: 123 | C53: 38 | D53: 0.232 | E53: 27.702 | F53: 27.22 | G53: 14.94 | H53: 6.12 | I53: 1.55 | J53: 1.70 | K53: 1.32 | L53: 0.84 | M53: 0.86 | N53: 38.72 | O53: 37.44 | P53: 30.97 | Q53: 29.77 | R53: 4.81 | S53: 10.56 | T53: 21.65 | U53: 21.95 | V53: 0.99 | W53: 0.96 | X53: 0.72 | Y53: 0.68 | Z53: 1 | AA53: 1 | AB53: 0 | AC53: 1 | AD53: 0 | AE53: 0 | AF53: 0.1242644121 | AG53: 0.1243
A54: 2405 | B54: 126 | C54: 51 | D54: 0.237 | E54: 31.212 | F54: 46.60 | G54: 15.54 | H54: 5.77 | I54: 2.09 | J54: 3.64 | K54: 1.72 | L54: 0.84 | M54: 0.66 | N54: 43.27 | O54: 42.58 | P54: 38.46 | Q54: 32.69 | R54: 8.24 | S54: 10.99 | T54: 20.41 | U54: 29.61 | V54: 0.98 | W54: 0.97 | X54: 0.85 | Y54: 0.42 | Z54: 1 | AA54: 0 | AB54: 1 | AC54: 0 | AD54: 0 | AE54: 0 | AF54: 0.1903727422 | AG54: 0.1904
A55: 2450 | B55: 95 | C55: 18 | D55: 0.151 | E55: 14.670 | F55: 14.06 | G55: 6.67 | H55: 2.85 | I55: 0.64 | J55: 1.26 | K55: 1.30 | L55: 1.20 | M55: 0.76 | N55: 20.50 | O55: 19.77 | P55: 16.39 | Q55: 15.27 | R55: 2.49 | S55: 4.72 | T55: 10.07 | U55: 9.09 | V55: 0.99 | W55: 0.97 | X55: 0.79 | Y55: 0.80 | Z55: 1 | AA55: 1 | AB55: 0 | AC55: 0 | AD55: 0 | AE55: 1 | AF55: 0.1212295777 | AG55: 0.1212
A56: 2453 | B56: 104 | C56: 18 | D56: 0.135 | E56: 14.005 | F56: 8.59 | G56: 5.04 | H56: 2.77 | I56: 0.74 | J56: 1.35 | K56: 1.11 | L56: 0.92 | M56: 0.59 | N56: 19.62 | O56: 19.06 | P56: 15.18 | Q56: 14.24 | R56: 1.52 | S56: 3.56 | T56: 9.78 | U56: 10.46 | V56: 1.00 | W56: 0.98 | X56: 0.76 | Y56: 0.68 | Z56: 1 | AA56: 1 | AB56: 0 | AC56: 0 | AD56: 0 | AE56: 1 | AF56: 0.07733651149 | AG56: 0.0773
A57: 2552 | B57: 132 | C57: 41 | D57: 0.308 | E57: 41.246 | F57: 23.58 | G57: 13.62 | H57: 3.96 | I57: 1.80 | J57: 2.21 | K57: 1.72 | L57: 1.08 | M57: 0.86 | N57: 50.09 | O57: 49.28 | P57: 45.80 | Q57: 35.28 | R57: 4.17 | S57: 9.63 | T57: 14.00 | U57: 25.44 | V57: 1.00 | W57: 0.98 | X57: 0.95 | Y57: 0.69 | Z57: 1 | AA57: 1 | AB57: 1 | AC57: 0 | AD57: 0 | AE57: 0 | AF57: 0.08323008157 | AG57: 0.0832
A58: 2555 | B58: 110 | C58: 40 | D58: 0.233 | E58: 25.643 | F58: 22.90 | G58: 10.79 | H58: 4.85 | I58: 1.38 | J58: 1.70 | K58: 1.15 | L58: 0.90 | M58: 0.84 | N58: 36.02 | O58: 35.31 | P58: 31.54 | Q58: 29.98 | R58: 4.05 | S58: 7.63 | T58: 17.16 | U58: 19.48 | V58: 0.99 | W58: 0.98 | X58: 0.84 | Y58: 0.76 | Z58: 1 | AA58: 1 | AB58: 0 | AC58: 1 | AD58: 0 | AE58: 0 | AF58: 0.1124143379 | AG58: 0.1124
A59: 2568 | B59: 111 | C59: 20 | D59: 0.236 | E59: 26.931 | F59: 33.21 | G59: 14.01 | H59: 4.82 | I59: 1.43 | J59: 2.70 | K59: 1.49 | L59: 1.14 | M59: 1.15 | N59: 37.00 | O59: 34.40 | P59: 28.70 | Q59: 24.93 | R59: 5.87 | S59: 9.91 | T59: 17.03 | U59: 20.18 | V59: 0.99 | W59: 0.96 | X59: 0.80 | Y59: 0.59 | Z59: 1 | AA59: 0 | AB59: 1 | AC59: 0 | AD59: 0 | AE59: 0 | AF59: 0.158650656 | AG59: 0.1587
A60: 2617 | B60: 92 | C60: 14.5 | D60: 0.171 | E60: 15.793 | F60: 25.17 | G60: 7.50 | H60: 2.40 | I60: 0.96 | J60: 2.71 | K60: 1.70 | L60: 0.97 | M60: 0.57 | N60: 17.20 | O60: 16.63 | P60: 15.26 | Q60: 11.39 | R60: 4.45 | S60: 5.30 | T60: 8.48 | U60: 13.62 | V60: 0.97 | W60: 0.95 | X60: 0.83 | Y60: 0.55 | Z60: 1 | AA60: 0 | AB60: 0 | AC60: 0 | AD60: 0 | AE60: 1 | AF60: 0.2586509248 | AG60: 0.2587
A61: 2659 | B61: 119 | C61: 44 | D61: 0.389 | E61: 45.417 | F61: 23.70 | G61: 16.81 | H61: 7.27 | I61: 1.63 | J61: 1.17 | K61: 1.27 | L61: 0.83 | M61: 0.82 | N61: 46.89 | O61: 44.35 | P61: 35.50 | Q61: 34.47 | R61: 4.19 | S61: 11.88 | T61: 25.71 | U61: 22.98 | V61: 1.00 | W61: 0.96 | X61: 0.69 | Y61: 0.75 | Z61: 1 | AA61: 0 | AB61: 0 | AC61: 1 | AD61: 0 | AE61: 0 | AF61: 0.08933584262 | AG61: 0.0893
A62: 2696 | B62: 103 | C62: 31 | D62: 0.197 | E62: 20.201 | F62: 18.78 | G62: 11.93 | H62: 4.35 | I62: 1.52 | J62: 1.26 | K62: 1.18 | L62: 0.74 | M62: 0.71 | N62: 28.33 | O62: 27.07 | P62: 23.35 | Q62: 17.18 | R62: 3.32 | S62: 8.43 | T62: 15.37 | U62: 21.43 | V62: 0.99 | W62: 0.95 | X62: 0.75 | Y62: 0.60 | Z62: 1 | AA62: 1 | AB62: 0 | AC62: 0 | AD62: 0 | AE62: 1 | AF62: 0.1171727248 | AG62: 0.1172
A63: 2711 | B63: 91 | C63: 46 | D63: 0.277 | E63: 27.390 | F63: 14.34 | G63: 9.56 | H63: 4.15 | I63: 1.15 | J63: 1.40 | K63: 1.28 | L63: 1.15 | M63: 0.67 | N63: 38.58 | O63: 37.86 | P63: 34.74 | Q63: 30.97 | R63: 2.53 | S63: 6.76 | T63: 14.69 | U63: 16.25 | V63: 1.00 | W63: 0.98 | X63: 0.91 | Y63: 0.85 | Z63: 1 | AA63: 1 | AB63: 0 | AC63: 0 | AD63: 0 | AE63: 1 | AF63: 0.06569158386 | AG63: 0.0657
A64: 2731 | B64: 104.5 | C64: 18 | D64: 0.185 | E64: 19.888 | F64: 26.28 | G64: 11.07 | H64: 4.14 | I64: 1.29 | J64: 2.26 | K64: 1.27 | L64: 0.92 | M64: 0.99 | N64: 27.60 | O64: 26.47 | P64: 20.90 | Q64: 14.87 | R64: 4.65 | S64: 7.83 | T64: 14.64 | U64: 18.28 | V64: 0.99 | W64: 0.96 | X64: 0.71 | Y64: 0.58 | Z64: 1 | AA64: 0 | AB64: 1 | AC64: 0 | AD64: 0 | AE64: 0 | AF64: 0.16832415 | AG64: 0.1683
A65: 2781 | B65: 103 | C65: 8 | D65: 0.123 | E65: 12.484 | F65: 58.35 | G65: 15.38 | H65: 3.42 | I65: 0.76 | J65: 4.49 | K65: 3.06 | L65: 1.78 | M65: 1.50 | N65: 14.27 | O65: 13.62 | P65: 12.34 | Q65: 11.17 | R65: 10.31 | S65: 10.88 | T65: 12.10 | U65: 10.79 | V65: 0.69 | W65: 0.60 | X65: 0.20 | Y65: 0.26 | Z65: 1 | AA65: 1 | AB65: 0 | AC65: 1 | AD65: 0 | AE65: 0 | AF65: 0.7225744573 | AG65: 0.7226
A66: 2807 | B66: 93 | C66: 21 | D66: 0.228 | E66: 21.701 | F66: 17.40 | G66: 11.27 | H66: 3.88 | I66: 0.90 | J66: 1.42 | K66: 1.24 | L66: 0.96 | M66: 0.90 | N66: 26.39 | O66: 25.22 | P66: 21.20 | Q66: 20.89 | R66: 3.08 | S66: 7.97 | T66: 13.72 | U66: 12.71 | V66: 0.99 | W66: 0.95 | X66: 0.76 | Y66: 0.79 | Z66: 1 | AA66: 0 | AB66: 0 | AC66: 0 | AD66: 0 | AE66: 1 | AF66: 0.1165707175 | AG66: 0.1166
A67: 2860 | B67: 101 | C67: 16 | D67: 0.156 | E67: 15.872 | F67: 12.47 | G67: 7.55 | H67: 2.45 | I67: 0.79 | J67: 1.60 | K67: 1.56 | L67: 0.92 | M67: 0.86 | N67: 19.34 | O67: 18.14 | P67: 16.83 | Q67: 15.24 | R67: 2.20 | S67: 5.34 | T67: 8.66 | U67: 11.12 | V67: 0.99 | W67: 0.96 | X67: 0.86 | Y67: 0.68 | Z67: 1 | AA67: 1 | AB67: 0 | AC67: 0 | AD67: 0 | AE67: 1 | AF67: =R67/N67 -> 0.1139729122 | AG67: 0.114
A68: 2875 | B68: 90 | C68: 17 | D68: 0.218 | E68: 19.796 | F68: 25.45 | G68: 9.31 | H68: 3.16 | I68: 0.90 | J68: 2.03 | K68: 1.35 | L68: 0.89 | M68: 0.80 | N68: 21.15 | O68: 20.33 | P68: 17.83 | Q68: 15.27 | R68: 4.50 | S68: 6.58 | T68: 11.19 | U68: 12.71 | V68: 0.98 | W68: 0.95 | X68: 0.78 | Y68: 0.55 | Z68: 1 | AA68: 0 | AB68: 0 | AC68: 0 | AD68: 0 | AE68: 1 | AF68: 0.2127416095 | AG68: =ROUND(AF68,4) -> 0.2127
A69: 2940 | B69: 89 | C69: 21 | D69: 0.308 | E69: 29.495 | F69: 81.09 | G69: 25.84 | H69: 7.25 | I69: 2.49 | J69: 2.25 | K69: 1.69 | L69: 1.14 | M69: 1.17 | N69: 39.14 | O69: 37.27 | P69: 31.39 | Q69: 24.75 | R69: 14.33 | S69: 18.27 | T69: 25.62 | U69: 35.17 | V69: 0.93 | W69: 0.87 | X69: 0.58 | Y69: 0.71 | Z69: 1 | AA69: 0 | AB69: 0 | AC69: 0 | AD69: 0 | AE69: 1 | AF69: 0.3662868764 | AG69: 0.3663
A70: 2950 | B70: 121 | C70: 14 | D70: 0.155 | E70: 18.726 | F70: 27.30 | G70: 11.45 | H70: 3.52 | I70: 1.08 | J70: 2.89 | K70: 2.14 | L70: 1.18 | M70: 0.97 | N70: 24.94 | O70: 22.79 | P70: 20.09 | Q70: 16.09 | R70: 4.83 | S70: 8.09 | T70: 12.45 | U70: 15.32 | V70: 0.98 | W70: 0.93 | X70: 0.78 | Y70: 0.31 | Z70: 1 | AA70: 0 | AB70: 0 | AC70: 0 | AD70: 1 | AE70: 0 | AF70: 0.1935073569 | AG70: 0.1935
A71: 2962 | B71: 81 | C71: 12 | D71: 0.245 | E71: 20.152 | F71: 42.28 | G71: 11.88 | H71: 3.28 | I71: 1.02 | J71: 3.59 | K71: 2.37 | L71: 1.43 | M71: 1.17 | N71: 26.52 | O71: 26.09 | P71: 23.20 | Q71: 17.57 | R71: 7.47 | S71: 8.40 | T71: 11.61 | U71: 14.47 | V71: 0.96 | W71: 0.95 | X71: 0.87 | Y71: 0.57 | Z71: 1 | AA71: 0 | AB71: 0 | AC71: 0 | AD71: 0 | AE71: 1 | AF71: 0.2817903779 | AG71: 0.2818
A72: 3114 | B72: 122 | C72: 30 | D72: 0.210 | E72: 26.269 | F72: 29.24 | G72: 10.64 | H72: 4.71 | I72: 1.84 | J72: 2.69 | K72: 1.28 | L72: 0.81 | M72: 0.65 | N72: 36.58 | O72: 36.10 | P72: 32.90 | Q72: 25.44 | R72: 5.17 | S72: 7.52 | T72: 16.67 | U72: 26.07 | V72: 0.99 | W72: 0.98 | X72: 0.86 | Y72: 0.22 | Z72: 1 | AA72: 0 | AB72: 0 | AC72: 0 | AD72: 1 | AE72: 0 | AF72: 0.1412890057 | AG72: 0.1413
A73: 3177 | B73: 94 | C73: 23 | D73: 0.282 | E73: 29.204 | F73: 17.22 | G73: 15.22 | H73: 5.91 | I73: 2.29 | J73: 1.44 | K73: 1.69 | L73: 0.94 | M73: 0.68 | N73: 40.06 | O73: 38.31 | P73: 31.99 | Q73: 25.31 | R73: 3.04 | S73: 10.76 | T73: 20.88 | U73: 32.41 | V73: 1.00 | W73: 0.96 | X73: 0.76 | Y73: 0.62 | Z73: 1 | AA73: 0 | AB73: 0 | AC73: 0 | AD73: 0 | AE73: 1 | AF73: 0.07598092394 | AG73: 0.076
A74: 3224 | B74: 105 | C74: 17 | D74: 0.201 | E74: 20.915 | F74: 13.01 | G74: 6.01 | H74: 2.10 | I74: 0.82 | J74: 1.77 | K74: 1.28 | L74: 1.12 | M74: 1.01 | N74: 24.77 | O74: 24.37 | P74: 22.72 | Q74: 18.38 | R74: 2.30 | S74: 4.25 | T74: 7.42 | U74: 11.61 | V74: 1.00 | W74: 0.98 | X74: 0.95 | Y74: 0.78 | Z74: 1 | AA74: 1 | AB74: 0 | AC74: 0 | AD74: 0 | AE74: 1 | AF74: 0.09287679349 | AG74: 0.0929
A75: 3277 | B75: 70 | C75: 26.5 | D75: 0.217 | E75: 14.457 | F75: 19.22 | G75: 6.83 | H75: 2.53 | I75: 0.71 | J75: 1.72 | K75: 1.14 | L75: 0.89 | M75: 0.56 | N75: 20.16 | O75: 19.90 | P75: 17.73 | Q75: 13.03 | R75: 3.40 | S75: 4.83 | T75: 8.95 | U75: 10.01 | V75: 0.99 | W75: 0.97 | X75: 0.86 | Y75: 0.64 | Z75: 1 | AA75: 0 | AB75: 0 | AC75: 1 | AD75: 0 | AE75: 0 | AF75: 0.1684885609 | AG75: 0.1685
A76: 3281 | B76: 97 | C76: 29 | D76: 0.275 | E76: 26.537 | F76: 24.87 | G76: 13.83 | H76: 6.14 | I76: 1.68 | J76: 1.03 | K76: 1.05 | L76: 0.93 | M76: 0.66 | N76: 37.19 | O76: 35.92 | P76: 29.55 | Q76: 26.03 | R76: 4.40 | S76: 9.78 | T76: 21.70 | U76: 23.81 | V76: 0.99 | W76: 0.96 | X76: 0.68 | Y76: 0.40 | Z76: 1 | AA76: 0 | AB76: 0 | AC76: 0 | AD76: 0 | AE76: 1 | AF76: 0.1182133075 | AG76: 0.1182
A77: 3288 | B77: 90 | C77: 16 | D77: 0.215 | E77: 20.103 | F77: 14.70 | G77: 10.60 | H77: 4.37 | I77: 1.40 | J77: 1.66 | K77: 1.55 | L77: 1.16 | M77: 0.86 | N77: 28.18 | O77: 26.84 | P77: 21.74 | Q77: 16.83 | R77: 2.60 | S77: 7.50 | T77: 15.46 | U77: 19.86 | V77: 1.00 | W77: 0.96 | X77: 0.70 | Y77: 0.53 | Z77: 1 | AA77: 0 | AB77: 0 | AC77: 0 | AD77: 0 | AE77: 1 | AF77: 0.09225051771 | AG77: 0.0923
A78: 3326 | B78: 111 | C78: 20 | D78: 0.171 | E78: 19.544 | F78: 33.26 | G78: 13.36 | H78: 3.86 | I78: 1.19 | J78: 3.23 | K78: 1.93 | L78: 1.04 | M78: 0.86 | N78: 22.70 | O78: 22.15 | P78: 19.01 | Q78: 14.62 | R78: 5.88 | S78: 9.45 | T78: 13.66 | U78: 16.86 | V78: 0.97 | W78: 0.90 | X78: 0.70 | Y78: 0.50 | Z78: 1 | AA78: 0 | AB78: 1 | AC78: 0 | AD78: 0 | AE78: 0 | AF78: 0.2589413027 | AG78: 0.2589
A79: 3348 | B79: 99 | C79: 21 | D79: 0.157 | E79: 16.021 | F79: 16.45 | G79: 9.13 | H79: 3.83 | I79: 0.88 | J79: 1.11 | K79: 0.93 | L79: 0.80 | M79: 0.77 | N79: 22.37 | O79: 21.27 | P79: 16.24 | Q79: 17.97 | R79: 2.91 | S79: 6.45 | T79: 13.53 | U79: 12.52 | V79: 0.99 | W79: 0.95 | X79: 0.55 | Y79: 0.72 | Z79: 1 | AA79: 0 | AB79: 1 | AC79: 0 | AD79: 0 | AE79: 0 | AF79: 0.1300326581 | AG79: 0.13
A80: 3393 | B80: 126 | C80: 41 | D80: 0.230 | E80: 28.873 | F80: 40.69 | G80: 22.20 | H80: 6.42 | I80: 1.52 | J80: 1.61 | K80: 1.10 | L80: 0.74 | M80: 0.74 | N80: 40.19 | O80: 37.68 | P80: 33.66 | Q80: 33.16 | R80: 7.19 | S80: 15.70 | T80: 22.70 | U80: 21.52 | V80: 0.98 | W80: 0.91 | X80: 0.74 | Y80: 0.76 | Z80: 1 | AA80: 0 | AB80: 0 | AC80: 1 | AD80: 0 | AE80: 0 | AF80: 0.1789779406 | AG80: 0.179
A81: 3500 | B81: 120 | C81: 24.75 | D81: 0.164 | E81: 19.612 | F81: 16.11 | G81: 9.13 | H81: 3.58 | I81: 1.18 | J81: 1.33 | K81: 1.13 | L81: 0.95 | M81: 0.74 | N81: 24.58 | O81: 23.59 | P81: 20.71 | Q81: 17.25 | R81: 2.85 | S81: 6.45 | T81: 12.64 | U81: 16.69 | V81: 0.99 | W81: 0.96 | X81: 0.79 | Y81: 0.25 | Z81: 1 | AA81: 0 | AB81: 0 | AC81: 0 | AD81: 1 | AE81: 0 | AF81: 0.1158849512 | AG81: 0.1159
A82: 3525 | B82: 107 | C82: 31 | D82: 0.170 | E82: 19.155 | F82: 26.99 | G82: 13.42 | H82: 4.13 | I82: 0.91 | J82: 1.85 | K82: 1.53 | L82: 0.99 | M82: 0.86 | N82: 26.57 | O82: 24.92 | P82: 21.38 | Q82: 21.42 | R82: 4.77 | S82: 9.49 | T82: 14.60 | U82: 12.82 | V82: 0.98 | W82: 0.92 | X82: 0.73 | Y82: 0.80 | Z82: 1 | AA82: 0 | AB82: 1 | AC82: 0 | AD82: 0 | AE82: 0 | AF82: 0.1795456266 | AG82: 0.1795
A83: 3539 | B83: 106 | C83: 31 | D83: 0.216 | E83: 23.284 | F83: 32.88 | G83: 17.58 | H83: 5.55 | I83: 1.28 | J83: 1.64 | K83: 1.25 | L83: 0.71 | M83: 0.87 | N83: 32.34 | O83: 30.18 | P83: 24.85 | Q83: 22.27 | R83: 5.81 | S83: 12.43 | T83: 19.61 | U83: 18.17 | V83: 0.98 | W83: 0.91 | X83: 0.61 | Y83: 0.58 | Z83: 1 | AA83: 0 | AB83: 0 | AC83: 0 | AD83: 1 | AE83: 0 | AF83: 0.1797651739 | AG83: 0.1798
A84: 3562 | B84: 95 | C84: 24 | D84: 0.233 | E84: 23.149 | F84: 21.74 | G84: 13.34 | H84: 5.81 | I84: 1.49 | J84: 1.32 | K84: 1.09 | L84: 0.86 | M84: 0.78 | N84: 32.40 | O84: 30.90 | P84: 22.79 | Q84: 22.62 | R84: 3.84 | S84: 9.43 | T84: 20.56 | U84: 21.13 | V84: 0.99 | W84: 0.95 | X84: 0.43 | Y84: 0.36 | Z84: 1 | AA84: 0 | AB84: 1 | AC84: 0 | AD84: 0 | AE84: 0 | AF84: 0.1185969638 | AG84: 0.1186
A85: 3596 | B85: 127 | C85: 60 | D85: 0.263 | E85: 32.120 | F85: 31.19 | G85: 11.48 | H85: 3.20 | I85: 1.08 | J85: 1.96 | K85: 1.30 | L85: 0.88 | M85: 0.63 | N85: 45.11 | O85: 44.52 | P85: 42.49 | Q85: 39.03 | R85: 5.51 | S85: 8.12 | T85: 11.31 | U85: 15.23 | V85: 0.99 | W85: 0.98 | X85: 0.96 | Y85: 0.92 | Z85: 1 | AA85: 0 | AB85: 0 | AC85: 0 | AD85: 1 | AE85: 0 | AF85: 0.1222257884 | AG85: 0.1222
A86: 3601 | B86: 110 | C86: 14 | D86: 0.170 | E86: 19.180 | F86: 35.35 | G86: 11.79 | H86: 4.08 | I86: 0.91 | J86: 4.12 | K86: 2.49 | L86: 1.41 | M86: 0.87 | N86: 26.06 | O86: 24.40 | P86: 17.73 | Q86: 18.15 | R86: 6.25 | S86: 8.34 | T86: 14.41 | U86: 12.88 | V86: 0.97 | W86: 0.94 | X86: 0.58 | Y86: 0.70 | Z86: 1 | AA86: 0 | AB86: 0 | AC86: 0 | AD86: 0 | AE86: 1 | AF86: 0.2398051216 | AG86: 0.2398
A87: 3617 | B87: 116 | C87: 27 | D87: 0.248 | E87: 27.282 | F87: 35.44 | G87: 10.85 | H87: 3.97 | I87: 1.03 | J87: 3.74 | K87: 1.92 | L87: 1.32 | M87: 0.97 | N87: 37.84 | O87: 36.85 | P87: 30.99 | Q87: 28.78 | R87: 6.26 | S87: 7.67 | T87: 14.04 | U87: 14.59 | V87: 0.99 | W87: 0.98 | X87: 0.89 | Y87: 0.86 | Z87: 1 | AA87: 1 | AB87: 0 | AC87: 1 | AD87: 0 | AE87: 0 | AF87: 0.1655471787 | AG87: 0.1655
A88: 3630 | B88: 135 | C88: 28 | D88: 0.173 | E88: 22.501 | F88: 17.58 | G88: 10.33 | H88: 3.46 | I88: 1.22 | J88: 1.81 | K88: 1.65 | L88: 1.04 | M88: 0.70 | N88: 31.29 | O88: 29.26 | P88: 26.30 | Q88: 20.55 | R88: 3.11 | S88: 7.30 | T88: 12.24 | U88: 17.20 | V88: 1.00 | W88: 0.97 | X88: 0.89 | Y88: 0.55 | Z88: 1 | AA88: 0 | AB88: 0 | AC88: 0 | AD88: 1 | AE88: 0 | AF88: 0.0993065989 | AG88: 0.0993
A89: 3703 | B89: 114 | C89: 40.75 | D89: 0.230 | E89: 27.281 | F89: 25.91 | G89: 13.06 | H89: 4.98 | I89: 1.27 | J89: 1.55 | K89: 1.16 | L89: 0.75 | M89: 0.66 | N89: 38.13 | O89: 37.16 | P89: 33.63 | Q89: 31.50 | R89: 4.58 | S89: 9.23 | T89: 17.60 | U89: 18.02 | V89: 0.99 | W89: 0.97 | X89: 0.85 | Y89: 0.82 | Z89: 1 | AA89: 0 | AB89: 0 | AC89: 0 | AD89: 1 | AE89: 0 | AF89: 0.1200961715 | AG89: 0.1201
A90: 3848 | B90: 96 | C90: 28 | D90: 0.183 | E90: 18.279 | F90: 14.42 | G90: 8.13 | H90: 3.07 | I90: 1.15 | J90: 1.21 | K90: 1.17 | L90: 0.96 | M90: 0.68 | N90: 25.66 | O90: 24.95 | P90: 23.09 | Q90: 19.60 | R90: 2.55 | S90: 5.75 | T90: 10.85 | U90: 16.22 | V90: 1.00 | W90: 0.97 | X90: 0.88 | Y90: 0.56 | Z90: 1 | AA90: 0 | AB90: 0 | AC90: 0 | AD90: 1 | AE90: 0 | AF90: 0.09935073913 | AG90: 0.0994
A91: 3875 | B91: 99 | C91: 15 | D91: 0.130 | E91: 13.182 | F91: 12.07 | G91: 5.82 | H91: 2.57 | I91: 0.95 | J91: 1.38 | K91: 1.17 | L91: 0.83 | M91: 0.70 | N91: 18.39 | O91: 17.94 | P91: 16.25 | Q91: 12.73 | R91: 2.13 | S91: 4.11 | T91: 9.08 | U91: 13.37 | V91: 0.99 | W91: 0.97 | X91: 0.83 | Y91: 0.31 | Z91: 1 | AA91: 0 | AB91: 1 | AC91: 0 | AD91: 0 | AE91: 0 | AF91: 0.1160012752 | AG91: 0.116
A92: 3901 | B92: 115 | C92: 34.75 | D92: 0.225 | E92: 26.397 | F92: 20.07 | G92: 13.41 | H92: 5.96 | I92: 1.73 | J92: 1.21 | K92: 1.03 | L92: 0.69 | M92: 0.59 | N92: 36.95 | O92: 35.36 | P92: 27.20 | Q92: 23.91 | R92: 3.55 | S92: 9.48 | T92: 21.07 | U92: 24.41 | V92: 1.00 | W92: 0.96 | X92: 0.63 | Y92: 0.20 | Z92: 1 | AA92: 1 | AB92: 1 | AC92: 0 | AD92: 0 | AE92: 0 | AF92: 0.09601693497 | AG92: 0.096
A93: 3929 | B93: 120 | C93: 16.25 | D93: 0.160 | E93: 18.135 | F93: 19.25 | G93: 9.48 | H93: 3.85 | I93: 1.41 | J93: 1.86 | K93: 1.50 | L93: 1.02 | M93: 0.85 | N93: 25.36 | O93: 24.53 | P93: 21.06 | Q93: 16.71 | R93: 3.40 | S93: 6.71 | T93: 13.61 | U93: 19.99 | V93: 0.99 | W93: 0.96 | X93: 0.76 | Y93: 0.55 | Z93: 1 | AA93: 0 | AB93: 0 | AC93: 0 | AD93: 0 | AE93: 1 | AF93: 0.1341291865 | AG93: 0.1341
A94: 3945 | B94: 108 | C94: 13.25 | D94: 0.132 | E94: 14.468 | F94: 44.84 | G94: 15.87 | H94: 3.53 | I94: 0.80 | J94: 6.34 | K94: 3.98 | L94: 2.37 | M94: 1.31 | N94: 18.85 | O94: 17.04 | P94: 15.72 | Q94: 13.42 | R94: 7.93 | S94: 11.22 | T94: 12.48 | U94: 11.26 | V94: 0.91 | W94: 0.75 | X94: 0.61 | Y94: 0.54 | Z94: 1 | AA94: 0 | AB94: 0 | AC94: 0 | AD94: 1 | AE94: 0 | AF94: 0.420431176 | AG94: 0.4204
A95: 4031 | B95: 116 | C95: 39 | D95: 0.231 | E95: 27.879 | F95: 17.46 | G95: 11.20 | H95: 5.85 | I95: 1.71 | J95: 1.26 | K95: 1.24 | L95: 0.79 | M95: 0.80 | N95: 39.08 | O95: 37.72 | P95: 29.38 | Q95: 27.50 | R95: 3.09 | S95: 7.92 | T95: 20.68 | U95: 24.16 | V95: 1.00 | W95: 0.98 | X95: 0.71 | Y95: 0.48 | Z95: 1 | AA95: 0 | AB95: 0 | AC95: 0 | AD95: 0 | AE95: 1 | AF95: 0.07899779954 | AG95: 0.079
A96: 4043 | B96: 141 | C96: 37 | D96: 0.192 | E96: 27.273 | F96: 45.64 | G96: 21.52 | H96: 7.83 | I96: 1.61 | J96: 2.51 | K96: 1.62 | L96: 0.76 | M96: 0.86 | N96: 37.61 | O96: 35.17 | P96: 26.03 | Q96: 28.08 | R96: 8.07 | S96: 15.22 | T96: 27.67 | U96: 22.78 | V96: 0.98 | W96: 0.90 | X96: 0.34 | Y96: 0.58 | Z96: 1 | AA96: 0 | AB96: 1 | AC96: 0 | AD96: 0 | AE96: 0 | AF96: 0.214508624 | AG96: 0.2145
A97: 4051 | B97: 108 | C97: 11 | D97: 0.140 | E97: 14.432 | F97: 10.58 | G97: 4.22 | H97: 1.60 | I97: 0.70 | J97: 1.42 | K97: 1.21 | L97: 1.04 | M97: 1.20 | N97: 20.28 | O97: 20.00 | P97: 18.83 | Q97: 12.67 | R97: 1.87 | S97: 2.98 | T97: 5.67 | U97: 9.84 | V97: 1.00 | W97: 0.99 | X97: 0.95 | Y97: 0.63 | Z97: 1 | AA97: 1 | AB97: 0 | AC97: 0 | AD97: 0 | AE97: 1 | AF97: 0.09223966497 | AG97: 0.0922
A98: 4054 | B98: 137 | C98: 27 | D98: 0.172 | E98: 23.317 | F98: 20.97 | G98: 11.17 | H98: 4.33 | I98: 1.51 | J98: 0.97 | K98: 0.93 | L98: 0.81 | M98: 0.85 | N98: 32.55 | O98: 31.32 | P98: 27.30 | Q98: 19.36 | R98: 3.71 | S98: 7.90 | T98: 15.30 | U98: 21.33 | V98: 0.99 | W98: 0.97 | X98: 0.83 | Y98: 0.42 | Z98: 1 | AA98: 0 | AB98: 0 | AC98: 0 | AD98: 1 | AE98: 0 | AF98: 0.1138795393 | AG98: 0.1139
A99: 4074 | B99: 118.5 | C99: 34 | D99: 0.220 | E99: 26.508 | F99: 23.04 | G99: 12.02 | H99: 5.07 | I99: 1.47 | J99: 1.52 | K99: 1.17 | L99: 0.86 | M99: 0.72 | N99: 33.56 | O99: 31.58 | P99: 26.44 | Q99: 25.21 | R99: 4.07 | S99: 8.50 | T99: 17.92 | U99: 20.75 | V99: 0.99 | W99: 0.96 | X99: 0.74 | Y99: 0.57 | Z99: 1 | AA99: 0 | AB99: 0 | AC99: 0 | AD99: 1 | AE99: 0 | AF99: 0.1213745627 | AG99: 0.1214
A100: 4243 | B100: 119 | C100: 25 | D100: 0.200 | E100: 22.978 | F100: 45.30 | G100: 16.40 | H100: 3.98 | I100: 1.06 | J100: 3.12 | K100: 2.10 | L100: 1.25 | M100: 0.82 | N100: 31.13 | O100: 27.88 | P100: 24.33 | Q100: 20.63 | R100: 8.01 | S100: 11.60 | T100: 14.08 | U100: 15.01 | V100: 0.97 | W100: 0.91 | X100: 0.82 | Y100: 0.69 | Z100: 1 | AA100: 0 | AB100: 0 | AC100: 0 | AD100: 0 | AE100: 1 | AF100: 0.2572042789 | AG100: 0.2572
A101: 4255 | B101: 92 | C101: 15 | D101: 0.185 | E101: 17.757 | F101: 42.08 | G101: 11.64 | H101: 3.22 | I101: 1.11 | J101: 4.89 | K101: 2.77 | L101: 1.36 | M101: 0.95 | N101: 23.85 | O101: 23.29 | P101: 20.19 | Q101: 13.96 | R101: 7.44 | S101: 8.23 | T101: 11.39 | U101: 15.73 | V101: 0.95 | W101: 0.94 | X101: 0.83 | Y101: 0.46 | Z101: 1 | AA101: 0 | AB101: 0 | AC101: 0 | AD101: 0 | AE101: 1 | AF101: 0.3119321886 | AG101: 0.3119
A102: 1 | B102: 105 | C102: 36 | D102: 0.257 | E102: 27.382 | F102: 25.40 | G102: 15.54 | H102: 4.94 | I102: 1.75 | J102: 1.20 | K102: 1.07 | L102: 0.87 | M102: 0.66 | N102: 35.56 | O102: 33.91 | P102: 28.82 | Q102: 23.89 | R102: 4.49 | S102: 10.99 | T102: 17.45 | U102: 24.68 | V102: 0.99 | W102: 0.95 | X102: 0.80 | Y102: 0.25 | Z102: 0 | AA102: 0 | AB102: 0 | AC102: 1 | AD102: 0 | AE102: 0 | AF102: 0.1262795271 | AG102: 0.1263
A103: 2 | B103: 106 | C103: 17 | D103: 0.137 | E103: 14.460 | F103: 21.67 | G103: 9.12 | H103: 3.26 | I103: 0.90 | J103: 1.82 | K103: 1.16 | L103: 1.02 | M103: 0.71 | N103: 20.08 | O103: 19.35 | P103: 16.14 | Q103: 14.43 | R103: 3.83 | S103: 6.45 | T103: 11.52 | U103: 12.79 | V103: 0.98 | W103: 0.94 | X103: 0.70 | Y103: 0.46 | Z103: 0 | AA103: 0 | AB103: 1 | AC103: 0 | AD103: 0 | AE103: 0 | AF103: 0.1908453434 | AG103: 0.1908
A104: 3 | B104: 103 | C104: 20 | D104: 0.185 | E104: 19.368 | F104: 52.17 | G104: 17.10 | H104: 4.94 | I104: 1.29 | J104: 4.84 | K104: 2.41 | L104: 1.21 | M104: 1.05 | N104: 25.66 | O104: 24.17 | P104: 20.48 | Q104: 18.10 | R104: 9.22 | S104: 12.09 | T104: 17.47 | U104: 18.21 | V104: 0.93 | W104: 0.87 | X104: 0.52 | Y104: 0.11 | Z104: 0 | AA104: 0 | AB104: 1 | AC104: 0 | AD104: 0 | AE104: 0 | AF104: 0.3593406169 | AG104: 0.3593
A105: 4 | B105: 114 | C105: 17 | D105: 0.184 | E105: 20.345 | F105: 17.96 | G105: 8.12 | H105: 2.67 | I105: 1.14 | J105: 1.16 | K105: 1.07 | L105: 0.96 | M105: 0.90 | N105: 28.39 | O105: 27.50 | P105: 24.11 | Q105: 18.04 | R105: 3.17 | S105: 5.74 | T105: 9.43 | U105: 16.08 | V105: 0.99 | W105: 0.98 | X105: 0.92 | Y105: 0.45 | Z105: 0 | AA105: 0 | AB105: 0 | AC105: 1 | AD105: 0 | AE105: 0 | AF105: 0.111803029 | AG105: 0.1118
A106: 5 | B106: 112 | C106: 28 | D106: 0.219 | E106: 24.674 | F106: 26.63 | G106: 13.92 | H106: 5.12 | I106: 1.56 | J106: 1.73 | K106: 1.24 | L106: 0.94 | M106: 0.91 | N106: 34.51 | O106: 33.06 | P106: 28.34 | Q106: 23.77 | R106: 4.71 | S106: 9.85 | T106: 18.10 | U106: 22.13 | V106: 0.99 | W106: 0.95 | X106: 0.77 | Y106: 0.36 | Z106: 0 | AA106: 0 | AB106: 1 | AC106: 0 | AD106: 0 | AE106: 0 | AF106: 0.1364045826 | AG106: 0.1364
A107: 6 | B107: 115 | C107: 31.5 | D107: 0.181 | E107: 21.171 | F107: 20.69 | G107: 12.37 | H107: 3.91 | I107: 1.05 | J107: 1.29 | K107: 1.18 | L107: 0.84 | M107: 0.87 | N107: 29.49 | O107: 27.89 | P107: 24.65 | Q107: 23.23 | R107: 3.66 | S107: 8.75 | T107: 13.84 | U107: 14.84 | V107: 0.99 | W107: 0.95 | X107: 0.83 | Y107: 0.77 | Z107: 0 | AA107: 0 | AB107: 0 | AC107: 0 | AD107: 1 | AE107: 0 | AF107: 0.1240207114 | AG107: 0.124
A108: 7 | B108: 112 | C108: 16 | D108: 0.173 | E108: 19.550 | F108: 39.40 | G108: 11.85 | H108: 3.84 | I108: 0.89 | J108: 4.29 | K108: 2.01 | L108: 1.09 | M108: 0.92 | N108: 19.04 | O108: 18.15 | P108: 14.35 | Q108: 14.05 | R108: 6.97 | S108: 8.38 | T108: 13.58 | U108: 12.61 | V108: 0.93 | W108: 0.89 | X108: 0.32 | Y108: 0.44 | Z108: 0 | AA108: 0 | AB108: 1 | AC108: 0 | AD108: 0 | AE108: 0 | AF108: 0.3658298755 | AG108: 0.3658
A109: 8 | B109: 115 | C109: 22 | D109: 0.173 | E109: 19.454 | F109: 44.51 | G109: 19.41 | H109: 5.47 | I109: 1.40 | J109: 2.72 | K109: 1.71 | L109: 1.08 | M109: 0.97 | N109: 26.18 | O109: 23.63 | P109: 19.59 | Q109: 20.15 | R109: 7.87 | S109: 13.72 | T109: 19.35 | U109: 19.86 | V109: 0.95 | W109: 0.81 | X109: 0.16 | Y109: 0.17 | Z109: 0 | AA109: 0 | AB109: 0 | AC109: 0 | AD109: 0 | AE109: 1 | AF109: 0.3005210235 | AG109: 0.3005
A110: 9 | B110: 112 | C110: 28 | D110: 0.241 | E110: 26.914 | F110: 45.83 | G110: 19.71 | H110: 6.11 | I110: 1.48 | J110: 2.82 | K110: 1.74 | L110: 0.78 | M110: 0.93 | N110: 30.47 | O110: 29.41 | P110: 22.30 | Q110: 19.69 | R110: 8.10 | S110: 13.93 | T110: 21.60 | U110: 20.95 | V110: 0.96 | W110: 0.88 | X110: 0.25 | Y110: 0.34 | Z110: 0 | AA110: 0 | AB110: 0 | AC110: 0 | AD110: 0 | AE110: 1 | AF110: 0.2659305352 | AG110: 0.2659
A111: 10 | B111: 97 | C111: 19.25 | D111: 0.150 | E111: 15.000 | F111: 19.67 | G111: 9.54 | H111: 3.72 | I111: 0.85 | J111: 1.71 | K111: 1.07 | L111: 0.74 | M111: 0.78 | N111: 20.87 | O111: 19.71 | P111: 14.52 | Q111: 15.56 | R111: 3.48 | S111: 6.74 | T111: 13.14 | U111: 12.00 | V111: 0.99 | W111: 0.94 | X111: 0.43 | Y111: 0.64 | Z111: 0 | AA111: 0 | AB111: 0 | AC111: 0 | AD111: 1 | AE111: 0 | AF111: 0.1665982767 | AG111: 0.1666
A112: 11 | B112: 117 | C112: 26 | D112: 0.203 | E112: 23.410 | F112: 41.24 | G112: 14.40 | H112: 4.82 | I112: 1.37 | J112: 2.27 | K112: 1.35 | L112: 0.87 | M112: 0.77 | N112: 28.69 | O112: 27.35 | P112: 21.10 | Q112: 17.65 | R112: 7.29 | S112: 10.18 | T112: 17.06 | U112: 19.39 | V112: 0.97 | W112: 0.93 | X112: 0.59 | Y112: 0.41 | Z112: 0 | AA112: 0 | AB112: 0 | AC112: 0 | AD112: 1 | AE112: 0 | AF112: 0.254088907 | AG112: 0.2541
A113: 12 | B113: 112 | C113: 57 | D113: 0.296 | E113: 32.685 | F113: 40.82 | G113: 26.94 | H113: 7.97 | I113: 2.45 | J113: 1.40 | K113: 1.03 | L113: 0.72 | M113: 0.67 | N113: 45.51 | O113: 41.70 | P113: 35.69 | Q113: 25.99 | R113: 7.22 | S113: 19.05 | T113: 28.17 | U113: 34.66 | V113: 0.99 | W113: 0.89 | X113: 0.61 | Y113: 0.66 | Z113: 0 | AA113: 0 | AB113: 1 | AC113: 0 | AD113: 0 | AE113: 0 | AF113: 0.1585574859 | AG113: 0.1586
A114: 13 | B114: 102 | C114: 13 | D114: 0.189 | E114: 19.347 | F114: 18.93 | G114: 6.54 | H114: 2.31 | I114: 1.05 | J114: 1.09 | K114: 0.96 | L114: 0.82 | M114: 0.94 | N114: 26.72 | O114: 26.09 | P114: 21.95 | Q114: 14.89 | R114: 3.35 | S114: 4.63 | T114: 8.17 | U114: 14.89 | V114: 0.99 | W114: 0.98 | X114: 0.93 | Y114: 0.00 | Z114: 0 | AA114: 0 | AB114: 0 | AC114: 0 | AD114: 0 | AE114: 1 | AF114: 0.1252511846 | AG114: 0.1253
A115: 14 | B115: 112 | C115: 22.25 | D115: 0.153 | E115: 17.173 | F115: 45.95 | G115: 14.24 | H115: 4.04 | I115: 1.25 | J115: 4.23 | K115: 2.02 | L115: 1.03 | M115: 0.71 | N115: 22.72 | O115: 21.71 | P115: 19.41 | Q115: 15.87 | R115: 8.12 | S115: 10.07 | T115: 14.27 | U115: 17.62 | V115: 0.93 | W115: 0.89 | X115: 0.68 | Y115: 0.43 | Z115: 0 | AA115: 0 | AB115: 1 | AC115: 0 | AD115: 0 | AE115: 0 | AF115: 0.3575057601 | AG115: 0.3575
A116: 15 | B116: 103 | C116: 17 | D116: 0.174 | E116: 18.314 | F116: 13.74 | G116: 8.66 | H116: 3.20 | I116: 1.00 | J116: 1.28 | K116: 1.12 | L116: 0.84 | M116: 0.78 | N116: 17.92 | O116: 16.96 | P116: 13.53 | Q116: 9.80 | R116: 2.43 | S116: 6.12 | T116: 11.32 | U116: 14.10 | V116: 0.99 | W116: 0.93 | X116: 0.55 | Y116: 0.72 | Z116: 0 | AA116: 0 | AB116: 1 | AC116: 0 | AD116: 0 | AE116: 0 | AF116: 0.1355524096 | AG116: 0.1356
A117: 16 | B117: 114 | C117: 22 | D117: 0.204 | E117: 22.523 | F117: 20.40 | G117: 12.36 | H117: 4.25 | I117: 1.30 | J117: 1.22 | K117: 1.20 | L117: 0.90 | M117: 0.93 | N117: 28.72 | O117: 27.23 | P117: 22.66 | Q117: 16.23 | R117: 3.61 | S117: 8.74 | T117: 15.03 | U117: 18.38 | V117: 0.99 | W117: 0.95 | X117: 0.75 | Y117: 0.47 | Z117: 0 | AA117: 0 | AB117: 0 | AC117: 1 | AD117: 0 | AE117: 0 | AF117: 0.1256164149 | AG117: 0.1256
A118: 17 | B118: 117.5 | C118: 27 | D118: 0.225 | E118: 27.214 | F118: 35.35 | G118: 12.60 | H118: 3.98 | I118: 1.52 | J118: 2.84 | K118: 1.53 | L118: 0.93 | M118: 0.80 | N118: 34.28 | O118: 33.06 | P118: 27.75 | Q118: 20.26 | R118: 6.25 | S118: 8.91 | T118: 14.06 | U118: 21.46 | V118: 0.98 | W118: 0.96 | X118: 0.86 | Y118: 0.33 | Z118: 0 | AA118: 0 | AB118: 0 | AC118: 1 | AD118: 0 | AE118: 0 | AF118: 0.1822962223 | AG118: 0.1823
A119: 18 | B119: 116 | C119: 30 | D119: 0.178 | E119: 20.429 | F119: 56.28 | G119: 16.48 | H119: 5.29 | I119: 1.55 | J119: 3.42 | K119: 1.92 | L119: 1.03 | M119: 0.70 | N119: 26.91 | O119: 26.20 | P119: 21.72 | Q119: 20.09 | R119: 9.95 | S119: 11.66 | T119: 18.71 | U119: 21.94 | V119: 0.93 | W119: 0.90 | X119: 0.51 | Y119: 0.40 | Z119: 0 | AA119: 0 | AB119: 0 | AC119: 0 | AD119: 0 | AE119: 1 | AF119: 0.3697588749 | AG119: 0.3698
A120: 19 | B120: 106 | C120: 20 | D120: 0.176 | E120: 18.748 | F120: 16.77 | G120: 11.41 | H120: 5.40 | I120: 1.03 | J120: 1.44 | K120: 1.31 | L120: 0.81 | M120: 0.61 | N120: 26.30 | O120: 24.83 | P120: 15.87 | Q120: 19.42 | R120: 2.96 | S120: 8.07 | T120: 19.09 | U120: 14.50 | V120: 0.99 | W120: 0.95 | X120: 0.56 | Y120: 0.67 | Z120: 0 | AA120: 0 | AB120: 0 | AC120: 0 | AD120: 1 | AE120: 0 | AF120: 0.1127348823 | AG120: 0.1127
A121: 20 | B121: 115.5 | C121: 40 | D121: 0.212 | E121: 24.978 | F121: 15.66 | G121: 10.67 | H121: 4.95 | I121: 1.59 | J121: 1.22 | K121: 1.02 | L121: 0.98 | M121: 0.78 | N121: 35.20 | O121: 34.51 | P121: 30.88 | Q121: 24.97 | R121: 2.77 | S121: 7.54 | T121: 17.52 | U121: 22.54 | V121: 1.00 | W121: 0.98 | X121: 0.82 | Y121: 0.43 | Z121: 0 | AA121: 0 | AB121: 1 | AC121: 0 | AD121: 0 | AE121: 0 | AF121: 0.07865415219 | AG121: 0.0787
A122: 21 | B122: 114 | C122: 24 | D122: 0.165 | E122: 18.964 | F122: 54.45 | G122: 15.55 | H122: 4.68 | I122: 1.37 | J122: 3.39 | K122: 1.60 | L122: 0.93 | M122: 0.84 | N122: 24.93 | O122: 23.67 | P122: 19.44 | Q122: 15.87 | R122: 9.62 | S122: 11.00 | T122: 16.55 | U122: 19.35 | V122: 0.92 | W122: 0.89 | X122: 0.53 | Y122: 0.57 | Z122: 0 | AA122: 0 | AB122: 1 | AC122: 0 | AD122: 0 | AE122: 0 | AF122: 0.3860477178 | AG122: 0.386
A123: 22 | B123: 111 | C123: 35 | D123: 0.297 | E123: 33.403 | F123: 45.52 | G123: 19.67 | H123: 5.02 | I123: 1.36 | J123: 3.35 | K123: 2.04 | L123: 0.91 | M123: 0.75 | N123: 45.69 | O123: 41.36 | P123: 36.40 | Q123: 32.87 | R123: 8.05 | S123: 13.91 | T123: 17.76 | U123: 19.25 | V123: 0.98 | W123: 0.94 | X123: 0.87 | Y123: 0.81 | Z123: 0 | AA123: 0 | AB123: 0 | AC123: 0 | AD123: 0 | AE123: 1 | AF123: 0.176099391 | AG123: 0.1761
A124: 23 | B124: 133 | C124: 43 | D124: 0.272 | E124: 34.826 | F124: 28.54 | G124: 17.95 | H124: 6.30 | I124: 2.14 | J124: 1.27 | K124: 1.12 | L124: 0.79 | M124: 0.80 | N124: 48.83 | O124: 47.04 | P124: 42.18 | Q124: 32.23 | R124: 5.05 | S124: 12.69 | T124: 22.29 | U124: 30.27 | V124: 0.99 | W124: 0.96 | X124: 0.85 | Y124: 0.34 | Z124: 0 | AA124: 1 | AB124: 0 | AC124: 1 | AD124: 0 | AE124: 0 | AF124: 0.1033409937 | AG124: 0.1033
A125: 24 | B125: 124 | C125: 17 | D125: 0.155 | E125: 18.858 | F125: 21.14 | G125: 10.27 | H125: 4.85 | I125: 1.06 | J125: 1.11 | K125: 1.08 | L125: 0.98 | M125: 0.92 | N125: 26.23 | O125: 24.92 | P125: 17.55 | Q125: 18.83 | R125: 3.74 | S125: 7.26 | T125: 17.14 | U125: 15.03 | V125: 0.99 | W125: 0.96 | X125: 0.22 | Y125: 0.60 | Z125: 0 | AA125: 0 | AB125: 0 | AC125: 1 | AD125: 0 | AE125: 0 | AF125: 0.1425167918 | AG125: 0.1425
A126: 25 | B126: 124 | C126: 35 | D126: 0.207 | E126: 25.735 | F126: 20.14 | G126: 13.81 | H126: 6.08 | I126: 1.61 | J126: 1.28 | K126: 1.08 | L126: 0.72 | M126: 0.75 | N126: 35.98 | O126: 34.20 | P126: 25.06 | Q126: 23.17 | R126: 3.56 | S126: 9.77 | T126: 21.51 | U126: 22.76 | V126: 1.00 | W126: 0.96 | X126: 0.51 | Y126: 0.19 | Z126: 0 | AA126: 0 | AB126: 0 | AC126: 0 | AD126: 1 | AE126: 0 | AF126: 0.09892926522 | AG126: 0.0989
A127: 26 | B127: 117 | C127: 31 | D127: 0.210 | E127: 24.456 | F127: 14.79 | G127: 7.44 | H127: 3.61 | I127: 1.07 | J127: 1.36 | K127: 1.26 | L127: 1.10 | M127: 0.67 | N127: 34.40 | O127: 33.76 | P127: 29.47 | Q127: 26.67 | R127: 2.62 | S127: 5.26 | T127: 12.76 | U127: 15.13 | V127: 1.00 | W127: 0.99 | X127: 0.90 | Y127: 0.82 | Z127: 0 | AA127: 0 | AB127: 0 | AC127: 0 | AD127: 0 | AE127: 1 | AF127: 0.07601910717 | AG127: 0.076
A128: 27 | B128: 112 | C128: 19 | D128: 0.196 | E128: 22.048 | F128: 47.96 | G128: 21.75 | H128: 5.73 | I128: 1.53 | J128: 3.69 | K128: 2.55 | L128: 1.26 | M128: 0.87 | N128: 29.93 | O128: 26.78 | P128: 22.92 | Q128: 18.36 | R128: 8.48 | S128: 15.38 | T128: 20.25 | U128: 21.66 | V128: 0.96 | W128: 0.82 | X128: 0.47 | Y128: 0.53 | Z128: 0 | AA128: 0 | AB128: 0 | AC128: 0 | AD128: 1 | AE128: 0 | AF128: 0.2833088596 | AG128: 0.2833
A129: 28 | B129: 134 | C129: 31 | D129: 0.225 | E129: 29.368 | F129: 22.46 | G129: 14.13 | H129: 5.59 | I129: 1.61 | J129: 1.30 | K129: 1.21 | L129: 0.95 | M129: 0.61 | N129: 34.00 | O129: 32.31 | P129: 25.01 | Q129: 23.94 | R129: 3.97 | S129: 9.99 | T129: 19.75 | U129: 22.74 | V129: 0.99 | W129: 0.95 | X129: 0.61 | Y129: 0.31 | Z129: 0 | AA129: 0 | AB129: 1 | AC129: 0 | AD129: 0 | AE129: 0 | AF129: 0.116800868 | AG129: 0.1168
A130: 29 | B130: 122 | C130: 16 | D130: 0.217 | E130: 25.854 | F130: 15.35 | G130: 8.72 | H130: 3.43 | I130: 1.49 | J130: 1.29 | K130: 1.19 | L130: 0.86 | M130: 0.96 | N130: 27.59 | O130: 26.45 | P130: 22.79 | Q130: 12.46 | R130: 2.71 | S130: 6.17 | T130: 12.14 | U130: 21.11 | V130: 1.00 | W130: 0.97 | X130: 0.85 | Y130: 0.81 | Z130: 0 | AA130: 0 | AB130: 0 | AC130: 1 | AD130: 0 | AE130: 0 | AF130: 0.09837618933 | AG130: 0.0984
A131: 30 | B131: 122 | C131: 37 | D131: 0.187 | E131: 23.253 | F131: 13.18 | G131: 7.06 | H131: 2.67 | I131: 1.04 | J131: 1.69 | K131: 1.37 | L131: 0.97 | M131: 0.69 | N131: 32.80 | O131: 32.51 | P131: 30.82 | Q131: 27.68 | R131: 2.33 | S131: 4.99 | T131: 9.45 | U131: 14.69 | V131: 1.00 | W131: 0.99 | X131: 0.95 | Y131: 0.85 | Z131: 0 | AA131: 0 | AB131: 1 | AC131: 0 | AD131: 0 | AE131: 0 | AF131: =R131/N131 -> 0.0710252753 | AG131: 0.071
A132: 31 | B132: 108 | C132: 23 | D132: 0.187 | E132: 20.066 | F132: 25.34 | G132: 16.18 | H132: 4.82 | I132: 1.26 | J132: 1.47 | K132: 1.29 | L132: 0.79 | M132: 0.85 | N132: 27.94 | O132: 25.49 | P132: 20.33 | Q132: 19.77 | R132: 4.48 | S132: 11.44 | T132: 17.04 | U132: 17.80 | V132: 0.99 | W132: 0.89 | X132: 0.55 | Y132: 0.43 | Z132: 0 | AA132: 0 | AB132: 1 | AC132: 0 | AD132: 0 | AE132: 0 | AF132: 0.1602841681 | AG132: =ROUND(AF132,4) -> 0.1603
A133: 32 | B133: 104 | C133: 24 | D133: 0.264 | E133: 26.454 | F133: 28.90 | G133: 12.03 | H133: 4.01 | I133: 1.22 | J133: 1.91 | K133: 1.22 | L133: 0.87 | M133: 0.81 | N133: 34.39 | O133: 33.67 | P133: 30.39 | Q133: 27.72 | R133: 5.11 | S133: 8.51 | T133: 14.17 | U133: 17.26 | V133: 0.99 | W133: 0.97 | X133: 0.88 | Y133: 0.78 | Z133: 0 | AA133: 0 | AB133: 0 | AC133: 1 | AD133: 0 | AE133: 0 | AF133: 0.1485872229 | AG133: 0.1486
A134: 33 | B134: 98 | C134: 14 | D134: 0.135 | E134: 13.197 | F134: 33.10 | G134: 10.17 | H134: 3.08 | I134: 0.83 | J134: 4.53 | K134: 2.45 | L134: 1.32 | M134: 1.02 | N134: 17.60 | O134: 16.98 | P134: 14.44 | Q134: 12.69 | R134: 5.85 | S134: 7.19 | T134: 10.91 | U134: 11.67 | V134: 0.94 | W134: 0.91 | X134: 0.66 | Y134: 0.39 | Z134: 0 | AA134: 0 | AB134: 1 | AC134: 0 | AD134: 0 | AE134: 0 | AF134: 0.3324064141 | AG134: 0.3324
A135: 34 | B135: 115 | C135: 21 | D135: 0.172 | E135: 19.826 | F135: 18.58 | G135: 11.39 | H135: 4.67 | I135: 1.20 | J135: 1.28 | K135: 1.09 | L135: 0.83 | M135: 1.00 | N135: 27.63 | O135: 26.08 | P135: 19.55 | Q135: 17.55 | R135: 3.28 | S135: 8.06 | T135: 16.51 | U135: 16.97 | V135: 0.99 | W135: 0.95 | X135: 0.54 | Y135: 0.25 | Z135: 0 | AA135: 0 | AB135: 1 | AC135: 0 | AD135: 0 | AE135: 0 | AF135: 0.1188823716 | AG135: 0.1189
A136: 35 | B136: 109 | C136: 34.5 | D136: 0.217 | E136: 24.109 | F136: 25.21 | G136: 12.48 | H136: 5.19 | I136: 1.64 | J136: 1.26 | K136: 1.02 | L136: 0.82 | M136: 0.69 | N136: 32.35 | O136: 30.75 | P136: 24.30 | Q136: 21.17 | R136: 4.46 | S136: 8.82 | T136: 18.34 | U136: 23.20 | V136: 0.99 | W136: 0.96 | X136: 0.66 | Y136: 0.41 | Z136: 0 | AA136: 0 | AB136: 0 | AC136: 1 | AD136: 0 | AE136: 0 | AF136: 0.1377892824 | AG136: 0.1378
A137: 36 | B137: 102 | C137: 33 | D137: 0.209 | E137: 22.446 | F137: 60.03 | G137: 16.26 | H137: 3.99 | I137: 1.09 | J137: 5.67 | K137: 3.28 | L137: 2.04 | M137: 1.58 | N137: 29.90 | O137: 29.53 | P137: 28.15 | Q137: 25.72 | R137: 10.61 | S137: 11.50 | T137: 14.11 | U137: 15.47 | V137: 0.93 | W137: 0.92 | X137: 0.87 | Y137: 0.80 | Z137: 0 | AA137: 0 | AB137: 0 | AC137: 0 | AD137: 1 | AE137: 0 | AF137: 0.3549392907 | AG137: 0.3549
A138: 38 | B138: 123.5 | C138: 67.5 | D138: 0.325 | E138: 39.613 | F138: 29.18 | G138: 22.72 | H138: 11.22 | I138: 2.32 | J138: 1.24 | K138: 1.17 | L138: 0.68 | M138: 0.74 | N138: 55.79 | O138: 53.73 | P138: 38.63 | Q138: 42.12 | R138: 5.16 | S138: 16.06 | T138: 39.65 | U138: 32.86 | V138: 1.00 | W138: 0.95 | X138: 0.23 | Y138: 0.63 | Z138: 0 | AA138: 0 | AB138: 0 | AC138: 0 | AD138: 1 | AE138: 0 | AF138: 0.09245928138 | AG138: 0.0925
A139: 39 | B139: 117 | C139: 37.75 | D139: 0.229 | E139: 26.227 | F139: 24.26 | G139: 16.72 | H139: 6.38 | I139: 1.59 | J139: 1.31 | K139: 1.11 | L139: 0.85 | M139: 0.80 | N139: 36.86 | O139: 35.02 | P139: 28.37 | Q139: 24.46 | R139: 4.29 | S139: 11.82 | T139: 22.55 | U139: 22.46 | V139: 0.99 | W139: 0.94 | X139: 0.61 | Y139: 0.40 | Z139: 0 | AA139: 0 | AB139: 1 | AC139: 0 | AD139: 0 | AE139: 0 | AF139: 0.116336958 | AG139: 0.1163
A140: 40 | B140: 124 | C140: 28 | D140: 0.208 | E140: 24.867 | F140: 23.03 | G140: 12.33 | H140: 5.86 | I140: 1.64 | J140: 1.09 | K140: 1.08 | L140: 0.97 | M140: 0.76 | N140: 34.87 | O140: 33.75 | P140: 26.83 | Q140: 23.88 | R140: 4.07 | S140: 8.72 | T140: 20.72 | U140: 23.17 | V140: 0.99 | W140: 0.97 | X140: 0.64 | Y140: 0.24 | Z140: 0 | AA140: 0 | AB140: 0 | AC140: 1 | AD140: 0 | AE140: 0 | AF140: 0.1167402273 | AG140: 0.1167
A141: 41 | B141: 130 | C141: 28.5 | D141: 0.190 | E141: 23.786 | F141: 21.40 | G141: 12.27 | H141: 5.12 | I141: 1.23 | J141: 1.23 | K141: 1.00 | L141: 0.93 | M141: 0.63 | N141: 33.36 | O141: 32.11 | P141: 25.66 | Q141: 25.30 | R141: 3.78 | S141: 8.68 | T141: 18.10 | U141: 17.41 | V141: 0.99 | W141: 0.96 | X141: 0.71 | Y141: 0.73 | Z141: 0 | AA141: 0 | AB141: 0 | AC141: 1 | AD141: 0 | AE141: 0 | AF141: 0.113407537 | AG141: 0.1134
A142: 42 | B142: 112.5 | C142: 22 | D142: 0.171 | E142: 19.453 | F142: 21.82 | G142: 13.50 | H142: 4.18 | I142: 1.09 | J142: 1.47 | K142: 1.22 | L142: 0.79 | M142: 0.70 | N142: 27.17 | O142: 25.48 | P142: 22.48 | Q142: 19.49 | R142: 3.86 | S142: 9.54 | T142: 14.79 | U142: 15.35 | V142: 0.99 | W142: 0.93 | X142: 0.75 | Y142: 0.62 | Z142: 0 | AA142: 0 | AB142: 1 | AC142: 0 | AD142: 0 | AE142: 0 | AF142: 0.1419676898 | AG142: 0.142
A143: 43 | B143: 107 | C143: 21 | D143: 0.231 | E143: 25.050 | F143: 35.80 | G143: 14.17 | H143: 3.87 | I143: 1.32 | J143: 2.89 | K143: 1.79 | L143: 1.07 | M143: 0.85 | N143: 32.50 | O143: 30.88 | P143: 25.90 | Q143: 20.90 | R143: 6.33 | S143: 10.02 | T143: 13.67 | U143: 18.69 | V143: 0.98 | W143: 0.95 | X143: 0.85 | Y143: 0.45 | Z143: 0 | AA143: 0 | AB143: 0 | AC143: 0 | AD143: 1 | AE143: 0 | AF143: 0.1947527676 | AG143: 0.1948
A144: 44 | B144: 142 | C144: 29 | D144: 0.199 | E144: 26.391 | F144: 16.70 | G144: 9.04 | H144: 3.33 | I144: 1.31 | J144: 1.65 | K144: 1.15 | L144: 0.99 | M144: 1.00 | N144: 35.36 | O144: 34.75 | P144: 33.33 | Q144: 26.70 | R144: 2.95 | S144: 6.39 | T144: 11.76 | U144: 18.51 | V144: 1.00 | W144: 0.98 | X144: 0.94 | Y144: 0.72 | Z144: 0 | AA144: 0 | AB144: 0 | AC144: 0 | AD144: 1 | AE144: 0 | AF144: 0.08351387469 | AG144: 0.0835
A145: 45 | B145: 108 | C145: 25 | D145: 0.204 | E145: 22.408 | F145: 19.86 | G145: 12.41 | H145: 4.57 | I145: 1.17 | J145: 1.13 | K145: 1.00 | L145: 0.65 | M145: 0.73 | N145: 31.33 | O145: 29.93 | P145: 24.81 | Q145: 24.08 | R145: 3.51 | S145: 8.78 | T145: 16.15 | U145: 16.59 | V145: 0.99 | W145: 0.96 | X145: 0.76 | Y145: 0.72 | Z145: 0 | AA145: 0 | AB145: 0 | AC145: 1 | AD145: 0 | AE145: 0 | AF145: 0.1120595261 | AG145: 0.1121
A146: 46 | B146: 123 | C146: 16 | D146: 0.239 | E146: 29.081 | F146: 32.65 | G146: 14.70 | H146: 4.56 | I146: 1.15 | J146: 2.51 | K146: 1.73 | L146: 1.04 | M146: 1.13 | N146: 26.20 | O146: 24.46 | P146: 18.89 | Q146: 17.00 | R146: 5.77 | S146: 10.40 | T146: 16.14 | U146: 16.20 | V146: 0.98 | W146: 0.91 | X146: 0.52 | Y146: 0.30 | Z146: 0 | AA146: 0 | AB146: 1 | AC146: 0 | AD146: 0 | AE146: 0 | AF146: 0.2203000287 | AG146: 0.2203
A147: 47 | B147: 121 | C147: 27 | D147: 0.182 | E147: 21.871 | F147: 20.45 | G147: 10.28 | H147: 3.63 | I147: 1.24 | J147: 1.43 | K147: 1.19 | L147: 1.02 | M147: 0.71 | N147: 27.21 | O147: 25.99 | P147: 22.09 | Q147: 16.01 | R147: 3.62 | S147: 7.27 | T147: 12.83 | U147: 17.54 | V147: 0.99 | W147: 0.96 | X147: 0.81 | Y147: 0.41 | Z147: 0 | AA147: 0 | AB147: 1 | AC147: 0 | AD147: 0 | AE147: 0 | AF147: 0.1328665107 | AG147: 0.1329
A148: 48 | B148: 109 | C148: 25 | D148: 0.189 | E148: 21.092 | F148: 26.16 | G148: 9.26 | H148: 3.10 | I148: 1.13 | J148: 3.08 | K148: 1.63 | L148: 0.96 | M148: 0.64 | N148: 25.25 | O148: 24.11 | P148: 21.09 | Q148: 16.30 | R148: 4.62 | S148: 6.54 | T148: 10.96 | U148: 16.01 | V148: 0.98 | W148: 0.96 | X148: 0.85 | Y148: 0.19 | Z148: 0 | AA148: 0 | AB148: 1 | AC148: 0 | AD148: 0 | AE148: 0 | AF148: 0.1831495122 | AG148: 0.1831
A149: 49 | B149: 115 | C149: 34.25 | D149: 0.194 | E149: 22.047 | F149: 17.65 | G149: 10.05 | H149: 4.14 | I149: 1.30 | J149: 1.17 | K149: 1.02 | L149: 0.74 | M149: 0.79 | N149: 30.77 | O149: 29.58 | P149: 24.99 | Q149: 19.98 | R149: 3.12 | S149: 7.11 | T149: 14.63 | U149: 18.43 | V149: 0.99 | W149: 0.97 | X149: 0.81 | Y149: 0.39 | Z149: 0 | AA149: 0 | AB149: 0 | AC149: 0 | AD149: 0 | AE149: 1 | AF149: 0.1014234911 | AG149: 0.1014
A150: 50 | B150: 94 | C150: 10 | D150: 0.082 | E150: 7.769 | F150: 12.44 | G150: 4.86 | H150: 1.58 | I150: 0.58 | J150: 1.28 | K150: 1.20 | L150: 0.98 | M150: 0.72 | N150: 10.65 | O150: 10.10 | P150: 8.45 | Q150: 5.70 | R150: 2.20 | S150: 3.44 | T150: 5.58 | U150: 8.23 | V150: 0.98 | W150: 0.94 | X150: 0.75 | Y150: 0.72 | Z150: 0 | AA150: 0 | AB150: 0 | AC150: 0 | AD150: 0 | AE150: 1 | AF150: 0.2066143489 | AG150: 0.2066
A151: 52 | B151: 125 | C151: 35 | D151: 0.268 | E151: 36.338 | F151: 27.91 | G151: 14.07 | H151: 5.22 | I151: 1.99 | J151: 1.04 | K151: 1.05 | L151: 0.89 | M151: 0.92 | N151: 49.91 | O151: 49.03 | P151: 45.64 | Q151: 37.96 | R151: 4.93 | S151: 9.95 | T151: 18.45 | U151: 28.12 | V151: 1.00 | W151: 0.98 | X151: 0.91 | Y151: 0.67 | Z151: 0 | AA151: 0 | AB151: 0 | AC151: 0 | AD151: 1 | AE151: 0 | AF151: 0.09883587312 | AG151: 0.0988
A152: 53 | B152: 127 | C152: 41.5 | D152: 0.168 | E152: 21.559 | F152: 15.65 | G152: 9.06 | H152: 4.77 | I152: 1.77 | J152: 1.45 | K152: 1.27 | L152: 0.74 | M152: 0.57 | N152: 30.40 | O152: 29.89 | P152: 24.41 | Q152: 15.15 | R152: 2.77 | S152: 6.41 | T152: 16.87 | U152: 25.05 | V152: 1.00 | W152: 0.98 | X152: 0.72 | Y152: 0.80 | Z152: 0 | AA152: 0 | AB152: 0 | AC152: 0 | AD152: 1 | AE152: 0 | AF152: 0.09102484654 | AG152: 0.091
A153: 55 | B153: 111 | C153: 27 | D153: 0.252 | E153: 28.157 | F153: 47.87 | G153: 19.39 | H153: 5.71 | I153: 1.40 | J153: 2.14 | K153: 1.27 | L153: 0.82 | M153: 0.73 | N153: 32.20 | O153: 30.06 | P153: 23.75 | Q153: 22.31 | R153: 8.46 | S153: 13.71 | T153: 20.20 | U153: 19.86 | V153: 0.96 | W153: 0.89 | X153: 0.53 | Y153: 0.46 | Z153: 0 | AA153: 0 | AB153: 0 | AC153: 0 | AD153: 1 | AE153: 0 | AF153: 0.2628187187 | AG153: 0.2628
A154: 56 | B154: 120 | C154: 40.25 | D154: 0.227 | E154: 27.648 | F154: 22.09 | G154: 12.96 | H154: 4.59 | I154: 1.63 | J154: 1.29 | K154: 1.00 | L154: 0.84 | M154: 0.62 | N154: 38.78 | O154: 37.58 | P154: 33.73 | Q154: 28.32 | R154: 3.90 | S154: 9.16 | T154: 16.22 | U154: 23.01 | V154: 0.99 | W154: 0.97 | X154: 0.88 | Y154: 0.58 | Z154: 0 | AA154: 0 | AB154: 1 | AC154: 0 | AD154: 0 | AE154: 0 | AF154: 0.100691757 | AG154: 0.1007
A155: 57 | B155: 116 | C155: 21 | D155: 0.191 | E155: 22.330 | F155: 14.89 | G155: 9.07 | H155: 3.96 | I155: 1.13 | J155: 1.35 | K155: 1.18 | L155: 0.99 | M155: 0.85 | N155: 28.64 | O155: 27.66 | P155: 22.73 | Q155: 20.12 | R155: 2.63 | S155: 6.41 | T155: 14.00 | U155: 15.91 | V155: 1.00 | W155: 0.97 | X155: 0.79 | Y155: 0.61 | Z155: 0 | AA155: 0 | AB155: 1 | AC155: 0 | AD155: 0 | AE155: 0 | AF155: 0.09193367001 | AG155: 0.0919
A156: 58 | B156: 109 | C156: 13 | D156: 0.133 | E156: 14.803 | F156: 12.15 | G156: 7.69 | H156: 3.03 | I156: 0.81 | J156: 1.70 | K156: 1.45 | L156: 1.13 | M156: 0.91 | N156: 20.62 | O156: 19.48 | P156: 14.93 | Q156: 12.34 | R156: 2.15 | S156: 5.43 | T156: 10.72 | U156: 11.39 | V156: 0.99 | W156: 0.96 | X156: 0.70 | Y156: 0.39 | Z156: 0 | AA156: 0 | AB156: 1 | AC156: 0 | AD156: 0 | AE156: 0 | AF156: 0.1041410807 | AG156: 0.1041
A157: 59 | B157: 110 | C157: 29.25 | D157: 0.245 | E157: 27.834 | F157: 23.24 | G157: 15.64 | H157: 6.91 | I157: 1.75 | J157: 1.16 | K157: 1.25 | L157: 1.04 | M157: 0.80 | N157: 37.99 | O157: 36.49 | P157: 28.74 | Q157: 24.58 | R157: 4.11 | S157: 11.06 | T157: 24.42 | U157: 24.71 | V157: 0.99 | W157: 0.95 | X157: 0.53 | Y157: 0.10 | Z157: 0 | AA157: 0 | AB157: 1 | AC157: 0 | AD157: 0 | AE157: 0 | AF157: 0.1081449939 | AG157: 0.1081
A158: 61 | B158: 131 | C158: 15.25 | D158: 0.118 | E158: 15.411 | F158: 13.41 | G158: 5.87 | H158: 2.68 | I158: 0.87 | J158: 1.43 | K158: 1.10 | L158: 0.98 | M158: 0.68 | N158: 21.63 | O158: 21.42 | P158: 19.97 | Q158: 16.18 | R158: 2.37 | S158: 4.15 | T158: 9.49 | U158: 12.37 | V158: 0.99 | W158: 0.98 | X158: 0.88 | Y158: 0.64 | Z158: 0 | AA158: 0 | AB158: 0 | AC158: 0 | AD158: 0 | AE158: 1 | AF158: 0.109563171 | AG158: 0.1096
A159: 62 | B159: 106 | C159: 25 | D159: 0.148 | E159: 15.952 | F159: 15.52 | G159: 8.39 | H159: 3.01 | I159: 1.09 | J159: 1.89 | K159: 1.47 | L159: 0.87 | M159: 0.81 | N159: 22.27 | O159: 21.42 | P159: 18.14 | Q159: 14.56 | R159: 2.74 | S159: 5.93 | T159: 10.65 | U159: 15.40 | V159: 0.99 | W159: 0.96 | X159: 0.81 | Y159: 0.33 | Z159: 0 | AA159: 0 | AB159: 0 | AC159: 1 | AD159: 0 | AE159: 0 | AF159: 0.1231585129 | AG159: 0.1232
A160: 63 | B160: 98 | C160: 27 | D160: 0.215 | E160: 21.825 | F160: 20.05 | G160: 12.56 | H160: 5.62 | I160: 1.46 | J160: 1.44 | K160: 1.08 | L160: 0.77 | M160: 0.86 | N160: 30.60 | O160: 29.28 | P160: 21.71 | Q160: 18.94 | R160: 3.54 | S160: 8.88 | T160: 19.89 | U160: 20.60 | V160: 0.99 | W160: 0.95 | X160: 0.40 | Y160: 0.39 | Z160: 0 | AA160: 0 | AB160: 0 | AC160: 0 | AD160: 1 | AE160: 0 | AF160: 0.115827768 | AG160: 0.1158
A161: 64 | B161: 95 | C161: 20 | D161: 0.193 | E161: 19.030 | F161: 32.08 | G161: 16.98 | H161: 4.88 | I161: 1.36 | J161: 3.07 | K161: 2.11 | L161: 1.00 | M161: 1.02 | N161: 26.27 | O161: 23.90 | P161: 19.04 | Q161: 17.56 | R161: 5.67 | S161: 12.01 | T161: 17.27 | U161: 19.19 | V161: 0.98 | W161: 0.86 | X161: 0.42 | Y161: 0.40 | Z161: 0 | AA161: 0 | AB161: 0 | AC161: 0 | AD161: 0 | AE161: 1 | AF161: 0.2158257074 | AG161: 0.2158
A162: 65 | B162: 123 | C162: 23 | D162: 0.168 | E162: 20.717 | F162: 22.37 | G162: 14.40 | H162: 5.05 | I162: 1.55 | J162: 1.24 | K162: 1.10 | L162: 1.02 | M162: 0.82 | N162: 28.98 | O162: 27.38 | P162: 23.01 | Q162: 18.40 | R162: 3.95 | S162: 10.18 | T162: 17.85 | U162: 21.95 | V162: 0.99 | W162: 0.93 | X162: 0.63 | Y162: 0.55 | Z162: 0 | AA162: 0 | AB162: 1 | AC162: 0 | AD162: 0 | AE162: 0 | AF162: 0.1364787511 | AG162: 0.1365
A163: 66 | B163: 94 | C163: 10 | D163: 0.211 | E163: 20.866 | F163: 58.62 | G163: 21.87 | H163: 5.39 | I163: 1.45 | J163: 4.82 | K163: 3.33 | L163: 1.80 | M163: 1.36 | N163: 27.50 | O163: 24.58 | P163: 20.69 | Q163: 15.93 | R163: 10.36 | S163: 15.47 | T163: 19.04 | U163: 20.51 | V163: 0.93 | W163: 0.78 | X163: 0.39 | Y163: 0.63 | Z163: 0 | AA163: 0 | AB163: 0 | AC163: 0 | AD163: 0 | AE163: 1 | AF163: 0.3768586957 | AG163: 0.3769
A164: 67 | B164: 107 | C164: 22 | D164: 0.207 | E164: 22.392 | F164: 23.02 | G164: 11.49 | H164: 4.37 | I164: 1.43 | J164: 1.29 | K164: 1.18 | L164: 0.97 | M164: 0.77 | N164: 31.08 | O164: 29.50 | P164: 23.53 | Q164: 20.71 | R164: 4.07 | S164: 8.12 | T164: 15.46 | U164: 20.15 | V164: 0.99 | W164: 0.96 | X164: 0.75 | Y164: 0.23 | Z164: 0 | AA164: 0 | AB164: 1 | AC164: 0 | AD164: 0 | AE164: 0 | AF164: 0.1309402394 | AG164: 0.1309
A165: 68 | B165: 103 | C165: 25 | D165: 0.179 | E165: 18.603 | F165: 13.52 | G165: 7.66 | H165: 3.04 | I165: 1.05 | J165: 1.13 | K165: 1.05 | L165: 0.75 | M165: 0.72 | N165: 26.10 | O165: 25.32 | P165: 22.71 | Q165: 18.43 | R165: 2.39 | S165: 5.42 | T165: 10.74 | U165: 14.86 | V165: 1.00 | W165: 0.98 | X165: 0.88 | Y165: 0.59 | Z165: 0 | AA165: 0 | AB165: 0 | AC165: 1 | AD165: 0 | AE165: 0 | AF165: 0.09155386071 | AG165: 0.0916
A166: 69 | B166: 135 | C166: 54.75 | D166: 0.250 | E166: 34.774 | F166: 25.01 | G166: 13.00 | H166: 7.01 | I166: 1.58 | J166: 1.74 | K166: 1.01 | L166: 0.74 | M166: 0.67 | N166: 48.92 | O166: 47.99 | P166: 41.57 | Q166: 41.05 | R166: 4.42 | S166: 9.19 | T166: 24.79 | U166: 22.41 | V166: 1.00 | W166: 0.98 | X166: 0.80 | Y166: 0.84 | Z166: 0 | AA166: 0 | AB166: 1 | AC166: 0 | AD166: 0 | AE166: 0 | AF166: 0.09036834319 | AG166: 0.0904
A167: 71 | B167: 100 | C167: 24 | D167: 0.223 | E167: 21.702 | F167: 16.24 | G167: 9.12 | H167: 3.16 | I167: 0.95 | J167: 1.12 | K167: 1.07 | L167: 0.94 | M167: 0.78 | N167: 26.87 | O167: 26.11 | P167: 22.91 | Q167: 20.17 | R167: 2.87 | S167: 6.45 | T167: 11.17 | U167: 13.39 | V167: 0.99 | W167: 0.97 | X167: 0.87 | Y167: 0.75 | Z167: 0 | AA167: 0 | AB167: 0 | AC167: 0 | AD167: 0 | AE167: 1 | AF167: 0.1068555091 | AG167: 0.1069
A168: 72 | B168: 107 | C168: 22 | D168: 0.155 | E168: 16.654 | F168: 37.77 | G168: 14.67 | H168: 3.78 | I168: 1.08 | J168: 3.04 | K168: 2.22 | L168: 1.11 | M168: 0.92 | N168: 22.42 | O168: 20.37 | P168: 18.27 | Q168: 18.06 | R168: 6.68 | S168: 10.38 | T168: 13.38 | U168: 15.32 | V168: 0.95 | W168: 0.86 | X168: 0.68 | Y168: 0.53 | Z168: 0 | AA168: 1 | AB168: 0 | AC168: 1 | AD168: 0 | AE168: 0 | AF168: 0.2978600363 | AG168: 0.2979
A169: 73 | B169: 145 | C169: 49 | D169: 0.258 | E169: 36.556 | F169: 30.95 | G169: 20.67 | H169: 7.41 | I169: 2.23 | J169: 1.38 | K169: 1.03 | L169: 0.75 | M169: 0.64 | N169: 51.17 | O169: 48.83 | P169: 40.13 | Q169: 30.42 | R169: 5.47 | S169: 14.61 | T169: 26.19 | U169: 31.59 | V169: 0.99 | W169: 0.95 | X169: 0.76 | Y169: 0.27 | Z169: 0 | AA169: 0 | AB169: 0 | AC169: 0 | AD169: 1 | AE169: 0 | AF169: 0.1069163615 | AG169: 0.1069
A170: 74 | B170: 126 | C170: 21 | D170: 0.154 | E170: 19.755 | F170: 19.69 | G170: 9.67 | H170: 3.95 | I170: 0.84 | J170: 2.15 | K170: 1.38 | L170: 0.94 | M170: 1.00 | N170: 27.50 | O170: 26.22 | P170: 22.20 | Q170: 21.52 | R170: 3.48 | S170: 6.83 | T170: 13.95 | U170: 11.95 | V170: 0.99 | W170: 0.97 | X170: 0.78 | Y170: 0.83 | Z170: 0 | AA170: 0 | AB170: 1 | AC170: 0 | AD170: 0 | AE170: 0 | AF170: 0.1266078482 | AG170: 0.1266
A171: 76 | B171: 105 | C171: 41 | D171: 0.231 | E171: 25.426 | F171: 16.74 | G171: 9.64 | H171: 5.07 | I171: 1.88 | J171: 1.28 | K171: 1.20 | L171: 0.80 | M171: 0.59 | N171: 35.75 | O171: 35.00 | P171: 30.12 | Q171: 23.52 | R171: 2.96 | S171: 6.82 | T171: 17.93 | U171: 26.57 | V171: 1.00 | W171: 0.98 | X171: 0.80 | Y171: 0.47 | Z171: 0 | AA171: 0 | AB171: 0 | AC171: 0 | AD171: 0 | AE171: 1 | AF171: 0.0827800722 | AG171: 0.0828
A172: 77 | B172: 115 | C172: 32 | D172: 0.201 | E172: 23.254 | F172: 31.36 | G172: 13.25 | H172: 4.56 | I172: 1.47 | J172: 2.12 | K172: 1.32 | L172: 0.86 | M172: 0.68 | N172: 32.20 | O172: 30.53 | P172: 26.37 | Q172: 22.64 | R172: 5.54 | S172: 9.37 | T172: 16.11 | U172: 20.73 | V172: 0.99 | W172: 0.95 | X172: 0.79 | Y172: 0.40 | Z172: 0 | AA172: 0 | AB172: 1 | AC172: 0 | AD172: 0 | AE172: 0 | AF172: 0.1721700311 | AG172: 0.1722
A173: 78 | B173: 113 | C173: 28.5 | D173: 0.204 | E173: 23.567 | F173: 14.81 | G173: 9.69 | H173: 5.03 | I173: 1.42 | J173: 1.09 | K173: 0.93 | L173: 0.72 | M173: 0.71 | N173: 33.06 | O173: 32.20 | P173: 26.45 | Q173: 22.07 | R173: 2.62 | S173: 6.85 | T173: 17.77 | U173: 20.09 | V173: 1.00 | W173: 0.98 | X173: 0.74 | Y173: 0.41 | Z173: 0 | AA173: 0 | AB173: 0 | AC173: 0 | AD173: 1 | AE173: 0 | AF173: 0.07918432646 | AG173: 0.0792
A174: 79 | B174: 112 | C174: 34.5 | D174: 0.228 | E174: 27.258 | F174: 50.70 | G174: 18.35 | H174: 6.26 | I174: 1.73 | J174: 3.09 | K174: 1.71 | L174: 1.09 | M174: 0.93 | N174: 37.33 | O174: 36.15 | P174: 31.69 | Q174: 31.04 | R174: 8.96 | S174: 12.98 | T174: 22.14 | U174: 24.40 | V174: 0.97 | W174: 0.93 | X174: 0.72 | Y174: 0.62 | Z174: 0 | AA174: 0 | AB174: 1 | AC174: 0 | AD174: 0 | AE174: 0 | AF174: 0.2400666513 | AG174: 0.2401
A175: 80 | B175: 117 | C175: 34 | D175: 0.191 | E175: 22.678 | F175: 19.23 | G175: 10.15 | H175: 4.84 | I175: 1.64 | J175: 1.59 | K175: 1.17 | L175: 0.82 | M175: 0.72 | N175: 31.83 | O175: 30.92 | P175: 25.58 | Q175: 21.53 | R175: 3.40 | S175: 7.18 | T175: 17.12 | U175: 23.15 | V175: 0.99 | W175: 0.97 | X175: 0.74 | Y175: 0.37 | Z175: 0 | AA175: 0 | AB175: 0 | AC175: 0 | AD175: 0 | AE175: 1 | AF175: 0.1068114876 | AG175: 0.1068
A176: 82 | B176: 105 | C176: 30 | D176: 0.214 | E176: 22.746 | F176: 60.57 | G176: 17.24 | H176: 5.11 | I176: 1.21 | J176: 4.02 | K176: 1.89 | L176: 1.02 | M176: 0.82 | N176: 25.72 | O176: 24.97 | P176: 21.34 | Q176: 20.09 | R176: 10.71 | S176: 12.19 | T176: 18.08 | U176: 17.08 | V176: 0.91 | W176: 0.87 | X176: 0.53 | Y176: 0.53 | Z176: 0 | AA176: 0 | AB176: 1 | AC176: 0 | AD176: 0 | AE176: 0 | AF176: 0.416255674 | AG176: 0.4163
A177: 83 | B177: 129.5 | C177: 50 | D177: 0.244 | E177: 31.001 | F177: 29.82 | G177: 18.90 | H177: 8.09 | I177: 2.08 | J177: 1.22 | K177: 0.96 | L177: 0.72 | M177: 0.74 | N177: 43.40 | O177: 41.61 | P177: 32.05 | Q177: 28.45 | R177: 5.27 | S177: 13.37 | T177: 28.60 | U177: 29.39 | V177: 0.99 | W177: 0.95 | X177: 0.45 | Y177: 0.25 | Z177: 0 | AA177: 0 | AB177: 0 | AC177: 1 | AD177: 0 | AE177: 0 | AF177: 0.1214792114 | AG177: 0.1215
A178: 84 | B178: 121 | C178: 30 | D178: 0.268 | E178: 33.367 | F178: 44.86 | G178: 19.65 | H178: 6.15 | I178: 1.56 | J178: 2.01 | K178: 1.18 | L178: 0.96 | M178: 0.74 | N178: 38.98 | O178: 37.30 | P178: 31.69 | Q178: 25.61 | R178: 7.93 | S178: 13.89 | T178: 21.76 | U178: 22.11 | V178: 0.98 | W178: 0.93 | X178: 0.73 | Y178: 0.50 | Z178: 0 | AA178: 0 | AB178: 0 | AC178: 0 | AD178: 1 | AE178: 0 | AF178: 0.2034788484 | AG178: 0.2035
A179: 85 | B179: 100 | C179: 19 | D179: 0.148 | E179: 14.979 | F179: 41.27 | G179: 12.39 | H179: 4.09 | I179: 0.98 | J179: 3.77 | K179: 1.69 | L179: 0.86 | M179: 0.78 | N179: 19.82 | O179: 19.18 | P179: 15.68 | Q179: 14.74 | R179: 7.30 | S179: 8.76 | T179: 14.45 | U179: 13.91 | V179: 0.93 | W179: 0.89 | X179: 0.39 | Y179: 0.33 | Z179: 0 | AA179: 0 | AB179: 1 | AC179: 0 | AD179: 0 | AE179: 0 | AF179: 0.3681653871 | AG179: 0.3682
A180: 86 | B180: 110 | C180: 25 | D180: 0.165 | E180: 18.315 | F180: 46.14 | G180: 13.45 | H180: 4.12 | I180: 1.32 | J180: 3.93 | K180: 1.99 | L180: 1.08 | M180: 0.77 | N180: 24.31 | O180: 23.75 | P180: 20.75 | Q180: 15.69 | R180: 8.16 | S180: 9.51 | T180: 14.56 | U180: 18.73 | V180: 0.94 | W180: 0.92 | X180: 0.71 | Y180: 0.55 | Z180: 0 | AA180: 0 | AB180: 1 | AC180: 0 | AD180: 0 | AE180: 0 | AF180: 0.3356141941 | AG180: 0.3356
A181: 88 | B181: 101 | C181: 23 | D181: 0.151 | E181: 15.544 | F181: 10.90 | G181: 6.79 | H181: 2.46 | I181: 1.23 | J181: 1.16 | K181: 1.10 | L181: 0.75 | M181: 0.59 | N181: 21.76 | O181: 20.84 | P181: 18.36 | Q181: 10.71 | R181: 1.93 | S181: 4.80 | T181: 8.70 | U181: 17.35 | V181: 1.00 | W181: 0.97 | X181: 0.88 | Y181: 0.79 | Z181: 0 | AA181: 0 | AB181: 0 | AC181: 1 | AD181: 0 | AE181: 0 | AF181: 0.08855156831 | AG181: 0.0886
A182: 89 | B182: 109 | C182: 32 | D182: 0.209 | E182: 22.738 | F182: 28.66 | G182: 16.33 | H182: 6.32 | I182: 1.40 | J182: 1.69 | K182: 1.32 | L182: 0.73 | M182: 0.98 | N182: 31.57 | O182: 29.38 | P182: 20.25 | Q182: 19.95 | R182: 5.07 | S182: 11.55 | T182: 22.35 | U182: 19.74 | V182: 0.99 | W182: 0.92 | X182: 0.42 | Y182: 0.15 | Z182: 0 | AA182: 0 | AB182: 0 | AC182: 0 | AD182: 0 | AE182: 1 | AF182: 0.1604828909 | AG182: 0.1605
A183: 90 | B183: 105 | C183: 14 | D183: 0.146 | E183: 15.357 | F183: 20.83 | G183: 8.29 | H183: 3.08 | I183: 0.78 | J183: 2.44 | K183: 1.46 | L183: 0.99 | M183: 0.78 | N183: 17.24 | O183: 16.45 | P183: 13.18 | Q183: 12.09 | R183: 3.68 | S183: 5.86 | T183: 10.90 | U183: 11.05 | V183: 0.98 | W183: 0.93 | X183: 0.56 | Y183: 0.41 | Z183: 0 | AA183: 0 | AB183: 1 | AC183: 0 | AD183: 0 | AE183: 0 | AF183: 0.2136267922 | AG183: 0.2136
A184: 91 | B184: 107 | C184: 20 | D184: 0.143 | E184: 15.237 | F184: 16.10 | G184: 8.97 | H184: 3.21 | I184: 1.16 | J184: 1.63 | K184: 1.42 | L184: 0.96 | M184: 0.58 | N184: 21.23 | O184: 19.96 | P184: 16.46 | Q184: 11.69 | R184: 2.85 | S184: 6.34 | T184: 11.34 | U184: 16.44 | V184: 0.99 | W184: 0.95 | X184: 0.72 | Y184: 0.70 | Z184: 0 | AA184: 0 | AB184: 1 | AC184: 0 | AD184: 0 | AE184: 0 | AF184: 0.1340842342 | AG184: 0.1341
A185: 92 | B185: 119 | C185: 34 | D185: 0.217 | E185: 26.443 | F185: 43.90 | G185: 17.45 | H185: 6.22 | I185: 1.64 | J185: 2.16 | K185: 1.26 | L185: 0.80 | M185: 0.83 | N185: 36.41 | O185: 34.61 | P185: 27.28 | Q185: 23.68 | R185: 7.76 | S185: 12.34 | T185: 22.00 | U185: 23.23 | V185: 0.98 | W185: 0.93 | X185: 0.59 | Y185: 0.19 | Z185: 0 | AA185: 0 | AB185: 0 | AC185: 1 | AD185: 0 | AE185: 0 | AF185: 0.2131518102 | AG185: 0.2132
A186: 93 | B186: 124 | C186: 17 | D186: 0.172 | E186: 21.573 | F186: 17.86 | G186: 11.72 | H186: 3.93 | I186: 1.42 | J186: 1.59 | K186: 1.34 | L186: 1.03 | M186: 0.90 | N186: 30.23 | O186: 28.99 | P186: 26.45 | Q186: 18.65 | R186: 3.16 | S186: 8.29 | T186: 13.90 | U186: 20.06 | V186: 0.99 | W186: 0.96 | X186: 0.85 | Y186: 0.37 | Z186: 0 | AA186: 0 | AB186: 1 | AC186: 0 | AD186: 0 | AE186: 0 | AF186: 0.1044161693 | AG186: 0.1044
A187: 94 | B187: 121 | C187: 31 | D187: 0.276 | E187: 35.931 | F187: 62.58 | G187: 21.19 | H187: 7.80 | I187: 1.70 | J187: 3.28 | K187: 1.70 | L187: 0.96 | M187: 1.03 | N187: 49.31 | O187: 47.78 | P187: 40.42 | Q187: 38.62 | R187: 11.06 | S187: 14.98 | T187: 27.59 | U187: 24.05 | V187: 0.97 | W187: 0.95 | X187: 0.73 | Y187: 0.78 | Z187: 0 | AA187: 0 | AB187: 0 | AC187: 1 | AD187: 0 | AE187: 0 | AF187: 0.2243530537 | AG187: 0.2244
A188: 95 | B188: 117 | C188: 24.75 | D188: 0.190 | E188: 22.267 | F188: 19.67 | G188: 13.07 | H188: 4.97 | I188: 1.20 | J188: 1.27 | K188: 1.23 | L188: 0.86 | M188: 0.68 | N188: 26.40 | O188: 24.23 | P188: 18.04 | Q188: 18.27 | R188: 3.48 | S188: 9.24 | T188: 17.56 | U188: 17.04 | V188: 0.99 | W188: 0.92 | X188: 0.23 | Y188: 0.36 | Z188: 0 | AA188: 0 | AB188: 1 | AC188: 0 | AD188: 0 | AE188: 0 | AF188: 0.131730047 | AG188: 0.1317
A189: 96 | B189: 101 | C189: 18 | D189: 0.202 | E189: 20.217 | F189: 29.79 | G189: 10.30 | H189: 3.63 | I189: 1.16 | J189: 2.50 | K189: 1.51 | L189: 1.18 | M189: 0.90 | N189: 27.90 | O189: 26.82 | P189: 20.88 | Q189: 15.95 | R189: 5.27 | S189: 7.28 | T189: 12.82 | U189: 16.34 | V189: 0.98 | W189: 0.96 | X189: 0.79 | Y189: 0.22 | Z189: 0 | AA189: 0 | AB189: 0 | AC189: 1 | AD189: 0 | AE189: 0 | AF189: 0.1887547677 | AG189: 0.1888
A190: 97 | B190: 120 | C190: 43 | D190: 0.247 | E190: 29.205 | F190: 20.18 | G190: 12.23 | H190: 5.53 | I190: 2.18 | J190: 1.19 | K190: 0.93 | L190: 0.69 | M190: 0.65 | N190: 40.96 | O190: 39.48 | P190: 33.72 | Q190: 23.85 | R190: 3.57 | S190: 8.65 | T190: 19.56 | U190: 30.87 | V190: 1.00 | W190: 0.98 | X190: 0.81 | Y190: 0.63 | Z190: 0 | AA190: 0 | AB190: 1 | AC190: 0 | AD190: 0 | AE190: 0 | AF190: 0.08710147275 | AG190: 0.0871
A191: 99 | B191: 101 | C191: 16 | D191: 0.164 | E191: 16.760 | F191: 52.70 | G191: 20.18 | H191: 5.25 | I191: 1.05 | J191: 3.26 | K191: 2.04 | L191: 1.05 | M191: 0.92 | N191: 21.76 | O191: 18.89 | P191: 15.03 | Q191: 15.39 | R191: 9.32 | S191: 14.27 | T191: 18.57 | U191: 14.91 | V191: 0.90 | W191: 0.66 | X191: 0.59 | Y191: 0.25 | Z191: 0 | AA191: 0 | AB191: 0 | AC191: 1 | AD191: 0 | AE191: 0 | AF191: 0.4281505392 | AG191: 0.4282
A192: 101 | B192: 105 | C192: 24 | D192: 0.180 | E192: 19.381 | F192: 18.90 | G192: 9.23 | H192: 3.98 | I192: 1.44 | J192: 1.74 | K192: 1.20 | L192: 0.78 | M192: 0.66 | N192: 27.23 | O192: 26.52 | P192: 22.16 | Q192: 17.13 | R192: 3.34 | S192: 6.53 | T192: 14.06 | U192: 20.37 | V192: 0.99 | W192: 0.97 | X192: 0.77 | Y192: 0.54 | Z192: 0 | AA192: 0 | AB192: 0 | AC192: 0 | AD192: 1 | AE192: 0 | AF192: 0.1227316382 | AG192: 0.1227
A193: 102 | B193: 108 | C193: 21 | D193: 0.153 | E193: 16.455 | F193: 16.01 | G193: 10.17 | H193: 3.43 | I193: 1.13 | J193: 1.59 | K193: 1.34 | L193: 0.75 | M193: 0.50 | N193: 23.04 | O193: 21.79 | P193: 19.39 | Q193: 16.26 | R193: 2.83 | S193: 7.19 | T193: 12.14 | U193: 16.05 | V193: 0.99 | W193: 0.94 | X193: 0.78 | Y193: 0.16 | Z193: 0 | AA193: 0 | AB193: 1 | AC193: 0 | AD193: 0 | AE193: 0 | AF193: 0.1228729216 | AG193: 0.1229
A194: 103 | B194: 109 | C194: 37 | D194: 0.240 | E194: 25.704 | F194: 29.12 | G194: 18.98 | H194: 6.08 | I194: 1.51 | J194: 1.71 | K194: 1.30 | L194: 0.80 | M194: 0.84 | N194: 35.49 | O194: 32.93 | P194: 26.72 | Q194: 25.19 | R194: 5.15 | S194: 13.42 | T194: 21.49 | U194: 21.33 | V194: 0.99 | W194: 0.91 | X194: 0.59 | Y194: 0.53 | Z194: 0 | AA194: 0 | AB194: 0 | AC194: 0 | AD194: 0 | AE194: 1 | AF194: 0.1450718536 | AG194: 0.1451
A195: 104 | B195: 124 | C195: 29 | D195: 0.182 | E195: 22.810 | F195: 27.02 | G195: 16.86 | H195: 5.56 | I195: 1.38 | J195: 1.33 | K195: 1.16 | L195: 0.82 | M195: 0.82 | N195: 31.82 | O195: 29.70 | P195: 24.46 | Q195: 23.30 | R195: 4.78 | S195: 11.93 | T195: 19.66 | U195: 19.56 | V195: 0.99 | W195: 0.92 | X195: 0.59 | Y195: 0.54 | Z195: 0 | AA195: 0 | AB195: 0 | AC195: 0 | AD195: 1 | AE195: 0 | AF195: =R195/N195 -> 0.1501079421 | AG195: 0.1501
A196: 105 | B196: 118 | C196: 15.25 | D196: 0.177 | E196: 20.376 | F196: 13.67 | G196: 6.70 | H196: 2.78 | I196: 1.05 | J196: 1.28 | K196: 1.31 | L196: 1.07 | M196: 0.91 | N196: 27.44 | O196: 26.32 | P196: 21.01 | Q196: 16.74 | R196: 2.42 | S196: 4.74 | T196: 9.85 | U196: 14.88 | V196: 1.00 | W196: 0.98 | X196: 0.88 | Y196: 0.46 | Z196: 0 | AA196: 0 | AB196: 0 | AC196: 0 | AD196: 0 | AE196: 1 | AF196: 0.08808580264 | AG196: =ROUND(AF196,4) -> 0.0881
A197: 107 | B197: 113 | C197: 29 | D197: 0.222 | E197: 24.983 | F197: 14.66 | G197: 7.89 | H197: 3.75 | I197: 1.31 | J197: 1.49 | K197: 1.07 | L197: 0.86 | M197: 0.80 | N197: 35.13 | O197: 34.49 | P197: 29.28 | Q197: 21.38 | R197: 2.59 | S197: 5.58 | T197: 13.26 | U197: 18.51 | V197: 1.00 | W197: 0.99 | X197: 0.89 | Y197: 0.50 | Z197: 0 | AA197: 0 | AB197: 0 | AC197: 0 | AD197: 0 | AE197: 1 | AF197: 0.07376819554 | AG197: 0.0738
A198: 108 | B198: 95 | C198: 15 | D198: 0.133 | E198: 12.642 | F198: 43.33 | G198: 12.99 | H198: 3.37 | I198: 0.85 | J198: 3.26 | K198: 1.98 | L198: 1.15 | M198: 0.82 | N198: 16.06 | O198: 15.13 | P198: 13.01 | Q198: 10.10 | R198: 7.66 | S198: 9.18 | T198: 11.90 | U198: 12.07 | V198: 0.88 | W198: 0.79 | X198: 0.40 | Y198: 0.55 | Z198: 0 | AA198: 0 | AB198: 0 | AC198: 0 | AD198: 1 | AE198: 0 | AF198: 0.4768808742 | AG198: 0.4769
A199: 109 | B199: 121 | C199: 29 | D199: 0.233 | E199: 28.153 | F199: 60.29 | G199: 24.12 | H199: 6.73 | I199: 1.84 | J199: 1.99 | K199: 1.24 | L199: 1.01 | M199: 0.91 | N199: 35.37 | O199: 33.35 | P199: 28.70 | Q199: 26.47 | R199: 10.66 | S199: 17.05 | T199: 23.80 | U199: 25.99 | V199: 0.95 | W199: 0.86 | X199: 0.56 | Y199: 0.19 | Z199: 0 | AA199: 0 | AB199: 0 | AC199: 0 | AD199: 1 | AE199: 0 | AF199: 0.3013614776 | AG199: 0.3014
A200: 111 | B200: 102 | C200: 11.5 | D200: 0.124 | E200: 12.717 | F200: 14.36 | G200: 8.31 | H200: 2.90 | I200: 0.87 | J200: 1.57 | K200: 1.29 | L200: 0.93 | M200: 0.98 | N200: 17.59 | O200: 16.75 | P200: 12.83 | Q200: 11.86 | R200: 2.54 | S200: 5.88 | T200: 10.27 | U200: 12.25 | V200: 0.99 | W200: 0.94 | X200: 0.60 | Y200: 0.25 | Z200: 0 | AA200: 0 | AB200: 1 | AC200: 0 | AD200: 0 | AE200: 0 | AF200: 0.1443083653 | AG200: 0.1443
... 2046 more rows

Sheet Sys Post-CPB
A1: Subject ID | B1: Median | C1: IQR | D1: Coef of variation | E1: Standard deviation | F1: Standard deviation of rate of change (mmHg/min) | J1: Coefficient of variation of absolute rate of change | N1: Poincare principal axis 1 (mm Hg) | R1: Poincare principal axis 2 (mm Hg) | V1: Eccentricity of Poincare plot ellipse | Z1: Outcomes | AB1: Surgery Type
B2: (mm Hg) | C2: (mm Hg) | E2: (mmHg) | F2: 15 sec | G2: 1 min | H2: 5 min | I2: 20 min | J2: 15 sec | K2: 1 min | L2: 5 min | M2: 20 min | N2: 15 sec | O2: 1 min | P2: 5 min | Q2: 20 min | R2: 15 sec | S2: 1 min | T2: 5 min | U2: 20 min | V2: 15 sec | W2: 1 min | X2: 5 min | Y2: 20 min | Z2: 30-day Mortality | AA2: Renal Failure | AB2: CABG Only | AC2: Valve Only | AD2: CABG and Valve | AE2: Other | AF2: s1/s2
A3: 60 | B3: 99 | C3: 31 | D3: 0.243 | E3: 24.040 | F3: 15.24 | G3: 9.26 | H3: 4.47 | I3: 1.49 | J3: 1.16 | K3: 1.09 | L3: 0.94 | M3: 0.76 | N3: 29.17 | O3: 28.29 | P3: 23.24 | Q3: 19.22 | R3: 2.69 | S3: 6.55 | T3: 15.80 | U3: 21.13 | V3: 1.00 | W3: 0.97 | X3: 0.73 | Y3: 0.42 | Z3: 1 | AA3: 1 | AB3: 0 | AC3: 0 | AD3: 1 | AE3: 0 | AF3: =R3/N3 -> 0.09238613304 | AG3: =ROUND(AF3,4) -> 0.0924
A4: 70 | B4: 89 | C4: 39 | D4: 0.327 | E4: 28.965 | F4: 26.06 | G4: 9.87 | H4: 3.41 | I4: 1.12 | J4: 2.00 | K4: 1.28 | L4: 0.84 | M4: 0.74 | N4: 31.98 | O4: 32.15 | P4: 30.72 | Q4: 29.05 | R4: 4.61 | S4: 6.98 | T4: 12.06 | U4: 15.82 | V4: 0.99 | W4: 0.98 | X4: 0.92 | Y4: 0.84 | Z4: 1 | AA4: 1 | AB4: 0 | AC4: 0 | AD4: 0 | AE4: 1 | AF4: 0.1440547832 | AG4: 0.1441
A5: 81 | B5: 91 | C5: 24 | D5: 0.170 | E5: 15.990 | F5: 12.80 | G5: 6.54 | H5: 3.39 | I5: 1.17 | J5: 1.21 | K5: 0.98 | L5: 0.79 | M5: 0.65 | N5: 22.39 | O5: 21.85 | P5: 19.03 | Q5: 16.65 | R5: 2.26 | S5: 4.62 | T5: 11.98 | U5: 16.49 | V5: 0.99 | W5: 0.98 | X5: 0.78 | Y5: 0.14 | Z5: 1 | AA5: 1 | AB5: 0 | AC5: 0 | AD5: 1 | AE5: 0 | AF5: 0.1010721387 | AG5: 0.1011
A6: 87 | B6: 101 | C6: 46 | D6: 0.314 | E6: 30.270 | F6: 50.04 | G6: 15.99 | H6: 4.62 | I6: 1.60 | J6: 2.94 | K6: 1.65 | L6: 1.04 | M6: 0.74 | N6: 41.88 | O6: 41.25 | P6: 39.35 | Q6: 36.36 | R6: 8.85 | S6: 11.31 | T6: 16.33 | U6: 22.65 | V6: 0.98 | W6: 0.96 | X6: 0.91 | Y6: 0.78 | Z6: 1 | AA6: 0 | AB6: 0 | AC6: 1 | AD6: 0 | AE6: 0 | AF6: 0.2112125116 | AG6: 0.2112
A7: 134 | B7: 88 | C7: 19.5 | D7: 0.159 | E7: 13.689 | F7: 17.26 | G7: 8.40 | H7: 3.21 | I7: 0.76 | J7: 1.11 | K7: 0.93 | L7: 0.81 | M7: 0.70 | N7: 19.06 | O7: 18.11 | P7: 14.82 | Q7: 15.05 | R7: 3.05 | S7: 5.94 | T7: 11.34 | U7: 10.72 | V7: 0.99 | W7: 0.94 | X7: 0.64 | Y7: 0.70 | Z7: 1 | AA7: 1 | AB7: 0 | AC7: 0 | AD7: 1 | AE7: 0 | AF7: 0.1601361126 | AG7: 0.1601
A8: 173 | B8: 93 | C8: 23 | D8: 0.241 | E8: 21.878 | F8: 68.11 | G8: 21.82 | H8: 5.08 | I8: 1.44 | J8: 3.84 | K8: 2.74 | L8: 1.57 | M8: 1.18 | N8: 28.49 | O8: 26.77 | P8: 24.89 | Q8: 22.14 | R8: 12.04 | S8: 15.43 | T8: 17.96 | U8: 20.37 | V8: 0.91 | W8: 0.82 | X8: 0.69 | Y8: 0.39 | Z8: 1 | AA8: 0 | AB8: 0 | AC8: 0 | AD8: 1 | AE8: 0 | AF8: 0.4225953935 | AG8: 0.4226
A9: 193 | B9: 88 | C9: 16 | D9: 0.177 | E9: 15.394 | F9: 37.36 | G9: 11.68 | H9: 2.83 | I9: 0.88 | J9: 2.29 | K9: 1.81 | L9: 1.30 | M9: 1.16 | N9: 17.56 | O9: 16.85 | P9: 15.62 | Q9: 13.26 | R9: 6.60 | S9: 8.26 | T9: 10.02 | U9: 12.46 | V9: 0.93 | W9: 0.87 | X9: 0.77 | Y9: 0.34 | Z9: 1 | AA9: 1 | AB9: 0 | AC9: 0 | AD9: 0 | AE9: 1 | AF9: 0.3760365643 | AG9: 0.376
A10: 202 | B10: 107 | C10: 24.5 | D10: 0.209 | E10: 21.535 | F10: 32.28 | G10: 13.33 | H10: 4.38 | I10: 0.98 | J10: 1.52 | K10: 1.22 | L10: 1.04 | M10: 0.64 | N10: 29.84 | O10: 28.70 | P10: 22.70 | Q10: 19.98 | R10: 5.71 | S10: 9.43 | T10: 15.50 | U10: 13.84 | V10: 0.98 | W10: 0.94 | X10: 0.73 | Y10: 0.72 | Z10: 1 | AA10: 0 | AB10: 0 | AC10: 0 | AD10: 1 | AE10: 0 | AF10: 0.1912118568 | AG10: 0.1912
A11: 253 | B11: 98 | C11: 14 | D11: 0.129 | E11: 12.732 | F11: 16.98 | G11: 8.33 | H11: 3.02 | I11: 0.85 | J11: 1.50 | K11: 1.24 | L11: 0.98 | M11: 0.93 | N11: 17.72 | O11: 16.91 | P11: 14.11 | Q11: 11.61 | R11: 3.00 | S11: 5.89 | T11: 10.67 | U11: 12.04 | V11: 0.99 | W11: 0.94 | X11: 0.65 | Y11: 0.26 | Z11: 1 | AA11: 1 | AB11: 0 | AC11: 0 | AD11: 1 | AE11: 0 | AF11: 0.169443912 | AG11: 0.1694
A12: 257 | B12: 86 | C12: 31 | D12: 0.214 | E12: 17.935 | F12: 16.61 | G12: 8.22 | H12: 2.68 | I12: 1.04 | J12: 1.19 | K12: 1.11 | L12: 0.78 | M12: 0.81 | N12: 25.16 | O12: 24.61 | P12: 23.44 | Q12: 19.84 | R12: 2.94 | S12: 5.81 | T12: 9.47 | U12: 14.74 | V12: 0.99 | W12: 0.97 | X12: 0.91 | Y12: 0.67 | Z12: 1 | AA12: 0 | AB12: 0 | AC12: 0 | AD12: 0 | AE12: 1 | AF12: 0.1167048669 | AG12: 0.1167
A13: 261 | B13: 82 | C13: 12 | D13: 0.123 | E13: 10.079 | F13: 16.45 | G13: 7.42 | H13: 2.02 | I13: 0.63 | J13: 1.65 | K13: 1.28 | L13: 0.87 | M13: 1.03 | N13: 13.89 | O13: 13.02 | P13: 11.08 | Q13: 9.01 | R13: 2.91 | S13: 5.25 | T13: 7.14 | U13: 8.97 | V13: 0.98 | W13: 0.92 | X13: 0.76 | Y13: 0.09 | Z13: 1 | AA13: 1 | AB13: 0 | AC13: 1 | AD13: 0 | AE13: 0 | AF13: 0.2093074439 | AG13: 0.2093
A14: 286 | B14: 116 | C14: 41 | D14: 0.268 | E14: 31.418 | F14: 30.33 | G14: 18.43 | H14: 7.89 | I14: 1.98 | J14: 1.46 | K14: 1.20 | L14: 0.89 | M14: 0.67 | N14: 43.82 | O14: 42.10 | P14: 33.49 | Q14: 30.96 | R14: 5.36 | S14: 13.03 | T14: 27.91 | U14: 28.03 | V14: 0.99 | W14: 0.95 | X14: 0.55 | Y14: 0.42 | Z14: 1 | AA14: 1 | AB14: 0 | AC14: 0 | AD14: 0 | AE14: 1 | AF14: 0.1223600708 | AG14: 0.1224
A15: 289 | B15: 119 | C15: 24 | D15: 0.180 | E15: 20.684 | F15: 32.99 | G15: 14.01 | H15: 4.59 | I15: 1.21 | J15: 1.53 | K15: 1.12 | L15: 0.73 | M15: 0.87 | N15: 28.55 | O15: 27.00 | P15: 21.94 | Q15: 20.68 | R15: 5.83 | S15: 9.91 | T15: 16.23 | U15: 17.13 | V15: 0.98 | W15: 0.93 | X15: 0.67 | Y15: 0.56 | Z15: 1 | AA15: 1 | AB15: 1 | AC15: 0 | AD15: 0 | AE15: 0 | AF15: 0.2042157993 | AG15: 0.2042
A16: 322 | B16: 107 | C16: 25 | D16: 0.217 | E16: 22.046 | F16: 50.54 | G16: 26.89 | H16: 5.73 | I16: 1.53 | J16: 1.76 | K16: 1.50 | L16: 1.08 | M16: 0.84 | N16: 29.82 | O16: 24.49 | P16: 22.89 | Q16: 22.81 | R16: 8.93 | S16: 19.01 | T16: 20.24 | U16: 21.64 | V16: 0.95 | W16: 0.63 | X16: 0.47 | Y16: 0.32 | Z16: 1 | AA16: 0 | AB16: 1 | AC16: 0 | AD16: 0 | AE16: 0 | AF16: 0.2996636051 | AG16: 0.2997
A17: 385 | B17: 102 | C17: 16 | D17: 0.181 | E17: 18.083 | F17: 64.02 | G17: 19.36 | H17: 4.74 | I17: 1.14 | J17: 3.92 | K17: 2.09 | L17: 1.22 | M17: 1.62 | N17: 22.85 | O17: 21.44 | P17: 18.75 | Q17: 19.77 | R17: 11.32 | S17: 13.69 | T17: 16.77 | U17: 16.12 | V17: 0.87 | W17: 0.77 | X17: 0.45 | Y17: 0.58 | Z17: 1 | AA17: 0 | AB17: 1 | AC17: 0 | AD17: 0 | AE17: 0 | AF17: 0.4952357193 | AG17: 0.4952
A18: 404 | B18: 106 | C18: 33 | D18: 0.209 | E18: 20.978 | F18: 24.78 | G18: 12.26 | H18: 4.18 | I18: 1.04 | J18: 1.26 | K18: 1.17 | L18: 0.85 | M18: 0.74 | N18: 28.30 | O18: 27.55 | P18: 24.20 | Q18: 19.92 | R18: 4.38 | S18: 8.67 | T18: 14.76 | U18: 14.74 | V18: 0.99 | W18: 0.95 | X18: 0.79 | Y18: 0.67 | Z18: 1 | AA18: 0 | AB18: 0 | AC18: 0 | AD18: 1 | AE18: 0 | AF18: 0.1547831919 | AG18: 0.1548
A19: 463 | B19: 119 | C19: 31.75 | D19: 0.229 | E19: 25.051 | F19: 26.12 | G19: 13.08 | H19: 4.01 | I19: 1.16 | J19: 1.31 | K19: 1.30 | L19: 0.96 | M19: 1.02 | N19: 35.05 | O19: 33.92 | P19: 30.13 | Q19: 24.39 | R19: 4.62 | S19: 9.25 | T19: 14.19 | U19: 16.35 | V19: 0.99 | W19: 0.96 | X19: 0.88 | Y19: 0.74 | Z19: 1 | AA19: 1 | AB19: 0 | AC19: 0 | AD19: 0 | AE19: 1 | AF19: 0.1317488262 | AG19: 0.1317
A20: 533 | B20: 103 | C20: 29 | D20: 0.210 | E20: 21.424 | F20: 21.58 | G20: 10.80 | H20: 3.45 | I20: 1.28 | J20: 1.32 | K20: 1.35 | L20: 0.88 | M20: 0.59 | N20: 30.01 | O20: 29.19 | P20: 27.70 | Q20: 20.28 | R20: 3.81 | S20: 7.64 | T20: 12.21 | U20: 18.04 | V20: 0.99 | W20: 0.97 | X20: 0.90 | Y20: 0.46 | Z20: 1 | AA20: 0 | AB20: 0 | AC20: 1 | AD20: 0 | AE20: 0 | AF20: 0.1271078068 | AG20: 0.1271
A21: 598 | B21: 134 | C21: 43 | D21: 0.246 | E21: 31.818 | F21: 36.33 | G21: 23.27 | H21: 8.55 | I21: 1.95 | J21: 1.47 | K21: 1.38 | L21: 1.18 | M21: 0.97 | N21: 44.50 | O21: 41.76 | P21: 33.47 | Q21: 37.13 | R21: 6.42 | S21: 16.46 | T21: 30.23 | U21: 27.52 | V21: 0.99 | W21: 0.92 | X21: 0.43 | Y21: 0.67 | Z21: 1 | AA21: 0 | AB21: 0 | AC21: 0 | AD21: 1 | AE21: 0 | AF21: 0.1443211086 | AG21: 0.1443
A22: 623 | B22: 89 | C22: 21 | D22: 0.194 | E22: 17.641 | F22: 37.22 | G22: 11.68 | H22: 3.76 | I22: 1.46 | J22: 2.43 | K22: 1.41 | L22: 1.03 | M22: 0.73 | N22: 24.07 | O22: 23.49 | P22: 21.38 | Q22: 15.47 | R22: 6.58 | S22: 8.26 | T22: 13.29 | U22: 20.60 | V22: 0.96 | W22: 0.94 | X22: 0.78 | Y22: 0.66 | Z22: 1 | AA22: 0 | AB22: 0 | AC22: 0 | AD22: 0 | AE22: 1 | AF22: 0.2733031154 | AG22: 0.2733
A23: 654 | B23: 103 | C23: 35 | D23: 0.238 | E23: 25.065 | F23: 28.49 | G23: 14.55 | H23: 6.59 | I23: 1.37 | J23: 1.20 | K23: 0.88 | L23: 0.75 | M23: 0.65 | N23: 35.03 | O23: 33.59 | P23: 25.03 | Q23: 24.12 | R23: 5.04 | S23: 10.29 | T23: 23.32 | U23: 19.33 | V23: 0.99 | W23: 0.95 | X23: 0.36 | Y23: 0.60 | Z23: 1 | AA23: 1 | AB23: 0 | AC23: 0 | AD23: 1 | AE23: 0 | AF23: 0.1437323236 | AG23: 0.1437
A24: 702 | B24: 110 | C24: 17 | D24: 0.218 | E24: 23.452 | F24: 54.83 | G24: 18.43 | H24: 5.85 | I24: 1.74 | J24: 3.07 | K24: 1.65 | L24: 1.11 | M24: 1.05 | N24: 31.61 | O24: 30.06 | P24: 25.13 | Q24: 20.64 | R24: 9.69 | S24: 13.03 | T24: 20.69 | U24: 24.62 | V24: 0.95 | W24: 0.90 | X24: 0.57 | Y24: 0.55 | Z24: 1 | AA24: 0 | AB24: 0 | AC24: 0 | AD24: 0 | AE24: 1 | AF24: 0.3066831231 | AG24: 0.3067
A25: 705 | B25: 100 | C25: 20 | D25: 0.163 | E25: 16.392 | F25: 18.79 | G25: 9.52 | H25: 3.83 | I25: 0.99 | J25: 1.49 | K25: 1.15 | L25: 0.84 | M25: 0.74 | N25: 22.89 | O25: 21.94 | P25: 17.50 | Q25: 17.21 | R25: 3.32 | S25: 6.73 | T25: 13.53 | U25: 13.94 | V25: 0.99 | W25: 0.95 | X25: 0.63 | Y25: 0.59 | Z25: 1 | AA25: 0 | AB25: 1 | AC25: 0 | AD25: 0 | AE25: 0 | AF25: 0.1451314361 | AG25: 0.1451
A26: 780 | B26: 93 | C26: 21 | D26: 0.187 | E26: 17.011 | F26: 31.55 | G26: 13.51 | H26: 4.12 | I26: 0.99 | J26: 1.82 | K26: 1.59 | L26: 1.18 | M26: 0.68 | N26: 23.43 | O26: 22.22 | P26: 18.32 | Q26: 15.19 | R26: 5.58 | S26: 9.56 | T26: 14.57 | U26: 14.05 | V26: 0.97 | W26: 0.90 | X26: 0.61 | Y26: 0.38 | Z26: 1 | AA26: 0 | AB26: 0 | AC26: 0 | AD26: 0 | AE26: 1 | AF26: 0.2380090843 | AG26: 0.238
A27: 821 | B27: 66 | C27: 19 | D27: 0.202 | E27: 13.430 | F27: 18.78 | G27: 8.21 | H27: 2.54 | I27: 0.86 | J27: 1.38 | K27: 1.19 | L27: 0.98 | M27: 0.61 | N27: 18.07 | O27: 17.19 | P27: 15.43 | Q27: 13.91 | R27: 3.32 | S27: 5.80 | T27: 9.00 | U27: 12.22 | V27: 0.98 | W27: 0.94 | X27: 0.81 | Y27: 0.48 | Z27: 1 | AA27: 0 | AB27: 0 | AC27: 0 | AD27: 0 | AE27: 1 | AF27: 0.1837916738 | AG27: 0.1838
A28: 853 | B28: 93 | C28: 20 | D28: 0.153 | E28: 14.204 | F28: 13.83 | G28: 6.08 | H28: 2.60 | I28: 0.62 | J28: 1.48 | K28: 1.12 | L28: 0.99 | M28: 0.69 | N28: 19.83 | O28: 19.25 | P28: 16.38 | Q28: 14.21 | R28: 2.45 | S28: 4.30 | T28: 9.20 | U28: 8.80 | V28: 0.99 | W28: 0.97 | X28: 0.83 | Y28: 0.79 | Z28: 1 | AA28: 0 | AB28: 0 | AC28: 0 | AD28: 1 | AE28: 0 | AF28: 0.1233170229 | AG28: 0.1233
A29: 882 | B29: 106 | C29: 15 | D29: 0.179 | E29: 18.347 | F29: 21.92 | G29: 10.97 | H29: 3.51 | I29: 0.98 | J29: 1.91 | K29: 1.47 | L29: 1.00 | M29: 0.98 | N29: 25.53 | O29: 24.26 | P29: 20.82 | Q29: 17.82 | R29: 3.87 | S29: 7.76 | T29: 12.41 | U29: 13.92 | V29: 0.99 | W29: 0.95 | X29: 0.80 | Y29: 0.62 | Z29: 1 | AA29: 0 | AB29: 1 | AC29: 0 | AD29: 0 | AE29: 0 | AF29: 0.1517712125 | AG29: 0.1518
A30: 895 | B30: 63 | C30: 22 | D30: 0.279 | E30: 18.767 | F30: 59.94 | G30: 18.13 | H30: 4.33 | I30: 1.23 | J30: 3.79 | K30: 2.14 | L30: 1.46 | M30: 1.29 | N30: 24.33 | O30: 23.27 | P30: 22.05 | Q30: 19.01 | R30: 10.60 | S30: 12.82 | T30: 15.30 | U30: 17.44 | V30: 0.90 | W30: 0.83 | X30: 0.72 | Y30: 0.40 | Z30: 1 | AA30: 1 | AB30: 0 | AC30: 0 | AD30: 1 | AE30: 0 | AF30: 0.4354698531 | AG30: 0.4355
A31: 913 | B31: 100 | C31: 23.25 | D31: 0.199 | E31: 19.865 | F31: 53.19 | G31: 21.26 | H31: 5.74 | I31: 1.47 | J31: 2.50 | K31: 1.52 | L31: 1.01 | M31: 1.10 | N31: 26.33 | O31: 23.48 | P31: 19.35 | Q31: 19.77 | R31: 9.40 | S31: 15.03 | T31: 20.30 | U31: 20.79 | V31: 0.93 | W31: 0.77 | X31: 0.30 | Y31: 0.31 | Z31: 1 | AA31: 0 | AB31: 0 | AC31: 0 | AD31: 0 | AE31: 1 | AF31: 0.3570954784 | AG31: 0.3571
A32: 917 | B32: 92 | C32: 34 | D32: 0.338 | E32: 28.939 | F32: 26.27 | G32: 13.03 | H32: 5.00 | I32: 1.61 | J32: 1.48 | K32: 1.34 | L32: 1.20 | M32: 0.85 | N32: 31.82 | O32: 30.90 | P32: 27.14 | Q32: 25.14 | R32: 4.64 | S32: 9.21 | T32: 17.69 | U32: 22.74 | V32: 0.99 | W32: 0.95 | X32: 0.76 | Y32: 0.43 | Z32: 1 | AA32: 0 | AB32: 1 | AC32: 0 | AD32: 0 | AE32: 0 | AF32: 0.1459164049 | AG32: 0.1459
A33: 918 | B33: 99 | C33: 13 | D33: 0.151 | E33: 14.547 | F33: 20.34 | G33: 10.77 | H33: 3.15 | I33: 0.74 | J33: 1.79 | K33: 1.52 | L33: 1.03 | M33: 0.94 | N33: 20.01 | O33: 18.19 | P33: 14.04 | Q33: 13.77 | R33: 3.60 | S33: 7.62 | T33: 11.14 | U33: 10.45 | V33: 0.98 | W33: 0.91 | X33: 0.61 | Y33: 0.65 | Z33: 1 | AA33: 0 | AB33: 0 | AC33: 0 | AD33: 0 | AE33: 1 | AF33: 0.1796987978 | AG33: 0.1797
A34: 995 | B34: 102 | C34: 17 | D34: 0.272 | E34: 27.161 | F34: 62.56 | G34: 31.93 | H34: 7.62 | I34: 1.86 | J34: 4.69 | K34: 3.01 | L34: 1.64 | M34: 1.29 | N34: 36.69 | O34: 30.54 | P34: 24.44 | Q34: 30.63 | R34: 11.06 | S34: 22.58 | T34: 26.93 | U34: 26.29 | V34: 0.95 | W34: 0.67 | X34: 0.42 | Y34: 0.51 | Z34: 1 | AA34: 0 | AB34: 1 | AC34: 0 | AD34: 0 | AE34: 0 | AF34: 0.3014588267 | AG34: 0.3015
A35: 1068 | B35: 95 | C35: 17 | D35: 0.160 | E35: 14.827 | F35: 22.64 | G35: 8.98 | H35: 2.90 | I35: 0.76 | J35: 0.89 | K35: 0.82 | L35: 0.76 | M35: 0.74 | N35: 20.55 | O35: 19.77 | P35: 16.84 | Q35: 15.27 | R35: 4.00 | S35: 6.35 | T35: 10.25 | U35: 10.72 | V35: 0.98 | W35: 0.95 | X35: 0.79 | Y35: 0.71 | Z35: 1 | AA35: 1 | AB35: 0 | AC35: 0 | AD35: 1 | AE35: 0 | AF35: 0.1947383299 | AG35: 0.1947
A36: 1143 | B36: 104 | C36: 51 | D36: 0.269 | E36: 25.941 | F36: 18.84 | G36: 8.12 | H36: 3.31 | I36: 1.32 | J36: 1.56 | K36: 1.14 | L36: 0.89 | M36: 0.75 | N36: 36.51 | O36: 36.29 | P36: 34.65 | Q36: 28.00 | R36: 3.33 | S36: 5.74 | T36: 11.69 | U36: 18.63 | V36: 1.00 | W36: 0.99 | X36: 0.94 | Y36: 0.75 | Z36: 1 | AA36: 0 | AB36: 1 | AC36: 0 | AD36: 0 | AE36: 0 | AF36: 0.0912060008 | AG36: 0.0912
A37: 1193 | B37: 120 | C37: 50.75 | D37: 0.280 | E37: 29.528 | F37: 63.94 | G37: 16.27 | H37: 4.29 | I37: 1.40 | J37: 2.91 | K37: 2.12 | L37: 1.46 | M37: 0.88 | N37: 38.79 | O37: 38.52 | P37: 36.28 | Q37: 29.20 | R37: 11.30 | S37: 11.50 | T37: 15.17 | U37: 19.85 | V37: 0.96 | W37: 0.95 | X37: 0.91 | Y37: 0.73 | Z37: 1 | AA37: 1 | AB37: 0 | AC37: 0 | AD37: 1 | AE37: 0 | AF37: 0.2913474487 | AG37: 0.2913
A38: 1296 | B38: 102 | C38: 15.25 | D38: 0.145 | E38: 14.854 | F38: 22.09 | G38: 12.05 | H38: 4.22 | I38: 0.90 | J38: 1.11 | K38: 0.91 | L38: 0.90 | M38: 0.84 | N38: 20.46 | O38: 18.39 | P38: 14.26 | Q38: 16.19 | R38: 3.91 | S38: 8.52 | T38: 14.91 | U38: 12.76 | V38: 0.98 | W38: 0.89 | X38: 0.29 | Y38: 0.62 | Z38: 1 | AA38: 0 | AB38: 1 | AC38: 0 | AD38: 0 | AE38: 0 | AF38: 0.1908866148 | AG38: 0.1909
A39: 1302 | B39: 107 | C39: 32.75 | D39: 0.231 | E39: 24.403 | F39: 29.22 | G39: 13.38 | H39: 4.51 | I39: 1.11 | J39: 1.20 | K39: 0.99 | L39: 0.76 | M39: 0.67 | N39: 34.05 | O39: 32.71 | P39: 29.49 | Q39: 25.02 | R39: 5.17 | S39: 9.46 | T39: 15.94 | U39: 15.67 | V39: 0.99 | W39: 0.96 | X39: 0.84 | Y39: 0.78 | Z39: 1 | AA39: 0 | AB39: 0 | AC39: 0 | AD39: 0 | AE39: 1 | AF39: 0.1516928968 | AG39: 0.1517
A40: 1325 | B40: 85 | C40: 8 | D40: 0.166 | E40: 13.490 | F40: 20.81 | G40: 8.97 | H40: 2.61 | I40: 0.63 | J40: 2.49 | K40: 1.91 | L40: 1.31 | M40: 1.18 | N40: 18.64 | O40: 17.69 | P40: 15.22 | Q40: 14.38 | R40: 3.68 | S40: 6.34 | T40: 9.24 | U40: 8.91 | V40: 0.98 | W40: 0.93 | X40: 0.79 | Y40: 0.78 | Z40: 1 | AA40: 0 | AB40: 0 | AC40: 0 | AD40: 0 | AE40: 1 | AF40: 0.1972838261 | AG40: 0.1973
A41: 1387 | B41: 97 | C41: 15 | D41: 0.122 | E41: 11.553 | F41: 20.80 | G41: 8.01 | H41: 2.62 | I41: 0.90 | J41: 1.75 | K41: 1.31 | L41: 0.79 | M41: 0.77 | N41: 15.91 | O41: 15.15 | P41: 12.73 | Q41: 9.04 | R41: 3.68 | S41: 5.67 | T41: 9.26 | U41: 12.74 | V41: 0.97 | W41: 0.93 | X41: 0.69 | Y41: 0.70 | Z41: 1 | AA41: 0 | AB41: 0 | AC41: 0 | AD41: 0 | AE41: 1 | AF41: 0.2311131522 | AG41: 0.2311
A42: 1455 | B42: 104 | C42: 33 | D42: 0.221 | E42: 23.574 | F42: 44.86 | G42: 17.16 | H42: 4.89 | I42: 1.32 | J42: 2.38 | K42: 1.31 | L42: 0.95 | M42: 0.83 | N42: 32.37 | O42: 31.02 | P42: 28.16 | Q42: 26.88 | R42: 7.93 | S42: 12.14 | T42: 17.30 | U42: 18.67 | V42: 0.97 | W42: 0.92 | X42: 0.79 | Y42: 0.72 | Z42: 1 | AA42: 1 | AB42: 0 | AC42: 0 | AD42: 1 | AE42: 0 | AF42: 0.2450183565 | AG42: 0.245
A43: 1547 | B43: 84 | C43: 23 | D43: 0.200 | E43: 17.245 | F43: 55.97 | G43: 16.31 | H43: 4.63 | I43: 1.20 | J43: 3.38 | K43: 1.86 | L43: 1.13 | M43: 0.97 | N43: 22.29 | O43: 21.48 | P43: 18.04 | Q43: 18.22 | R43: 9.89 | S43: 11.53 | T43: 16.37 | U43: 16.96 | V43: 0.90 | W43: 0.84 | X43: 0.42 | Y43: 0.37 | Z43: 1 | AA43: 0 | AB43: 0 | AC43: 0 | AD43: 0 | AE43: 1 | AF43: 0.4439125498 | AG43: 0.4439
A44: 1844 | B44: 115 | C44: 15 | D44: 0.154 | E44: 16.987 | F44: 52.03 | G44: 14.98 | H44: 3.47 | I44: 0.97 | J44: 3.30 | K44: 2.24 | L44: 1.68 | M44: 0.97 | N44: 21.99 | O44: 20.72 | P44: 18.91 | Q44: 15.02 | R44: 9.20 | S44: 10.59 | T44: 12.26 | U44: 13.66 | V44: 0.91 | W44: 0.86 | X44: 0.76 | Y44: 0.42 | Z44: 1 | AA44: 1 | AB44: 1 | AC44: 0 | AD44: 0 | AE44: 0 | AF44: 0.4182275612 | AG44: 0.4182
A45: 1848 | B45: 91 | C45: 10 | D45: 0.188 | E45: 16.112 | F45: 30.35 | G45: 9.73 | H45: 2.78 | I45: 0.80 | J45: 2.61 | K45: 1.57 | L45: 1.13 | M45: 0.94 | N45: 22.03 | O45: 21.36 | P45: 18.09 | Q45: 15.45 | R45: 5.36 | S45: 6.88 | T45: 9.83 | U45: 11.30 | V45: 0.97 | W45: 0.95 | X45: 0.84 | Y45: 0.68 | Z45: 1 | AA45: 0 | AB45: 1 | AC45: 0 | AD45: 0 | AE45: 0 | AF45: 0.2434815312 | AG45: 0.2435
A46: 1860 | B46: 95 | C46: 24 | D46: 0.197 | E46: 19.215 | F46: 25.19 | G46: 10.41 | H46: 4.62 | I46: 1.41 | J46: 1.70 | K46: 1.05 | L46: 0.81 | M46: 0.60 | N46: 26.06 | O46: 25.28 | P46: 20.63 | Q46: 14.84 | R46: 4.45 | S46: 7.36 | T46: 16.35 | U46: 19.98 | V46: 0.99 | W46: 0.96 | X46: 0.61 | Y46: 0.67 | Z46: 1 | AA46: 0 | AB46: 1 | AC46: 0 | AD46: 0 | AE46: 0 | AF46: 0.1708651355 | AG46: 0.1709
A47: 1927 | B47: 107 | C47: 20 | D47: 0.238 | E47: 25.276 | F47: 16.75 | G47: 7.46 | H47: 3.91 | I47: 1.07 | J47: 1.06 | K47: 0.85 | L47: 0.82 | M47: 0.91 | N47: 28.02 | O47: 27.38 | P47: 21.86 | Q47: 20.98 | R47: 2.96 | S47: 5.28 | T47: 13.82 | U47: 15.16 | V47: 0.99 | W47: 0.98 | X47: 0.77 | Y47: 0.69 | Z47: 1 | AA47: 0 | AB47: 0 | AC47: 1 | AD47: 0 | AE47: 0 | AF47: 0.1056369887 | AG47: 0.1056
A48: 1978 | B48: 95 | C48: 15 | D48: 0.236 | E48: 22.487 | F48: 52.51 | G48: 22.93 | H48: 5.40 | I48: 1.66 | J48: 3.22 | K48: 2.26 | L48: 1.53 | M48: 1.22 | N48: 30.40 | O48: 27.29 | P48: 24.72 | Q48: 21.23 | R48: 9.28 | S48: 16.22 | T48: 19.11 | U48: 23.44 | V48: 0.95 | W48: 0.80 | X48: 0.63 | Y48: 0.42 | Z48: 1 | AA48: 0 | AB48: 0 | AC48: 0 | AD48: 1 | AE48: 0 | AF48: 0.3053372585 | AG48: 0.3053
A49: 2014 | B49: 95 | C49: 21 | D49: 0.204 | E49: 19.966 | F49: 18.16 | G49: 7.82 | H49: 2.64 | I49: 1.25 | J49: 1.38 | K49: 1.03 | L49: 0.76 | M49: 0.52 | N49: 20.84 | O49: 19.98 | P49: 17.66 | Q49: 11.12 | R49: 3.21 | S49: 5.53 | T49: 9.35 | U49: 17.62 | V49: 0.99 | W49: 0.96 | X49: 0.85 | Y49: 0.78 | Z49: 1 | AA49: 1 | AB49: 0 | AC49: 0 | AD49: 1 | AE49: 0 | AF49: 0.1540679741 | AG49: 0.1541
A50: 2053 | B50: 101 | C50: 26 | D50: 0.204 | E50: 20.911 | F50: 21.75 | G50: 10.89 | H50: 5.21 | I50: 1.11 | J50: 1.05 | K50: 1.10 | L50: 1.04 | M50: 0.79 | N50: 29.28 | O50: 28.46 | P50: 22.66 | Q50: 25.37 | R50: 3.85 | S50: 7.70 | T50: 18.42 | U50: 15.68 | V50: 0.99 | W50: 0.96 | X50: 0.58 | Y50: 0.79 | Z50: 1 | AA50: 0 | AB50: 0 | AC50: 0 | AD50: 0 | AE50: 1 | AF50: 0.1313338279 | AG50: 0.1313
A51: 2065 | B51: 79 | C51: 13 | D51: 0.241 | E51: 18.198 | F51: 34.17 | G51: 9.54 | H51: 2.80 | I51: 1.19 | J51: 3.67 | K51: 2.23 | L51: 1.44 | M51: 1.15 | N51: 25.04 | O51: 24.87 | P51: 23.52 | Q51: 15.75 | R51: 6.04 | S51: 6.75 | T51: 9.89 | U51: 16.81 | V51: 0.97 | W51: 0.96 | X51: 0.91 | Y51: 0.35 | Z51: 1 | AA51: 0 | AB51: 0 | AC51: 0 | AD51: 0 | AE51: 1 | AF51: 0.2411843398 | AG51: 0.2412
A52: 2074 | B52: 88 | C52: 24 | D52: 0.200 | E52: 17.308 | F52: 29.93 | G52: 11.08 | H52: 3.66 | I52: 1.11 | J52: 2.17 | K52: 1.34 | L52: 0.93 | M52: 0.78 | N52: 23.90 | O52: 23.21 | P52: 20.86 | Q52: 19.04 | R52: 5.29 | S52: 7.83 | T52: 12.94 | U52: 15.65 | V52: 0.98 | W52: 0.94 | X52: 0.78 | Y52: 0.57 | Z52: 1 | AA52: 1 | AB52: 0 | AC52: 0 | AD52: 0 | AE52: 1 | AF52: 0.2213898868 | AG52: 0.2214
A53: 2376 | B53: 99 | C53: 28 | D53: 0.216 | E53: 21.521 | F53: 16.96 | G53: 8.89 | H53: 4.64 | I53: 1.40 | J53: 1.23 | K53: 0.91 | L53: 0.81 | M53: 0.76 | N53: 28.44 | O53: 27.87 | P53: 23.12 | Q53: 18.85 | R53: 3.00 | S53: 6.29 | T53: 16.42 | U53: 19.77 | V53: 0.99 | W53: 0.97 | X53: 0.70 | Y53: 0.30 | Z53: 1 | AA53: 1 | AB53: 0 | AC53: 1 | AD53: 0 | AE53: 0 | AF53: 0.1054215229 | AG53: 0.1054
A54: 2405 | B54: 112 | C54: 27 | D54: 0.214 | E54: 23.257 | F54: 26.73 | G54: 18.04 | H54: 6.90 | I54: 1.56 | J54: 1.15 | K54: 1.06 | L54: 0.74 | M54: 0.71 | N54: 32.48 | O54: 29.99 | P54: 20.55 | Q54: 24.56 | R54: 4.73 | S54: 12.76 | T54: 24.39 | U54: 22.02 | V54: 0.99 | W54: 0.90 | X54: 0.54 | Y54: 0.44 | Z54: 1 | AA54: 0 | AB54: 1 | AC54: 0 | AD54: 0 | AE54: 0 | AF54: 0.1454771346 | AG54: 0.1455
A55: 2450 | B55: 81 | C55: 10 | D55: 0.168 | E55: 13.266 | F55: 14.51 | G55: 6.98 | H55: 2.60 | I55: 0.89 | J55: 1.47 | K55: 1.36 | L55: 1.16 | M55: 0.87 | N55: 18.51 | O55: 17.76 | P55: 15.13 | Q55: 12.13 | R55: 2.56 | S55: 4.93 | T55: 9.18 | U55: 12.63 | V55: 0.99 | W55: 0.96 | X55: 0.79 | Y55: 0.28 | Z55: 1 | AA55: 1 | AB55: 0 | AC55: 0 | AD55: 0 | AE55: 1 | AF55: 0.1385829841 | AG55: 0.1386
A56: 2453 | B56: 101 | C56: 18 | D56: 0.193 | E56: 18.351 | F56: 44.74 | G56: 12.64 | H56: 3.19 | I56: 1.11 | J56: 2.75 | K56: 1.64 | L56: 1.01 | M56: 1.01 | N56: 24.54 | O56: 23.91 | P56: 20.78 | Q56: 16.34 | R56: 7.91 | S56: 8.94 | T56: 11.29 | U56: 15.70 | V56: 0.95 | W56: 0.93 | X56: 0.84 | Y56: 0.28 | Z56: 1 | AA56: 1 | AB56: 0 | AC56: 0 | AD56: 0 | AE56: 1 | AF56: 0.3222865937 | AG56: 0.3223
A57: 2552 | B57: 108 | C57: 16.75 | D57: 0.185 | E57: 19.744 | F57: 70.84 | G57: 20.32 | H57: 5.40 | I57: 1.38 | J57: 3.42 | K57: 1.91 | L57: 1.07 | M57: 0.86 | N57: 24.78 | O57: 23.24 | P57: 18.51 | Q57: 16.91 | R57: 12.52 | S57: 14.37 | T57: 19.09 | U57: 19.47 | V57: 0.86 | W57: 0.79 | X57: 0.24 | Y57: 0.50 | Z57: 1 | AA57: 1 | AB57: 1 | AC57: 0 | AD57: 0 | AE57: 0 | AF57: 0.5054296029 | AG57: 0.5054
A58: 2555 | B58: 84 | C58: 27 | D58: 0.230 | E58: 18.403 | F58: 31.41 | G58: 11.03 | H58: 3.35 | I58: 0.99 | J58: 2.51 | K58: 1.39 | L58: 0.87 | M58: 0.84 | N58: 25.40 | O58: 24.73 | P58: 23.11 | Q58: 20.85 | R58: 5.55 | S58: 7.80 | T58: 11.85 | U58: 14.03 | V58: 0.98 | W58: 0.95 | X58: 0.86 | Y58: 0.74 | Z58: 1 | AA58: 1 | AB58: 0 | AC58: 1 | AD58: 0 | AE58: 0 | AF58: 0.218591755 | AG58: 0.2186
A59: 2568 | B59: 102 | C59: 21 | D59: 0.220 | E59: 21.617 | F59: 13.52 | G59: 8.34 | H59: 5.01 | I59: 1.34 | J59: 1.13 | K59: 0.99 | L59: 0.93 | M59: 0.93 | N59: 30.43 | O59: 29.87 | P59: 23.47 | Q59: 22.22 | R59: 2.39 | S59: 5.89 | T59: 17.72 | U59: 19.01 | V59: 1.00 | W59: 0.98 | X59: 0.66 | Y59: 0.52 | Z59: 1 | AA59: 0 | AB59: 1 | AC59: 0 | AD59: 0 | AE59: 0 | AF59: 0.07854699408 | AG59: 0.0785
A60: 2617 | B60: 97 | C60: 16 | D60: 0.192 | E60: 18.069 | F60: 43.27 | G60: 12.27 | H60: 3.30 | I60: 1.20 | J60: 3.61 | K60: 1.99 | L60: 1.15 | M60: 1.05 | N60: 24.34 | O60: 23.86 | P60: 21.95 | Q60: 15.48 | R60: 7.65 | S60: 8.68 | T60: 11.68 | U60: 16.93 | V60: 0.95 | W60: 0.93 | X60: 0.85 | Y60: 0.41 | Z60: 1 | AA60: 0 | AB60: 0 | AC60: 0 | AD60: 0 | AE60: 1 | AF60: 0.3143199547 | AG60: 0.3143
A61: 2659 | B61: 91 | C61: 11 | D61: 0.174 | E61: 15.310 | F61: 58.05 | G61: 14.84 | H61: 3.44 | I61: 0.78 | J61: 5.78 | K61: 3.44 | L61: 1.73 | M61: 1.46 | N61: 18.98 | O61: 18.57 | P61: 16.44 | Q61: 14.40 | R61: 10.26 | S61: 10.49 | T61: 12.17 | U61: 10.99 | V61: 0.84 | W61: 0.83 | X61: 0.67 | Y61: 0.65 | Z61: 1 | AA61: 0 | AB61: 0 | AC61: 1 | AD61: 0 | AE61: 0 | AF61: 0.5408249057 | AG61: 0.5408
A62: 2696 | B62: 94 | C62: 43.5 | D62: 0.309 | E62: 25.789 | F62: 43.35 | G62: 16.33 | H62: 4.30 | I62: 1.10 | J62: 3.50 | K62: 2.57 | L62: 1.60 | M62: 1.21 | N62: 35.64 | O62: 34.53 | P62: 32.52 | Q62: 30.82 | R62: 7.66 | S62: 11.55 | T62: 15.19 | U62: 15.57 | V62: 0.98 | W62: 0.94 | X62: 0.88 | Y62: 0.86 | Z62: 1 | AA62: 1 | AB62: 0 | AC62: 0 | AD62: 0 | AE62: 1 | AF62: 0.214987204 | AG62: 0.215
A63: 2711 | B63: 86.5 | C63: 13 | D63: 0.119 | E63: 10.539 | F63: 13.62 | G63: 6.62 | H63: 2.17 | I63: 0.72 | J63: 1.09 | K63: 1.01 | L63: 0.91 | M63: 0.84 | N63: 14.71 | O63: 14.16 | P63: 12.89 | Q63: 11.08 | R63: 2.41 | S63: 4.68 | T63: 7.69 | U63: 10.24 | V63: 0.99 | W63: 0.94 | X63: 0.80 | Y63: 0.38 | Z63: 1 | AA63: 1 | AB63: 0 | AC63: 0 | AD63: 0 | AE63: 1 | AF63: 0.1637118209 | AG63: 0.1637
A64: 2731 | B64: 96 | C64: 10 | D64: 0.101 | E64: 9.530 | F64: 8.22 | G64: 3.97 | H64: 1.39 | I64: 0.61 | J64: 1.22 | K64: 1.06 | L64: 0.84 | M64: 0.80 | N64: 13.19 | O64: 12.72 | P64: 10.72 | Q64: 8.03 | R64: 1.45 | S64: 2.81 | T64: 4.92 | U64: 8.67 | V64: 0.99 | W64: 0.98 | X64: 0.89 | Y64: 0.38 | Z64: 1 | AA64: 0 | AB64: 1 | AC64: 0 | AD64: 0 | AE64: 0 | AF64: 0.1101053986 | AG64: 0.1101
A65: 2781 | B65: 98 | C65: 16 | D65: 0.129 | E65: 12.692 | F65: 19.51 | G65: 8.90 | H65: 2.97 | I65: 0.89 | J65: 1.18 | K65: 1.07 | L65: 0.84 | M65: 0.76 | N65: 17.22 | O65: 16.06 | P65: 12.68 | Q65: 11.22 | R65: 3.45 | S65: 6.29 | T65: 10.49 | U65: 12.58 | V65: 0.98 | W65: 0.92 | X65: 0.56 | Y65: 0.45 | Z65: 1 | AA65: 1 | AB65: 0 | AC65: 1 | AD65: 0 | AE65: 0 | AF65: 0.2003493683 | AG65: 0.2003
A66: 2807 | B66: 87 | C66: 30 | D66: 0.255 | E66: 21.411 | F66: 12.66 | G66: 6.30 | H66: 2.41 | I66: 0.78 | J66: 1.81 | K66: 1.44 | L66: 0.99 | M66: 0.61 | N66: 25.08 | O66: 24.82 | P66: 23.69 | Q66: 20.32 | R66: 2.24 | S66: 4.45 | T66: 8.52 | U66: 11.05 | V66: 1.00 | W66: 0.98 | X66: 0.93 | Y66: 0.84 | Z66: 1 | AA66: 0 | AB66: 0 | AC66: 0 | AD66: 0 | AE66: 1 | AF66: 0.08918764713 | AG66: 0.0892
A67: 2860 | B67: 87 | C67: 15 | D67: 0.135 | E67: 11.943 | F67: 17.29 | G67: 8.39 | H67: 2.69 | I67: 0.90 | J67: 1.31 | K67: 1.11 | L67: 0.98 | M67: 0.70 | N67: 16.52 | O67: 15.65 | P67: 13.09 | Q67: 8.17 | R67: 3.06 | S67: 5.93 | T67: 9.49 | U67: 12.79 | V67: 0.98 | W67: 0.93 | X67: 0.69 | Y67: 0.77 | Z67: 1 | AA67: 1 | AB67: 0 | AC67: 0 | AD67: 0 | AE67: 1 | AF67: =R67/N67 -> 0.1850372336 | AG67: =ROUND(AF67,4) -> 0.185
A68: 2875 | B68: 72 | C68: 16 | D68: 0.212 | E68: 15.440 | F68: 11.17 | G68: 6.24 | H68: 2.58 | I68: 0.77 | J68: 1.52 | K68: 1.19 | L68: 0.82 | M68: 0.74 | N68: 21.69 | O68: 21.24 | P68: 18.69 | Q68: 14.60 | R68: 1.98 | S68: 4.41 | T68: 9.12 | U68: 10.85 | V68: 1.00 | W68: 0.98 | X68: 0.87 | Y68: 0.67 | Z68: 1 | AA68: 0 | AB68: 0 | AC68: 0 | AD68: 0 | AE68: 1 | AF68: 0.09104589226 | AG68: 0.091
A69: 2940 | B69: 93 | C69: 23 | D69: 0.243 | E69: 21.348 | F69: 33.47 | G69: 12.42 | H69: 4.00 | I69: 1.20 | J69: 1.76 | K69: 1.22 | L69: 0.86 | M69: 0.97 | N69: 27.98 | O69: 27.17 | P69: 24.52 | Q69: 21.60 | R69: 5.92 | S69: 8.78 | T69: 14.13 | U69: 16.98 | V69: 0.98 | W69: 0.95 | X69: 0.82 | Y69: 0.62 | Z69: 1 | AA69: 0 | AB69: 0 | AC69: 0 | AD69: 0 | AE69: 1 | AF69: 0.211508714 | AG69: 0.2115
A70: 2950 | B70: 94 | C70: 23 | D70: 0.151 | E70: 14.188 | F70: 13.78 | G70: 6.56 | H70: 2.88 | I70: 0.88 | J70: 1.18 | K70: 1.06 | L70: 0.98 | M70: 0.67 | N70: 19.80 | O70: 19.07 | P70: 16.26 | Q70: 15.17 | R70: 2.44 | S70: 4.64 | T70: 10.20 | U70: 12.51 | V70: 0.99 | W70: 0.97 | X70: 0.78 | Y70: 0.57 | Z70: 1 | AA70: 0 | AB70: 0 | AC70: 0 | AD70: 1 | AE70: 0 | AF70: 0.1230206641 | AG70: 0.123
A71: 2962 | B71: 61 | C71: 9 | D71: 0.165 | E71: 10.290 | F71: 16.35 | G71: 6.64 | H71: 2.37 | I71: 0.63 | J71: 1.33 | K71: 1.61 | L71: 1.43 | M71: 0.76 | N71: 14.26 | O71: 13.75 | P71: 12.11 | Q71: 9.29 | R71: 2.89 | S71: 4.69 | T71: 8.39 | U71: 8.95 | V71: 0.98 | W71: 0.94 | X71: 0.72 | Y71: 0.27 | Z71: 1 | AA71: 0 | AB71: 0 | AC71: 0 | AD71: 0 | AE71: 1 | AF71: 0.2027493833 | AG71: 0.2027
A72: 3114 | B72: 79 | C72: 36 | D72: 0.290 | E72: 22.064 | F72: 52.91 | G72: 15.81 | H72: 4.39 | I72: 1.35 | J72: 3.81 | K72: 2.18 | L72: 1.26 | M72: 0.89 | N72: 29.74 | O72: 29.09 | P72: 27.04 | Q72: 23.61 | R72: 9.35 | S72: 11.18 | T72: 15.52 | U72: 19.13 | V72: 0.95 | W72: 0.92 | X72: 0.82 | Y72: 0.59 | Z72: 1 | AA72: 0 | AB72: 0 | AC72: 0 | AD72: 1 | AE72: 0 | AF72: 0.3144639054 | AG72: 0.3145
A73: 3177 | B73: 99.5 | C73: 26 | D73: 0.221 | E73: 22.108 | F73: 66.05 | G73: 19.37 | H73: 5.29 | I73: 1.59 | J73: 3.41 | K73: 1.71 | L73: 1.03 | M73: 1.04 | N73: 28.99 | O73: 27.96 | P73: 24.24 | Q73: 21.74 | R73: 11.68 | S73: 13.70 | T73: 18.69 | U73: 22.52 | V73: 0.92 | W73: 0.87 | X73: 0.64 | Y73: 0.26 | Z73: 1 | AA73: 0 | AB73: 0 | AC73: 0 | AD73: 0 | AE73: 1 | AF73: 0.4028146373 | AG73: 0.4028
A74: 3224 | B74: 100 | C74: 15 | D74: 0.219 | E74: 20.404 | F74: 26.15 | G74: 12.51 | H74: 3.28 | I74: 1.12 | J74: 2.53 | K74: 2.05 | L74: 1.41 | M74: 1.04 | N74: 28.45 | O74: 27.32 | P74: 26.37 | Q74: 20.05 | R74: 4.62 | S74: 8.85 | T74: 11.58 | U74: 15.91 | V74: 0.99 | W74: 0.95 | X74: 0.90 | Y74: 0.61 | Z74: 1 | AA74: 1 | AB74: 0 | AC74: 0 | AD74: 0 | AE74: 1 | AF74: 0.1625174295 | AG74: 0.1625
A75: 3277 | B75: 87 | C75: 18 | D75: 0.166 | E75: 14.792 | F75: 40.36 | G75: 11.07 | H75: 2.62 | I75: 0.85 | J75: 3.52 | K75: 2.27 | L75: 1.43 | M75: 1.14 | N75: 19.51 | O75: 18.76 | P75: 16.47 | Q75: 13.03 | R75: 7.13 | S75: 7.83 | T75: 9.26 | U75: 12.02 | V75: 0.93 | W75: 0.91 | X75: 0.83 | Y75: 0.39 | Z75: 1 | AA75: 0 | AB75: 0 | AC75: 1 | AD75: 0 | AE75: 0 | AF75: 0.365641529 | AG75: 0.3656
A76: 3281 | B76: 93 | C76: 30 | D76: 0.266 | E76: 24.773 | F76: 57.30 | G76: 25.91 | H76: 6.02 | I76: 1.59 | J76: 4.04 | K76: 3.05 | L76: 1.57 | M76: 1.51 | N76: 33.58 | O76: 30.03 | P76: 28.46 | Q76: 27.07 | R76: 10.13 | S76: 18.32 | T76: 21.28 | U76: 22.51 | V76: 0.95 | W76: 0.79 | X76: 0.66 | Y76: 0.56 | Z76: 1 | AA76: 0 | AB76: 0 | AC76: 0 | AD76: 0 | AE76: 1 | AF76: 0.3016595179 | AG76: 0.3017
A77: 3288 | B77: 96 | C77: 17 | D77: 0.231 | E77: 22.615 | F77: 68.52 | G77: 29.25 | H77: 6.46 | I77: 1.65 | J77: 5.18 | K77: 3.30 | L77: 1.68 | M77: 1.28 | N77: 29.56 | O77: 24.32 | P77: 23.47 | Q77: 21.65 | R77: 12.11 | S77: 20.68 | T77: 22.83 | U77: 23.34 | V77: 0.91 | W77: 0.53 | X77: 0.23 | Y77: 0.37 | Z77: 1 | AA77: 0 | AB77: 0 | AC77: 0 | AD77: 0 | AE77: 1 | AF77: 0.4098040987 | AG77: 0.4098
A78: 3326 | B78: 94 | C78: 21 | D78: 0.186 | E78: 17.860 | F78: 46.30 | G78: 13.76 | H78: 4.42 | I78: 1.11 | J78: 3.58 | K78: 1.88 | L78: 0.97 | M78: 1.24 | N78: 23.90 | O78: 23.35 | P78: 18.53 | Q78: 20.01 | R78: 8.19 | S78: 9.73 | T78: 15.64 | U78: 15.71 | V78: 0.94 | W78: 0.91 | X78: 0.54 | Y78: 0.62 | Z78: 1 | AA78: 0 | AB78: 1 | AC78: 0 | AD78: 0 | AE78: 0 | AF78: 0.3424574599 | AG78: 0.3425
A79: 3348 | B79: 69 | C79: 23 | D79: 0.188 | E79: 12.815 | F79: 14.66 | G79: 6.47 | H79: 2.25 | I79: 0.64 | J79: 1.12 | K79: 1.01 | L79: 0.89 | M79: 0.77 | N79: 17.92 | O79: 17.48 | P79: 16.07 | Q79: 15.31 | R79: 2.59 | S79: 4.58 | T79: 7.95 | U79: 9.04 | V79: 0.99 | W79: 0.97 | X79: 0.87 | Y79: 0.81 | Z79: 1 | AA79: 0 | AB79: 1 | AC79: 0 | AD79: 0 | AE79: 0 | AF79: 0.1446388059 | AG79: 0.1446
A80: 3393 | B80: 96 | C80: 19 | D80: 0.155 | E80: 14.681 | F80: 32.05 | G80: 14.08 | H80: 4.06 | I80: 0.90 | J80: 1.63 | K80: 1.11 | L80: 0.91 | M80: 0.76 | N80: 19.61 | O80: 17.45 | P80: 14.18 | Q80: 14.02 | R80: 5.67 | S80: 9.95 | T80: 14.36 | U80: 12.76 | V80: 0.96 | W80: 0.82 | X80: 0.16 | Y80: 0.41 | Z80: 1 | AA80: 0 | AB80: 0 | AC80: 1 | AD80: 0 | AE80: 0 | AF80: 0.2890241589 | AG80: 0.289
A81: 3500 | B81: 101 | C81: 24 | D81: 0.144 | E81: 14.391 | F81: 22.07 | G81: 10.23 | H81: 4.24 | I81: 0.77 | J81: 1.39 | K81: 1.19 | L81: 0.67 | M81: 0.95 | N81: 19.97 | O81: 19.03 | P81: 14.13 | Q81: 15.66 | R81: 3.90 | S81: 7.23 | T81: 14.98 | U81: 10.92 | V81: 0.98 | W81: 0.92 | X81: 0.33 | Y81: 0.72 | Z81: 1 | AA81: 0 | AB81: 0 | AC81: 0 | AD81: 1 | AE81: 0 | AF81: 0.195402988 | AG81: 0.1954
A82: 3525 | B82: 98 | C82: 22 | D82: 0.206 | E82: 20.692 | F82: 25.65 | G82: 11.13 | H82: 4.00 | I82: 1.19 | J82: 1.57 | K82: 1.14 | L82: 0.95 | M82: 0.61 | N82: 24.76 | O82: 23.90 | P82: 20.46 | Q82: 15.10 | R82: 4.53 | S82: 7.87 | T82: 14.14 | U82: 16.87 | V82: 0.98 | W82: 0.94 | X82: 0.72 | Y82: 0.45 | Z82: 1 | AA82: 0 | AB82: 1 | AC82: 0 | AD82: 0 | AE82: 0 | AF82: 0.1831356182 | AG82: 0.1831
A83: 3539 | B83: 99 | C83: 21 | D83: 0.155 | E83: 15.206 | F83: 19.64 | G83: 8.82 | H83: 3.69 | I83: 1.02 | J83: 1.15 | K83: 0.87 | L83: 0.85 | M83: 0.53 | N83: 21.15 | O83: 20.06 | P83: 16.04 | Q83: 14.66 | R83: 3.47 | S83: 6.24 | T83: 13.03 | U83: 14.50 | V83: 0.99 | W83: 0.95 | X83: 0.58 | Y83: 0.15 | Z83: 1 | AA83: 0 | AB83: 0 | AC83: 0 | AD83: 1 | AE83: 0 | AF83: 0.1641659384 | AG83: 0.1642
A84: 3562 | B84: 105 | C84: 28 | D84: 0.225 | E84: 23.375 | F84: 36.50 | G84: 13.21 | H84: 4.40 | I84: 1.45 | J84: 1.78 | K84: 1.38 | L84: 1.09 | M84: 0.78 | N84: 32.41 | O84: 31.67 | P84: 28.95 | Q84: 25.42 | R84: 6.45 | S84: 9.34 | T84: 15.57 | U84: 20.47 | V84: 0.98 | W84: 0.96 | X84: 0.84 | Y84: 0.59 | Z84: 1 | AA84: 0 | AB84: 1 | AC84: 0 | AD84: 0 | AE84: 0 | AF84: 0.1990341958 | AG84: 0.199
A85: 3596 | B85: 80 | C85: 25 | D85: 0.256 | E85: 21.452 | F85: 52.55 | G85: 17.56 | H85: 5.49 | I85: 1.44 | J85: 2.78 | K85: 1.77 | L85: 1.15 | M85: 0.96 | N85: 28.89 | O85: 27.72 | P85: 23.58 | Q85: 21.61 | R85: 9.29 | S85: 12.41 | T85: 19.39 | U85: 20.38 | V85: 0.95 | W85: 0.89 | X85: 0.57 | Y85: 0.33 | Z85: 1 | AA85: 0 | AB85: 0 | AC85: 0 | AD85: 1 | AE85: 0 | AF85: 0.3215621735 | AG85: 0.3216
A86: 3601 | B86: 78 | C86: 22 | D86: 0.201 | E86: 15.690 | F86: 27.55 | G86: 7.75 | H86: 2.13 | I86: 0.76 | J86: 2.49 | K86: 1.73 | L86: 1.15 | M86: 0.85 | N86: 21.65 | O86: 21.52 | P86: 20.90 | Q86: 19.39 | R86: 4.87 | S86: 5.48 | T86: 7.53 | U86: 10.68 | V86: 0.97 | W86: 0.97 | X86: 0.93 | Y86: 0.83 | Z86: 1 | AA86: 0 | AB86: 0 | AC86: 0 | AD86: 0 | AE86: 1 | AF86: 0.2249383414 | AG86: 0.2249
A87: 3617 | B87: 78 | C87: 27 | D87: 0.248 | E87: 20.314 | F87: 59.97 | G87: 21.21 | H87: 4.36 | I87: 1.30 | J87: 4.74 | K87: 3.55 | L87: 2.28 | M87: 1.55 | N87: 26.68 | O87: 24.41 | P87: 23.43 | Q87: 21.12 | R87: 10.60 | S87: 15.00 | T87: 15.41 | U87: 18.43 | V87: 0.92 | W87: 0.79 | X87: 0.75 | Y87: 0.49 | Z87: 1 | AA87: 1 | AB87: 0 | AC87: 1 | AD87: 0 | AE87: 0 | AF87: 0.3973633029 | AG87: 0.3974
A88: 3630 | B88: 98 | C88: 23 | D88: 0.238 | E88: 24.664 | F88: 22.18 | G88: 13.45 | H88: 7.02 | I88: 1.79 | J88: 1.24 | K88: 1.13 | L88: 1.09 | M88: 0.93 | N88: 34.57 | O88: 33.29 | P88: 24.28 | Q88: 25.12 | R88: 3.92 | S88: 9.51 | T88: 24.82 | U88: 25.32 | V88: 0.99 | W88: 0.96 | X88: 0.21 | Y88: 0.13 | Z88: 1 | AA88: 0 | AB88: 0 | AC88: 0 | AD88: 1 | AE88: 0 | AF88: 0.1134377178 | AG88: 0.1134
A89: 3703 | B89: 105 | C89: 26 | D89: 0.243 | E89: 25.418 | F89: 66.66 | G89: 27.21 | H89: 6.76 | I89: 1.90 | J89: 3.48 | K89: 2.38 | L89: 1.39 | M89: 0.90 | N89: 33.94 | O89: 30.36 | P89: 27.54 | Q89: 27.53 | R89: 11.78 | S89: 19.24 | T89: 23.90 | U89: 26.86 | V89: 0.94 | W89: 0.77 | X89: 0.50 | Y89: 0.22 | Z89: 1 | AA89: 0 | AB89: 0 | AC89: 0 | AD89: 1 | AE89: 0 | AF89: 0.3472253101 | AG89: 0.3472
A90: 3848 | B90: 98 | C90: 19 | D90: 0.186 | E90: 17.128 | F90: 10.21 | G90: 5.85 | H90: 2.53 | I90: 0.84 | J90: 1.15 | K90: 1.22 | L90: 1.23 | M90: 0.88 | N90: 24.08 | O90: 23.63 | P90: 20.69 | Q90: 18.29 | R90: 1.81 | S90: 4.14 | T90: 8.93 | U90: 11.87 | V90: 1.00 | W90: 0.98 | X90: 0.90 | Y90: 0.76 | Z90: 1 | AA90: 0 | AB90: 0 | AC90: 0 | AD90: 1 | AE90: 0 | AF90: 0.0749722918 | AG90: 0.075
A91: 3875 | B91: 97 | C91: 8 | D91: 0.168 | E91: 15.640 | F91: 10.11 | G91: 5.84 | H91: 2.67 | I91: 1.08 | J91: 1.75 | K91: 1.44 | L91: 1.17 | M91: 1.37 | N91: 21.89 | O91: 21.06 | P91: 14.63 | Q91: 12.37 | R91: 1.79 | S91: 4.13 | T91: 9.44 | U91: 15.24 | V91: 1.00 | W91: 0.98 | X91: 0.76 | Y91: 0.58 | Z91: 1 | AA91: 0 | AB91: 1 | AC91: 0 | AD91: 0 | AE91: 0 | AF91: 0.08162403766 | AG91: 0.0816
A92: 3901 | B92: 113 | C92: 35.5 | D92: 0.251 | E92: 25.891 | F92: 31.94 | G92: 13.45 | H92: 5.12 | I92: 1.42 | J92: 1.82 | K92: 1.34 | L92: 1.12 | M92: 0.84 | N92: 36.12 | O92: 35.08 | P92: 30.64 | Q92: 29.60 | R92: 5.65 | S92: 9.51 | T92: 18.11 | U92: 20.03 | V92: 0.99 | W92: 0.96 | X92: 0.81 | Y92: 0.74 | Z92: 1 | AA92: 1 | AB92: 1 | AC92: 0 | AD92: 0 | AE92: 0 | AF92: 0.1563040675 | AG92: 0.1563
A93: 3929 | B93: 103 | C93: 30 | D93: 0.226 | E93: 22.709 | F93: 32.11 | G93: 9.43 | H93: 3.14 | I93: 0.87 | J93: 2.91 | K93: 1.64 | L93: 1.22 | M93: 0.84 | N93: 28.12 | O93: 27.77 | P93: 25.84 | Q93: 24.33 | R93: 5.68 | S93: 6.67 | T93: 11.10 | U93: 12.27 | V93: 0.98 | W93: 0.97 | X93: 0.90 | Y93: 0.86 | Z93: 1 | AA93: 0 | AB93: 0 | AC93: 0 | AD93: 0 | AE93: 1 | AF93: 0.2018897405 | AG93: 0.2019
A94: 3945 | B94: 93 | C94: 23.5 | D94: 0.242 | E94: 21.703 | F94: 65.89 | G94: 17.39 | H94: 4.58 | I94: 1.30 | J94: 4.79 | K94: 2.81 | L94: 1.50 | M94: 1.09 | N94: 28.35 | O94: 27.96 | P94: 24.16 | Q94: 22.84 | R94: 11.65 | S94: 12.30 | T94: 16.19 | U94: 18.37 | V94: 0.91 | W94: 0.90 | X94: 0.74 | Y94: 0.59 | Z94: 1 | AA94: 0 | AB94: 0 | AC94: 0 | AD94: 1 | AE94: 0 | AF94: 0.4109216727 | AG94: 0.4109
A95: 4031 | B95: 99 | C95: 27.25 | D95: 0.240 | E95: 23.811 | F95: 18.11 | G95: 11.18 | H95: 5.02 | I95: 1.29 | J95: 1.16 | K95: 0.93 | L95: 0.67 | M95: 0.70 | N95: 29.42 | O95: 28.24 | P95: 21.49 | Q95: 20.55 | R95: 3.20 | S95: 7.90 | T95: 17.74 | U95: 18.21 | V95: 0.99 | W95: 0.96 | X95: 0.56 | Y95: 0.46 | Z95: 1 | AA95: 0 | AB95: 0 | AC95: 0 | AD95: 0 | AE95: 1 | AF95: 0.1087904535 | AG95: 0.1088
A96: 4043 | B96: 94 | C96: 20.25 | D96: 0.256 | E96: 23.436 | F96: 79.55 | G96: 21.24 | H96: 5.69 | I96: 1.36 | J96: 4.13 | K96: 2.24 | L96: 1.29 | M96: 1.09 | N96: 29.92 | O96: 29.28 | P96: 26.21 | Q96: 22.64 | R96: 14.06 | S96: 15.02 | T96: 20.11 | U96: 19.19 | V96: 0.88 | W96: 0.86 | X96: 0.64 | Y96: 0.53 | Z96: 1 | AA96: 0 | AB96: 1 | AC96: 0 | AD96: 0 | AE96: 0 | AF96: 0.4700590745 | AG96: 0.4701
A97: 4051 | B97: 64 | C97: 8 | D97: 0.109 | E97: 7.044 | F97: 9.01 | G97: 3.75 | H97: 1.58 | I97: 0.53 | J97: 1.65 | K97: 1.18 | L97: 0.87 | M97: 0.75 | N97: 9.82 | O97: 9.53 | P97: 7.52 | Q97: 5.62 | R97: 1.59 | S97: 2.65 | T97: 5.58 | U97: 7.52 | V97: 0.99 | W97: 0.96 | X97: 0.67 | Y97: 0.66 | Z97: 1 | AA97: 1 | AB97: 0 | AC97: 0 | AD97: 0 | AE97: 1 | AF97: 0.162233781 | AG97: 0.1622
A98: 4054 | B98: 84 | C98: 22 | D98: 0.210 | E98: 17.767 | F98: 27.79 | G98: 11.73 | H98: 4.89 | I98: 1.27 | J98: 1.36 | K98: 0.99 | L98: 0.65 | M98: 0.61 | N98: 23.88 | O98: 21.68 | P98: 13.29 | Q98: 14.17 | R98: 4.91 | S98: 8.30 | T98: 17.28 | U98: 18.00 | V98: 0.98 | W98: 0.92 | X98: 0.64 | Y98: 0.62 | Z98: 1 | AA98: 0 | AB98: 0 | AC98: 0 | AD98: 1 | AE98: 0 | AF98: 0.2056886633 | AG98: 0.2057
A99: 4074 | B99: 97 | C99: 31.25 | D99: 0.237 | E99: 22.296 | F99: 17.36 | G99: 8.39 | H99: 3.71 | I99: 1.41 | J99: 1.29 | K99: 1.05 | L99: 0.84 | M99: 0.65 | N99: 31.32 | O99: 30.76 | P99: 28.11 | Q99: 20.04 | R99: 3.07 | S99: 5.93 | T99: 13.10 | U99: 20.00 | V99: 1.00 | W99: 0.98 | X99: 0.88 | Y99: 0.07 | Z99: 1 | AA99: 0 | AB99: 0 | AC99: 0 | AD99: 1 | AE99: 0 | AF99: 0.09799122784 | AG99: 0.098
A100: 4243 | B100: 105 | C100: 19 | D100: 0.268 | E100: 27.746 | F100: 55.01 | G100: 26.91 | H100: 7.04 | I100: 2.21 | J100: 2.34 | K100: 1.62 | L100: 1.01 | M100: 0.94 | N100: 37.95 | O100: 34.10 | P100: 27.99 | Q100: 27.32 | R100: 9.72 | S100: 19.03 | T100: 24.89 | U100: 31.21 | V100: 0.97 | W100: 0.83 | X100: 0.46 | Y100: 0.48 | Z100: 1 | AA100: 0 | AB100: 0 | AC100: 0 | AD100: 0 | AE100: 1 | AF100: 0.2562497907 | AG100: 0.2562
A101: 4255 | B101: 108 | C101: 30 | D101: 0.216 | E101: 22.866 | F101: 18.91 | G101: 9.95 | H101: 3.69 | I101: 1.09 | J101: 1.78 | K101: 1.52 | L101: 1.29 | M101: 0.80 | N101: 29.60 | O101: 29.03 | P101: 27.14 | Q101: 26.77 | R101: 3.34 | S101: 7.04 | T101: 13.05 | U101: 15.38 | V101: 0.99 | W101: 0.97 | X101: 0.88 | Y101: 0.82 | Z101: 1 | AA101: 0 | AB101: 0 | AC101: 0 | AD101: 0 | AE101: 1 | AF101: 0.1129512736 | AG101: 0.113
A102: 1 | B102: 103 | C102: 25 | D102: 0.184 | E102: 19.127 | F102: 16.67 | G102: 9.94 | H102: 4.78 | I102: 1.29 | J102: 1.51 | K102: 1.48 | L102: 1.05 | M102: 1.09 | N102: 26.82 | O102: 26.12 | P102: 21.95 | Q102: 21.42 | R102: 2.95 | S102: 7.03 | T102: 16.91 | U102: 18.22 | V102: 0.99 | W102: 0.96 | X102: 0.64 | Y102: 0.53 | Z102: 0 | AA102: 0 | AB102: 0 | AC102: 1 | AD102: 0 | AE102: 0 | AF102: 0.1098306104 | AG102: 0.1098
A103: 2 | B103: 101 | C103: 24.5 | D103: 0.241 | E103: 24.628 | F103: 18.64 | G103: 10.79 | H103: 4.61 | I103: 1.03 | J103: 0.78 | K103: 0.73 | L103: 0.80 | M103: 0.75 | N103: 24.08 | O103: 22.71 | P103: 15.91 | Q103: 18.06 | R103: 3.29 | S103: 7.63 | T103: 16.30 | U103: 14.58 | V103: 0.99 | W103: 0.94 | X103: 0.22 | Y103: 0.59 | Z103: 0 | AA103: 0 | AB103: 1 | AC103: 0 | AD103: 0 | AE103: 0 | AF103: 0.1368319813 | AG103: 0.1368
A104: 3 | B104: 99 | C104: 17 | D104: 0.161 | E104: 15.355 | F104: 22.48 | G104: 9.57 | H104: 4.41 | I104: 0.94 | J104: 1.80 | K104: 1.21 | L104: 0.98 | M104: 1.01 | N104: 21.26 | O104: 20.27 | P104: 13.05 | Q104: 15.65 | R104: 3.97 | S104: 6.77 | T104: 15.59 | U104: 13.25 | V104: 0.98 | W104: 0.94 | X104: 0.55 | Y104: 0.53 | Z104: 0 | AA104: 0 | AB104: 1 | AC104: 0 | AD104: 0 | AE104: 0 | AF104: 0.1868753858 | AG104: 0.1869
A105: 4 | B105: 106 | C105: 17 | D105: 0.240 | E105: 25.337 | F105: 54.60 | G105: 12.04 | H105: 3.79 | I105: 1.16 | J105: 3.23 | K105: 1.72 | L105: 1.15 | M105: 0.96 | N105: 23.24 | O105: 21.83 | P105: 20.21 | Q105: 17.33 | R105: 9.65 | S105: 8.51 | T105: 13.39 | U105: 16.36 | V105: 0.91 | W105: 0.92 | X105: 0.75 | Y105: 0.33 | Z105: 0 | AA105: 0 | AB105: 0 | AC105: 1 | AD105: 0 | AE105: 0 | AF105: 0.4153464551 | AG105: 0.4153
A106: 5 | B106: 109 | C106: 16 | D106: 0.134 | E106: 14.467 | F106: 40.58 | G106: 14.14 | H106: 4.05 | I106: 0.91 | J106: 2.42 | K106: 1.57 | L106: 0.90 | M106: 0.86 | N106: 19.00 | O106: 17.41 | P106: 13.98 | Q106: 14.06 | R106: 7.17 | S106: 10.00 | T106: 14.33 | U106: 12.92 | V106: 0.93 | W106: 0.82 | X106: 0.22 | Y106: 0.39 | Z106: 0 | AA106: 0 | AB106: 1 | AC106: 0 | AD106: 0 | AE106: 0 | AF106: 0.3776286713 | AG106: 0.3776
A107: 6 | B107: 99 | C107: 25.75 | D107: 0.209 | E107: 20.764 | F107: 21.85 | G107: 13.64 | H107: 5.63 | I107: 1.28 | J107: 1.10 | K107: 0.99 | L107: 0.76 | M107: 0.86 | N107: 29.09 | O107: 27.61 | P107: 20.22 | Q107: 19.06 | R107: 3.86 | S107: 9.64 | T107: 19.89 | U107: 18.06 | V107: 0.99 | W107: 0.94 | X107: 0.18 | Y107: 0.32 | Z107: 0 | AA107: 0 | AB107: 0 | AC107: 0 | AD107: 1 | AE107: 0 | AF107: 0.1327704253 | AG107: 0.1328
A108: 7 | B108: 102 | C108: 16 | D108: 0.188 | E108: 18.533 | F108: 11.29 | G108: 6.37 | H108: 3.15 | I108: 1.00 | J108: 1.26 | K108: 0.99 | L108: 0.90 | M108: 0.77 | N108: 26.04 | O108: 25.47 | P108: 22.31 | Q108: 16.41 | R108: 2.00 | S108: 4.50 | T108: 11.15 | U108: 14.19 | V108: 1.00 | W108: 0.98 | X108: 0.87 | Y108: 0.50 | Z108: 0 | AA108: 0 | AB108: 1 | AC108: 0 | AD108: 0 | AE108: 0 | AF108: 0.07664634524 | AG108: 0.0766
A109: 8 | B109: 99 | C109: 22 | D109: 0.195 | E109: 19.511 | F109: 33.98 | G109: 11.34 | H109: 4.10 | I109: 1.34 | J109: 2.04 | K109: 1.36 | L109: 0.87 | M109: 0.64 | N109: 26.88 | O109: 26.16 | P109: 21.94 | Q109: 17.59 | R109: 6.01 | S109: 8.02 | T109: 14.51 | U109: 18.88 | V109: 0.97 | W109: 0.95 | X109: 0.75 | Y109: 0.36 | Z109: 0 | AA109: 0 | AB109: 0 | AC109: 0 | AD109: 0 | AE109: 1 | AF109: 0.2235159793 | AG109: 0.2235
A110: 9 | B110: 107 | C110: 24 | D110: 0.164 | E110: 17.452 | F110: 12.94 | G110: 5.78 | H110: 2.90 | I110: 1.27 | J110: 1.26 | K110: 0.99 | L110: 0.84 | M110: 0.59 | N110: 24.57 | O110: 24.40 | P110: 21.85 | Q110: 13.08 | R110: 2.29 | S110: 4.09 | T110: 10.26 | U110: 18.01 | V110: 1.00 | W110: 0.99 | X110: 0.88 | Y110: 0.69 | Z110: 0 | AA110: 0 | AB110: 0 | AC110: 0 | AD110: 0 | AE110: 1 | AF110: 0.09309397524 | AG110: 0.0931
A111: 10 | B111: 88 | C111: 17 | D111: 0.194 | E111: 17.539 | F111: 54.02 | G111: 14.95 | H111: 4.20 | I111: 1.31 | J111: 3.54 | K111: 2.03 | L111: 1.28 | M111: 0.95 | N111: 22.88 | O111: 22.34 | P111: 19.86 | Q111: 18.51 | R111: 9.55 | S111: 10.57 | T111: 14.85 | U111: 18.54 | V111: 0.91 | W111: 0.88 | X111: 0.66 | Y111: 0.05 | Z111: 0 | AA111: 0 | AB111: 0 | AC111: 0 | AD111: 1 | AE111: 0 | AF111: 0.4174834719 | AG111: 0.4175
A112: 11 | B112: 97 | C112: 14 | D112: 0.231 | E112: 21.617 | F112: 64.61 | G112: 18.80 | H112: 6.10 | I112: 1.50 | J112: 3.88 | K112: 2.05 | L112: 1.34 | M112: 1.08 | N112: 28.31 | O112: 27.23 | P112: 17.75 | Q112: 21.58 | R112: 11.42 | S112: 13.30 | T112: 21.58 | U112: 21.25 | V112: 0.91 | W112: 0.87 | X112: 0.57 | Y112: 0.17 | Z112: 0 | AA112: 0 | AB112: 0 | AC112: 0 | AD112: 1 | AE112: 0 | AF112: 0.4034788047 | AG112: 0.4035
A113: 12 | B113: 97 | C113: 26 | D113: 0.322 | E113: 30.583 | F113: 19.34 | G113: 13.41 | H113: 4.98 | I113: 1.04 | J113: 1.46 | K113: 1.52 | L113: 0.98 | M113: 0.90 | N113: 29.39 | O113: 27.97 | P113: 22.64 | Q113: 23.38 | R113: 3.42 | S113: 9.48 | T113: 17.60 | U113: 14.75 | V113: 0.99 | W113: 0.94 | X113: 0.63 | Y113: 0.78 | Z113: 0 | AA113: 0 | AB113: 1 | AC113: 0 | AD113: 0 | AE113: 0 | AF113: 0.1162975914 | AG113: 0.1163
A114: 13 | B114: 75 | C114: 20 | D114: 0.257 | E114: 20.156 | F114: 53.40 | G114: 19.74 | H114: 4.28 | I114: 1.34 | J114: 3.61 | K114: 2.47 | L114: 1.58 | M114: 1.13 | N114: 26.85 | O114: 24.62 | P114: 23.10 | Q114: 18.49 | R114: 9.44 | S114: 13.96 | T114: 15.14 | U114: 18.92 | V114: 0.94 | W114: 0.82 | X114: 0.76 | Y114: 0.21 | Z114: 0 | AA114: 0 | AB114: 0 | AC114: 0 | AD114: 0 | AE114: 1 | AF114: 0.3515957058 | AG114: 0.3516
A115: 14 | B115: 96 | C115: 28 | D115: 0.269 | E115: 26.152 | F115: 21.87 | G115: 12.85 | H115: 5.27 | I115: 0.91 | J115: 1.71 | K115: 1.26 | L115: 0.78 | M115: 0.74 | N115: 28.00 | O115: 26.59 | P115: 19.16 | Q115: 23.39 | R115: 3.87 | S115: 9.09 | T115: 18.64 | U115: 12.85 | V115: 0.99 | W115: 0.94 | X115: 0.23 | Y115: 0.84 | Z115: 0 | AA115: 0 | AB115: 1 | AC115: 0 | AD115: 0 | AE115: 0 | AF115: 0.1380555592 | AG115: 0.1381
A116: 15 | B116: 109 | C116: 19.5 | D116: 0.132 | E116: 14.201 | F116: 13.80 | G116: 9.38 | H116: 3.94 | I116: 0.98 | J116: 1.36 | K116: 1.31 | L116: 0.74 | M116: 0.78 | N116: 19.82 | O116: 18.56 | P116: 12.46 | Q116: 13.76 | R116: 2.44 | S116: 6.63 | T116: 13.93 | U116: 13.84 | V116: 0.99 | W116: 0.93 | X116: 0.45 | Y116: 0.10 | Z116: 0 | AA116: 0 | AB116: 1 | AC116: 0 | AD116: 0 | AE116: 0 | AF116: 0.1230444772 | AG116: 0.123
A117: 16 | B117: 102 | C117: 25 | D117: 0.217 | E117: 21.718 | F117: 57.88 | G117: 16.73 | H117: 6.26 | I117: 1.25 | J117: 3.57 | K117: 1.73 | L117: 0.91 | M117: 1.12 | N117: 28.89 | O117: 28.03 | P117: 19.73 | Q117: 23.32 | R117: 10.23 | S117: 11.83 | T117: 22.12 | U117: 17.75 | V117: 0.94 | W117: 0.91 | X117: 0.45 | Y117: 0.65 | Z117: 0 | AA117: 0 | AB117: 0 | AC117: 1 | AD117: 0 | AE117: 0 | AF117: 0.3541780364 | AG117: 0.3542
A118: 17 | B118: 93 | C118: 13 | D118: 0.172 | E118: 16.023 | F118: 12.37 | G118: 6.09 | H118: 2.84 | I118: 0.87 | J118: 1.13 | K118: 0.98 | L118: 0.84 | M118: 0.74 | N118: 16.67 | O118: 16.13 | P118: 13.08 | Q118: 11.61 | R118: 2.19 | S118: 4.31 | T118: 10.04 | U118: 12.33 | V118: 0.99 | W118: 0.96 | X118: 0.64 | Y118: 0.34 | Z118: 0 | AA118: 0 | AB118: 0 | AC118: 1 | AD118: 0 | AE118: 0 | AF118: 0.1312539943 | AG118: 0.1313
A119: 18 | B119: 98 | C119: 10 | D119: 0.178 | E119: 17.634 | F119: 105.39 | G119: 21.05 | H119: 4.45 | I119: 1.27 | J119: 4.70 | K119: 3.57 | L119: 1.95 | M119: 2.56 | N119: 16.39 | O119: 16.58 | P119: 16.42 | Q119: 18.04 | R119: 18.63 | S119: 14.88 | T119: 15.72 | U119: 17.95 | V119: 0.48 | W119: 0.44 | X119: 0.29 | Y119: 0.10 | Z119: 0 | AA119: 0 | AB119: 0 | AC119: 0 | AD119: 0 | AE119: 1 | AF119: 1.136922836 | AG119: 1.1369
A120: 19 | B120: 93 | C120: 24 | D120: 0.237 | E120: 22.854 | F120: 39.83 | G120: 18.57 | H120: 5.11 | I120: 1.58 | J120: 3.02 | K120: 2.38 | L120: 1.26 | M120: 1.15 | N120: 29.04 | O120: 26.81 | P120: 23.72 | Q120: 20.65 | R120: 7.04 | S120: 13.13 | T120: 18.06 | U120: 22.35 | V120: 0.97 | W120: 0.87 | X120: 0.65 | Y120: 0.38 | Z120: 0 | AA120: 0 | AB120: 0 | AC120: 0 | AD120: 1 | AE120: 0 | AF120: 0.2424197576 | AG120: 0.2424
A121: 20 | B121: 96.5 | C121: 30.5 | D121: 0.190 | E121: 18.032 | F121: 15.04 | G121: 9.79 | H121: 4.45 | I121: 1.11 | J121: 1.00 | K121: 0.87 | L121: 0.84 | M121: 0.72 | N121: 25.31 | O121: 24.34 | P121: 19.91 | Q121: 15.76 | R121: 2.66 | S121: 6.92 | T121: 15.72 | U121: 15.69 | V121: 0.99 | W121: 0.96 | X121: 0.61 | Y121: 0.10 | Z121: 0 | AA121: 0 | AB121: 1 | AC121: 0 | AD121: 0 | AE121: 0 | AF121: 0.1050595357 | AG121: 0.1051
A122: 21 | B122: 103 | C122: 24 | D122: 0.208 | E122: 21.185 | F122: 37.47 | G122: 13.96 | H122: 5.92 | I122: 1.42 | J122: 2.77 | K122: 1.52 | L122: 0.85 | M122: 0.73 | N122: 29.21 | O122: 28.26 | P122: 20.52 | Q122: 19.95 | R122: 6.62 | S122: 9.87 | T122: 20.94 | U122: 20.12 | V122: 0.97 | W122: 0.94 | X122: 0.20 | Y122: 0.13 | Z122: 0 | AA122: 0 | AB122: 1 | AC122: 0 | AD122: 0 | AE122: 0 | AF122: 0.2267463426 | AG122: 0.2267
A123: 22 | B123: 97 | C123: 18 | D123: 0.201 | E123: 18.506 | F123: 46.59 | G123: 11.89 | H123: 3.49 | I123: 1.11 | J123: 3.29 | K123: 1.81 | L123: 0.93 | M123: 0.77 | N123: 24.80 | O123: 24.60 | P123: 21.75 | Q123: 16.44 | R123: 8.24 | S123: 8.41 | T123: 12.35 | U123: 15.76 | V123: 0.94 | W123: 0.94 | X123: 0.82 | Y123: 0.28 | Z123: 0 | AA123: 0 | AB123: 0 | AC123: 0 | AD123: 0 | AE123: 1 | AF123: 0.3320817561 | AG123: 0.3321
A124: 23 | B124: 90 | C124: 27.75 | D124: 0.254 | E124: 23.250 | F124: 93.80 | G124: 24.82 | H124: 5.81 | I124: 1.58 | J124: 3.99 | K124: 2.67 | L124: 1.35 | M124: 1.29 | N124: 28.39 | O124: 27.79 | P124: 25.55 | Q124: 24.29 | R124: 16.58 | S124: 17.55 | T124: 20.55 | U124: 22.40 | V124: 0.81 | W124: 0.78 | X124: 0.59 | Y124: 0.39 | Z124: 0 | AA124: 1 | AB124: 0 | AC124: 1 | AD124: 0 | AE124: 0 | AF124: 0.5840272589 | AG124: 0.584
A125: 24 | B125: 104 | C125: 15.5 | D125: 0.145 | E125: 14.749 | F125: 14.16 | G125: 7.97 | H125: 2.69 | I125: 0.82 | J125: 1.20 | K125: 1.13 | L125: 1.01 | M125: 0.69 | N125: 20.57 | O125: 19.44 | P125: 16.14 | Q125: 14.80 | R125: 2.50 | S125: 5.64 | T125: 9.49 | U125: 11.62 | V125: 0.99 | W125: 0.96 | X125: 0.81 | Y125: 0.62 | Z125: 0 | AA125: 0 | AB125: 0 | AC125: 1 | AD125: 0 | AE125: 0 | AF125: 0.1216709994 | AG125: 0.1217
A126: 25 | B126: 102 | C126: 24 | D126: 0.194 | E126: 18.787 | F126: 11.69 | G126: 6.89 | H126: 2.81 | I126: 0.90 | J126: 1.05 | K126: 0.98 | L126: 0.76 | M126: 0.79 | N126: 26.45 | O126: 25.92 | P126: 23.87 | Q126: 19.73 | R126: 2.07 | S126: 4.87 | T126: 9.92 | U126: 12.69 | V126: 1.00 | W126: 0.98 | X126: 0.91 | Y126: 0.77 | Z126: 0 | AA126: 0 | AB126: 0 | AC126: 0 | AD126: 1 | AE126: 0 | AF126: 0.07815140789 | AG126: 0.0782
A127: 26 | B127: 94 | C127: 19.25 | D127: 0.154 | E127: 13.878 | F127: 11.83 | G127: 5.87 | H127: 2.43 | I127: 0.52 | J127: 1.34 | K127: 1.11 | L127: 0.85 | M127: 0.95 | N127: 19.40 | O127: 18.86 | P127: 17.25 | Q127: 14.19 | R127: 2.09 | S127: 4.15 | T127: 8.60 | U127: 7.38 | V127: 0.99 | W127: 0.98 | X127: 0.87 | Y127: 0.85 | Z127: 0 | AA127: 0 | AB127: 0 | AC127: 0 | AD127: 0 | AE127: 1 | AF127: 0.1078008083 | AG127: 0.1078
A128: 27 | B128: 91 | C128: 17 | D128: 0.162 | E128: 15.059 | F128: 23.24 | G128: 12.53 | H128: 4.31 | I128: 1.07 | J128: 1.58 | K128: 1.38 | L128: 0.88 | M128: 0.79 | N128: 20.87 | O128: 19.40 | P128: 14.18 | Q128: 14.99 | R128: 4.11 | S128: 8.86 | T128: 15.23 | U128: 15.17 | V128: 0.98 | W128: 0.89 | X128: 0.37 | Y128: 0.15 | Z128: 0 | AA128: 0 | AB128: 0 | AC128: 0 | AD128: 1 | AE128: 0 | AF128: 0.1968567403 | AG128: 0.1969
A129: 28 | B129: 102 | C129: 15.25 | D129: 0.152 | E129: 15.198 | F129: 23.72 | G129: 13.72 | H129: 3.54 | I129: 0.97 | J129: 1.46 | K129: 1.27 | L129: 0.94 | M129: 1.00 | N129: 20.99 | O129: 18.78 | P129: 16.18 | Q129: 13.84 | R129: 4.19 | S129: 9.70 | T129: 12.51 | U129: 13.70 | V129: 0.98 | W129: 0.86 | X129: 0.63 | Y129: 0.14 | Z129: 0 | AA129: 0 | AB129: 1 | AC129: 0 | AD129: 0 | AE129: 0 | AF129: 0.1998023753 | AG129: 0.1998
A130: 29 | B130: 100 | C130: 15 | D130: 0.136 | E130: 13.093 | F130: 16.36 | G130: 7.72 | H130: 3.32 | I130: 0.67 | J130: 1.16 | K130: 1.01 | L130: 0.81 | M130: 0.89 | N130: 18.08 | O130: 16.83 | P130: 11.49 | Q130: 14.81 | R130: 2.89 | S130: 5.46 | T130: 11.73 | U130: 9.41 | V130: 0.99 | W130: 0.95 | X130: 0.20 | Y130: 0.77 | Z130: 0 | AA130: 0 | AB130: 0 | AC130: 1 | AD130: 0 | AE130: 0 | AF130: 0.1600107143 | AG130: 0.16
A131: 30 | B131: 103 | C131: 17 | D131: 0.118 | E131: 12.276 | F131: 13.64 | G131: 7.06 | H131: 3.32 | I131: 1.15 | J131: 1.17 | K131: 1.11 | L131: 1.09 | M131: 0.57 | N131: 16.99 | O131: 16.19 | P131: 12.65 | Q131: 9.28 | R131: 2.41 | S131: 4.99 | T131: 11.72 | U131: 16.33 | V131: 0.99 | W131: 0.95 | X131: 0.38 | Y131: 0.82 | Z131: 0 | AA131: 0 | AB131: 1 | AC131: 0 | AD131: 0 | AE131: 0 | AF131: =R131/N131 -> 0.1419606528 | AG131: =ROUND(AF131,4) -> 0.142
A132: 31 | B132: 95 | C132: 21 | D132: 0.157 | E132: 14.949 | F132: 20.75 | G132: 9.98 | H132: 3.34 | I132: 0.84 | J132: 1.55 | K132: 1.15 | L132: 0.81 | M132: 0.60 | N132: 20.76 | O132: 19.55 | P132: 14.57 | Q132: 14.45 | R132: 3.67 | S132: 7.06 | T132: 11.81 | U132: 11.81 | V132: 0.98 | W132: 0.93 | X132: 0.58 | Y132: 0.58 | Z132: 0 | AA132: 0 | AB132: 1 | AC132: 0 | AD132: 0 | AE132: 0 | AF132: 0.1766980672 | AG132: 0.1767
A133: 32 | B133: 107 | C133: 20 | D133: 0.214 | E133: 22.165 | F133: 46.29 | G133: 12.97 | H133: 3.65 | I133: 1.02 | J133: 3.46 | K133: 2.09 | L133: 1.25 | M133: 1.24 | N133: 30.24 | O133: 29.82 | P133: 27.16 | Q133: 22.34 | R133: 8.18 | S133: 9.17 | T133: 12.91 | U133: 14.41 | V133: 0.96 | W133: 0.95 | X133: 0.88 | Y133: 0.76 | Z133: 0 | AA133: 0 | AB133: 0 | AC133: 1 | AD133: 0 | AE133: 0 | AF133: 0.2706128807 | AG133: 0.2706
A134: 33 | B134: 103 | C134: 22 | D134: 0.204 | E134: 20.671 | F134: 13.22 | G134: 8.35 | H134: 3.72 | I134: 1.13 | J134: 1.32 | K134: 1.16 | L134: 0.81 | M134: 0.67 | N134: 24.38 | O134: 23.39 | P134: 19.98 | Q134: 17.76 | R134: 2.34 | S134: 5.90 | T134: 13.16 | U134: 15.92 | V134: 1.00 | W134: 0.97 | X134: 0.75 | Y134: 0.44 | Z134: 0 | AA134: 0 | AB134: 1 | AC134: 0 | AD134: 0 | AE134: 0 | AF134: 0.09587561229 | AG134: 0.0959
A135: 34 | B135: 97 | C135: 12 | D135: 0.137 | E135: 13.050 | F135: 43.72 | G135: 13.08 | H135: 3.75 | I135: 1.02 | J135: 2.64 | K135: 1.65 | L135: 1.05 | M135: 0.91 | N135: 16.66 | O135: 15.37 | P135: 12.03 | Q135: 12.99 | R135: 7.73 | S135: 9.25 | T135: 13.25 | U135: 14.39 | V135: 0.89 | W135: 0.80 | X135: 0.42 | Y135: 0.43 | Z135: 0 | AA135: 0 | AB135: 1 | AC135: 0 | AD135: 0 | AE135: 0 | AF135: 0.4640028863 | AG135: 0.464
A136: 35 | B136: 86 | C136: 19.5 | D136: 0.240 | E136: 20.360 | F136: 16.53 | G136: 7.62 | H136: 3.30 | I136: 1.01 | J136: 1.31 | K136: 0.90 | L136: 0.73 | M136: 0.84 | N136: 22.64 | O136: 22.00 | P136: 18.95 | Q136: 14.92 | R136: 2.92 | S136: 5.39 | T136: 11.67 | U136: 14.29 | V136: 0.99 | W136: 0.97 | X136: 0.79 | Y136: 0.29 | Z136: 0 | AA136: 0 | AB136: 0 | AC136: 1 | AD136: 0 | AE136: 0 | AF136: 0.1290507139 | AG136: 0.1291
A137: 36 | B137: 95 | C137: 19 | D137: 0.190 | E137: 17.841 | F137: 62.56 | G137: 16.36 | H137: 4.49 | I137: 1.06 | J137: 4.62 | K137: 2.44 | L137: 1.26 | M137: 1.03 | N137: 22.64 | O137: 22.35 | P137: 18.80 | Q137: 17.89 | R137: 11.06 | S137: 11.56 | T137: 15.88 | U137: 15.01 | V137: 0.87 | W137: 0.86 | X137: 0.54 | Y137: 0.54 | Z137: 0 | AA137: 0 | AB137: 0 | AC137: 0 | AD137: 1 | AE137: 0 | AF137: 0.4883320344 | AG137: 0.4883
A138: 38 | B138: 94 | C138: 37.25 | D138: 0.294 | E138: 29.004 | F138: 69.02 | G138: 23.24 | H138: 8.18 | I138: 2.17 | J138: 2.96 | K138: 1.82 | L138: 1.17 | M138: 0.92 | N138: 39.14 | O138: 37.53 | P138: 29.41 | Q138: 23.18 | R138: 12.20 | S138: 16.43 | T138: 28.92 | U138: 30.63 | V138: 0.95 | W138: 0.90 | X138: 0.18 | Y138: 0.65 | Z138: 0 | AA138: 0 | AB138: 0 | AC138: 0 | AD138: 1 | AE138: 0 | AF138: 0.3117197184 | AG138: 0.3117
A139: 39 | B139: 112 | C139: 36 | D139: 0.279 | E139: 30.717 | F139: 51.84 | G139: 28.15 | H139: 8.88 | I139: 1.55 | J139: 2.83 | K139: 1.62 | L139: 0.80 | M139: 0.94 | N139: 38.25 | O139: 34.72 | P139: 24.80 | Q139: 32.52 | R139: 9.16 | S139: 19.91 | T139: 31.40 | U139: 21.87 | V139: 0.97 | W139: 0.82 | X139: 0.61 | Y139: 0.74 | Z139: 0 | AA139: 0 | AB139: 1 | AC139: 0 | AD139: 0 | AE139: 0 | AF139: 0.2395987886 | AG139: 0.2396
A140: 40 | B140: 94 | C140: 19 | D140: 0.206 | E140: 19.861 | F140: 17.86 | G140: 11.70 | H140: 5.62 | I140: 1.44 | J140: 1.25 | K140: 1.07 | L140: 0.91 | M140: 0.86 | N140: 27.84 | O140: 26.58 | P140: 19.06 | Q140: 20.86 | R140: 3.16 | S140: 8.27 | T140: 19.85 | U140: 20.42 | V140: 0.99 | W140: 0.95 | X140: 0.28 | Y140: 0.20 | Z140: 0 | AA140: 0 | AB140: 0 | AC140: 1 | AD140: 0 | AE140: 0 | AF140: 0.1134294882 | AG140: 0.1134
A141: 41 | B141: 91 | C141: 20.5 | D141: 0.185 | E141: 16.508 | F141: 17.36 | G141: 9.48 | H141: 4.05 | I141: 0.91 | J141: 1.05 | K141: 0.84 | L141: 0.67 | M141: 0.95 | N141: 23.04 | O141: 22.02 | P141: 16.52 | Q141: 15.53 | R141: 3.07 | S141: 6.70 | T141: 14.31 | U141: 12.93 | V141: 0.99 | W141: 0.95 | X141: 0.50 | Y141: 0.55 | Z141: 0 | AA141: 0 | AB141: 0 | AC141: 1 | AD141: 0 | AE141: 0 | AF141: 0.1331587354 | AG141: 0.1332
A142: 42 | B142: 96 | C142: 21 | D142: 0.168 | E142: 15.748 | F142: 24.95 | G142: 10.28 | H142: 3.81 | I142: 0.91 | J142: 1.88 | K142: 1.15 | L142: 1.04 | M142: 0.62 | N142: 21.86 | O142: 21.13 | P142: 18.33 | Q142: 14.20 | R142: 4.41 | S142: 7.27 | T142: 13.49 | U142: 12.89 | V142: 0.98 | W142: 0.94 | X142: 0.68 | Y142: 0.42 | Z142: 0 | AA142: 0 | AB142: 1 | AC142: 0 | AD142: 0 | AE142: 0 | AF142: 0.2017518236 | AG142: 0.2018
A143: 43 | B143: 93 | C143: 17 | D143: 0.205 | E143: 19.281 | F143: 50.59 | G143: 22.30 | H143: 5.28 | I143: 1.16 | J143: 3.70 | K143: 2.89 | L143: 1.67 | M143: 1.37 | N143: 25.71 | O143: 21.96 | P143: 18.96 | Q143: 16.87 | R143: 8.94 | S143: 15.77 | T143: 18.67 | U143: 16.43 | V143: 0.94 | W143: 0.70 | X143: 0.18 | Y143: 0.23 | Z143: 0 | AA143: 0 | AB143: 0 | AC143: 0 | AD143: 1 | AE143: 0 | AF143: 0.3478735296 | AG143: 0.3479
A144: 44 | B144: 103.5 | C144: 41 | D144: 0.272 | E144: 28.526 | F144: 31.21 | G144: 17.48 | H144: 6.28 | I144: 1.60 | J144: 1.36 | K144: 1.18 | L144: 0.91 | M144: 0.83 | N144: 39.87 | O144: 38.24 | P144: 33.65 | Q144: 33.78 | R144: 5.52 | S144: 12.36 | T144: 22.20 | U144: 22.58 | V144: 0.99 | W144: 0.95 | X144: 0.75 | Y144: 0.74 | Z144: 0 | AA144: 0 | AB144: 0 | AC144: 0 | AD144: 1 | AE144: 0 | AF144: 0.1383787742 | AG144: 0.1384
A145: 45 | B145: 103 | C145: 18 | D145: 0.142 | E145: 14.533 | F145: 16.07 | G145: 7.91 | H145: 2.35 | I145: 0.60 | J145: 1.37 | K145: 1.17 | L145: 0.63 | M145: 0.69 | N145: 20.19 | O145: 19.40 | P145: 18.31 | Q145: 13.57 | R145: 2.84 | S145: 5.60 | T145: 8.32 | U145: 8.42 | V145: 0.99 | W145: 0.96 | X145: 0.89 | Y145: 0.78 | Z145: 0 | AA145: 0 | AB145: 0 | AC145: 1 | AD145: 0 | AE145: 0 | AF145: 0.1406918861 | AG145: 0.1407
A146: 46 | B146: 107 | C146: 12.75 | D146: 0.165 | E146: 17.003 | F146: 17.66 | G146: 8.49 | H146: 3.06 | I146: 1.13 | J146: 1.55 | K146: 1.45 | L146: 1.08 | M146: 1.14 | N146: 23.70 | O146: 22.66 | P146: 17.83 | Q146: 13.27 | R146: 3.12 | S146: 6.00 | T146: 10.81 | U146: 16.05 | V146: 0.99 | W146: 0.96 | X146: 0.80 | Y146: 0.56 | Z146: 0 | AA146: 0 | AB146: 1 | AC146: 0 | AD146: 0 | AE146: 0 | AF146: 0.1317133691 | AG146: 0.1317
A147: 47 | B147: 102 | C147: 15 | D147: 0.137 | E147: 13.643 | F147: 20.54 | G147: 9.65 | H147: 3.71 | I147: 0.75 | J147: 1.31 | K147: 1.17 | L147: 0.96 | M147: 0.89 | N147: 18.92 | O147: 17.80 | P147: 11.87 | Q147: 14.09 | R147: 3.63 | S147: 6.82 | T147: 13.10 | U147: 10.66 | V147: 0.98 | W147: 0.92 | X147: 0.42 | Y147: 0.65 | Z147: 0 | AA147: 0 | AB147: 1 | AC147: 0 | AD147: 0 | AE147: 0 | AF147: 0.1919484876 | AG147: 0.1919
A148: 48 | B148: 99 | C148: 14 | D148: 0.174 | E148: 17.421 | F148: 47.16 | G148: 14.05 | H148: 4.21 | I148: 1.19 | J148: 3.93 | K148: 2.09 | L148: 1.13 | M148: 1.43 | N148: 23.08 | O148: 22.06 | P148: 18.03 | Q148: 17.84 | R148: 8.34 | S148: 9.94 | T148: 14.88 | U148: 16.82 | V148: 0.93 | W148: 0.89 | X148: 0.56 | Y148: 0.33 | Z148: 0 | AA148: 0 | AB148: 1 | AC148: 0 | AD148: 0 | AE148: 0 | AF148: 0.3612560197 | AG148: 0.3613
A149: 49 | B149: 103 | C149: 15 | D149: 0.171 | E149: 17.125 | F149: 17.02 | G149: 8.70 | H149: 3.31 | I149: 0.94 | J149: 1.52 | K149: 1.19 | L149: 0.89 | M149: 0.72 | N149: 23.89 | O149: 22.91 | P149: 19.11 | Q149: 16.76 | R149: 3.01 | S149: 6.15 | T149: 11.69 | U149: 13.35 | V149: 0.99 | W149: 0.96 | X149: 0.79 | Y149: 0.60 | Z149: 0 | AA149: 0 | AB149: 0 | AC149: 0 | AD149: 0 | AE149: 1 | AF149: 0.1259009952 | AG149: 0.1259
A150: 50 | B150: 103 | C150: 13 | D150: 0.133 | E150: 13.468 | F150: 13.47 | G150: 5.60 | H150: 2.35 | I150: 0.86 | J150: 1.59 | K150: 1.30 | L150: 0.92 | M150: 0.85 | N150: 18.73 | O150: 18.03 | P150: 14.12 | Q150: 11.78 | R150: 2.38 | S150: 3.96 | T150: 8.31 | U150: 12.14 | V150: 0.99 | W150: 0.98 | X150: 0.81 | Y150: 0.24 | Z150: 0 | AA150: 0 | AB150: 0 | AC150: 0 | AD150: 0 | AE150: 1 | AF150: 0.1270720479 | AG150: 0.1271
A151: 52 | B151: 102 | C151: 25 | D151: 0.265 | E151: 27.133 | F151: 29.55 | G151: 13.52 | H151: 5.34 | I151: 1.70 | J151: 2.03 | K151: 1.48 | L151: 1.05 | M151: 0.79 | N151: 38.03 | O151: 37.19 | P151: 30.85 | Q151: 25.32 | R151: 5.22 | S151: 9.56 | T151: 18.89 | U151: 24.10 | V151: 0.99 | W151: 0.97 | X151: 0.79 | Y151: 0.31 | Z151: 0 | AA151: 0 | AB151: 0 | AC151: 0 | AD151: 1 | AE151: 0 | AF151: 0.1373554304 | AG151: 0.1374
A152: 53 | B152: 93 | C152: 24 | D152: 0.221 | E152: 20.180 | F152: 22.51 | G152: 13.23 | H152: 4.86 | I152: 1.44 | J152: 1.21 | K152: 1.12 | L152: 0.79 | M152: 0.84 | N152: 28.30 | O152: 27.11 | P152: 22.97 | Q152: 19.10 | R152: 3.98 | S152: 9.36 | T152: 17.17 | U152: 20.32 | V152: 0.99 | W152: 0.94 | X152: 0.66 | Y152: 0.34 | Z152: 0 | AA152: 0 | AB152: 0 | AC152: 0 | AD152: 1 | AE152: 0 | AF152: 0.1406495174 | AG152: 0.1406
A153: 55 | B153: 106 | C153: 31.75 | D153: 0.192 | E153: 19.196 | F153: 17.75 | G153: 10.48 | H153: 4.76 | I153: 1.11 | J153: 1.14 | K153: 1.09 | L153: 0.82 | M153: 0.67 | N153: 26.90 | O153: 25.87 | P153: 19.84 | Q153: 18.20 | R153: 3.14 | S153: 7.41 | T153: 16.84 | U153: 15.71 | V153: 0.99 | W153: 0.96 | X153: 0.53 | Y153: 0.50 | Z153: 0 | AA153: 0 | AB153: 0 | AC153: 0 | AD153: 1 | AE153: 0 | AF153: 0.1166297307 | AG153: 0.1166
A154: 56 | B154: 108 | C154: 29 | D154: 0.210 | E154: 22.336 | F154: 67.76 | G154: 20.50 | H154: 5.93 | I154: 1.44 | J154: 3.70 | K154: 2.11 | L154: 1.41 | M154: 0.94 | N154: 28.97 | O154: 27.46 | P154: 22.30 | Q154: 20.41 | R154: 11.98 | S154: 14.50 | T154: 20.98 | U154: 20.38 | V154: 0.91 | W154: 0.85 | X154: 0.34 | Y154: 0.06 | Z154: 0 | AA154: 0 | AB154: 1 | AC154: 0 | AD154: 0 | AE154: 0 | AF154: 0.4135640694 | AG154: 0.4136
A155: 57 | B155: 93 | C155: 20 | D155: 0.134 | E155: 12.661 | F155: 10.74 | G155: 7.25 | H155: 3.36 | I155: 0.92 | J155: 1.07 | K155: 0.99 | L155: 0.61 | M155: 0.79 | N155: 17.74 | O155: 16.90 | P155: 12.80 | Q155: 10.82 | R155: 1.90 | S155: 5.13 | T155: 11.88 | U155: 12.97 | V155: 0.99 | W155: 0.95 | X155: 0.37 | Y155: 0.55 | Z155: 0 | AA155: 0 | AB155: 1 | AC155: 0 | AD155: 0 | AE155: 0 | AF155: 0.107047795 | AG155: 0.107
A156: 58 | B156: 111 | C156: 24 | D156: 0.200 | E156: 21.441 | F156: 13.25 | G156: 6.60 | H156: 3.83 | I156: 1.23 | J156: 1.19 | K156: 1.01 | L156: 0.79 | M156: 0.86 | N156: 24.20 | O156: 23.24 | P156: 17.00 | Q156: 15.18 | R156: 2.34 | S156: 4.67 | T156: 13.54 | U156: 17.42 | V156: 1.00 | W156: 0.98 | X156: 0.60 | Y156: 0.49 | Z156: 0 | AA156: 0 | AB156: 1 | AC156: 0 | AD156: 0 | AE156: 0 | AF156: 0.09683547663 | AG156: 0.0968
A157: 59 | B157: 97 | C157: 32.5 | D157: 0.241 | E157: 24.763 | F157: 23.96 | G157: 15.60 | H157: 7.21 | I157: 1.95 | J157: 1.36 | K157: 1.20 | L157: 1.00 | M157: 0.79 | N157: 34.75 | O157: 33.01 | P157: 23.41 | Q157: 23.13 | R157: 4.24 | S157: 11.03 | T157: 25.49 | U157: 27.56 | V157: 0.99 | W157: 0.94 | X157: 0.40 | Y157: 0.54 | Z157: 0 | AA157: 0 | AB157: 1 | AC157: 0 | AD157: 0 | AE157: 0 | AF157: 0.1218748395 | AG157: 0.1219
A158: 61 | B158: 107 | C158: 21 | D158: 0.148 | E158: 16.021 | F158: 23.70 | G158: 14.91 | H158: 4.41 | I158: 1.16 | J158: 1.60 | K158: 1.39 | L158: 0.67 | M158: 0.72 | N158: 21.99 | O158: 19.09 | P158: 16.09 | Q158: 13.43 | R158: 4.19 | S158: 10.54 | T158: 15.59 | U158: 16.47 | V158: 0.98 | W158: 0.83 | X158: 0.25 | Y158: 0.58 | Z158: 0 | AA158: 0 | AB158: 0 | AC158: 0 | AD158: 0 | AE158: 1 | AF158: 0.1905700842 | AG158: 0.1906
A159: 62 | B159: 92 | C159: 25 | D159: 0.260 | E159: 24.076 | F159: 38.55 | G159: 16.40 | H159: 6.06 | I159: 1.55 | J159: 1.67 | K159: 1.02 | L159: 0.76 | M159: 0.82 | N159: 27.75 | O159: 26.08 | P159: 18.92 | Q159: 17.09 | R159: 6.81 | S159: 11.59 | T159: 21.44 | U159: 21.94 | V159: 0.97 | W159: 0.90 | X159: 0.47 | Y159: 0.63 | Z159: 0 | AA159: 0 | AB159: 0 | AC159: 1 | AD159: 0 | AE159: 0 | AF159: 0.2455828835 | AG159: 0.2456
A160: 63 | B160: 73 | C160: 51.25 | D160: 0.372 | E160: 30.773 | F160: 41.26 | G160: 12.88 | H160: 5.07 | I160: 1.67 | J160: 3.49 | K160: 1.62 | L160: 0.86 | M160: 0.88 | N160: 42.89 | O160: 42.51 | P160: 39.42 | Q160: 36.76 | R160: 7.29 | S160: 9.11 | T160: 17.93 | U160: 23.64 | V160: 0.99 | W160: 0.98 | X160: 0.89 | Y160: 0.77 | Z160: 0 | AA160: 0 | AB160: 0 | AC160: 0 | AD160: 1 | AE160: 0 | AF160: 0.1700575759 | AG160: 0.1701
A161: 64 | B161: 98 | C161: 51 | D161: 0.374 | E161: 41.138 | F161: 78.26 | G161: 32.99 | H161: 9.57 | I161: 3.03 | J161: 2.56 | K161: 1.55 | L161: 0.86 | M161: 0.78 | N161: 56.52 | O161: 53.19 | P161: 44.95 | Q161: 35.66 | R161: 13.84 | S161: 23.33 | T161: 33.85 | U161: 42.81 | V161: 0.97 | W161: 0.90 | X161: 0.66 | Y161: 0.55 | Z161: 0 | AA161: 0 | AB161: 0 | AC161: 0 | AD161: 0 | AE161: 1 | AF161: 0.2447769659 | AG161: 0.2448
A162: 65 | B162: 97 | C162: 15 | D162: 0.198 | E162: 18.987 | F162: 75.52 | G162: 20.94 | H162: 4.89 | I162: 1.30 | J162: 3.82 | K162: 2.29 | L162: 1.53 | M162: 1.07 | N162: 22.98 | O162: 21.55 | P162: 20.03 | Q162: 16.01 | R162: 13.35 | S162: 14.81 | T162: 17.31 | U162: 18.36 | V162: 0.81 | W162: 0.73 | X162: 0.50 | Y162: 0.49 | Z162: 0 | AA162: 0 | AB162: 1 | AC162: 0 | AD162: 0 | AE162: 0 | AF162: 0.5808780068 | AG162: 0.5809
A163: 66 | B163: 103 | C163: 19 | D163: 0.193 | E163: 19.143 | F163: 31.48 | G163: 10.26 | H163: 3.29 | I163: 1.13 | J163: 1.85 | K163: 0.99 | L163: 0.96 | M163: 0.67 | N163: 18.88 | O163: 17.66 | P163: 15.24 | Q163: 11.15 | R163: 5.56 | S163: 7.26 | T163: 11.61 | U163: 16.04 | V163: 0.96 | W163: 0.91 | X163: 0.65 | Y163: 0.72 | Z163: 0 | AA163: 0 | AB163: 0 | AC163: 0 | AD163: 0 | AE163: 1 | AF163: 0.2946909792 | AG163: 0.2947
A164: 67 | B164: 95 | C164: 22 | D164: 0.244 | E164: 22.501 | F164: 65.50 | G164: 21.24 | H164: 6.88 | I164: 1.70 | J164: 3.01 | K164: 1.72 | L164: 1.07 | M164: 1.00 | N164: 29.52 | O164: 27.60 | P164: 18.12 | Q164: 20.35 | R164: 11.58 | S164: 15.02 | T164: 24.33 | U164: 24.09 | V164: 0.92 | W164: 0.84 | X164: 0.67 | Y164: 0.53 | Z164: 0 | AA164: 0 | AB164: 1 | AC164: 0 | AD164: 0 | AE164: 0 | AF164: 0.3922114835 | AG164: 0.3922
A165: 68 | B165: 92 | C165: 11 | D165: 0.127 | E165: 11.599 | F165: 14.88 | G165: 7.69 | H165: 2.67 | I165: 0.65 | J165: 1.31 | K165: 1.22 | L165: 1.19 | M165: 1.05 | N165: 16.04 | O165: 14.90 | P165: 9.81 | Q165: 10.62 | R165: 2.63 | S165: 5.44 | T165: 9.44 | U165: 9.15 | V165: 0.99 | W165: 0.93 | X165: 0.27 | Y165: 0.51 | Z165: 0 | AA165: 0 | AB165: 0 | AC165: 1 | AD165: 0 | AE165: 0 | AF165: 0.1639778992 | AG165: 0.164
A166: 69 | B166: 101 | C166: 20 | D166: 0.171 | E166: 17.483 | F166: 18.34 | G166: 11.06 | H166: 4.01 | I166: 1.33 | J166: 1.33 | K166: 1.17 | L166: 0.77 | M166: 0.78 | N166: 24.44 | O166: 23.15 | P166: 18.59 | Q166: 13.92 | R166: 3.24 | S166: 7.82 | T166: 14.17 | U166: 18.85 | V166: 0.99 | W166: 0.94 | X166: 0.65 | Y166: 0.67 | Z166: 0 | AA166: 0 | AB166: 1 | AC166: 0 | AD166: 0 | AE166: 0 | AF166: 0.1326662366 | AG166: 0.1327
A167: 71 | B167: 88 | C167: 7 | D167: 0.190 | E167: 16.994 | F167: 79.26 | G167: 23.64 | H167: 4.74 | I167: 1.18 | J167: 4.79 | K167: 3.52 | L167: 2.51 | M167: 2.26 | N167: 19.43 | O167: 17.00 | P167: 17.48 | Q167: 15.93 | R167: 14.01 | S167: 16.71 | T167: 16.75 | U167: 16.65 | V167: 0.69 | W167: 0.18 | X167: 0.29 | Y167: 0.29 | Z167: 0 | AA167: 0 | AB167: 0 | AC167: 0 | AD167: 0 | AE167: 1 | AF167: 0.7209710932 | AG167: 0.721
A168: 72 | B168: 104 | C168: 10 | D168: 0.118 | E168: 12.196 | F168: 45.06 | G168: 12.00 | H168: 2.87 | I168: 0.80 | J168: 4.53 | K168: 3.11 | L168: 2.06 | M168: 1.71 | N168: 15.02 | O168: 13.97 | P168: 12.14 | Q168: 12.04 | R168: 7.97 | S168: 8.49 | T168: 10.15 | U168: 11.26 | V168: 0.85 | W168: 0.79 | X168: 0.55 | Y168: 0.35 | Z168: 0 | AA168: 1 | AB168: 0 | AC168: 1 | AD168: 0 | AE168: 0 | AF168: 0.5304453719 | AG168: 0.5304
A169: 73 | B169: 86 | C169: 20.75 | D169: 0.189 | E169: 16.252 | F169: 10.93 | G169: 6.78 | H169: 3.22 | I169: 0.96 | J169: 1.32 | K169: 1.15 | L169: 0.87 | M169: 0.64 | N169: 22.88 | O169: 22.37 | P169: 19.27 | Q169: 17.33 | R169: 1.93 | S169: 4.80 | T169: 11.38 | U169: 13.51 | V169: 1.00 | W169: 0.98 | X169: 0.81 | Y169: 0.63 | Z169: 0 | AA169: 0 | AB169: 0 | AC169: 0 | AD169: 1 | AE169: 0 | AF169: 0.08440838956 | AG169: 0.0844
A170: 74 | B170: 116 | C170: 19 | D170: 0.170 | E170: 19.394 | F170: 13.78 | G170: 9.61 | H170: 4.19 | I170: 0.94 | J170: 1.09 | K170: 1.24 | L170: 1.02 | M170: 0.68 | N170: 20.56 | O170: 19.08 | P170: 11.28 | Q170: 12.67 | R170: 2.44 | S170: 6.79 | T170: 14.81 | U170: 13.33 | V170: 0.99 | W170: 0.93 | X170: 0.65 | Y170: 0.31 | Z170: 0 | AA170: 0 | AB170: 1 | AC170: 0 | AD170: 0 | AE170: 0 | AF170: 0.1184736061 | AG170: 0.1185
A171: 76 | B171: 63 | C171: 10 | D171: 0.340 | E171: 22.209 | F171: 67.27 | G171: 29.73 | H171: 6.38 | I171: 1.64 | J171: 5.43 | K171: 3.90 | L171: 2.64 | M171: 2.00 | N171: 29.04 | O171: 23.21 | P171: 22.03 | Q171: 22.50 | R171: 11.89 | S171: 21.02 | T171: 22.56 | U171: 23.23 | V171: 0.91 | W171: 0.42 | X171: 0.22 | Y171: 0.25 | Z171: 0 | AA171: 0 | AB171: 0 | AC171: 0 | AD171: 0 | AE171: 1 | AF171: 0.4094892363 | AG171: 0.4095
A172: 77 | B172: 99 | C172: 26 | D172: 0.181 | E172: 18.406 | F172: 20.89 | G172: 8.57 | H172: 3.97 | I172: 1.39 | J172: 1.22 | K172: 0.83 | L172: 0.85 | M172: 0.86 | N172: 25.61 | O172: 24.92 | P172: 20.52 | Q172: 16.75 | R172: 3.69 | S172: 6.06 | T172: 14.04 | U172: 19.63 | V172: 0.99 | W172: 0.97 | X172: 0.73 | Y172: 0.52 | Z172: 0 | AA172: 0 | AB172: 1 | AC172: 0 | AD172: 0 | AE172: 0 | AF172: 0.1441633412 | AG172: 0.1442
A173: 78 | B173: 98 | C173: 26 | D173: 0.180 | E173: 17.841 | F173: 13.22 | G173: 6.71 | H173: 2.60 | I173: 1.14 | J173: 1.32 | K173: 1.19 | L173: 0.87 | M173: 0.74 | N173: 25.01 | O173: 24.27 | P173: 22.30 | Q173: 18.73 | R173: 2.34 | S173: 4.74 | T173: 9.18 | U173: 16.17 | V173: 1.00 | W173: 0.98 | X173: 0.91 | Y173: 0.50 | Z173: 0 | AA173: 0 | AB173: 0 | AC173: 0 | AD173: 1 | AE173: 0 | AF173: 0.09348847883 | AG173: 0.0935
A174: 79 | B174: 99 | C174: 24 | D174: 0.183 | E174: 17.716 | F174: 19.92 | G174: 11.94 | H174: 4.04 | I174: 0.99 | J174: 1.29 | K174: 1.06 | L174: 0.74 | M174: 0.68 | N174: 24.80 | O174: 23.39 | P174: 18.64 | Q174: 16.88 | R174: 3.52 | S174: 8.44 | T174: 14.27 | U174: 13.94 | V174: 0.99 | W174: 0.93 | X174: 0.64 | Y174: 0.56 | Z174: 0 | AA174: 0 | AB174: 1 | AC174: 0 | AD174: 0 | AE174: 0 | AF174: 0.1419716854 | AG174: 0.142
A175: 80 | B175: 108 | C175: 19 | D175: 0.149 | E175: 15.724 | F175: 37.27 | G175: 13.87 | H175: 4.23 | I175: 1.02 | J175: 2.98 | K175: 1.74 | L175: 0.95 | M175: 0.97 | N175: 20.91 | O175: 18.39 | P175: 14.25 | Q175: 15.31 | R175: 6.59 | S175: 9.81 | T175: 14.97 | U175: 14.41 | V175: 0.95 | W175: 0.85 | X175: 0.31 | Y175: 0.34 | Z175: 0 | AA175: 0 | AB175: 0 | AC175: 0 | AD175: 0 | AE175: 1 | AF175: 0.3151274492 | AG175: 0.3151
A176: 82 | B176: 103 | C176: 18 | D176: 0.190 | E176: 18.887 | F176: 62.69 | G176: 17.40 | H176: 5.31 | I176: 1.48 | J176: 4.12 | K176: 2.17 | L176: 1.34 | M176: 1.37 | N176: 24.07 | O176: 23.22 | P176: 16.85 | Q176: 17.62 | R176: 11.08 | S176: 12.31 | T176: 18.76 | U176: 20.92 | V176: 0.89 | W176: 0.85 | X176: 0.44 | Y176: 0.54 | Z176: 0 | AA176: 0 | AB176: 1 | AC176: 0 | AD176: 0 | AE176: 0 | AF176: 0.4603933263 | AG176: 0.4604
A177: 83 | B177: 95 | C177: 22 | D177: 0.208 | E177: 19.642 | F177: 63.89 | G177: 21.88 | H177: 5.31 | I177: 1.37 | J177: 3.18 | K177: 1.71 | L177: 0.94 | M177: 0.98 | N177: 25.33 | O177: 22.87 | P177: 20.08 | Q177: 18.86 | R177: 11.29 | S177: 15.47 | T177: 18.78 | U177: 19.42 | V177: 0.90 | W177: 0.74 | X177: 0.35 | Y177: 0.24 | Z177: 0 | AA177: 0 | AB177: 0 | AC177: 1 | AD177: 0 | AE177: 0 | AF177: 0.4458120588 | AG177: 0.4458
A178: 84 | B178: 82 | C178: 37.25 | D178: 0.284 | E178: 24.825 | F178: 27.34 | G178: 15.65 | H178: 5.38 | I178: 1.36 | J178: 1.33 | K178: 1.06 | L178: 0.90 | M178: 0.72 | N178: 34.80 | O178: 33.42 | P178: 29.48 | Q178: 28.32 | R178: 4.83 | S178: 11.07 | T178: 19.01 | U178: 19.27 | V178: 0.99 | W178: 0.94 | X178: 0.76 | Y178: 0.73 | Z178: 0 | AA178: 0 | AB178: 0 | AC178: 0 | AD178: 1 | AE178: 0 | AF178: 0.1388673101 | AG178: 0.1389
A179: 85 | B179: 112 | C179: 49.25 | D179: 0.244 | E179: 27.995 | F179: 20.77 | G179: 15.95 | H179: 9.37 | I179: 1.98 | J179: 0.88 | K179: 0.80 | L179: 0.58 | M179: 0.64 | N179: 39.47 | O179: 38.15 | P179: 22.85 | Q179: 28.15 | R179: 3.67 | S179: 11.28 | T179: 33.14 | U179: 27.97 | V179: 1.00 | W179: 0.96 | X179: 0.72 | Y179: 0.11 | Z179: 0 | AA179: 0 | AB179: 1 | AC179: 0 | AD179: 0 | AE179: 0 | AF179: 0.09304343594 | AG179: 0.093
A180: 86 | B180: 104 | C180: 16 | D180: 0.126 | E180: 12.986 | F180: 14.95 | G180: 8.63 | H180: 3.70 | I180: 0.97 | J180: 1.27 | K180: 1.24 | L180: 0.99 | M180: 0.76 | N180: 17.99 | O180: 16.78 | P180: 12.31 | Q180: 13.46 | R180: 2.64 | S180: 6.10 | T180: 13.09 | U180: 13.72 | V180: 0.99 | W180: 0.93 | X180: 0.34 | Y180: 0.19 | Z180: 0 | AA180: 0 | AB180: 1 | AC180: 0 | AD180: 0 | AE180: 0 | AF180: 0.1468992829 | AG180: 0.1469
A181: 88 | B181: 88 | C181: 11 | D181: 0.167 | E181: 14.613 | F181: 36.85 | G181: 10.31 | H181: 3.30 | I181: 1.04 | J181: 3.05 | K181: 1.96 | L181: 1.17 | M181: 1.11 | N181: 19.46 | O181: 18.69 | P181: 14.82 | Q181: 11.76 | R181: 6.51 | S181: 7.29 | T181: 11.68 | U181: 14.74 | V181: 0.94 | W181: 0.92 | X181: 0.62 | Y181: 0.60 | Z181: 0 | AA181: 0 | AB181: 0 | AC181: 1 | AD181: 0 | AE181: 0 | AF181: 0.3346794695 | AG181: 0.3347
A182: 89 | B182: 90 | C182: 20.25 | D182: 0.193 | E182: 18.144 | F182: 21.67 | G182: 12.33 | H182: 3.60 | I182: 1.15 | J182: 1.26 | K182: 1.30 | L182: 0.92 | M182: 0.71 | N182: 25.31 | O182: 23.87 | P182: 20.98 | Q182: 16.41 | R182: 3.83 | S182: 8.72 | T182: 12.71 | U182: 16.20 | V182: 0.99 | W182: 0.93 | X182: 0.80 | Y182: 0.16 | Z182: 0 | AA182: 0 | AB182: 0 | AC182: 0 | AD182: 0 | AE182: 1 | AF182: 0.151318402 | AG182: 0.1513
A183: 90 | B183: 98 | C183: 11 | D183: 0.267 | E183: 26.865 | F183: 14.73 | G183: 8.41 | H183: 2.75 | I183: 0.77 | J183: 1.57 | K183: 1.36 | L183: 0.94 | M183: 1.04 | N183: 15.50 | O183: 14.25 | P183: 9.88 | Q183: 8.96 | R183: 2.60 | S183: 5.95 | T183: 9.73 | U183: 10.95 | V183: 0.99 | W183: 0.91 | X183: 0.17 | Y183: 0.58 | Z183: 0 | AA183: 0 | AB183: 1 | AC183: 0 | AD183: 0 | AE183: 0 | AF183: 0.1680453171 | AG183: 0.168
A184: 91 | B184: 99 | C184: 12 | D184: 0.241 | E184: 24.151 | F184: 13.79 | G184: 7.41 | H184: 2.71 | I184: 0.72 | J184: 1.28 | K184: 1.28 | L184: 0.81 | M184: 0.72 | N184: 14.55 | O184: 13.30 | P184: 10.30 | Q184: 8.11 | R184: 2.44 | S184: 5.24 | T184: 9.58 | U184: 10.23 | V184: 0.99 | W184: 0.92 | X184: 0.37 | Y184: 0.61 | Z184: 0 | AA184: 0 | AB184: 1 | AC184: 0 | AD184: 0 | AE184: 0 | AF184: 0.1675744454 | AG184: 0.1676
A185: 92 | B185: 108 | C185: 14 | D185: 0.098 | E185: 10.305 | F185: 13.91 | G185: 8.01 | H185: 2.51 | I185: 0.74 | J185: 1.26 | K185: 1.11 | L185: 0.95 | M185: 0.70 | N185: 14.03 | O185: 12.63 | P185: 10.48 | Q185: 8.68 | R185: 2.46 | S185: 5.66 | T185: 8.87 | U185: 10.41 | V185: 0.98 | W185: 0.89 | X185: 0.53 | Y185: 0.55 | Z185: 0 | AA185: 0 | AB185: 0 | AC185: 1 | AD185: 0 | AE185: 0 | AF185: 0.1751627884 | AG185: 0.1752
A186: 93 | B186: 94 | C186: 16 | D186: 0.185 | E186: 17.405 | F186: 30.57 | G186: 15.38 | H186: 4.84 | I186: 1.16 | J186: 2.30 | K186: 1.56 | L186: 1.13 | M186: 0.97 | N186: 24.00 | O186: 21.96 | P186: 16.86 | Q186: 16.24 | R186: 5.40 | S186: 10.88 | T186: 17.12 | U186: 16.37 | V186: 0.97 | W186: 0.87 | X186: 0.17 | Y186: 0.12 | Z186: 0 | AA186: 0 | AB186: 1 | AC186: 0 | AD186: 0 | AE186: 0 | AF186: 0.2252057959 | AG186: 0.2252
A187: 94 | B187: 104 | C187: 31.25 | D187: 0.184 | E187: 19.583 | F187: 19.61 | G187: 11.61 | H187: 6.09 | I187: 1.47 | J187: 1.02 | K187: 0.85 | L187: 0.65 | M187: 0.61 | N187: 27.38 | O187: 26.06 | P187: 15.87 | Q187: 18.34 | R187: 3.47 | S187: 8.21 | T187: 21.52 | U187: 20.86 | V187: 0.99 | W187: 0.95 | X187: 0.68 | Y187: 0.48 | Z187: 0 | AA187: 0 | AB187: 0 | AC187: 1 | AD187: 0 | AE187: 0 | AF187: 0.1266109895 | AG187: 0.1266
A188: 95 | B188: 117 | C188: 17 | D188: 0.143 | E188: 16.248 | F188: 17.05 | G188: 9.71 | H188: 3.95 | I188: 0.84 | J188: 1.31 | K188: 1.08 | L188: 0.87 | M188: 0.93 | N188: 22.61 | O188: 21.24 | P188: 14.45 | Q188: 17.12 | R188: 3.01 | S188: 6.87 | T188: 13.98 | U188: 11.88 | V188: 0.99 | W188: 0.95 | X188: 0.25 | Y188: 0.72 | Z188: 0 | AA188: 0 | AB188: 1 | AC188: 0 | AD188: 0 | AE188: 0 | AF188: 0.1332901478 | AG188: 0.1333
A189: 96 | B189: 88 | C189: 26.5 | D189: 0.293 | E189: 24.394 | F189: 10.59 | G189: 6.05 | H189: 3.89 | I189: 1.50 | J189: 1.06 | K189: 0.92 | L189: 0.93 | M189: 0.41 | N189: 34.44 | O189: 34.17 | P189: 30.78 | Q189: 23.18 | R189: 1.87 | S189: 4.28 | T189: 13.74 | U189: 21.17 | V189: 1.00 | W189: 0.99 | X189: 0.89 | Y189: 0.41 | Z189: 0 | AA189: 0 | AB189: 0 | AC189: 1 | AD189: 0 | AE189: 0 | AF189: 0.05434638662 | AG189: 0.0543
A190: 97 | B190: 102 | C190: 25 | D190: 0.168 | E190: 16.605 | F190: 22.31 | G190: 12.29 | H190: 4.56 | I190: 1.19 | J190: 1.09 | K190: 0.84 | L190: 0.74 | M190: 0.72 | N190: 23.06 | O190: 21.61 | P190: 14.14 | Q190: 14.11 | R190: 3.94 | S190: 8.69 | T190: 16.13 | U190: 16.84 | V190: 0.99 | W190: 0.92 | X190: 0.48 | Y190: 0.55 | Z190: 0 | AA190: 0 | AB190: 1 | AC190: 0 | AD190: 0 | AE190: 0 | AF190: 0.171022752 | AG190: 0.171
A191: 99 | B191: 96 | C191: 22 | D191: 0.252 | E191: 24.027 | F191: 18.26 | G191: 9.38 | H191: 4.91 | I191: 1.75 | J191: 1.39 | K191: 1.07 | L191: 0.86 | M191: 0.79 | N191: 30.51 | O191: 30.00 | P191: 25.44 | Q191: 19.06 | R191: 3.23 | S191: 6.63 | T191: 17.38 | U191: 24.72 | V191: 0.99 | W191: 0.98 | X191: 0.73 | Y191: 0.64 | Z191: 0 | AA191: 0 | AB191: 0 | AC191: 1 | AD191: 0 | AE191: 0 | AF191: 0.1058114147 | AG191: 0.1058
A192: 101 | B192: 98 | C192: 10.5 | D192: 0.133 | E192: 13.068 | F192: 15.68 | G192: 7.22 | H192: 3.22 | I192: 0.84 | J192: 1.15 | K192: 1.04 | L192: 1.02 | M192: 0.84 | N192: 18.15 | O192: 17.32 | P192: 13.42 | Q192: 13.51 | R192: 2.77 | S192: 5.10 | T192: 11.39 | U192: 11.87 | V192: 0.99 | W192: 0.96 | X192: 0.53 | Y192: 0.48 | Z192: 0 | AA192: 0 | AB192: 0 | AC192: 0 | AD192: 1 | AE192: 0 | AF192: 0.152802843 | AG192: 0.1528
A193: 102 | B193: 99 | C193: 20 | D193: 0.160 | E193: 15.655 | F193: 17.13 | G193: 8.19 | H193: 2.85 | I193: 0.93 | J193: 1.18 | K193: 1.04 | L193: 0.72 | M193: 0.71 | N193: 21.87 | O193: 21.04 | P193: 18.21 | Q193: 16.30 | R193: 3.03 | S193: 5.79 | T193: 10.08 | U193: 13.19 | V193: 0.99 | W193: 0.96 | X193: 0.83 | Y193: 0.59 | Z193: 0 | AA193: 0 | AB193: 1 | AC193: 0 | AD193: 0 | AE193: 0 | AF193: 0.1384617537 | AG193: 0.1385
A194: 103 | B194: 100 | C194: 21 | D194: 0.213 | E194: 21.432 | F194: 76.33 | G194: 20.10 | H194: 5.03 | I194: 1.68 | J194: 4.51 | K194: 2.65 | L194: 1.52 | M194: 1.29 | N194: 27.11 | O194: 26.66 | P194: 23.65 | Q194: 19.27 | R194: 13.49 | S194: 14.22 | T194: 17.79 | U194: 23.74 | V194: 0.87 | W194: 0.85 | X194: 0.66 | Y194: 0.58 | Z194: 0 | AA194: 0 | AB194: 0 | AC194: 0 | AD194: 0 | AE194: 1 | AF194: 0.4977902254 | AG194: 0.4978
A195: 104 | B195: 109 | C195: 25.25 | D195: 0.189 | E195: 20.440 | F195: 25.55 | G195: 16.22 | H195: 5.67 | I195: 1.41 | J195: 1.14 | K195: 0.97 | L195: 0.71 | M195: 0.73 | N195: 28.36 | O195: 25.78 | P195: 18.63 | Q195: 19.50 | R195: 4.52 | S195: 11.47 | T195: 20.05 | U195: 20.00 | V195: 0.99 | W195: 0.90 | X195: 0.37 | Y195: 0.22 | Z195: 0 | AA195: 0 | AB195: 0 | AC195: 0 | AD195: 1 | AE195: 0 | AF195: =R195/N195 -> 0.1592467371 | AG195: =ROUND(AF195,4) -> 0.1592
A196: 105 | B196: 112 | C196: 12 | D196: 0.182 | E196: 19.036 | F196: 25.05 | G196: 9.96 | H196: 3.07 | I196: 1.07 | J196: 1.68 | K196: 1.53 | L196: 1.18 | M196: 1.11 | N196: 26.48 | O196: 25.61 | P196: 22.60 | Q196: 15.50 | R196: 4.43 | S196: 7.04 | T196: 10.85 | U196: 15.16 | V196: 0.99 | W196: 0.96 | X196: 0.88 | Y196: 0.21 | Z196: 0 | AA196: 0 | AB196: 0 | AC196: 0 | AD196: 0 | AE196: 1 | AF196: 0.1672017988 | AG196: 0.1672
A197: 107 | B197: 101 | C197: 14.25 | D197: 0.159 | E197: 15.711 | F197: 18.13 | G197: 7.81 | H197: 3.05 | I197: 0.78 | J197: 1.26 | K197: 1.07 | L197: 0.83 | M197: 1.17 | N197: 21.68 | O197: 20.31 | P197: 14.50 | Q197: 15.84 | R197: 3.20 | S197: 5.52 | T197: 10.77 | U197: 11.10 | V197: 0.99 | W197: 0.96 | X197: 0.67 | Y197: 0.71 | Z197: 0 | AA197: 0 | AB197: 0 | AC197: 0 | AD197: 0 | AE197: 1 | AF197: 0.1478165057 | AG197: 0.1478
A198: 108 | B198: 99 | C198: 22 | D198: 0.211 | E198: 20.299 | F198: 23.41 | G198: 10.04 | H198: 3.85 | I198: 1.21 | J198: 1.59 | K198: 1.19 | L198: 0.85 | M198: 0.90 | N198: 28.30 | O198: 27.51 | P198: 25.05 | Q198: 23.00 | R198: 4.14 | S198: 7.10 | T198: 13.61 | U198: 17.15 | V198: 0.99 | W198: 0.97 | X198: 0.84 | Y198: 0.67 | Z198: 0 | AA198: 0 | AB198: 0 | AC198: 0 | AD198: 1 | AE198: 0 | AF198: 0.1462128404 | AG198: 0.1462
A199: 109 | B199: 104 | C199: 30 | D199: 0.204 | E199: 21.003 | F199: 22.54 | G199: 11.22 | H199: 3.90 | I199: 1.42 | J199: 1.21 | K199: 0.94 | L199: 0.94 | M199: 0.73 | N199: 29.35 | O199: 28.30 | P199: 24.12 | Q199: 15.71 | R199: 3.99 | S199: 7.93 | T199: 13.78 | U199: 20.06 | V199: 0.99 | W199: 0.96 | X199: 0.82 | Y199: 0.62 | Z199: 0 | AA199: 0 | AB199: 0 | AC199: 0 | AD199: 1 | AE199: 0 | AF199: 0.1357810447 | AG199: 0.1358
A200: 111 | B200: 104 | C200: 17.25 | D200: 0.150 | E200: 15.748 | F200: 42.58 | G200: 13.27 | H200: 3.40 | I200: 1.20 | J200: 2.93 | K200: 1.67 | L200: 1.06 | M200: 0.64 | N200: 20.80 | O200: 19.55 | P200: 17.61 | Q200: 12.64 | R200: 7.53 | S200: 9.38 | T200: 12.01 | U200: 16.96 | V200: 0.93 | W200: 0.88 | X200: 0.73 | Y200: 0.67 | Z200: 0 | AA200: 0 | AB200: 1 | AC200: 0 | AD200: 0 | AE200: 0 | AF200: 0.3617789364 | AG200: 0.3618
... 2045 more rows

Sheet Sys All
A1: Subject ID | B1: Median | C1: IQR | D1: Coef of variation | E1: Standard deviation | F1: Standard deviation of rate of change (mmHg/min) | J1: Coefficient of variation of absolute rate of change | N1: Poincare principal axis 1 (mm Hg) | R1: Poincare principal axis 2 (mm Hg) | V1: Eccentricity of Poincare plot ellipse | Z1: Outcomes | AB1: Surgery Type
B2: (mm Hg) | C2: (mm Hg) | E2: (mmHg) | F2: 15 sec | G2: 1 min | H2: 5 min | I2: 20 min | J2: 15 sec | K2: 1 min | L2: 5 min | M2: 20 min | N2: 15 sec | O2: 1 min | P2: 5 min | Q2: 20 min | R2: 15 sec | S2: 1 min | T2: 5 min | U2: 20 min | V2: 15 sec | W2: 1 min | X2: 5 min | Y2: 20 min | Z2: 30-day Mortality | AA2: Renal Failure | AB2: CABG Only | AC2: Valve Only | AD2: CABG and Valve | AE2: Other
A3: 1 | B3: 104 | C3: 28 | D3: 0.233 | E3: 24.575 | F3: 22.94 | G3: 13.75 | H3: 5.10 | I3: 1.60 | J3: 1.34 | K3: 1.21 | L3: 0.94 | M3: 0.81 | N3: 32.59 | O3: 31.41 | P3: 26.59 | Q3: 23.65 | R3: 4.06 | S3: 9.72 | T3: 18.03 | U3: 22.70 | V3: 0.99 | W3: 0.95 | X3: 0.73 | Y3: 0.28 | Z3: 0 | AA3: 0 | AB3: 0 | AC3: 1 | AD3: 0 | AE3: 0
A4: 2 | B4: 104 | C4: 18 | D4: 0.171 | E4: 17.872 | F4: 23.66 | G4: 10.16 | H4: 3.88 | I4: 1.00 | J4: 1.67 | K4: 1.08 | L4: 0.99 | M4: 0.74 | N4: 21.77 | O4: 20.92 | P4: 16.67 | Q4: 16.70 | R4: 4.18 | S4: 7.19 | T4: 13.72 | U4: 14.12 | V4: 0.98 | W4: 0.94 | X4: 0.57 | Y4: 0.53 | Z4: 0 | AA4: 0 | AB4: 1 | AC4: 0 | AD4: 0 | AE4: 0
A5: 3 | B5: 101 | C5: 18 | D5: 0.184 | E5: 18.600 | F5: 43.87 | G5: 14.85 | H5: 4.78 | I5: 1.19 | J5: 3.96 | K5: 2.08 | L5: 1.11 | M5: 1.03 | N5: 25.15 | O5: 24.15 | P5: 20.31 | Q5: 19.86 | R5: 7.75 | S5: 10.50 | T5: 16.91 | U5: 16.90 | V5: 0.95 | W5: 0.90 | X5: 0.55 | Y5: 0.53 | Z5: 0 | AA5: 0 | AB5: 1 | AC5: 0 | AD5: 0 | AE5: 0
A6: 4 | B6: 111 | C6: 19 | D6: 0.221 | E6: 23.743 | F6: 40.67 | G6: 10.28 | H6: 3.33 | I6: 1.28 | J6: 2.68 | K6: 1.44 | L6: 1.08 | M6: 0.89 | N6: 27.57 | O6: 26.91 | P6: 25.91 | Q6: 23.04 | R6: 7.19 | S6: 7.27 | T6: 11.78 | U6: 18.05 | V6: 0.97 | W6: 0.96 | X6: 0.89 | Y6: 0.62 | Z6: 0 | AA6: 0 | AB6: 0 | AC6: 1 | AD6: 0 | AE6: 0
A7: 5 | B7: 109 | C7: 20 | D7: 0.194 | E7: 21.157 | F7: 34.68 | G7: 13.96 | H7: 4.70 | I7: 1.33 | J7: 2.15 | K7: 1.40 | L7: 0.93 | M7: 0.96 | N7: 29.30 | O7: 28.20 | P7: 24.26 | Q7: 23.04 | R7: 6.13 | S7: 9.87 | T7: 16.62 | U7: 18.86 | V7: 0.98 | W7: 0.94 | X7: 0.73 | Y7: 0.57 | Z7: 0 | AA7: 0 | AB7: 1 | AC7: 0 | AD7: 0 | AE7: 0
A8: 6 | B8: 109 | C8: 30.75 | D8: 0.208 | E8: 22.792 | F8: 21.12 | G8: 12.83 | H8: 4.65 | I8: 1.25 | J8: 1.21 | K8: 1.10 | L8: 0.83 | M8: 0.85 | N8: 31.89 | O8: 30.55 | P8: 27.21 | Q8: 25.98 | R8: 3.73 | S8: 9.08 | T8: 16.45 | U8: 17.73 | V8: 0.99 | W8: 0.95 | X8: 0.80 | Y8: 0.73 | Z8: 0 | AA8: 0 | AB8: 0 | AC8: 0 | AD8: 1 | AE8: 0
A9: 7 | B9: 109 | C9: 16 | D9: 0.190 | E9: 20.389 | F9: 32.29 | G9: 10.43 | H9: 3.84 | I9: 1.11 | J9: 3.72 | K9: 1.77 | L9: 1.04 | M9: 0.89 | N9: 23.80 | O9: 23.18 | P9: 20.06 | Q9: 18.46 | R9: 5.71 | S9: 7.38 | T9: 13.57 | U9: 15.63 | V9: 0.97 | W9: 0.95 | X9: 0.74 | Y9: 0.53 | Z9: 0 | AA9: 0 | AB9: 1 | AC9: 0 | AD9: 0 | AE9: 0
A10: 8 | B10: 107 | C10: 26 | D10: 0.204 | E10: 21.463 | F10: 39.65 | G10: 15.96 | H10: 4.96 | I10: 1.51 | J10: 2.36 | K10: 1.62 | L10: 0.99 | M10: 0.78 | N10: 29.54 | O10: 28.18 | P10: 24.79 | Q10: 22.17 | R10: 7.01 | S10: 11.29 | T10: 17.55 | U10: 21.32 | V10: 0.97 | W10: 0.92 | X10: 0.71 | Y10: 0.27 | Z10: 0 | AA10: 0 | AB10: 0 | AC10: 0 | AD10: 0 | AE10: 1
A11: 9 | B11: 109.5 | C11: 25 | D11: 0.214 | E11: 23.314 | F11: 35.02 | G11: 15.01 | H11: 4.89 | I11: 1.48 | J11: 2.70 | K11: 1.81 | L11: 0.91 | M11: 0.75 | N11: 28.46 | O11: 27.90 | P11: 24.24 | Q11: 20.28 | R11: 6.19 | S11: 10.61 | T11: 17.29 | U11: 20.87 | V11: 0.98 | W11: 0.92 | X11: 0.70 | Y11: 0.24 | Z11: 0 | AA11: 0 | AB11: 0 | AC11: 0 | AD11: 0 | AE11: 1
A12: 10 | B12: 92 | C12: 19 | D12: 0.181 | E12: 17.180 | F12: 41.64 | G12: 12.73 | H12: 3.99 | I12: 1.20 | J12: 3.16 | K12: 1.64 | L12: 1.01 | M12: 0.92 | N12: 23.16 | O12: 22.46 | P12: 19.07 | Q12: 17.11 | R12: 7.36 | S12: 9.00 | T12: 14.12 | U12: 16.92 | V12: 0.95 | W12: 0.92 | X12: 0.67 | Y12: 0.15 | Z12: 0 | AA12: 0 | AB12: 0 | AC12: 0 | AD12: 1 | AE12: 0
A13: 11 | B13: 106 | C13: 28.75 | D13: 0.238 | E13: 25.453 | F13: 50.87 | G13: 16.16 | H13: 5.37 | I13: 1.56 | J13: 2.88 | K13: 1.60 | L13: 1.04 | M13: 0.85 | N13: 32.61 | O13: 31.63 | P13: 27.28 | Q13: 26.05 | R13: 8.99 | S13: 11.42 | T13: 18.98 | U13: 22.00 | V13: 0.96 | W13: 0.93 | X13: 0.72 | Y13: 0.54 | Z13: 0 | AA13: 0 | AB13: 0 | AC13: 0 | AD13: 1 | AE13: 0
A14: 12 | B14: 99 | C14: 35 | D14: 0.321 | E14: 32.369 | F14: 29.80 | G14: 19.79 | H14: 6.39 | I14: 1.82 | J14: 1.56 | K14: 1.34 | L14: 0.90 | M14: 0.91 | N14: 38.72 | O14: 36.46 | P14: 31.42 | Q14: 27.64 | R14: 5.27 | S14: 13.99 | T14: 22.57 | U14: 25.69 | V14: 0.99 | W14: 0.92 | X14: 0.70 | Y14: 0.37 | Z14: 0 | AA14: 0 | AB14: 1 | AC14: 0 | AD14: 0 | AE14: 0
A15: 13 | B15: 92 | C15: 31.75 | D15: 0.257 | E15: 23.200 | F15: 40.22 | G15: 14.80 | H15: 3.51 | I15: 1.33 | J15: 2.79 | K15: 2.18 | L15: 1.32 | M15: 0.98 | N15: 31.88 | O15: 30.77 | P15: 29.24 | Q15: 25.12 | R15: 7.11 | S15: 10.47 | T15: 12.40 | U15: 18.78 | V15: 0.97 | W15: 0.94 | X15: 0.91 | Y15: 0.66 | Z15: 0 | AA15: 0 | AB15: 0 | AC15: 0 | AD15: 0 | AE15: 1
A16: 14 | B16: 109 | C16: 24 | D16: 0.194 | E16: 20.930 | F16: 41.08 | G16: 14.09 | H16: 4.70 | I16: 1.24 | J16: 3.69 | K16: 1.80 | L16: 0.98 | M16: 0.73 | N16: 26.26 | O16: 25.35 | P16: 21.55 | Q16: 20.73 | R16: 7.26 | S16: 9.96 | T16: 16.62 | U16: 17.49 | V16: 0.96 | W16: 0.92 | X16: 0.64 | Y16: 0.54 | Z16: 0 | AA16: 0 | AB16: 1 | AC16: 0 | AD16: 0 | AE16: 0
A17: 15 | B17: 104 | C17: 18 | D17: 0.158 | E17: 16.778 | F17: 15.05 | G17: 9.54 | H17: 3.77 | I17: 1.01 | J17: 1.44 | K17: 1.25 | L17: 0.81 | M17: 0.78 | N17: 19.20 | O17: 18.15 | P17: 13.89 | Q17: 12.58 | R17: 2.66 | S17: 6.74 | T17: 13.33 | U17: 14.35 | V17: 0.99 | W17: 0.93 | X17: 0.28 | Y17: 0.48 | Z17: 0 | AA17: 0 | AB17: 1 | AC17: 0 | AD17: 0 | AE17: 0
A18: 16 | B18: 109 | C18: 23 | D18: 0.216 | E18: 23.004 | F18: 39.52 | G18: 14.19 | H18: 5.10 | I18: 1.39 | J18: 2.63 | K18: 1.44 | L18: 0.94 | M18: 0.95 | N18: 30.04 | O18: 29.16 | P18: 25.07 | Q18: 23.34 | R18: 6.99 | S18: 10.03 | T18: 18.01 | U18: 19.65 | V18: 0.97 | W18: 0.94 | X18: 0.70 | Y18: 0.54 | Z18: 0 | AA18: 0 | AB18: 0 | AC18: 1 | AD18: 0 | AE18: 0
A19: 17 | B19: 99 | C19: 26 | D19: 0.245 | E19: 25.387 | F19: 24.37 | G19: 9.28 | H19: 3.39 | I19: 1.30 | J19: 2.28 | K19: 1.39 | L19: 0.91 | M19: 0.88 | N19: 32.02 | O19: 31.47 | P19: 28.73 | Q19: 23.81 | R19: 4.31 | S19: 6.56 | T19: 11.97 | U19: 18.38 | V19: 0.99 | W19: 0.98 | X19: 0.91 | Y19: 0.64 | Z19: 0 | AA19: 0 | AB19: 0 | AC19: 1 | AD19: 0 | AE19: 0
A20: 18 | B20: 103 | C20: 29 | D20: 0.195 | E20: 21.147 | F20: 79.21 | G20: 20.53 | H20: 5.20 | I20: 1.45 | J20: 4.16 | K20: 2.57 | L20: 1.31 | M20: 1.13 | N20: 26.31 | O20: 26.06 | P20: 23.56 | Q20: 22.39 | R20: 14.00 | S20: 14.52 | T20: 18.40 | U20: 20.51 | V20: 0.85 | W20: 0.83 | X20: 0.62 | Y20: 0.40 | Z20: 0 | AA20: 0 | AB20: 0 | AC20: 0 | AD20: 0 | AE20: 1
A21: 19 | B21: 98 | C21: 23 | D21: 0.222 | E21: 22.094 | F21: 34.24 | G21: 16.58 | H21: 5.21 | I21: 1.42 | J21: 2.73 | K21: 2.08 | L21: 1.09 | M21: 1.01 | N21: 29.05 | O21: 27.29 | P21: 22.97 | Q21: 22.05 | R21: 6.05 | S21: 11.73 | T21: 18.43 | U21: 20.15 | V21: 0.98 | W21: 0.90 | X21: 0.60 | Y21: 0.41 | Z21: 0 | AA21: 0 | AB21: 0 | AC21: 0 | AD21: 1 | AE21: 0
A22: 20 | B22: 107 | C22: 33 | D22: 0.233 | E22: 25.512 | F22: 15.68 | G22: 10.49 | H22: 4.85 | I22: 1.49 | J22: 1.16 | K22: 0.98 | L22: 0.92 | M22: 0.76 | N22: 35.98 | O22: 35.35 | P22: 31.93 | Q22: 28.92 | R22: 2.77 | S22: 7.41 | T22: 17.14 | U22: 21.12 | V22: 1.00 | W22: 0.98 | X22: 0.84 | Y22: 0.68 | Z22: 0 | AA22: 0 | AB22: 1 | AC22: 0 | AD22: 0 | AE22: 0
A23: 21 | B23: 109 | C23: 26.5 | D23: 0.192 | E23: 21.041 | F23: 48.18 | G23: 15.00 | H23: 5.23 | I23: 1.48 | J23: 3.19 | K23: 1.56 | L23: 0.90 | M23: 0.82 | N23: 28.50 | O23: 27.43 | P23: 22.79 | Q23: 21.28 | R23: 8.52 | S23: 10.61 | T23: 18.49 | U23: 20.95 | V23: 0.95 | W23: 0.92 | X23: 0.58 | Y23: 0.17 | Z23: 0 | AA23: 0 | AB23: 1 | AC23: 0 | AD23: 0 | AE23: 0
A24: 22 | B24: 102 | C24: 27 | D24: 0.289 | E24: 29.480 | F24: 46.20 | G24: 16.32 | H24: 4.42 | I24: 1.52 | J24: 3.21 | K24: 2.01 | L24: 0.96 | M24: 0.77 | N24: 40.38 | O24: 37.90 | P24: 35.09 | Q24: 32.69 | R24: 8.17 | S24: 11.54 | T24: 15.63 | U24: 21.51 | V24: 0.98 | W24: 0.95 | X24: 0.90 | Y24: 0.75 | Z24: 0 | AA24: 0 | AB24: 0 | AC24: 0 | AD24: 0 | AE24: 1
A25: 23 | B25: 107 | C25: 51.25 | D25: 0.320 | E25: 35.496 | F25: 65.26 | G25: 21.07 | H25: 6.01 | I25: 1.90 | J25: 3.10 | K25: 1.74 | L25: 1.02 | M25: 0.99 | N25: 48.82 | O25: 47.75 | P25: 45.22 | Q25: 43.73 | R25: 11.54 | S25: 14.90 | T25: 21.23 | U25: 26.85 | V25: 0.97 | W25: 0.95 | X25: 0.88 | Y25: 0.79 | Z25: 0 | AA25: 1 | AB25: 0 | AC25: 1 | AD25: 0 | AE25: 0
A26: 24 | B26: 114 | C26: 23 | D26: 0.179 | E26: 20.074 | F26: 19.17 | G26: 9.62 | H26: 4.11 | I26: 1.28 | J26: 1.21 | K26: 1.12 | L26: 1.05 | M26: 0.96 | N26: 28.16 | O26: 27.44 | P26: 24.21 | Q26: 21.51 | R26: 3.39 | S26: 6.80 | T26: 14.54 | U26: 18.15 | V26: 0.99 | W26: 0.97 | X26: 0.80 | Y26: 0.54 | Z26: 0 | AA26: 0 | AB26: 0 | AC26: 1 | AD26: 0 | AE26: 0
A27: 25 | B27: 109 | C27: 28 | D27: 0.244 | E27: 26.734 | F27: 17.37 | G27: 10.92 | H27: 4.72 | I27: 1.46 | J27: 1.33 | K27: 1.15 | L27: 0.86 | M27: 0.81 | N27: 37.63 | O27: 36.80 | P27: 32.94 | Q27: 30.56 | R27: 3.07 | S27: 7.72 | T27: 16.70 | U27: 20.63 | V27: 1.00 | W27: 0.98 | X27: 0.86 | Y27: 0.74 | Z27: 0 | AA27: 0 | AB27: 0 | AC27: 0 | AD27: 1 | AE27: 0
A28: 26 | B28: 108 | C28: 31 | D28: 0.234 | E28: 25.372 | F28: 14.19 | G28: 7.07 | H28: 3.39 | I28: 1.09 | J28: 1.36 | K28: 1.23 | L28: 1.05 | M28: 0.73 | N28: 35.78 | O28: 35.46 | P28: 33.31 | Q28: 32.53 | R28: 2.51 | S28: 5.00 | T28: 11.98 | U28: 15.37 | V28: 1.00 | W28: 0.99 | X28: 0.93 | Y28: 0.88 | Z28: 0 | AA28: 0 | AB28: 0 | AC28: 0 | AD28: 0 | AE28: 1
A29: 27 | B29: 104 | C29: 28 | D29: 0.210 | E29: 21.925 | F29: 41.27 | G29: 18.85 | H29: 5.45 | I29: 1.48 | J29: 3.00 | K29: 2.18 | L29: 1.14 | M29: 0.93 | N29: 30.10 | O29: 27.84 | P29: 23.52 | Q29: 22.67 | R29: 7.30 | S29: 13.33 | T29: 19.26 | U29: 20.89 | V29: 0.97 | W29: 0.88 | X29: 0.57 | Y29: 0.39 | Z29: 0 | AA29: 0 | AB29: 0 | AC29: 0 | AD29: 1 | AE29: 0
A30: 28 | B30: 110 | C30: 36 | D30: 0.249 | E30: 28.724 | F30: 23.32 | G30: 14.04 | H30: 4.86 | I30: 1.54 | J30: 1.36 | K30: 1.23 | L30: 0.98 | M30: 0.80 | N30: 36.36 | O30: 35.22 | P30: 32.17 | Q30: 30.06 | R30: 4.12 | S30: 9.93 | T30: 17.19 | U30: 21.79 | V30: 0.99 | W30: 0.96 | X30: 0.85 | Y30: 0.69 | Z30: 0 | AA30: 0 | AB30: 1 | AC30: 0 | AD30: 0 | AE30: 0
A31: 29 | B31: 111 | C31: 28 | D31: 0.227 | E31: 25.009 | F31: 15.72 | G31: 8.36 | H31: 3.61 | I31: 1.37 | J31: 1.24 | K31: 1.13 | L31: 0.83 | M31: 1.01 | N31: 29.51 | O31: 29.04 | P31: 26.85 | Q31: 23.49 | R31: 2.78 | S31: 5.91 | T31: 12.76 | U31: 19.43 | V31: 1.00 | W31: 0.98 | X31: 0.88 | Y31: 0.56 | Z31: 0 | AA31: 0 | AB31: 0 | AC31: 1 | AD31: 0 | AE31: 0
A32: 30 | B32: 115 | C32: 29.75 | D32: 0.198 | E32: 23.180 | F32: 14.24 | G32: 7.34 | H32: 3.06 | I32: 1.10 | J32: 1.54 | K32: 1.28 | L32: 1.05 | M32: 0.66 | N32: 32.69 | O32: 32.39 | P32: 31.02 | Q32: 29.43 | R32: 2.52 | S32: 5.19 | T32: 10.80 | U32: 15.51 | V32: 1.00 | W32: 0.99 | X32: 0.94 | Y32: 0.85 | Z32: 0 | AA32: 0 | AB32: 1 | AC32: 0 | AD32: 0 | AE32: 0
A33: 31 | B33: 102 | C33: 23 | D33: 0.189 | E33: 19.369 | F33: 24.10 | G33: 14.18 | H33: 4.34 | I33: 1.19 | J33: 1.52 | K33: 1.29 | L33: 0.82 | M33: 0.81 | N33: 27.00 | O33: 25.25 | P33: 21.93 | Q33: 20.95 | R33: 4.26 | S33: 10.03 | T33: 15.34 | U33: 16.84 | V33: 0.99 | W33: 0.92 | X33: 0.71 | Y33: 0.59 | Z33: 0 | AA33: 0 | AB33: 1 | AC33: 0 | AD33: 0 | AE33: 0
A34: 32 | B34: 105 | C34: 22 | D34: 0.250 | E34: 25.236 | F34: 37.52 | G34: 12.62 | H34: 3.88 | I34: 1.20 | J34: 2.62 | K34: 1.53 | L34: 1.01 | M34: 0.96 | N34: 33.16 | O34: 32.55 | P34: 30.53 | Q34: 29.19 | R34: 6.63 | S34: 8.92 | T34: 13.73 | U34: 16.93 | V34: 0.98 | W34: 0.96 | X34: 0.89 | Y34: 0.81 | Z34: 0 | AA34: 0 | AB34: 0 | AC34: 1 | AD34: 0 | AE34: 0
A35: 33 | B35: 98 | C35: 17 | D35: 0.163 | E35: 16.112 | F35: 28.29 | G35: 9.68 | H35: 3.37 | I35: 0.96 | J35: 3.66 | K35: 1.96 | L35: 1.12 | M35: 0.90 | N35: 20.28 | O35: 19.74 | P35: 17.02 | Q35: 15.89 | R35: 5.00 | S35: 6.85 | T35: 11.90 | U35: 13.64 | V35: 0.97 | W35: 0.94 | X35: 0.71 | Y35: 0.51 | Z35: 0 | AA35: 0 | AB35: 1 | AC35: 0 | AD35: 0 | AE35: 0
A36: 34 | B36: 106 | C36: 22 | D36: 0.191 | E36: 20.498 | F36: 30.48 | G36: 12.03 | H36: 4.51 | I36: 1.24 | J36: 2.12 | K36: 1.28 | L36: 0.91 | M36: 0.95 | N36: 28.40 | O36: 27.38 | P36: 23.25 | Q36: 22.12 | R36: 5.39 | S36: 8.51 | T36: 15.94 | U36: 17.52 | V36: 0.98 | W36: 0.95 | X36: 0.73 | Y36: 0.61 | Z36: 0 | AA36: 0 | AB36: 1 | AC36: 0 | AD36: 0 | AE36: 0
A37: 35 | B37: 94 | C37: 27 | D37: 0.268 | E37: 26.028 | F37: 22.57 | G37: 10.53 | H37: 4.37 | I37: 1.60 | J37: 1.37 | K37: 1.03 | L37: 0.83 | M37: 0.82 | N37: 34.25 | O37: 33.38 | P37: 29.63 | Q37: 25.54 | R37: 3.99 | S37: 7.45 | T37: 15.46 | U37: 22.62 | V37: 0.99 | W37: 0.97 | X37: 0.85 | Y37: 0.46 | Z37: 0 | AA37: 0 | AB37: 0 | AC37: 1 | AD37: 0 | AE37: 0
A38: 36 | B38: 97.5 | C38: 28 | D38: 0.216 | E38: 21.776 | F38: 60.97 | G38: 16.23 | H38: 4.21 | I38: 1.14 | J38: 5.06 | K38: 2.81 | L38: 1.58 | M38: 1.30 | N38: 28.85 | O38: 28.61 | P38: 27.10 | Q38: 26.22 | R38: 10.78 | S38: 11.48 | T38: 14.89 | U38: 16.09 | V38: 0.93 | W38: 0.92 | X38: 0.84 | Y38: 0.79 | Z38: 0 | AA38: 0 | AB38: 0 | AC38: 0 | AD38: 1 | AE38: 0
A39: 38 | B39: 105 | C39: 52.75 | D39: 0.334 | E39: 37.413 | F39: 49.71 | G39: 22.83 | H39: 9.91 | I39: 2.50 | J39: 2.28 | K39: 1.40 | L39: 0.88 | M39: 0.83 | N39: 52.18 | O39: 50.43 | P39: 40.28 | Q39: 39.68 | R39: 8.79 | S39: 16.15 | T39: 35.05 | U39: 35.40 | V39: 0.99 | W39: 0.95 | X39: 0.49 | Y39: 0.45 | Z39: 0 | AA39: 0 | AB39: 0 | AC39: 0 | AD39: 1 | AE39: 0
A40: 39 | B40: 113 | C40: 38 | D40: 0.261 | E40: 29.085 | F40: 36.52 | G40: 21.11 | H40: 7.36 | I40: 1.76 | J40: 2.03 | K40: 1.37 | L40: 0.87 | M40: 0.88 | N40: 39.31 | O40: 37.35 | P40: 30.70 | Q40: 31.20 | R40: 6.46 | S40: 14.93 | T40: 26.03 | U40: 24.95 | V40: 0.99 | W40: 0.92 | X40: 0.53 | Y40: 0.60 | Z40: 0 | AA40: 0 | AB40: 1 | AC40: 0 | AD40: 0 | AE40: 0
A41: 40 | B41: 108 | C41: 39 | D41: 0.233 | E41: 25.679 | F41: 21.09 | G41: 12.07 | H41: 5.75 | I41: 1.60 | J41: 1.16 | K41: 1.07 | L41: 0.94 | M41: 0.82 | N41: 36.14 | O41: 35.33 | P41: 29.95 | Q41: 28.80 | R41: 3.73 | S41: 8.53 | T41: 20.34 | U41: 22.63 | V41: 0.99 | W41: 0.97 | X41: 0.73 | Y41: 0.62 | Z41: 0 | AA41: 0 | AB41: 0 | AC41: 1 | AD41: 0 | AE41: 0
A42: 41 | B42: 107 | C42: 44 | D42: 0.255 | E42: 27.822 | F42: 20.35 | G42: 11.26 | H42: 4.82 | I42: 1.45 | J42: 1.19 | K42: 0.95 | L42: 0.85 | M42: 0.90 | N42: 39.19 | O42: 38.63 | P42: 35.87 | Q42: 35.35 | R42: 3.60 | S42: 7.96 | T42: 17.04 | U42: 20.44 | V42: 1.00 | W42: 0.98 | X42: 0.88 | Y42: 0.82 | Z42: 0 | AA42: 0 | AB42: 0 | AC42: 1 | AD42: 0 | AE42: 0
A43: 42 | B43: 107 | C43: 23.75 | D43: 0.191 | E43: 20.660 | F43: 22.93 | G43: 12.67 | H43: 4.09 | I43: 1.12 | J43: 1.59 | K43: 1.22 | L43: 0.85 | M43: 0.69 | N43: 28.87 | O43: 27.59 | P43: 24.72 | Q43: 22.57 | R43: 4.05 | S43: 8.96 | T43: 14.45 | U43: 15.79 | V43: 0.99 | W43: 0.95 | X43: 0.81 | Y43: 0.71 | Z43: 0 | AA43: 0 | AB43: 1 | AC43: 0 | AD43: 0 | AE43: 0
A44: 43 | B44: 101 | C44: 22 | D44: 0.238 | E44: 24.441 | F44: 41.68 | G44: 17.49 | H44: 4.42 | I44: 1.49 | J44: 3.23 | K44: 2.27 | L44: 1.33 | M44: 1.02 | N44: 32.24 | O44: 30.37 | P44: 27.41 | Q44: 23.89 | R44: 7.37 | S44: 12.36 | T44: 15.62 | U44: 21.08 | V44: 0.97 | W44: 0.91 | X44: 0.82 | Y44: 0.47 | Z44: 0 | AA44: 0 | AB44: 0 | AC44: 0 | AD44: 1 | AE44: 0
A45: 44 | B45: 124 | C45: 51 | D45: 0.263 | E45: 31.080 | F45: 24.73 | G45: 13.83 | H45: 5.00 | I45: 1.51 | J45: 1.55 | K45: 1.27 | L45: 1.01 | M45: 0.90 | N45: 42.88 | O45: 42.00 | P45: 39.42 | Q45: 38.32 | R45: 4.37 | S45: 9.78 | T45: 17.67 | U45: 21.32 | V45: 0.99 | W45: 0.97 | X45: 0.89 | Y45: 0.83 | Z45: 0 | AA45: 0 | AB45: 0 | AC45: 0 | AD45: 1 | AE45: 0
A46: 45 | B46: 106 | C46: 23 | D46: 0.213 | E46: 22.478 | F46: 19.42 | G46: 11.16 | H46: 4.11 | I46: 1.29 | J46: 1.21 | K46: 1.07 | L46: 0.72 | M46: 0.74 | N46: 31.59 | O46: 30.75 | P46: 27.97 | Q46: 26.31 | R46: 3.43 | S46: 7.89 | T46: 14.54 | U46: 18.19 | V46: 0.99 | W46: 0.97 | X46: 0.85 | Y46: 0.72 | Z46: 0 | AA46: 0 | AB46: 0 | AC46: 1 | AD46: 0 | AE46: 0
A47: 46 | B47: 118 | C47: 20 | D47: 0.235 | E47: 26.931 | F47: 27.97 | G47: 12.79 | H47: 4.12 | I47: 1.39 | J47: 2.28 | K47: 1.70 | L47: 1.07 | M47: 1.07 | N47: 29.85 | O47: 28.89 | P47: 26.58 | Q47: 22.55 | R47: 4.95 | S47: 9.04 | T47: 14.58 | U47: 19.62 | V47: 0.99 | W47: 0.95 | X47: 0.84 | Y47: 0.49 | Z47: 0 | AA47: 0 | AB47: 1 | AC47: 0 | AD47: 0 | AE47: 0
A48: 47 | B48: 110 | C48: 24 | D48: 0.201 | E48: 22.249 | F48: 21.47 | G48: 10.23 | H48: 3.70 | I48: 1.25 | J48: 1.39 | K48: 1.17 | L48: 0.99 | M48: 0.78 | N48: 29.16 | O48: 28.42 | P48: 25.91 | Q48: 22.79 | R48: 3.80 | S48: 7.23 | T48: 13.08 | U48: 17.61 | V48: 0.99 | W48: 0.97 | X48: 0.86 | Y48: 0.63 | Z48: 0 | AA48: 0 | AB48: 1 | AC48: 0 | AD48: 0 | AE48: 0
A49: 48 | B49: 105 | C49: 22 | D49: 0.200 | E49: 21.296 | F49: 35.68 | G49: 11.54 | H49: 3.63 | I49: 1.20 | J49: 3.48 | K49: 1.85 | L49: 1.04 | M49: 0.86 | N49: 26.87 | O49: 26.17 | P49: 23.53 | Q49: 20.93 | R49: 6.31 | S49: 8.16 | T49: 12.82 | U49: 16.98 | V49: 0.97 | W49: 0.95 | X49: 0.84 | Y49: 0.58 | Z49: 0 | AA49: 0 | AB49: 1 | AC49: 0 | AD49: 0 | AE49: 0
A50: 49 | B50: 107 | C50: 27 | D50: 0.205 | E50: 21.797 | F50: 17.61 | G50: 9.55 | H50: 3.81 | I50: 1.32 | J50: 1.30 | K50: 1.09 | L50: 0.81 | M50: 0.77 | N50: 30.63 | O50: 29.98 | P50: 27.59 | Q50: 24.44 | R50: 3.11 | S50: 6.75 | T50: 13.46 | U50: 18.71 | V50: 0.99 | W50: 0.97 | X50: 0.87 | Y50: 0.64 | Z50: 0 | AA50: 0 | AB50: 0 | AC50: 0 | AD50: 0 | AE50: 1
A51: 50 | B51: 98 | C51: 13 | D51: 0.124 | E51: 12.078 | F51: 12.96 | G51: 5.37 | H51: 2.22 | I51: 0.85 | J51: 1.42 | K51: 1.25 | L51: 1.02 | M51: 0.84 | N51: 16.93 | O51: 16.65 | P51: 15.26 | Q51: 12.83 | R51: 2.29 | S51: 3.80 | T51: 7.85 | U51: 12.07 | V51: 0.99 | W51: 0.97 | X51: 0.86 | Y51: 0.34 | Z51: 0 | AA51: 0 | AB51: 0 | AC51: 0 | AD51: 0 | AE51: 1
A52: 52 | B52: 116 | C52: 30 | D52: 0.303 | E52: 36.454 | F52: 28.68 | G52: 13.79 | H52: 5.29 | I52: 1.89 | J52: 1.42 | K52: 1.22 | L52: 0.95 | M52: 0.88 | N52: 50.58 | O52: 49.91 | P52: 46.86 | Q52: 41.42 | R52: 5.07 | S52: 9.75 | T52: 18.69 | U52: 26.74 | V52: 0.99 | W52: 0.98 | X52: 0.92 | Y52: 0.76 | Z52: 0 | AA52: 0 | AB52: 0 | AC52: 0 | AD52: 1 | AE52: 0
A53: 53 | B53: 101 | C53: 36.5 | D53: 0.259 | E53: 27.395 | F53: 23.45 | G53: 12.74 | H53: 5.52 | I53: 1.83 | J53: 1.55 | K53: 1.27 | L53: 0.85 | M53: 0.74 | N53: 38.53 | O53: 37.66 | P53: 32.90 | Q53: 27.93 | R53: 4.15 | S53: 9.01 | T53: 19.53 | U53: 25.89 | V53: 0.99 | W53: 0.97 | X53: 0.80 | Y53: 0.37 | Z53: 0 | AA53: 0 | AB53: 0 | AC53: 0 | AD53: 1 | AE53: 0
A54: 55 | B54: 108 | C54: 26 | D54: 0.245 | E54: 26.159 | F54: 39.45 | G54: 16.48 | H54: 5.41 | I54: 1.40 | J54: 2.04 | K54: 1.29 | L54: 0.82 | M54: 0.71 | N54: 32.49 | O54: 31.10 | P54: 26.31 | Q54: 24.86 | R54: 6.97 | S54: 11.65 | T54: 19.12 | U54: 19.78 | V54: 0.98 | W54: 0.93 | X54: 0.69 | Y54: 0.61 | Z54: 0 | AA54: 0 | AB54: 0 | AC54: 0 | AD54: 1 | AE54: 0
A55: 56 | B55: 113 | C55: 35 | D55: 0.231 | E55: 26.610 | F55: 47.59 | G55: 16.67 | H55: 5.32 | I55: 1.70 | J55: 2.91 | K55: 1.54 | L55: 1.09 | M55: 0.78 | N55: 36.65 | O55: 35.63 | P55: 32.40 | Q55: 30.30 | R55: 8.41 | S55: 11.79 | T55: 18.83 | U55: 23.97 | V55: 0.97 | W55: 0.94 | X55: 0.81 | Y55: 0.61 | Z55: 0 | AA55: 0 | AB55: 1 | AC55: 0 | AD55: 0 | AE55: 0
A56: 57 | B56: 108 | C56: 29 | D56: 0.214 | E56: 23.268 | F56: 14.01 | G56: 8.47 | H56: 3.77 | I56: 1.09 | J56: 1.31 | K56: 1.12 | L56: 0.86 | M56: 0.84 | N56: 29.69 | O56: 29.07 | P56: 25.66 | Q56: 24.46 | R56: 2.48 | S56: 5.99 | T56: 13.34 | U56: 15.40 | V56: 1.00 | W56: 0.98 | X56: 0.85 | Y56: 0.78 | Z56: 0 | AA56: 0 | AB56: 1 | AC56: 0 | AD56: 0 | AE56: 0
A57: 58 | B57: 109 | C57: 18 | D57: 0.169 | E57: 18.388 | F57: 12.86 | G57: 7.51 | H57: 3.53 | I57: 1.11 | J57: 1.45 | K57: 1.26 | L57: 0.95 | M57: 0.92 | N57: 23.06 | O57: 22.31 | P57: 18.53 | Q57: 15.95 | R57: 2.27 | S57: 5.31 | T57: 12.48 | U57: 15.74 | V57: 1.00 | W57: 0.97 | X57: 0.74 | Y57: 0.16 | Z57: 0 | AA57: 0 | AB57: 1 | AC57: 0 | AD57: 0 | AE57: 0
A58: 59 | B58: 107 | C58: 31 | D58: 0.250 | E58: 27.282 | F58: 23.56 | G58: 15.71 | H58: 6.97 | I58: 1.80 | J58: 1.23 | K58: 1.22 | L58: 1.02 | M58: 0.80 | N58: 37.73 | O58: 36.27 | P58: 28.91 | Q58: 26.60 | R58: 4.16 | S58: 11.11 | T58: 24.63 | U58: 25.44 | V58: 0.99 | W58: 0.95 | X58: 0.52 | Y58: 0.29 | Z58: 0 | AA58: 0 | AB58: 1 | AC58: 0 | AD58: 0 | AE58: 0
A59: 60 | B59: 122 | C59: 80 | D59: 0.339 | E59: 44.887 | F59: 17.15 | G59: 9.41 | H59: 4.40 | I59: 1.70 | J59: 1.05 | K59: 0.98 | L59: 0.91 | M59: 0.78 | N59: 62.88 | O59: 62.60 | P59: 60.90 | Q59: 57.85 | R59: 3.03 | S59: 6.66 | T59: 15.55 | U59: 24.03 | V59: 1.00 | W59: 0.99 | X59: 0.97 | Y59: 0.91 | Z59: 1 | AA59: 1 | AB59: 0 | AC59: 0 | AD59: 1 | AE59: 0
A60: 61 | B60: 124 | C60: 28.5 | D60: 0.160 | E60: 19.427 | F60: 22.97 | G60: 10.98 | H60: 3.68 | I60: 1.03 | J60: 1.84 | K60: 1.46 | L60: 0.92 | M60: 0.73 | N60: 27.19 | O60: 26.41 | P60: 24.49 | Q60: 22.72 | R60: 4.06 | S60: 7.77 | T60: 13.01 | U60: 14.60 | V60: 0.99 | W60: 0.96 | X60: 0.85 | Y60: 0.77 | Z60: 0 | AA60: 0 | AB60: 0 | AC60: 0 | AD60: 0 | AE60: 1
A61: 62 | B61: 97 | C61: 28 | D61: 0.232 | E61: 22.703 | F61: 31.75 | G61: 13.89 | H61: 5.14 | I61: 1.49 | J61: 1.84 | K61: 1.20 | L61: 0.88 | M61: 0.84 | N61: 28.33 | O61: 27.15 | P61: 22.20 | Q61: 18.92 | R61: 5.61 | S61: 9.82 | T61: 18.17 | U61: 21.11 | V61: 0.98 | W61: 0.93 | X61: 0.57 | Y61: 0.44 | Z61: 0 | AA61: 0 | AB61: 0 | AC61: 1 | AD61: 0 | AE61: 0
A62: 63 | B62: 94 | C62: 42 | D62: 0.293 | E62: 27.437 | F62: 30.50 | G62: 12.67 | H62: 5.40 | I62: 1.58 | J62: 2.47 | K62: 1.28 | L62: 0.80 | M62: 0.87 | N62: 38.41 | O62: 37.66 | P62: 33.47 | Q62: 31.43 | R62: 5.39 | S62: 8.96 | T62: 19.10 | U62: 22.32 | V62: 0.99 | W62: 0.97 | X62: 0.82 | Y62: 0.70 | Z62: 0 | AA62: 0 | AB62: 0 | AC62: 0 | AD62: 1 | AE62: 0
A63: 64 | B63: 95 | C63: 24 | D63: 0.272 | E63: 27.640 | F63: 49.72 | G63: 22.59 | H63: 6.51 | I63: 1.91 | J63: 3.08 | K63: 1.96 | L63: 1.05 | M63: 1.06 | N63: 38.08 | O63: 35.55 | P63: 29.73 | Q63: 23.95 | R63: 8.79 | S63: 15.97 | T63: 23.02 | U63: 27.02 | V63: 0.97 | W63: 0.89 | X63: 0.63 | Y63: 0.46 | Z63: 0 | AA63: 0 | AB63: 0 | AC63: 0 | AD63: 0 | AE63: 1
A64: 65 | B64: 111 | C64: 30 | D64: 0.213 | E64: 24.264 | F64: 47.11 | G64: 16.97 | H64: 5.33 | I64: 1.53 | J64: 2.77 | K64: 1.50 | L64: 1.16 | M64: 0.86 | N64: 33.30 | O64: 32.21 | P64: 28.57 | Q64: 27.31 | R64: 8.33 | S64: 12.00 | T64: 18.86 | U64: 21.68 | V64: 0.97 | W64: 0.93 | X64: 0.75 | Y64: 0.61 | Z64: 0 | AA64: 0 | AB64: 1 | AC64: 0 | AD64: 0 | AE64: 0
A65: 66 | B65: 96 | C65: 16 | D65: 0.206 | E65: 20.280 | F65: 47.93 | G65: 17.31 | H65: 4.57 | I65: 1.36 | J65: 3.35 | K65: 2.35 | L65: 1.46 | M65: 0.98 | N65: 24.28 | O65: 22.36 | P65: 19.29 | Q65: 13.94 | R65: 8.47 | S65: 12.24 | T65: 16.17 | U65: 19.26 | V65: 0.94 | W65: 0.84 | X65: 0.54 | Y65: 0.69 | Z65: 0 | AA65: 0 | AB65: 0 | AC65: 0 | AD65: 0 | AE65: 1
A66: 67 | B66: 102 | C66: 23 | D66: 0.231 | E66: 23.761 | F66: 42.66 | G66: 15.44 | H66: 5.35 | I66: 1.56 | J66: 2.36 | K66: 1.50 | L66: 1.03 | M66: 0.82 | N66: 32.67 | O66: 31.40 | P66: 25.89 | Q66: 24.65 | R66: 7.54 | S66: 10.92 | T66: 18.91 | U66: 22.02 | V66: 0.97 | W66: 0.94 | X66: 0.68 | Y66: 0.45 | Z66: 0 | AA66: 0 | AB66: 1 | AC66: 0 | AD66: 0 | AE66: 0
A67: 68 | B67: 98 | C67: 20 | D67: 0.189 | E67: 18.631 | F67: 39.57 | G67: 12.38 | H67: 3.47 | I67: 1.17 | J67: 3.47 | K67: 1.96 | L67: 1.14 | M67: 0.95 | N67: 25.41 | O67: 24.89 | P67: 23.49 | Q67: 21.28 | R67: 7.00 | S67: 8.75 | T67: 12.26 | U67: 16.55 | V67: 0.96 | W67: 0.94 | X67: 0.85 | Y67: 0.63 | Z67: 0 | AA67: 0 | AB67: 0 | AC67: 1 | AD67: 0 | AE67: 0
A68: 69 | B68: 119 | C68: 44 | D68: 0.276 | E68: 35.156 | F68: 23.17 | G68: 12.42 | H68: 6.29 | I68: 1.54 | J68: 1.63 | K68: 1.05 | L68: 0.79 | M68: 0.70 | N68: 49.52 | O68: 48.83 | P68: 43.75 | Q68: 42.76 | R68: 4.10 | S68: 8.79 | T68: 22.25 | U68: 21.82 | V68: 1.00 | W68: 0.98 | X68: 0.86 | Y68: 0.86 | Z68: 0 | AA68: 0 | AB68: 1 | AC68: 0 | AD68: 0 | AE68: 0
A69: 70 | B69: 101 | C69: 35 | D69: 0.274 | E69: 26.788 | F69: 21.65 | G69: 9.38 | H69: 3.52 | I69: 1.36 | J69: 1.99 | K69: 1.24 | L69: 0.74 | M69: 0.71 | N69: 33.52 | O69: 33.29 | P69: 31.66 | Q69: 28.97 | R69: 3.83 | S69: 6.63 | T69: 12.43 | U69: 19.20 | V69: 0.99 | W69: 0.98 | X69: 0.92 | Y69: 0.75 | Z69: 1 | AA69: 1 | AB69: 0 | AC69: 0 | AD69: 0 | AE69: 1
A70: 71 | B70: 92 | C70: 21 | D70: 0.227 | E70: 21.244 | F70: 48.05 | G70: 15.55 | H70: 3.82 | I70: 1.11 | J70: 3.64 | K70: 2.29 | L70: 1.44 | M70: 1.04 | N70: 26.35 | O70: 25.42 | P70: 23.82 | Q70: 22.09 | R70: 8.49 | S70: 11.00 | T70: 13.50 | U70: 15.67 | V70: 0.95 | W70: 0.90 | X70: 0.82 | Y70: 0.70 | Z70: 0 | AA70: 0 | AB70: 0 | AC70: 0 | AD70: 0 | AE70: 1
A71: 72 | B71: 105 | C71: 14 | D71: 0.140 | E71: 14.803 | F71: 41.67 | G71: 13.33 | H71: 3.65 | I71: 1.01 | J71: 3.74 | K71: 2.58 | L71: 1.48 | M71: 1.25 | N71: 19.60 | O71: 18.67 | P71: 16.55 | Q71: 15.96 | R71: 7.37 | S71: 9.43 | T71: 12.92 | U71: 14.35 | V71: 0.93 | W71: 0.86 | X71: 0.63 | Y71: 0.44 | Z71: 0 | AA71: 1 | AB71: 0 | AC71: 1 | AD71: 0 | AE71: 0
A72: 73 | B72: 103 | C72: 63 | D72: 0.351 | E72: 40.045 | F72: 23.91 | G72: 15.58 | H72: 5.76 | I72: 1.87 | J72: 1.60 | K72: 1.27 | L72: 0.93 | M72: 0.80 | N72: 56.43 | O72: 55.30 | P72: 51.34 | Q72: 47.06 | R72: 4.23 | S72: 11.02 | T72: 20.38 | U72: 26.43 | V72: 1.00 | W72: 0.98 | X72: 0.92 | Y72: 0.83 | Z72: 0 | AA72: 0 | AB72: 0 | AC72: 0 | AD72: 1 | AE72: 0
A73: 74 | B73: 122 | C73: 19 | D73: 0.176 | E73: 21.601 | F73: 18.25 | G73: 9.70 | H73: 4.52 | I73: 0.97 | J73: 1.79 | K73: 1.32 | L73: 1.02 | M73: 0.88 | N73: 28.67 | O73: 27.81 | P73: 22.90 | Q73: 23.10 | R73: 3.23 | S73: 6.86 | T73: 15.99 | U73: 13.74 | V73: 0.99 | W73: 0.97 | X73: 0.72 | Y73: 0.80 | Z73: 0 | AA73: 0 | AB73: 1 | AC73: 0 | AD73: 0 | AE73: 0
A74: 76 | B74: 73 | C74: 36 | D74: 0.386 | E74: 32.228 | F74: 53.05 | G74: 23.75 | H74: 5.85 | I74: 1.77 | J74: 4.52 | K74: 3.29 | L74: 1.73 | M74: 1.22 | N74: 44.55 | O74: 42.18 | P74: 40.08 | Q74: 38.09 | R74: 9.38 | S74: 16.79 | T74: 20.69 | U74: 24.99 | V74: 0.98 | W74: 0.92 | X74: 0.86 | Y74: 0.75 | Z74: 0 | AA74: 0 | AB74: 0 | AC74: 0 | AD74: 0 | AE74: 1
A75: 77 | B75: 109 | C75: 30 | D75: 0.204 | E75: 22.619 | F75: 28.18 | G75: 11.76 | H75: 4.37 | I75: 1.44 | J75: 1.84 | K75: 1.21 | L75: 0.85 | M75: 0.76 | N75: 31.44 | O75: 30.25 | P75: 26.43 | Q75: 22.95 | R75: 4.98 | S75: 8.31 | T75: 15.45 | U75: 20.33 | V75: 0.99 | W75: 0.96 | X75: 0.81 | Y75: 0.46 | Z75: 0 | AA75: 0 | AB75: 1 | AC75: 0 | AD75: 0 | AE75: 0
A76: 78 | B76: 107 | C76: 33 | D76: 0.216 | E76: 23.298 | F76: 14.31 | G76: 8.62 | H76: 4.28 | I76: 1.36 | J76: 1.18 | K76: 1.03 | L76: 0.84 | M76: 0.73 | N76: 32.81 | O76: 32.23 | P76: 28.38 | Q76: 25.86 | R76: 2.53 | S76: 6.09 | T76: 15.12 | U76: 19.26 | V76: 1.00 | W76: 0.98 | X76: 0.85 | Y76: 0.67 | Z76: 0 | AA76: 0 | AB76: 0 | AC76: 0 | AD76: 1 | AE76: 0
A77: 79 | B77: 106 | C77: 26.5 | D77: 0.240 | E77: 26.450 | F77: 41.41 | G77: 16.27 | H77: 5.62 | I77: 1.55 | J77: 2.67 | K77: 1.51 | L77: 1.00 | M77: 0.87 | N77: 36.68 | O77: 35.57 | P77: 31.66 | Q77: 30.81 | R77: 7.32 | S77: 11.51 | T77: 19.87 | U77: 21.88 | V77: 0.98 | W77: 0.95 | X77: 0.78 | Y77: 0.70 | Z77: 0 | AA77: 0 | AB77: 1 | AC77: 0 | AD77: 0 | AE77: 0
A78: 80 | B78: 112 | C78: 28 | D78: 0.196 | E78: 22.193 | F78: 26.97 | G78: 11.91 | H78: 5.26 | I78: 1.56 | J78: 2.26 | K78: 1.42 | L78: 0.93 | M78: 0.78 | N78: 31.04 | O78: 30.12 | P78: 24.08 | Q78: 22.25 | R78: 4.77 | S78: 8.42 | T78: 18.58 | U78: 22.00 | V78: 0.99 | W78: 0.96 | X78: 0.64 | Y78: 0.15 | Z78: 0 | AA78: 0 | AB78: 0 | AC78: 0 | AD78: 0 | AE78: 1
A79: 81 | B79: 109 | C79: 27 | D79: 0.174 | E79: 18.076 | F79: 14.96 | G79: 7.46 | H79: 3.28 | I79: 1.10 | J79: 1.36 | K79: 1.10 | L79: 0.88 | M79: 0.80 | N79: 25.44 | O79: 25.03 | P79: 22.86 | Q79: 20.42 | R79: 2.64 | S79: 5.28 | T79: 11.58 | U79: 15.59 | V79: 0.99 | W79: 0.98 | X79: 0.86 | Y79: 0.65 | Z79: 1 | AA79: 1 | AB79: 0 | AC79: 0 | AD79: 1 | AE79: 0
A80: 82 | B80: 104 | C80: 23 | D80: 0.209 | E80: 21.656 | F80: 61.38 | G80: 17.28 | H80: 5.29 | I80: 1.40 | J80: 4.01 | K80: 1.97 | L80: 1.11 | M80: 1.02 | N80: 25.59 | O80: 25.02 | P80: 20.93 | Q80: 20.95 | R80: 10.85 | S80: 12.22 | T80: 18.71 | U80: 19.82 | V80: 0.91 | W80: 0.87 | X80: 0.45 | Y80: 0.32 | Z80: 0 | AA80: 0 | AB80: 1 | AC80: 0 | AD80: 0 | AE80: 0
A81: 83 | B81: 105 | C81: 47 | D81: 0.276 | E81: 31.047 | F81: 48.19 | G81: 20.32 | H81: 6.96 | I81: 1.83 | J81: 2.33 | K81: 1.28 | L81: 0.83 | M81: 0.85 | N81: 43.10 | O81: 41.60 | P81: 36.73 | Q81: 34.56 | R81: 8.52 | S81: 14.37 | T81: 24.59 | U81: 25.83 | V81: 0.98 | W81: 0.94 | X81: 0.74 | Y81: 0.66 | Z81: 0 | AA81: 0 | AB81: 0 | AC81: 1 | AD81: 0 | AE81: 0
A82: 84 | B82: 104 | C82: 47 | D82: 0.331 | E82: 34.601 | F82: 36.55 | G82: 17.74 | H82: 5.82 | I82: 1.54 | J82: 1.75 | K82: 1.13 | L82: 0.92 | M82: 0.73 | N82: 44.76 | O82: 43.45 | P82: 39.13 | Q82: 37.29 | R82: 6.46 | S82: 12.54 | T82: 20.58 | U82: 21.78 | V82: 0.99 | W82: 0.96 | X82: 0.85 | Y82: 0.81 | Z82: 0 | AA82: 0 | AB82: 0 | AC82: 0 | AD82: 1 | AE82: 0
A83: 85 | B83: 103 | C83: 25 | D83: 0.207 | E83: 21.907 | F83: 35.28 | G83: 14.06 | H83: 6.58 | I83: 1.46 | J83: 2.61 | K83: 1.26 | L83: 0.87 | M83: 0.84 | N83: 30.36 | O83: 29.40 | P83: 20.77 | Q83: 21.55 | R83: 6.24 | S83: 9.94 | T83: 23.26 | U83: 20.64 | V83: 0.98 | W83: 0.94 | X83: 0.45 | Y83: 0.29 | Z83: 0 | AA83: 0 | AB83: 1 | AC83: 0 | AD83: 0 | AE83: 0
A84: 86 | B84: 106 | C84: 21 | D84: 0.161 | E84: 17.408 | F84: 38.92 | G84: 12.22 | H84: 4.04 | I84: 1.20 | J84: 3.46 | K84: 1.79 | L84: 1.05 | M84: 0.81 | N84: 23.44 | O84: 22.79 | P84: 19.52 | Q84: 16.75 | R84: 6.88 | S84: 8.64 | T84: 14.29 | U84: 17.01 | V84: 0.96 | W84: 0.93 | X84: 0.68 | Y84: 0.17 | Z84: 0 | AA84: 0 | AB84: 1 | AC84: 0 | AD84: 0 | AE84: 0
A85: 87 | B85: 109 | C85: 28 | D85: 0.254 | E85: 26.736 | F85: 36.79 | G85: 12.86 | H85: 4.02 | I85: 1.47 | J85: 2.48 | K85: 1.56 | L85: 1.06 | M85: 0.79 | N85: 37.25 | O85: 36.69 | P85: 34.98 | Q85: 32.16 | R85: 6.50 | S85: 9.09 | T85: 14.22 | U85: 20.79 | V85: 0.98 | W85: 0.97 | X85: 0.91 | Y85: 0.76 | Z85: 1 | AA85: 0 | AB85: 0 | AC85: 1 | AD85: 0 | AE85: 0
A86: 88 | B86: 93 | C86: 20 | D86: 0.183 | E86: 17.461 | F86: 26.57 | G86: 8.73 | H86: 3.03 | I86: 1.25 | J86: 2.58 | K86: 1.53 | L86: 0.97 | M86: 0.76 | N86: 24.23 | O86: 23.80 | P86: 21.65 | Q86: 17.48 | R86: 4.70 | S86: 6.17 | T86: 10.73 | U86: 17.67 | V86: 0.98 | W86: 0.97 | X86: 0.87 | Y86: 0.15 | Z86: 0 | AA86: 0 | AB86: 0 | AC86: 1 | AD86: 0 | AE86: 0
A87: 89 | B87: 97 | C87: 31 | D87: 0.215 | E87: 21.690 | F87: 25.32 | G87: 14.40 | H87: 5.11 | I87: 1.42 | J87: 1.49 | K87: 1.33 | L87: 0.87 | M87: 0.83 | N87: 30.33 | O87: 28.87 | P87: 24.53 | Q87: 22.18 | R87: 4.48 | S87: 10.18 | T87: 18.07 | U87: 20.03 | V87: 0.99 | W87: 0.94 | X87: 0.68 | Y87: 0.43 | Z87: 0 | AA87: 0 | AB87: 0 | AC87: 0 | AD87: 0 | AE87: 1
A88: 90 | B88: 102 | C88: 15 | D88: 0.208 | E88: 21.437 | F88: 19.99 | G88: 9.21 | H88: 3.31 | I88: 0.88 | J88: 2.21 | K88: 1.53 | L88: 1.05 | M88: 0.95 | N88: 17.69 | O88: 16.73 | P88: 13.20 | Q88: 12.13 | R88: 3.53 | S88: 6.51 | T88: 11.70 | U88: 12.45 | V88: 0.98 | W88: 0.92 | X88: 0.46 | Y88: 0.22 | Z88: 0 | AA88: 0 | AB88: 1 | AC88: 0 | AD88: 0 | AE88: 0
A89: 91 | B89: 102 | C89: 19 | D89: 0.187 | E89: 19.403 | F89: 16.86 | G89: 8.60 | H89: 3.54 | I89: 1.13 | J89: 1.57 | K89: 1.38 | L89: 1.00 | M89: 0.69 | N89: 21.40 | O89: 20.77 | P89: 17.59 | Q89: 15.03 | R89: 2.98 | S89: 6.08 | T89: 12.53 | U89: 15.99 | V89: 0.99 | W89: 0.96 | X89: 0.70 | Y89: 0.34 | Z89: 0 | AA89: 0 | AB89: 1 | AC89: 0 | AD89: 0 | AE89: 0
A90: 92 | B90: 112 | C90: 24.75 | D90: 0.204 | E90: 23.810 | F90: 36.84 | G90: 15.13 | H90: 5.38 | I90: 1.50 | J90: 2.20 | K90: 1.32 | L90: 0.92 | M90: 0.92 | N90: 32.99 | O90: 31.74 | P90: 26.88 | Q90: 24.09 | R90: 6.51 | S90: 10.70 | T90: 19.02 | U90: 21.22 | V90: 0.98 | W90: 0.94 | X90: 0.71 | Y90: 0.47 | Z90: 0 | AA90: 0 | AB90: 0 | AC90: 1 | AD90: 0 | AE90: 0
A91: 93 | B91: 116 | C91: 30 | D91: 0.221 | E91: 25.162 | F91: 23.28 | G91: 13.16 | H91: 4.45 | I91: 1.39 | J91: 1.98 | K91: 1.44 | L91: 1.09 | M91: 0.90 | N91: 35.34 | O91: 34.33 | P91: 31.69 | Q91: 28.80 | R91: 4.12 | S91: 9.30 | T91: 15.73 | U91: 19.72 | V91: 0.99 | W91: 0.96 | X91: 0.87 | Y91: 0.73 | Z91: 0 | AA91: 0 | AB91: 1 | AC91: 0 | AD91: 0 | AE91: 0
A92: 94 | B92: 117 | C92: 32 | D92: 0.271 | E92: 32.539 | F92: 49.65 | G92: 17.81 | H92: 7.12 | I92: 1.73 | J92: 2.82 | K92: 1.48 | L92: 0.86 | M92: 0.87 | N92: 45.07 | O92: 44.01 | P92: 37.67 | Q92: 36.34 | R92: 8.78 | S92: 12.60 | T92: 25.19 | U92: 24.41 | V92: 0.98 | W92: 0.96 | X92: 0.74 | Y92: 0.74 | Z92: 0 | AA92: 0 | AB92: 0 | AC92: 1 | AD92: 0 | AE92: 0
A93: 95 | B93: 117 | C93: 22 | D93: 0.179 | E93: 20.779 | F93: 19.00 | G93: 12.00 | H93: 4.88 | I93: 1.28 | J93: 1.28 | K93: 1.19 | L93: 0.87 | M93: 0.78 | N93: 26.02 | O93: 24.65 | P93: 19.08 | Q93: 19.44 | R93: 3.36 | S93: 8.49 | T93: 17.25 | U93: 18.08 | V93: 0.99 | W93: 0.94 | X93: 0.43 | Y93: 0.37 | Z93: 0 | AA93: 0 | AB93: 1 | AC93: 0 | AD93: 0 | AE93: 0
A94: 96 | B94: 96 | C94: 25 | D94: 0.255 | E94: 23.736 | F94: 24.36 | G94: 9.00 | H94: 3.82 | I94: 1.50 | J94: 2.27 | K94: 1.36 | L94: 1.06 | M94: 0.69 | N94: 33.24 | O94: 32.76 | P94: 29.86 | Q94: 26.07 | R94: 4.31 | S94: 6.36 | T94: 13.52 | U94: 21.22 | V94: 0.99 | W94: 0.98 | X94: 0.89 | Y94: 0.58 | Z94: 0 | AA94: 0 | AB94: 0 | AC94: 1 | AD94: 0 | AE94: 0
A95: 97 | B95: 110 | C95: 34 | D95: 0.241 | E95: 26.642 | F95: 21.16 | G95: 12.42 | H95: 5.14 | I95: 1.88 | J95: 1.14 | K95: 0.89 | L95: 0.73 | M95: 0.69 | N95: 37.43 | O95: 36.43 | P95: 32.71 | Q95: 28.08 | R95: 3.74 | S95: 8.78 | T95: 18.17 | U95: 26.56 | V95: 0.99 | W95: 0.97 | X95: 0.83 | Y95: 0.32 | Z95: 0 | AA95: 0 | AB95: 1 | AC95: 0 | AD95: 0 | AE95: 0
A96: 99 | B96: 99 | C96: 20 | D96: 0.220 | E96: 21.546 | F96: 38.64 | G96: 15.36 | H96: 5.10 | I96: 1.57 | J96: 2.72 | K96: 1.74 | L96: 0.93 | M96: 0.90 | N96: 27.75 | O96: 26.47 | P96: 22.39 | Q96: 19.21 | R96: 6.83 | S96: 10.86 | T96: 18.03 | U96: 22.25 | V96: 0.97 | W96: 0.91 | X96: 0.59 | Y96: 0.50 | Z96: 0 | AA96: 0 | AB96: 0 | AC96: 1 | AD96: 0 | AE96: 0
A97: 101 | B97: 101 | C97: 18 | D97: 0.184 | E97: 18.950 | F97: 18.75 | G97: 9.29 | H97: 3.92 | I97: 1.31 | J97: 1.57 | K97: 1.24 | L97: 0.88 | M97: 0.74 | N97: 26.61 | O97: 25.91 | P97: 22.24 | Q97: 19.05 | R97: 3.32 | S97: 6.57 | T97: 13.87 | U97: 18.58 | V97: 0.99 | W97: 0.97 | X97: 0.78 | Y97: 0.22 | Z97: 0 | AA97: 0 | AB97: 0 | AC97: 0 | AD97: 1 | AE97: 0
A98: 102 | B98: 103 | C98: 22 | D98: 0.174 | E98: 17.862 | F98: 16.98 | G98: 9.41 | H98: 3.58 | I98: 1.15 | J98: 1.38 | K98: 1.20 | L98: 0.84 | M98: 0.61 | N98: 25.09 | O98: 24.42 | P98: 22.07 | Q98: 20.23 | R98: 3.00 | S98: 6.65 | T98: 12.65 | U98: 16.21 | V98: 0.99 | W98: 0.96 | X98: 0.82 | Y98: 0.60 | Z98: 0 | AA98: 0 | AB98: 1 | AC98: 0 | AD98: 0 | AE98: 0
A99: 103 | B99: 103 | C99: 32 | D99: 0.234 | E99: 24.488 | F99: 52.65 | G99: 19.37 | H99: 5.65 | I99: 1.60 | J99: 3.25 | K99: 1.69 | L99: 1.03 | M99: 0.98 | N99: 33.07 | O99: 31.40 | P99: 27.18 | Q99: 25.35 | R99: 9.31 | S99: 13.70 | T99: 19.98 | U99: 22.60 | V99: 0.96 | W99: 0.90 | X99: 0.68 | Y99: 0.45 | Z99: 0 | AA99: 0 | AB99: 0 | AC99: 0 | AD99: 0 | AE99: 1
A100: 104 | B100: 119 | C100: 33 | D100: 0.199 | E100: 23.811 | F100: 27.21 | G100: 16.74 | H100: 5.74 | I100: 1.50 | J100: 1.29 | K100: 1.10 | L100: 0.79 | M100: 0.82 | N100: 33.31 | O100: 31.47 | P100: 26.78 | Q100: 26.31 | R100: 4.81 | S100: 11.84 | T100: 20.30 | U100: 21.18 | V100: 0.99 | W100: 0.93 | X100: 0.65 | Y100: 0.59 | Z100: 0 | AA100: 0 | AB100: 0 | AC100: 0 | AD100: 1 | AE100: 0
A101: 105 | B101: 113 | C101: 20 | D101: 0.222 | E101: 23.675 | F101: 19.77 | G101: 8.69 | H101: 2.96 | I101: 1.24 | J101: 1.55 | K101: 1.41 | L101: 1.09 | M101: 0.94 | N101: 31.12 | O101: 30.25 | P101: 28.58 | Q101: 26.32 | R101: 3.50 | S101: 6.15 | T101: 10.48 | U101: 17.53 | V101: 0.99 | W101: 0.98 | X101: 0.93 | Y101: 0.75 | Z101: 0 | AA101: 0 | AB101: 0 | AC101: 0 | AD101: 0 | AE101: 1
A102: 107 | B102: 108 | C102: 22 | D102: 0.217 | E102: 23.395 | F102: 18.14 | G102: 8.39 | H102: 3.66 | I102: 1.48 | J102: 1.54 | K102: 1.11 | L102: 0.85 | M102: 0.88 | N102: 32.92 | O102: 32.49 | P102: 29.59 | Q102: 24.50 | R102: 3.21 | S102: 5.93 | T102: 12.94 | U102: 20.88 | V102: 1.00 | W102: 0.98 | X102: 0.90 | Y102: 0.52 | Z102: 0 | AA102: 0 | AB102: 0 | AC102: 0 | AD102: 0 | AE102: 1
A103: 108 | B103: 96 | C103: 19 | D103: 0.192 | E103: 18.252 | F103: 33.93 | G103: 11.47 | H103: 3.78 | I103: 1.12 | J103: 2.43 | K103: 1.53 | L103: 0.96 | M103: 0.89 | N103: 25.11 | O103: 24.53 | P103: 22.25 | Q103: 20.31 | R103: 6.00 | S103: 8.11 | T103: 13.38 | U103: 15.85 | V103: 0.97 | W103: 0.94 | X103: 0.80 | Y103: 0.63 | Z103: 0 | AA103: 0 | AB103: 0 | AC103: 0 | AD103: 1 | AE103: 0
A104: 109 | B104: 114 | C104: 31.75 | D104: 0.244 | E104: 27.604 | F104: 48.80 | G104: 19.93 | H104: 5.81 | I104: 1.75 | J104: 1.97 | K104: 1.27 | L104: 1.04 | M104: 0.83 | N104: 36.27 | O104: 34.98 | P104: 31.58 | Q104: 28.97 | R104: 8.63 | S104: 14.09 | T104: 20.56 | U104: 24.78 | V104: 0.97 | W104: 0.92 | X104: 0.76 | Y104: 0.52 | Z104: 0 | AA104: 0 | AB104: 0 | AC104: 0 | AD104: 1 | AE104: 0
A105: 111 | B105: 102 | C105: 14 | D105: 0.138 | E105: 14.274 | F105: 28.38 | G105: 10.68 | H105: 3.22 | I105: 1.08 | J105: 2.63 | K105: 1.51 | L105: 1.00 | M105: 0.93 | N105: 19.57 | O105: 18.78 | P105: 16.83 | Q105: 14.46 | R105: 5.02 | S105: 7.55 | T105: 11.40 | U105: 15.30 | V105: 0.97 | W105: 0.92 | X105: 0.74 | Y105: 0.33 | Z105: 0 | AA105: 0 | AB105: 1 | AC105: 0 | AD105: 0 | AE105: 0
A106: 113 | B106: 101 | C106: 19 | D106: 0.183 | E106: 19.344 | F106: 28.81 | G106: 14.73 | H106: 4.93 | I106: 1.23 | J106: 1.68 | K106: 1.36 | L106: 1.03 | M106: 0.91 | N106: 26.84 | O106: 25.30 | P106: 20.91 | Q106: 20.98 | R106: 5.09 | S106: 10.41 | T106: 17.42 | U106: 17.33 | V106: 0.98 | W106: 0.91 | X106: 0.55 | Y106: 0.56 | Z106: 0 | AA106: 0 | AB106: 0 | AC106: 0 | AD106: 1 | AE106: 0
A107: 114 | B107: 126 | C107: 43 | D107: 0.267 | E107: 33.861 | F107: 32.84 | G107: 14.24 | H107: 6.14 | I107: 2.14 | J107: 1.92 | K107: 1.19 | L107: 0.82 | M107: 0.63 | N107: 45.27 | O107: 44.41 | P107: 39.20 | Q107: 34.43 | R107: 5.81 | S107: 10.07 | T107: 21.71 | U107: 30.22 | V107: 0.99 | W107: 0.97 | X107: 0.83 | Y107: 0.48 | Z107: 0 | AA107: 0 | AB107: 1 | AC107: 0 | AD107: 0 | AE107: 0
A108: 116 | B108: 108 | C108: 27 | D108: 0.218 | E108: 23.435 | F108: 29.68 | G108: 14.07 | H108: 5.36 | I108: 1.59 | J108: 1.22 | K108: 1.06 | L108: 0.80 | M108: 0.87 | N108: 32.75 | O108: 31.72 | P108: 27.68 | Q108: 23.83 | R108: 5.25 | S108: 9.95 | T108: 18.96 | U108: 22.55 | V108: 0.99 | W108: 0.95 | X108: 0.73 | Y108: 0.32 | Z108: 0 | AA108: 0 | AB108: 0 | AC108: 1 | AD108: 0 | AE108: 0
A109: 117 | B109: 103 | C109: 20 | D109: 0.205 | E109: 20.709 | F109: 40.68 | G109: 11.14 | H109: 3.47 | I109: 1.24 | J109: 3.17 | K109: 1.82 | L109: 1.27 | M109: 0.87 | N109: 27.59 | O109: 26.47 | P109: 23.99 | Q109: 20.95 | R109: 7.19 | S109: 7.88 | T109: 12.26 | U109: 17.51 | V109: 0.97 | W109: 0.95 | X109: 0.86 | Y109: 0.55 | Z109: 0 | AA109: 0 | AB109: 0 | AC109: 0 | AD109: 0 | AE109: 1
A110: 118 | B110: 111 | C110: 21 | D110: 0.164 | E110: 18.273 | F110: 16.26 | G110: 10.33 | H110: 4.88 | I110: 1.16 | J110: 1.31 | K110: 1.07 | L110: 0.82 | M110: 0.79 | N110: 25.03 | O110: 24.05 | P110: 17.86 | Q110: 19.07 | R110: 2.87 | S110: 7.30 | T110: 17.26 | U110: 16.42 | V110: 0.99 | W110: 0.95 | X110: 0.26 | Y110: 0.51 | Z110: 0 | AA110: 0 | AB110: 1 | AC110: 0 | AD110: 0 | AE110: 0
A111: 119 | B111: 99 | C111: 13 | D111: 0.118 | E111: 11.628 | F111: 13.33 | G111: 7.37 | H111: 2.89 | I111: 0.80 | J111: 1.44 | K111: 1.23 | L111: 1.10 | M111: 0.83 | N111: 16.29 | O111: 15.64 | P111: 13.17 | Q111: 12.70 | R111: 2.36 | S111: 5.21 | T111: 10.21 | U111: 11.35 | V111: 0.99 | W111: 0.94 | X111: 0.63 | Y111: 0.45 | Z111: 0 | AA111: 0 | AB111: 1 | AC111: 0 | AD111: 0 | AE111: 0
A112: 120 | B112: 103 | C112: 26.75 | D112: 0.194 | E112: 19.741 | F112: 22.42 | G112: 10.75 | H112: 4.39 | I112: 1.38 | J112: 1.42 | K112: 1.11 | L112: 0.83 | M112: 0.61 | N112: 27.15 | O112: 26.34 | P112: 22.62 | Q112: 19.61 | R112: 3.96 | S112: 7.60 | T112: 15.53 | U112: 19.47 | V112: 0.99 | W112: 0.96 | X112: 0.73 | Y112: 0.12 | Z112: 0 | AA112: 0 | AB112: 0 | AC112: 0 | AD112: 1 | AE112: 0
A113: 121 | B113: 114 | C113: 40 | D113: 0.309 | E113: 36.686 | F113: 33.61 | G113: 22.17 | H113: 9.26 | I113: 2.72 | J113: 1.30 | K113: 1.12 | L113: 0.77 | M113: 0.83 | N113: 51.39 | O113: 49.01 | P113: 36.85 | Q113: 33.70 | R113: 5.94 | S113: 15.68 | T113: 32.75 | U113: 38.52 | V113: 0.99 | W113: 0.95 | X113: 0.46 | Y113: 0.48 | Z113: 0 | AA113: 0 | AB113: 0 | AC113: 1 | AD113: 0 | AE113: 0
A114: 123 | B114: 114 | C114: 23 | D114: 0.155 | E114: 17.465 | F114: 15.61 | G114: 8.81 | H114: 3.73 | I114: 1.09 | J114: 1.31 | K114: 1.06 | L114: 0.83 | M114: 0.81 | N114: 24.56 | O114: 23.93 | P114: 20.96 | Q114: 19.57 | R114: 2.76 | S114: 6.23 | T114: 13.19 | U114: 15.44 | V114: 0.99 | W114: 0.97 | X114: 0.78 | Y114: 0.61 | Z114: 0 | AA114: 0 | AB114: 1 | AC114: 0 | AD114: 0 | AE114: 0
A115: 124 | B115: 101 | C115: 28 | D115: 0.198 | E115: 20.628 | F115: 38.46 | G115: 17.04 | H115: 5.19 | I115: 1.39 | J115: 1.92 | K115: 1.21 | L115: 0.96 | M115: 0.71 | N115: 28.16 | O115: 26.41 | P115: 22.44 | Q115: 19.86 | R115: 6.80 | S115: 12.05 | T115: 18.33 | U115: 19.59 | V115: 0.97 | W115: 0.89 | X115: 0.58 | Y115: 0.17 | Z115: 0 | AA115: 0 | AB115: 1 | AC115: 0 | AD115: 0 | AE115: 0
A116: 125 | B116: 114 | C116: 41 | D116: 0.243 | E116: 28.096 | F116: 57.52 | G116: 18.98 | H116: 5.30 | I116: 1.63 | J116: 3.37 | K116: 2.14 | L116: 1.12 | M116: 0.97 | N116: 35.74 | O116: 34.00 | P116: 31.65 | Q116: 29.49 | R116: 10.17 | S116: 13.42 | T116: 18.75 | U116: 23.00 | V116: 0.96 | W116: 0.92 | X116: 0.81 | Y116: 0.63 | Z116: 0 | AA116: 0 | AB116: 0 | AC116: 0 | AD116: 1 | AE116: 0
A117: 126 | B117: 107 | C117: 31 | D117: 0.213 | E117: 23.851 | F117: 40.65 | G117: 15.04 | H117: 5.24 | I117: 1.52 | J117: 2.34 | K117: 1.31 | L117: 0.92 | M117: 0.75 | N117: 32.85 | O117: 31.62 | P117: 26.49 | Q117: 23.78 | R117: 7.19 | S117: 10.63 | T117: 18.53 | U117: 21.56 | V117: 0.98 | W117: 0.94 | X117: 0.71 | Y117: 0.42 | Z117: 0 | AA117: 1 | AB117: 0 | AC117: 1 | AD117: 0 | AE117: 0
A118: 128 | B118: 107 | C118: 33 | D118: 0.239 | E118: 26.233 | F118: 40.16 | G118: 16.41 | H118: 4.95 | I118: 1.61 | J118: 2.90 | K118: 1.76 | L118: 1.18 | M118: 0.91 | N118: 36.40 | O118: 35.17 | P118: 32.66 | Q118: 28.07 | R118: 7.10 | S118: 11.60 | T118: 17.49 | U118: 22.70 | V118: 0.98 | W118: 0.94 | X118: 0.84 | Y118: 0.59 | Z118: 0 | AA118: 0 | AB118: 1 | AC118: 0 | AD118: 0 | AE118: 0
A119: 131 | B119: 113 | C119: 28 | D119: 0.210 | E119: 23.726 | F119: 32.28 | G119: 15.08 | H119: 4.95 | I119: 1.57 | J119: 1.24 | K119: 0.96 | L119: 0.79 | M119: 0.75 | N119: 33.05 | O119: 31.79 | P119: 28.41 | Q119: 26.09 | R119: 5.71 | S119: 10.67 | T119: 17.50 | U119: 22.23 | V119: 0.98 | W119: 0.94 | X119: 0.79 | Y119: 0.52 | Z119: 0 | AA119: 0 | AB119: 0 | AC119: 0 | AD119: 1 | AE119: 0
A120: 132 | B120: 109 | C120: 22 | D120: 0.206 | E120: 22.335 | F120: 26.40 | G120: 11.20 | H120: 4.69 | I120: 1.32 | J120: 1.69 | K120: 1.19 | L120: 1.08 | M120: 0.84 | N120: 31.20 | O120: 30.27 | P120: 24.76 | Q120: 23.14 | R120: 4.67 | S120: 7.92 | T120: 16.58 | U120: 18.69 | V120: 0.99 | W120: 0.97 | X120: 0.74 | Y120: 0.59 | Z120: 0 | AA120: 1 | AB120: 1 | AC120: 0 | AD120: 0 | AE120: 0
A121: 133 | B121: 103 | C121: 21 | D121: 0.204 | E121: 20.468 | F121: 20.76 | G121: 7.75 | H121: 2.57 | I121: 1.09 | J121: 2.19 | K121: 1.47 | L121: 1.23 | M121: 1.10 | N121: 28.58 | O121: 28.28 | P121: 27.35 | Q121: 25.10 | R121: 3.67 | S121: 5.48 | T121: 9.10 | U121: 15.36 | V121: 0.99 | W121: 0.98 | X121: 0.94 | Y121: 0.79 | Z121: 0 | AA121: 0 | AB121: 0 | AC121: 0 | AD121: 0 | AE121: 1
A122: 134 | B122: 101 | C122: 34 | D122: 0.256 | E122: 26.298 | F122: 20.93 | G122: 9.34 | H122: 3.81 | I122: 1.10 | J122: 1.54 | K122: 1.09 | L122: 0.89 | M122: 0.78 | N122: 36.01 | O122: 35.68 | P122: 33.88 | Q122: 32.85 | R122: 3.70 | S122: 6.61 | T122: 13.48 | U122: 15.51 | V122: 0.99 | W122: 0.98 | X122: 0.92 | Y122: 0.88 | Z122: 1 | AA122: 1 | AB122: 0 | AC122: 0 | AD122: 1 | AE122: 0
A123: 135 | B123: 119 | C123: 35 | D123: 0.245 | E123: 29.987 | F123: 24.54 | G123: 12.88 | H123: 4.65 | I123: 1.27 | J123: 1.44 | K123: 1.01 | L123: 0.79 | M123: 0.82 | N123: 42.14 | O123: 41.23 | P123: 38.09 | Q123: 34.95 | R123: 4.34 | S123: 9.11 | T123: 16.44 | U123: 17.96 | V123: 0.99 | W123: 0.98 | X123: 0.90 | Y123: 0.86 | Z123: 0 | AA123: 0 | AB123: 1 | AC123: 0 | AD123: 0 | AE123: 0
A124: 136 | B124: 111 | C124: 23 | D124: 0.221 | E124: 25.234 | F124: 21.64 | G124: 12.40 | H124: 5.85 | I124: 1.58 | J124: 1.40 | K124: 1.10 | L124: 0.86 | M124: 0.72 | N124: 34.25 | O124: 33.32 | P124: 25.97 | Q124: 24.23 | R124: 3.83 | S124: 8.77 | T124: 20.70 | U124: 22.35 | V124: 0.99 | W124: 0.96 | X124: 0.60 | Y124: 0.39 | Z124: 0 | AA124: 0 | AB124: 1 | AC124: 0 | AD124: 0 | AE124: 0
A125: 137 | B125: 99 | C125: 30.75 | D125: 0.235 | E125: 23.450 | F125: 35.62 | G125: 12.99 | H125: 4.60 | I125: 1.46 | J125: 2.53 | K125: 1.90 | L125: 1.21 | M125: 0.89 | N125: 29.92 | O125: 29.20 | P125: 26.17 | Q125: 22.96 | R125: 6.30 | S125: 9.19 | T125: 16.26 | U125: 20.72 | V125: 0.98 | W125: 0.95 | X125: 0.78 | Y125: 0.43 | Z125: 0 | AA125: 1 | AB125: 0 | AC125: 1 | AD125: 0 | AE125: 0
A126: 138 | B126: 108 | C126: 33 | D126: 0.261 | E126: 29.003 | F126: 21.68 | G126: 12.31 | H126: 4.98 | I126: 1.65 | J126: 1.58 | K126: 1.39 | L126: 0.99 | M126: 0.64 | N126: 34.38 | O126: 33.33 | P126: 29.26 | Q126: 23.92 | R126: 3.83 | S126: 8.70 | T126: 17.62 | U126: 23.29 | V126: 0.99 | W126: 0.97 | X126: 0.80 | Y126: 0.23 | Z126: 0 | AA126: 0 | AB126: 1 | AC126: 0 | AD126: 0 | AE126: 0
A127: 139 | B127: 112 | C127: 32 | D127: 0.208 | E127: 23.639 | F127: 24.17 | G127: 10.59 | H127: 5.60 | I127: 1.49 | J127: 1.86 | K127: 1.22 | L127: 0.99 | M127: 0.72 | N127: 31.10 | O127: 30.24 | P127: 23.11 | Q127: 22.64 | R127: 4.27 | S127: 7.49 | T127: 19.78 | U127: 21.01 | V127: 0.99 | W127: 0.97 | X127: 0.52 | Y127: 0.37 | Z127: 0 | AA127: 0 | AB127: 1 | AC127: 0 | AD127: 0 | AE127: 0
A128: 140 | B128: 111 | C128: 22 | D128: 0.179 | E128: 19.817 | F128: 15.93 | G128: 8.97 | H128: 4.13 | I128: 1.13 | J128: 1.41 | K128: 1.10 | L128: 0.90 | M128: 0.80 | N128: 25.85 | O128: 25.23 | P128: 21.73 | Q128: 21.53 | R128: 2.82 | S128: 6.34 | T128: 14.60 | U128: 16.05 | V128: 0.99 | W128: 0.97 | X128: 0.74 | Y128: 0.67 | Z128: 0 | AA128: 0 | AB128: 1 | AC128: 0 | AD128: 0 | AE128: 0
A129: 142 | B129: 106 | C129: 26 | D129: 0.194 | E129: 20.494 | F129: 26.07 | G129: 11.31 | H129: 4.29 | I129: 1.45 | J129: 2.06 | K129: 1.23 | L129: 0.96 | M129: 0.70 | N129: 28.09 | O129: 27.32 | P129: 24.27 | Q129: 20.63 | R129: 4.61 | S129: 8.00 | T129: 15.17 | U129: 20.53 | V129: 0.99 | W129: 0.96 | X129: 0.78 | Y129: 0.10 | Z129: 0 | AA129: 0 | AB129: 0 | AC129: 0 | AD129: 0 | AE129: 1
A130: 143 | B130: 113 | C130: 31 | D130: 0.274 | E130: 32.165 | F130: 25.04 | G130: 14.19 | H130: 5.24 | I130: 1.70 | J130: 1.22 | K130: 1.34 | L130: 0.91 | M130: 0.85 | N130: 38.45 | O130: 37.29 | P130: 33.19 | Q130: 30.53 | R130: 4.43 | S130: 10.03 | T130: 18.53 | U130: 24.03 | V130: 0.99 | W130: 0.96 | X130: 0.83 | Y130: 0.62 | Z130: 0 | AA130: 0 | AB130: 0 | AC130: 1 | AD130: 0 | AE130: 0
A131: 144 | B131: 100 | C131: 20 | D131: 0.211 | E131: 20.706 | F131: 25.44 | G131: 12.28 | H131: 4.56 | I131: 1.44 | J131: 1.45 | K131: 1.14 | L131: 0.94 | M131: 0.91 | N131: 28.89 | O131: 27.78 | P131: 23.26 | Q131: 20.43 | R131: 4.50 | S131: 8.69 | T131: 16.12 | U131: 20.43 | V131: 0.99 | W131: 0.95 | X131: 0.72 | Y131: 0.01 | Z131: 0 | AA131: 0 | AB131: 0 | AC131: 0 | AD131: 0 | AE131: 1
A132: 145 | B132: 96 | C132: 17 | D132: 0.153 | E132: 14.726 | F132: 24.82 | G132: 11.11 | H132: 3.47 | I132: 1.04 | J132: 1.32 | K132: 1.09 | L132: 0.92 | M132: 0.81 | N132: 20.31 | O132: 19.14 | P132: 16.86 | Q132: 15.14 | R132: 4.39 | S132: 7.86 | T132: 12.25 | U132: 14.70 | V132: 0.98 | W132: 0.91 | X132: 0.69 | Y132: 0.24 | Z132: 0 | AA132: 0 | AB132: 0 | AC132: 0 | AD132: 0 | AE132: 1
A133: 146 | B133: 99 | C133: 24 | D133: 0.149 | E133: 14.814 | F133: 14.99 | G133: 5.83 | H133: 2.08 | I133: 0.83 | J133: 1.72 | K133: 1.33 | L133: 0.98 | M133: 0.79 | N133: 20.69 | O133: 20.39 | P133: 19.48 | Q133: 17.00 | R133: 2.65 | S133: 4.12 | T133: 7.34 | U133: 11.80 | V133: 0.99 | W133: 0.98 | X133: 0.93 | Y133: 0.72 | Z133: 0 | AA133: 0 | AB133: 0 | AC133: 0 | AD133: 0 | AE133: 1
A134: 147 | B134: 113 | C134: 27 | D134: 0.192 | E134: 20.940 | F134: 28.49 | G134: 13.39 | H134: 5.13 | I134: 1.55 | J134: 1.80 | K134: 1.19 | L134: 0.88 | M134: 0.77 | N134: 29.04 | O134: 27.82 | P134: 23.08 | Q134: 20.02 | R134: 5.04 | S134: 9.47 | T134: 18.15 | U134: 21.86 | V134: 0.98 | W134: 0.94 | X134: 0.62 | Y134: 0.40 | Z134: 0 | AA134: 0 | AB134: 0 | AC134: 1 | AD134: 0 | AE134: 0
A135: 148 | B135: 112 | C135: 36 | D135: 0.248 | E135: 27.367 | F135: 62.79 | G135: 22.90 | H135: 7.38 | I135: 1.82 | J135: 2.17 | K135: 1.37 | L135: 0.85 | M135: 0.84 | N135: 36.83 | O135: 34.92 | P135: 28.29 | Q135: 29.33 | R135: 11.10 | S135: 16.19 | T135: 26.08 | U135: 25.77 | V135: 0.95 | W135: 0.89 | X135: 0.39 | Y135: 0.48 | Z135: 0 | AA135: 0 | AB135: 0 | AC135: 0 | AD135: 0 | AE135: 1
A136: 150 | B136: 112 | C136: 21 | D136: 0.203 | E136: 22.413 | F136: 36.43 | G136: 14.62 | H136: 4.57 | I136: 1.37 | J136: 2.30 | K136: 1.29 | L136: 0.90 | M136: 0.85 | N136: 31.01 | O136: 29.85 | P136: 26.86 | Q136: 24.66 | R136: 6.44 | S136: 10.34 | T136: 16.16 | U136: 19.42 | V136: 0.98 | W136: 0.94 | X136: 0.80 | Y136: 0.62 | Z136: 0 | AA136: 0 | AB136: 1 | AC136: 0 | AD136: 0 | AE136: 0
A137: 152 | B137: 115 | C137: 36.75 | D137: 0.290 | E137: 34.226 | F137: 51.01 | G137: 21.66 | H137: 6.92 | I137: 2.17 | J137: 2.34 | K137: 1.56 | L137: 0.90 | M137: 0.71 | N137: 43.51 | O137: 41.78 | P137: 37.73 | Q137: 33.42 | R137: 9.02 | S137: 15.32 | T137: 24.46 | U137: 30.64 | V137: 0.98 | W137: 0.93 | X137: 0.76 | Y137: 0.40 | Z137: 0 | AA137: 0 | AB137: 0 | AC137: 1 | AD137: 0 | AE137: 0
A138: 153 | B138: 112 | C138: 23.75 | D138: 0.246 | E138: 28.239 | F138: 32.04 | G138: 17.37 | H138: 6.79 | I138: 1.43 | J138: 1.40 | K138: 1.17 | L138: 0.80 | M138: 0.78 | N138: 38.04 | O138: 35.97 | P138: 26.51 | Q138: 29.66 | R138: 5.66 | S138: 12.28 | T138: 24.02 | U138: 20.20 | V138: 0.99 | W138: 0.94 | X138: 0.42 | Y138: 0.73 | Z138: 0 | AA138: 0 | AB138: 1 | AC138: 0 | AD138: 0 | AE138: 0
A139: 154 | B139: 110 | C139: 21.25 | D139: 0.184 | E139: 20.453 | F139: 20.92 | G139: 11.46 | H139: 4.30 | I139: 1.38 | J139: 1.55 | K139: 1.22 | L139: 0.91 | M139: 0.81 | N139: 28.67 | O139: 27.71 | P139: 24.17 | Q139: 21.48 | R139: 3.70 | S139: 8.10 | T139: 15.19 | U139: 19.56 | V139: 0.99 | W139: 0.96 | X139: 0.78 | Y139: 0.41 | Z139: 0 | AA139: 0 | AB139: 1 | AC139: 0 | AD139: 0 | AE139: 0
A140: 155 | B140: 103 | C140: 27 | D140: 0.204 | E140: 21.406 | F140: 35.50 | G140: 16.03 | H140: 5.23 | I140: 1.45 | J140: 1.81 | K140: 1.31 | L140: 1.01 | M140: 0.75 | N140: 29.34 | O140: 26.73 | P140: 22.39 | Q140: 20.70 | R140: 6.28 | S140: 11.34 | T140: 18.50 | U140: 20.51 | V140: 0.98 | W140: 0.91 | X140: 0.56 | Y140: 0.13 | Z140: 0 | AA140: 0 | AB140: 1 | AC140: 0 | AD140: 0 | AE140: 0
A141: 156 | B141: 115 | C141: 29 | D141: 0.233 | E141: 27.156 | F141: 18.07 | G141: 11.08 | H141: 4.96 | I141: 1.44 | J141: 1.27 | K141: 1.08 | L141: 0.81 | M141: 0.79 | N141: 36.03 | O141: 35.29 | P141: 31.53 | Q141: 29.51 | R141: 3.19 | S141: 7.83 | T141: 17.54 | U141: 20.41 | V141: 1.00 | W141: 0.98 | X141: 0.83 | Y141: 0.72 | Z141: 0 | AA141: 0 | AB141: 1 | AC141: 0 | AD141: 0 | AE141: 0
A142: 157 | B142: 107 | C142: 33 | D142: 0.308 | E142: 31.697 | F142: 29.48 | G142: 12.74 | H142: 4.65 | I142: 1.70 | J142: 1.85 | K142: 1.28 | L142: 0.95 | M142: 0.80 | N142: 38.21 | O142: 37.12 | P142: 34.06 | Q142: 29.83 | R142: 5.21 | S142: 9.01 | T142: 16.45 | U142: 24.04 | V142: 0.99 | W142: 0.97 | X142: 0.88 | Y142: 0.59 | Z142: 0 | AA142: 0 | AB142: 0 | AC142: 0 | AD142: 0 | AE142: 1
A143: 158 | B143: 103 | C143: 13 | D143: 0.114 | E143: 11.935 | F143: 15.59 | G143: 7.23 | H143: 2.79 | I143: 0.85 | J143: 2.11 | K143: 1.64 | L143: 1.06 | M143: 0.81 | N143: 16.47 | O143: 15.83 | P143: 13.18 | Q143: 11.72 | R143: 2.76 | S143: 5.11 | T143: 9.86 | U143: 11.96 | V143: 0.99 | W143: 0.95 | X143: 0.66 | Y143: 0.20 | Z143: 0 | AA143: 0 | AB143: 1 | AC143: 0 | AD143: 0 | AE143: 0
A144: 159 | B144: 107 | C144: 24 | D144: 0.219 | E144: 23.174 | F144: 45.19 | G144: 18.93 | H144: 5.17 | I144: 1.49 | J144: 1.95 | K144: 1.51 | L144: 1.02 | M144: 0.89 | N144: 31.34 | O144: 27.67 | P144: 24.90 | Q144: 22.35 | R144: 7.99 | S144: 13.38 | T144: 18.29 | U144: 21.07 | V144: 0.97 | W144: 0.88 | X144: 0.68 | Y144: 0.33 | Z144: 0 | AA144: 0 | AB144: 0 | AC144: 1 | AD144: 0 | AE144: 0
A145: 160 | B145: 104 | C145: 19 | D145: 0.205 | E145: 21.262 | F145: 39.62 | G145: 13.35 | H145: 4.82 | I145: 1.42 | J145: 2.82 | K145: 1.61 | L145: 0.97 | M145: 0.83 | N145: 24.94 | O145: 24.11 | P145: 19.58 | Q145: 16.56 | R145: 7.00 | S145: 9.44 | T145: 17.02 | U145: 20.11 | V145: 0.96 | W145: 0.92 | X145: 0.49 | Y145: 0.57 | Z145: 0 | AA145: 0 | AB145: 0 | AC145: 1 | AD145: 0 | AE145: 0
A146: 161 | B146: 99 | C146: 25 | D146: 0.189 | E146: 19.440 | F146: 31.85 | G146: 18.09 | H146: 5.04 | I146: 1.37 | J146: 1.34 | K146: 1.13 | L146: 0.91 | M146: 0.74 | N146: 26.93 | O146: 24.34 | P146: 20.67 | Q146: 19.05 | R146: 5.63 | S146: 12.79 | T146: 17.82 | U146: 19.44 | V146: 0.98 | W146: 0.85 | X146: 0.51 | Y146: 0.20 | Z146: 0 | AA146: 0 | AB146: 1 | AC146: 0 | AD146: 0 | AE146: 0
A147: 163 | B147: 102 | C147: 18 | D147: 0.193 | E147: 19.421 | F147: 23.46 | G147: 8.83 | H147: 3.36 | I147: 1.20 | J147: 2.42 | K147: 1.42 | L147: 0.98 | M147: 0.98 | N147: 26.89 | O147: 26.35 | P147: 24.03 | Q147: 20.89 | R147: 4.15 | S147: 6.24 | T147: 11.87 | U147: 16.92 | V147: 0.99 | W147: 0.97 | X147: 0.87 | Y147: 0.59 | Z147: 0 | AA147: 0 | AB147: 0 | AC147: 0 | AD147: 0 | AE147: 1
A148: 164 | B148: 122 | C148: 20 | D148: 0.154 | E148: 18.770 | F148: 28.43 | G148: 10.40 | H148: 3.95 | I148: 1.08 | J148: 1.72 | K148: 1.15 | L148: 0.93 | M148: 0.88 | N148: 26.07 | O148: 25.35 | P148: 22.12 | Q148: 21.73 | R148: 5.03 | S148: 7.35 | T148: 13.96 | U148: 15.28 | V148: 0.98 | W148: 0.96 | X148: 0.78 | Y148: 0.71 | Z148: 0 | AA148: 0 | AB148: 1 | AC148: 0 | AD148: 0 | AE148: 0
A149: 165 | B149: 114 | C149: 22 | D149: 0.133 | E149: 14.666 | F149: 12.48 | G149: 5.50 | H149: 2.77 | I149: 0.88 | J149: 1.36 | K149: 1.01 | L149: 0.97 | M149: 0.87 | N149: 20.62 | O149: 20.35 | P149: 18.14 | Q149: 17.46 | R149: 2.21 | S149: 3.89 | T149: 9.80 | U149: 12.38 | V149: 0.99 | W149: 0.98 | X149: 0.84 | Y149: 0.70 | Z149: 0 | AA149: 0 | AB149: 0 | AC149: 1 | AD149: 0 | AE149: 0
A150: 167 | B150: 102 | C150: 17 | D150: 0.149 | E150: 15.199 | F150: 24.73 | G150: 12.60 | H150: 3.94 | I150: 1.03 | J150: 1.82 | K150: 1.29 | L150: 0.89 | M150: 0.92 | N150: 20.95 | O150: 19.37 | P150: 15.73 | Q150: 14.47 | R150: 4.37 | S150: 8.91 | T150: 13.94 | U150: 14.52 | V150: 0.98 | W150: 0.89 | X150: 0.46 | Y150: 0.09 | Z150: 0 | AA150: 0 | AB150: 1 | AC150: 0 | AD150: 0 | AE150: 0
A151: 168 | B151: 105 | C151: 25 | D151: 0.231 | E151: 25.048 | F151: 24.50 | G151: 15.61 | H151: 5.33 | I151: 1.46 | J151: 1.26 | K151: 1.05 | L151: 0.90 | M151: 0.79 | N151: 30.13 | O151: 28.41 | P151: 24.01 | Q151: 22.85 | R151: 4.33 | S151: 11.04 | T151: 18.83 | U151: 20.64 | V151: 0.99 | W151: 0.92 | X151: 0.62 | Y151: 0.43 | Z151: 0 | AA151: 0 | AB151: 1 | AC151: 0 | AD151: 0 | AE151: 0
A152: 169 | B152: 107 | C152: 21 | D152: 0.214 | E152: 22.393 | F152: 25.38 | G152: 11.44 | H152: 3.83 | I152: 1.49 | J152: 1.44 | K152: 1.09 | L152: 0.95 | M152: 1.02 | N152: 26.60 | O152: 25.79 | P152: 23.59 | Q152: 18.36 | R152: 4.49 | S152: 8.09 | T152: 13.53 | U152: 21.02 | V152: 0.99 | W152: 0.95 | X152: 0.82 | Y152: 0.49 | Z152: 0 | AA152: 0 | AB152: 0 | AC152: 0 | AD152: 0 | AE152: 1
A153: 170 | B153: 116 | C153: 31 | D153: 0.206 | E153: 23.702 | F153: 16.38 | G153: 8.76 | H153: 4.35 | I153: 1.47 | J153: 1.33 | K153: 1.09 | L153: 0.96 | M153: 0.83 | N153: 33.40 | O153: 32.96 | P153: 29.97 | Q153: 26.51 | R153: 2.90 | S153: 6.19 | T153: 15.39 | U153: 20.81 | V153: 1.00 | W153: 0.98 | X153: 0.86 | Y153: 0.62 | Z153: 0 | AA153: 0 | AB153: 1 | AC153: 0 | AD153: 0 | AE153: 0
A154: 171 | B154: 118 | C154: 26 | D154: 0.174 | E154: 20.724 | F154: 22.04 | G154: 10.74 | H154: 4.15 | I154: 1.28 | J154: 1.06 | K154: 1.13 | L154: 1.11 | M154: 0.93 | N154: 29.01 | O154: 28.09 | P154: 23.97 | Q154: 20.98 | R154: 3.90 | S154: 7.60 | T154: 14.67 | U154: 18.11 | V154: 0.99 | W154: 0.96 | X154: 0.79 | Y154: 0.51 | Z154: 0 | AA154: 0 | AB154: 0 | AC154: 1 | AD154: 0 | AE154: 0
A155: 172 | B155: 101 | C155: 31 | D155: 0.257 | E155: 24.903 | F155: 23.88 | G155: 11.42 | H155: 4.77 | I155: 1.69 | J155: 1.21 | K155: 1.02 | L155: 0.70 | M155: 0.83 | N155: 31.68 | O155: 30.48 | P155: 27.30 | Q155: 23.11 | R155: 4.22 | S155: 8.08 | T155: 16.87 | U155: 23.85 | V155: 0.99 | W155: 0.96 | X155: 0.79 | Y155: 0.25 | Z155: 0 | AA155: 0 | AB155: 0 | AC155: 0 | AD155: 0 | AE155: 1
A156: 173 | B156: 101 | C156: 20.25 | D156: 0.222 | E156: 22.555 | F156: 53.20 | G156: 18.12 | H156: 4.45 | I156: 1.41 | J156: 3.24 | K156: 2.27 | L156: 1.38 | M156: 0.97 | N156: 30.38 | O156: 28.98 | P156: 26.60 | Q156: 23.65 | R156: 9.40 | S156: 12.81 | T156: 15.75 | U156: 19.90 | V156: 0.95 | W156: 0.90 | X156: 0.81 | Y156: 0.54 | Z156: 1 | AA156: 0 | AB156: 0 | AC156: 0 | AD156: 1 | AE156: 0
A157: 174 | B157: 105 | C157: 23 | D157: 0.208 | E157: 21.915 | F157: 17.80 | G157: 8.98 | H157: 3.61 | I157: 1.19 | J157: 1.40 | K157: 1.21 | L157: 0.89 | M157: 0.76 | N157: 28.69 | O157: 28.17 | P157: 26.04 | Q157: 23.96 | R157: 3.15 | S157: 6.35 | T157: 12.76 | U157: 16.84 | V157: 0.99 | W157: 0.97 | X157: 0.87 | Y157: 0.71 | Z157: 0 | AA157: 0 | AB157: 0 | AC157: 0 | AD157: 1 | AE157: 0
A158: 175 | B158: 113 | C158: 33 | D158: 0.244 | E158: 26.717 | F158: 24.12 | G158: 11.91 | H158: 4.90 | I158: 1.72 | J158: 1.27 | K158: 1.09 | L158: 0.89 | M158: 0.73 | N158: 36.78 | O158: 36.07 | P158: 32.90 | Q158: 29.16 | R158: 4.26 | S158: 8.42 | T158: 17.32 | U158: 24.35 | V158: 0.99 | W158: 0.97 | X158: 0.85 | Y158: 0.55 | Z158: 0 | AA158: 0 | AB158: 0 | AC158: 0 | AD158: 0 | AE158: 1
A159: 176 | B159: 108 | C159: 24.75 | D159: 0.207 | E159: 22.301 | F159: 34.15 | G159: 11.92 | H159: 4.84 | I159: 1.45 | J159: 2.30 | K159: 1.25 | L159: 0.93 | M159: 0.84 | N159: 30.85 | O159: 30.27 | P159: 26.28 | Q159: 23.75 | R159: 6.04 | S159: 8.43 | T159: 17.12 | U159: 20.52 | V159: 0.98 | W159: 0.96 | X159: 0.76 | Y159: 0.50 | Z159: 0 | AA159: 0 | AB159: 1 | AC159: 0 | AD159: 0 | AE159: 0
A160: 177 | B160: 115 | C160: 31 | D160: 0.243 | E160: 26.166 | F160: 31.23 | G160: 12.04 | H160: 3.91 | I160: 1.51 | J160: 2.24 | K160: 1.39 | L160: 1.06 | M160: 0.86 | N160: 36.00 | O160: 35.43 | P160: 33.87 | Q160: 31.05 | R160: 5.52 | S160: 8.52 | T160: 13.84 | U160: 21.34 | V160: 0.99 | W160: 0.97 | X160: 0.91 | Y160: 0.73 | Z160: 0 | AA160: 0 | AB160: 0 | AC160: 1 | AD160: 0 | AE160: 0
A161: 178 | B161: 102 | C161: 12 | D161: 0.174 | E161: 17.956 | F161: 42.78 | G161: 13.59 | H161: 2.92 | I161: 0.88 | J161: 4.09 | K161: 2.93 | L161: 1.82 | M161: 1.44 | N161: 14.20 | O161: 14.55 | P161: 14.09 | Q161: 13.22 | R161: 7.56 | S161: 9.61 | T161: 10.31 | U161: 12.39 | V161: 0.85 | W161: 0.75 | X161: 0.68 | Y161: 0.35 | Z161: 0 | AA161: 0 | AB161: 0 | AC161: 0 | AD161: 1 | AE161: 0
A162: 179 | B162: 104 | C162: 25 | D162: 0.233 | E162: 25.450 | F162: 21.70 | G162: 12.20 | H162: 5.38 | I162: 1.41 | J162: 1.30 | K162: 1.03 | L162: 0.87 | M162: 0.82 | N162: 35.67 | O162: 34.44 | P162: 27.56 | Q162: 26.57 | R162: 3.84 | S162: 8.63 | T162: 19.01 | U162: 19.94 | V162: 0.99 | W162: 0.97 | X162: 0.72 | Y162: 0.66 | Z162: 0 | AA162: 0 | AB162: 1 | AC162: 0 | AD162: 0 | AE162: 0
A163: 180 | B163: 104 | C163: 24 | D163: 0.194 | E163: 20.293 | F163: 21.81 | G163: 13.08 | H163: 5.11 | I163: 1.23 | J163: 1.19 | K163: 1.07 | L163: 0.84 | M163: 0.77 | N163: 26.90 | O163: 25.48 | P163: 20.45 | Q163: 21.11 | R163: 3.86 | S163: 9.25 | T163: 18.07 | U163: 17.45 | V163: 0.99 | W163: 0.93 | X163: 0.47 | Y163: 0.56 | Z163: 0 | AA163: 0 | AB163: 0 | AC163: 0 | AD163: 0 | AE163: 1
A164: 182 | B164: 102 | C164: 21 | D164: 0.208 | E164: 21.185 | F164: 41.65 | G164: 14.03 | H164: 4.28 | I164: 1.24 | J164: 2.53 | K164: 1.60 | L164: 0.98 | M164: 0.92 | N164: 26.53 | O164: 25.65 | P164: 22.58 | Q164: 21.30 | R164: 7.36 | S164: 9.92 | T164: 15.14 | U164: 17.51 | V164: 0.96 | W164: 0.92 | X164: 0.74 | Y164: 0.57 | Z164: 0 | AA164: 0 | AB164: 0 | AC164: 0 | AD164: 1 | AE164: 0
A165: 184 | B165: 108 | C165: 16 | D165: 0.158 | E165: 16.990 | F165: 41.14 | G165: 16.93 | H165: 4.51 | I165: 1.18 | J165: 2.75 | K165: 1.84 | L165: 1.21 | M165: 1.07 | N165: 22.91 | O165: 20.87 | P165: 18.21 | Q165: 18.40 | R165: 7.27 | S165: 11.97 | T165: 15.96 | U165: 16.70 | V165: 0.95 | W165: 0.82 | X165: 0.48 | Y165: 0.42 | Z165: 0 | AA165: 0 | AB165: 0 | AC165: 1 | AD165: 0 | AE165: 0
A166: 185 | B166: 99 | C166: 27 | D166: 0.290 | E166: 30.306 | F166: 30.26 | G166: 14.39 | H166: 5.26 | I166: 1.54 | J166: 2.19 | K166: 1.34 | L166: 0.95 | M166: 0.74 | N166: 30.22 | O166: 29.44 | P166: 24.80 | Q166: 21.16 | R166: 5.35 | S166: 10.17 | T166: 18.60 | U166: 21.84 | V166: 0.98 | W166: 0.94 | X166: 0.66 | Y166: 0.25 | Z166: 0 | AA166: 0 | AB166: 0 | AC166: 1 | AD166: 0 | AE166: 0
A167: 187 | B167: 108 | C167: 16 | D167: 0.167 | E167: 17.918 | F167: 43.56 | G167: 11.14 | H167: 3.68 | I167: 1.07 | J167: 3.26 | K167: 1.42 | L167: 0.86 | M167: 0.93 | N167: 23.18 | O167: 22.97 | P167: 19.80 | Q167: 18.79 | R167: 7.70 | S167: 7.88 | T167: 13.01 | U167: 15.16 | V167: 0.94 | W167: 0.94 | X167: 0.75 | Y167: 0.59 | Z167: 0 | AA167: 0 | AB167: 1 | AC167: 0 | AD167: 0 | AE167: 0
A168: 188 | B168: 115 | C168: 33 | D168: 0.251 | E168: 29.193 | F168: 39.60 | G168: 13.32 | H168: 5.01 | I168: 1.55 | J168: 2.99 | K168: 1.50 | L168: 0.88 | M168: 0.75 | N168: 35.49 | O168: 34.83 | P168: 30.32 | Q168: 27.11 | R168: 7.00 | S168: 9.42 | T168: 17.70 | U168: 21.98 | V168: 0.98 | W168: 0.96 | X168: 0.81 | Y168: 0.59 | Z168: 0 | AA168: 0 | AB168: 1 | AC168: 0 | AD168: 0 | AE168: 0
A169: 189 | B169: 98 | C169: 20 | D169: 0.174 | E169: 16.581 | F169: 38.72 | G169: 12.16 | H169: 3.88 | I169: 1.19 | J169: 3.29 | K169: 1.78 | L169: 1.07 | M169: 0.97 | N169: 22.44 | O169: 21.87 | P169: 19.17 | Q169: 17.17 | R169: 6.84 | S169: 8.60 | T169: 13.71 | U169: 16.77 | V169: 0.95 | W169: 0.92 | X169: 0.70 | Y169: 0.21 | Z169: 0 | AA169: 0 | AB169: 0 | AC169: 0 | AD169: 0 | AE169: 1
A170: 190 | B170: 117 | C170: 40 | D170: 0.284 | E170: 33.572 | F170: 51.16 | G170: 20.22 | H170: 7.28 | I170: 2.01 | J170: 2.61 | K170: 1.32 | L170: 0.76 | M170: 0.77 | N170: 44.82 | O170: 43.49 | P170: 38.37 | Q170: 36.76 | R170: 9.04 | S170: 14.29 | T170: 25.75 | U170: 28.48 | V170: 0.98 | W170: 0.94 | X170: 0.74 | Y170: 0.63 | Z170: 0 | AA170: 0 | AB170: 0 | AC170: 0 | AD170: 1 | AE170: 0
A171: 191 | B171: 107 | C171: 27.25 | D171: 0.193 | E171: 21.129 | F171: 25.91 | G171: 9.64 | H171: 2.68 | I171: 1.04 | J171: 2.25 | K171: 1.59 | L171: 1.06 | M171: 0.85 | N171: 29.51 | O171: 29.03 | P171: 28.37 | Q171: 26.61 | R171: 4.58 | S171: 6.82 | T171: 9.48 | U171: 14.72 | V171: 0.99 | W171: 0.97 | X171: 0.94 | Y171: 0.83 | Z171: 0 | AA171: 0 | AB171: 0 | AC171: 0 | AD171: 0 | AE171: 1
A172: 192 | B172: 107 | C172: 21 | D172: 0.196 | E172: 20.700 | F172: 41.83 | G172: 13.60 | H172: 4.12 | I172: 1.20 | J172: 2.65 | K172: 1.45 | L172: 0.91 | M172: 0.82 | N172: 25.01 | O172: 24.00 | P172: 21.06 | Q172: 19.38 | R172: 7.39 | S172: 9.61 | T172: 14.57 | U172: 16.99 | V172: 0.96 | W172: 0.92 | X172: 0.72 | Y172: 0.48 | Z172: 0 | AA172: 0 | AB172: 0 | AC172: 0 | AD172: 1 | AE172: 0
A173: 193 | B173: 84 | C173: 22 | D173: 0.248 | E173: 20.002 | F173: 34.45 | G173: 10.89 | H173: 2.70 | I173: 0.87 | J173: 2.28 | K173: 1.79 | L173: 1.26 | M173: 1.12 | N173: 25.75 | O173: 25.32 | P173: 24.67 | Q173: 23.05 | R173: 6.09 | S173: 7.70 | T173: 9.54 | U173: 12.23 | V173: 0.97 | W173: 0.95 | X173: 0.92 | Y173: 0.85 | Z173: 1 | AA173: 1 | AB173: 0 | AC173: 0 | AD173: 0 | AE173: 1
A174: 194 | B174: 108 | C174: 34 | D174: 0.252 | E174: 28.011 | F174: 20.38 | G174: 12.67 | H174: 4.40 | I174: 1.75 | J174: 1.28 | K174: 1.21 | L174: 0.90 | M174: 0.75 | N174: 38.54 | O174: 37.69 | P174: 34.81 | Q174: 30.17 | R174: 3.60 | S174: 8.96 | T174: 15.55 | U174: 24.70 | V174: 1.00 | W174: 0.97 | X174: 0.89 | Y174: 0.57 | Z174: 0 | AA174: 0 | AB174: 0 | AC174: 1 | AD174: 0 | AE174: 0
A175: 195 | B175: 97 | C175: 20.25 | D175: 0.266 | E175: 24.708 | F175: 19.63 | G175: 10.28 | H175: 3.77 | I175: 1.21 | J175: 1.29 | K175: 1.18 | L175: 0.97 | M175: 0.83 | N175: 30.32 | O175: 29.52 | P175: 26.22 | Q175: 24.20 | R175: 3.47 | S175: 7.27 | T175: 13.32 | U175: 17.17 | V175: 0.99 | W175: 0.97 | X175: 0.86 | Y175: 0.70 | Z175: 0 | AA175: 0 | AB175: 0 | AC175: 0 | AD175: 0 | AE175: 1
A176: 196 | B176: 102 | C176: 33 | D176: 0.242 | E176: 25.796 | F176: 33.57 | G176: 16.51 | H176: 6.25 | I176: 1.71 | J176: 1.72 | K176: 1.15 | L176: 0.79 | M176: 0.71 | N176: 34.25 | O176: 32.61 | P176: 26.44 | Q176: 24.52 | R176: 5.93 | S176: 11.68 | T176: 22.09 | U176: 24.14 | V176: 0.98 | W176: 0.93 | X176: 0.55 | Y176: 0.17 | Z176: 0 | AA176: 0 | AB176: 0 | AC176: 1 | AD176: 0 | AE176: 0
A177: 197 | B177: 107 | C177: 30 | D177: 0.238 | E177: 25.459 | F177: 31.40 | G177: 15.86 | H177: 5.09 | I177: 1.53 | J177: 1.84 | K177: 1.56 | L177: 0.95 | M177: 0.71 | N177: 31.65 | O177: 30.98 | P177: 27.50 | Q177: 25.48 | R177: 5.55 | S177: 11.22 | T177: 17.99 | U177: 21.59 | V177: 0.98 | W177: 0.93 | X177: 0.76 | Y177: 0.53 | Z177: 0 | AA177: 0 | AB177: 0 | AC177: 1 | AD177: 0 | AE177: 0
A178: 198 | B178: 108 | C178: 36 | D178: 0.234 | E178: 25.729 | F178: 56.59 | G178: 17.79 | H178: 5.41 | I178: 1.48 | J178: 3.17 | K178: 1.62 | L178: 1.06 | M178: 0.83 | N178: 35.00 | O178: 34.18 | P178: 31.38 | Q178: 30.27 | R178: 10.00 | S178: 12.58 | T178: 19.11 | U178: 20.96 | V178: 0.96 | W178: 0.93 | X178: 0.79 | Y178: 0.72 | Z178: 0 | AA178: 0 | AB178: 0 | AC178: 0 | AD178: 1 | AE178: 0
A179: 199 | B179: 113 | C179: 26 | D179: 0.250 | E179: 27.952 | F179: 45.09 | G179: 17.38 | H179: 5.70 | I179: 1.54 | J179: 2.25 | K179: 1.27 | L179: 0.87 | M179: 0.75 | N179: 31.77 | O179: 30.02 | P179: 24.73 | Q179: 23.21 | R179: 7.97 | S179: 12.29 | T179: 20.15 | U179: 21.81 | V179: 0.97 | W179: 0.91 | X179: 0.58 | Y179: 0.34 | Z179: 0 | AA179: 0 | AB179: 0 | AC179: 1 | AD179: 0 | AE179: 0
A180: 200 | B180: 114 | C180: 28 | D180: 0.226 | E180: 25.843 | F180: 23.13 | G180: 13.40 | H180: 4.79 | I180: 1.53 | J180: 1.23 | K180: 1.04 | L180: 0.89 | M180: 0.94 | N180: 36.26 | O180: 35.10 | P180: 30.57 | Q180: 26.61 | R180: 4.09 | S180: 9.48 | T180: 16.94 | U180: 21.60 | V180: 0.99 | W180: 0.96 | X180: 0.83 | Y180: 0.58 | Z180: 0 | AA180: 0 | AB180: 1 | AC180: 0 | AD180: 0 | AE180: 0
A181: 201 | B181: 104 | C181: 28 | D181: 0.204 | E181: 21.855 | F181: 16.03 | G181: 8.85 | H181: 3.68 | I181: 1.45 | J181: 1.27 | K181: 1.06 | L181: 0.78 | M181: 0.62 | N181: 30.77 | O181: 30.22 | P181: 27.61 | Q181: 23.65 | R181: 2.83 | S181: 6.26 | T181: 13.01 | U181: 20.50 | V181: 1.00 | W181: 0.98 | X181: 0.88 | Y181: 0.50 | Z181: 0 | AA181: 0 | AB181: 0 | AC181: 0 | AD181: 0 | AE181: 1
A182: 202 | B182: 103 | C182: 19 | D182: 0.312 | E182: 33.735 | F182: 72.65 | G182: 22.06 | H182: 5.82 | I182: 1.82 | J182: 3.07 | K182: 2.21 | L182: 1.39 | M182: 1.26 | N182: 36.37 | O182: 33.78 | P182: 30.09 | Q182: 27.38 | R182: 12.84 | S182: 15.60 | T182: 20.58 | U182: 25.69 | V182: 0.94 | W182: 0.89 | X182: 0.73 | Y182: 0.35 | Z182: 1 | AA182: 0 | AB182: 0 | AC182: 0 | AD182: 1 | AE182: 0
A183: 203 | B183: 98 | C183: 16 | D183: 0.148 | E183: 14.716 | F183: 21.10 | G183: 10.58 | H183: 3.80 | I183: 1.11 | J183: 1.21 | K183: 1.03 | L183: 0.75 | M183: 0.78 | N183: 20.36 | O183: 19.14 | P183: 15.60 | Q183: 13.48 | R183: 3.73 | S183: 7.48 | T183: 13.42 | U183: 15.69 | V183: 0.98 | W183: 0.92 | X183: 0.51 | Y183: 0.51 | Z183: 0 | AA183: 0 | AB183: 0 | AC183: 1 | AD183: 0 | AE183: 0
A184: 204 | B184: 100 | C184: 33 | D184: 0.225 | E184: 22.705 | F184: 36.32 | G184: 14.26 | H184: 4.07 | I184: 1.12 | J184: 1.86 | K184: 1.19 | L184: 0.82 | M184: 0.74 | N184: 31.47 | O184: 30.37 | P184: 28.25 | Q184: 27.53 | R184: 6.42 | S184: 10.08 | T184: 14.41 | U184: 15.87 | V184: 0.98 | W184: 0.94 | X184: 0.86 | Y184: 0.82 | Z184: 0 | AA184: 0 | AB184: 0 | AC184: 0 | AD184: 1 | AE184: 0
A185: 205 | B185: 102 | C185: 19 | D185: 0.183 | E185: 18.305 | F185: 21.17 | G185: 9.04 | H185: 3.68 | I185: 1.30 | J185: 1.74 | K185: 1.26 | L185: 0.98 | M185: 0.69 | N185: 25.63 | O185: 25.14 | P185: 22.45 | Q185: 19.53 | R185: 3.74 | S185: 6.39 | T185: 13.01 | U185: 18.38 | V185: 0.99 | W185: 0.97 | X185: 0.81 | Y185: 0.34 | Z185: 0 | AA185: 0 | AB185: 0 | AC185: 0 | AD185: 1 | AE185: 0
A186: 207 | B186: 112 | C186: 28.5 | D186: 0.222 | E186: 25.002 | F186: 38.97 | G186: 17.28 | H186: 6.03 | I186: 1.74 | J186: 2.02 | K186: 1.21 | L186: 0.92 | M186: 0.74 | N186: 34.45 | O186: 32.92 | P186: 27.71 | Q186: 25.37 | R186: 6.89 | S186: 12.22 | T186: 21.33 | U186: 24.65 | V186: 0.98 | W186: 0.93 | X186: 0.64 | Y186: 0.24 | Z186: 0 | AA186: 0 | AB186: 1 | AC186: 0 | AD186: 0 | AE186: 0
A187: 209 | B187: 114 | C187: 23.25 | D187: 0.188 | E187: 21.617 | F187: 37.01 | G187: 15.33 | H187: 5.60 | I187: 1.24 | J187: 2.04 | K187: 1.18 | L187: 0.90 | M187: 0.83 | N187: 29.83 | O187: 28.50 | P187: 22.82 | Q187: 24.16 | R187: 6.54 | S187: 10.84 | T187: 19.79 | U187: 17.50 | V187: 0.98 | W187: 0.92 | X187: 0.50 | Y187: 0.69 | Z187: 0 | AA187: 0 | AB187: 1 | AC187: 0 | AD187: 0 | AE187: 0
A188: 210 | B188: 103 | C188: 23 | D188: 0.188 | E188: 19.991 | F188: 15.62 | G188: 9.41 | H188: 4.36 | I188: 1.66 | J188: 1.50 | K188: 1.31 | L188: 1.10 | M188: 0.91 | N188: 28.15 | O188: 27.55 | P188: 24.16 | Q188: 17.29 | R188: 2.76 | S188: 6.66 | T188: 15.41 | U188: 23.54 | V188: 1.00 | W188: 0.97 | X188: 0.77 | Y188: 0.68 | Z188: 0 | AA188: 0 | AB188: 1 | AC188: 0 | AD188: 0 | AE188: 0
A189: 211 | B189: 112 | C189: 23 | D189: 0.236 | E189: 26.701 | F189: 19.47 | G189: 11.00 | H189: 3.96 | I189: 1.68 | J189: 1.33 | K189: 1.10 | L189: 0.87 | M189: 0.92 | N189: 37.55 | O189: 36.71 | P189: 33.60 | Q189: 25.06 | R189: 3.44 | S189: 7.78 | T189: 13.99 | U189: 23.81 | V189: 1.00 | W189: 0.98 | X189: 0.91 | Y189: 0.31 | Z189: 0 | AA189: 0 | AB189: 1 | AC189: 0 | AD189: 0 | AE189: 0
A190: 212 | B190: 111 | C190: 30 | D190: 0.228 | E190: 24.987 | F190: 27.14 | G190: 14.33 | H190: 4.79 | I190: 1.49 | J190: 1.56 | K190: 1.22 | L190: 0.83 | M190: 0.70 | N190: 34.57 | O190: 33.50 | P190: 30.26 | Q190: 27.64 | R190: 4.80 | S190: 10.13 | T190: 16.94 | U190: 21.02 | V190: 0.99 | W190: 0.95 | X190: 0.83 | Y190: 0.65 | Z190: 0 | AA190: 0 | AB190: 0 | AC190: 0 | AD190: 1 | AE190: 0
A191: 214 | B191: 106 | C191: 37 | D191: 0.256 | E191: 26.529 | F191: 24.29 | G191: 12.23 | H191: 5.08 | I191: 1.43 | J191: 1.77 | K191: 1.32 | L191: 0.97 | M191: 0.78 | N191: 37.26 | O191: 36.46 | P191: 32.63 | Q191: 28.19 | R191: 4.29 | S191: 8.65 | T191: 17.95 | U191: 20.20 | V191: 0.99 | W191: 0.97 | X191: 0.84 | Y191: 0.70 | Z191: 0 | AA191: 0 | AB191: 1 | AC191: 0 | AD191: 0 | AE191: 0
A192: 217 | B192: 109 | C192: 22 | D192: 0.200 | E192: 21.956 | F192: 27.91 | G192: 11.79 | H192: 4.70 | I192: 1.31 | J192: 1.88 | K192: 1.25 | L192: 0.87 | M192: 0.89 | N192: 28.97 | O192: 28.45 | P192: 23.88 | Q192: 23.22 | R192: 4.93 | S192: 8.34 | T192: 16.62 | U192: 18.46 | V192: 0.99 | W192: 0.96 | X192: 0.72 | Y192: 0.61 | Z192: 0 | AA192: 0 | AB192: 1 | AC192: 0 | AD192: 0 | AE192: 0
A193: 218 | B193: 105 | C193: 22 | D193: 0.238 | E193: 25.475 | F193: 41.11 | G193: 18.13 | H193: 5.68 | I193: 1.61 | J193: 2.50 | K193: 1.49 | L193: 1.01 | M193: 0.93 | N193: 32.06 | O193: 30.61 | P193: 25.08 | Q193: 21.98 | R193: 7.27 | S193: 12.82 | T193: 20.09 | U193: 22.74 | V193: 0.97 | W193: 0.91 | X193: 0.60 | Y193: 0.25 | Z193: 0 | AA193: 0 | AB193: 1 | AC193: 0 | AD193: 0 | AE193: 0
A194: 219 | B194: 87 | C194: 42 | D194: 0.291 | E194: 24.571 | F194: 20.44 | G194: 8.74 | H194: 2.62 | I194: 0.82 | J194: 1.88 | K194: 1.46 | L194: 1.06 | M194: 0.87 | N194: 34.31 | O194: 33.95 | P194: 32.73 | Q194: 30.41 | R194: 3.61 | S194: 6.18 | T194: 9.25 | U194: 11.53 | V194: 0.99 | W194: 0.98 | X194: 0.96 | Y194: 0.93 | Z194: 0 | AA194: 0 | AB194: 0 | AC194: 0 | AD194: 1 | AE194: 0
A195: 220 | B195: 115 | C195: 20 | D195: 0.199 | E195: 23.183 | F195: 50.37 | G195: 14.48 | H195: 3.87 | I195: 1.23 | J195: 3.35 | K195: 2.08 | L195: 1.26 | M195: 1.06 | N195: 31.39 | O195: 30.44 | P195: 27.63 | Q195: 24.18 | R195: 8.90 | S195: 10.24 | T195: 13.67 | U195: 17.44 | V195: 0.96 | W195: 0.94 | X195: 0.87 | Y195: 0.69 | Z195: 0 | AA195: 0 | AB195: 1 | AC195: 0 | AD195: 0 | AE195: 0
A196: 221 | B196: 101 | C196: 18 | D196: 0.187 | E196: 18.925 | F196: 26.07 | G196: 11.03 | H196: 3.82 | I196: 1.24 | J196: 1.71 | K196: 1.27 | L196: 0.86 | M196: 0.97 | N196: 26.38 | O196: 25.37 | P196: 21.42 | Q196: 18.18 | R196: 4.61 | S196: 7.80 | T196: 13.49 | U196: 17.53 | V196: 0.98 | W196: 0.95 | X196: 0.78 | Y196: 0.27 | Z196: 0 | AA196: 0 | AB196: 0 | AC196: 1 | AD196: 0 | AE196: 0
A197: 222 | B197: 110 | C197: 34 | D197: 0.259 | E197: 28.944 | F197: 31.34 | G197: 17.80 | H197: 6.51 | I197: 1.65 | J197: 1.26 | K197: 1.07 | L197: 0.75 | M197: 0.75 | N197: 38.30 | O197: 36.64 | P197: 31.39 | Q197: 31.42 | R197: 5.54 | S197: 12.58 | T197: 23.01 | U197: 23.33 | V197: 0.99 | W197: 0.94 | X197: 0.68 | Y197: 0.67 | Z197: 0 | AA197: 0 | AB197: 0 | AC197: 0 | AD197: 0 | AE197: 1
A198: 223 | B198: 120 | C198: 38 | D198: 0.245 | E198: 29.653 | F198: 37.90 | G198: 13.39 | H198: 5.06 | I198: 1.76 | J198: 2.48 | K198: 1.48 | L198: 0.86 | M198: 0.81 | N198: 41.39 | O198: 40.78 | P198: 38.02 | Q198: 34.29 | R198: 6.70 | S198: 9.47 | T198: 17.91 | U198: 24.87 | V198: 0.99 | W198: 0.97 | X198: 0.88 | Y198: 0.69 | Z198: 0 | AA198: 0 | AB198: 0 | AC198: 0 | AD198: 1 | AE198: 0
A199: 225 | B199: 116 | C199: 41 | D199: 0.219 | E199: 24.617 | F199: 19.15 | G199: 10.90 | H199: 5.03 | I199: 1.34 | J199: 1.56 | K199: 1.30 | L199: 0.81 | M199: 0.68 | N199: 34.65 | O199: 33.94 | P199: 29.39 | Q199: 28.88 | R199: 3.39 | S199: 7.71 | T199: 17.78 | U199: 18.91 | V199: 1.00 | W199: 0.97 | X199: 0.80 | Y199: 0.76 | Z199: 0 | AA199: 0 | AB199: 1 | AC199: 0 | AD199: 0 | AE199: 0
A200: 226 | B200: 100 | C200: 23 | D200: 0.254 | E200: 26.424 | F200: 26.68 | G200: 17.34 | H200: 5.60 | I200: 1.59 | J200: 1.44 | K200: 1.12 | L200: 0.85 | M200: 0.82 | N200: 27.03 | O200: 25.77 | P200: 20.36 | Q200: 18.51 | R200: 4.72 | S200: 12.26 | T200: 19.79 | U200: 22.44 | V200: 0.98 | W200: 0.88 | X200: 0.23 | Y200: 0.57 | Z200: 0 | AA200: 0 | AB200: 0 | AC200: 0 | AD200: 1 | AE200: 0
... 2050 more rows

Sheet Mean Pre-CPB
A1: Subject ID | B1: Median | C1: IQR | D1: Coef of variation | E1: Standard deviation | F1: Standard deviation of rate of change (mmHg/min) | J1: Coefficient of variation of absolute rate of change | N1: Poincare principal axis 1 (mm Hg) | R1: Poincare principal axis 2 (mm Hg) | V1: Eccentricity of Poincare plot ellipse | Z1: Outcomes | AB1: Surgery Type
B2: (mm Hg) | C2: (mm Hg) | E2: (mmHg) | F2: 15 sec | G2: 1 min | H2: 5 min | I2: 20 min | J2: 15 sec | K2: 1 min | L2: 5 min | M2: 20 min | N2: 15 sec | O2: 1 min | P2: 5 min | Q2: 20 min | R2: 15 sec | S2: 1 min | T2: 5 min | U2: 20 min | V2: 15 sec | W2: 1 min | X2: 5 min | Y2: 20 min | Z2: 30-day Mortality | AA2: Renal Failure | AB2: CABG Only | AC2: Valve Only | AD2: CABG and Valve | AE2: Other | AF2: S1/S2
A3: 60 | B3: 103 | C3: 38 | D3: 0.269 | E3: 26.703 | F3: 62.17 | G3: 12.73 | H3: 4.29 | I3: 1.38 | J3: 3.57 | K3: 1.73 | L3: 1.27 | M3: 0.84 | N3: 36.09 | O3: 36.56 | P3: 34.78 | Q3: 29.10 | R3: 10.99 | S3: 9.00 | T3: 15.16 | U3: 19.55 | V3: 0.95 | W3: 0.97 | X3: 0.90 | Y3: 0.74 | Z3: 1 | AA3: 1 | AB3: 0 | AC3: 0 | AD3: 1 | AE3: 0 | AF3: =R3/N3 -> 0.3045009687 | AG3: =ROUND(AF3, 4) -> 0.3045
A4: 70 | B4: 70 | C4: 18.25 | D4: 0.203 | E4: 14.511 | F4: 42.97 | G4: 11.76 | H4: 3.02 | I4: 1.09 | J4: 5.20 | K4: 2.50 | L4: 1.07 | M4: 0.76 | N4: 18.96 | O4: 18.59 | P4: 17.49 | Q4: 11.25 | R4: 7.60 | S4: 8.32 | T4: 10.69 | U4: 15.36 | V4: 0.92 | W4: 0.89 | X4: 0.79 | Y4: 0.68 | Z4: 1 | AA4: 1 | AB4: 0 | AC4: 0 | AD4: 0 | AE4: 1 | AF4: 0.4005543307 | AG4: 0.4006
A5: 81 | B5: 76 | C5: 8 | D5: 0.121 | E5: 9.087 | F5: 19.07 | G5: 6.59 | H5: 2.31 | I5: 0.63 | J5: 2.25 | K5: 1.51 | L5: 1.02 | M5: 0.92 | N5: 12.37 | O5: 11.89 | P5: 9.61 | Q5: 7.54 | R5: 3.37 | S5: 4.66 | T5: 8.18 | U5: 8.86 | V5: 0.96 | W5: 0.92 | X5: 0.52 | Y5: 0.52 | Z5: 1 | AA5: 1 | AB5: 0 | AC5: 0 | AD5: 1 | AE5: 0 | AF5: 0.2723996103 | AG5: 0.2724
A6: 87 | B6: 74 | C6: 18 | D6: 0.193 | E6: 14.752 | F6: 35.00 | G6: 10.84 | H6: 3.16 | I6: 1.01 | J6: 3.13 | K6: 1.94 | L6: 1.16 | M6: 0.90 | N6: 19.88 | O6: 19.31 | P6: 17.26 | Q6: 14.73 | R6: 6.19 | S6: 7.67 | T6: 11.17 | U6: 14.24 | V6: 0.95 | W6: 0.92 | X6: 0.76 | Y6: 0.26 | Z6: 1 | AA6: 0 | AB6: 0 | AC6: 1 | AD6: 0 | AE6: 0 | AF6: 0.3112691975 | AG6: 0.3113
A7: 134 | B7: 76 | C7: 17 | D7: 0.272 | E7: 20.427 | F7: 52.35 | G7: 12.01 | H7: 3.55 | I7: 0.87 | J7: 4.65 | K7: 2.27 | L7: 1.23 | M7: 1.03 | N7: 22.63 | O7: 22.06 | P7: 20.57 | Q7: 19.08 | R7: 9.25 | S7: 8.50 | T7: 12.57 | U7: 12.24 | V7: 0.91 | W7: 0.92 | X7: 0.79 | Y7: 0.77 | Z7: 1 | AA7: 1 | AB7: 0 | AC7: 0 | AD7: 1 | AE7: 0 | AF7: 0.4089069987 | AG7: 0.4089
A8: 173 | B8: 62 | C8: 14 | D8: 0.243 | E8: 15.463 | F8: 44.71 | G8: 13.67 | H8: 3.04 | I8: 0.80 | J8: 3.95 | K8: 2.72 | L8: 1.77 | M8: 1.22 | N8: 16.20 | O8: 15.06 | P8: 13.74 | Q8: 12.49 | R8: 7.90 | S8: 9.67 | T8: 10.74 | U8: 11.32 | V8: 0.87 | W8: 0.77 | X8: 0.62 | Y8: 0.42 | Z8: 1 | AA8: 0 | AB8: 0 | AC8: 0 | AD8: 1 | AE8: 0 | AF8: 0.4878266403 | AG8: 0.4878
A9: 193 | B9: 41 | C9: 6.5 | D9: 0.140 | E9: 5.616 | F9: 6.64 | G9: 3.06 | H9: 1.06 | I9: 0.24 | J9: 1.95 | K9: 1.50 | L9: 1.18 | M9: 0.72 | N9: 7.85 | O9: 7.60 | P9: 6.51 | Q9: 5.27 | R9: 1.17 | S9: 2.16 | T9: 3.75 | U9: 3.35 | V9: 0.99 | W9: 0.96 | X9: 0.82 | Y9: 0.77 | Z9: 1 | AA9: 1 | AB9: 0 | AC9: 0 | AD9: 0 | AE9: 1 | AF9: 0.1496340967 | AG9: 0.1496
A10: 202 | B10: 75 | C10: 210 | D10: 0.724 | E10: 95.699 | F10: 70.78 | G10: 27.24 | H10: 9.30 | I10: 4.55 | J10: 4.84 | K10: 3.94 | L10: 2.42 | M10: 1.36 | N10: 133.88 | O10: 132.83 | P10: 128.18 | Q10: 99.96 | R10: 12.51 | S10: 19.26 | T10: 32.87 | U10: 64.41 | V10: 1.00 | W10: 0.99 | X10: 0.97 | Y10: 0.76 | Z10: 1 | AA10: 0 | AB10: 0 | AC10: 0 | AD10: 1 | AE10: 0 | AF10: 0.09346059305 | AG10: 0.0935
A11: 253 | B11: 61 | C11: 8 | D11: 0.603 | E11: 40.238 | F11: 65.96 | G11: 18.27 | H11: 4.19 | I11: 1.00 | J11: 5.34 | K11: 3.40 | L11: 2.53 | M11: 2.08 | N11: 19.38 | O11: 16.30 | P11: 14.67 | Q11: 14.03 | R11: 11.66 | S11: 12.92 | T11: 14.82 | U11: 14.18 | V11: 0.80 | W11: 0.61 | X11: 0.14 | Y11: 0.14 | Z11: 1 | AA11: 1 | AB11: 0 | AC11: 0 | AD11: 1 | AE11: 0 | AF11: 0.6017054791 | AG11: 0.6017
A12: 257 | B12: 73 | C12: 28 | D12: 0.685 | E12: 57.577 | F12: 41.24 | G12: 13.80 | H12: 4.85 | I12: 1.16 | J12: 3.68 | K12: 1.54 | L12: 0.71 | M12: 0.79 | N12: 25.14 | O12: 24.22 | P12: 19.22 | Q12: 18.30 | R12: 7.29 | S12: 9.76 | T12: 17.14 | U12: 16.35 | V12: 0.96 | W12: 0.92 | X12: 0.45 | Y12: 0.45 | Z12: 1 | AA12: 0 | AB12: 0 | AC12: 0 | AD12: 0 | AE12: 1 | AF12: 0.2899689455 | AG12: 0.29
A13: 261 | B13: 67 | C13: 12 | D13: 0.161 | E13: 10.909 | F13: 11.80 | G13: 5.17 | H13: 1.70 | I13: 0.70 | J13: 1.57 | K13: 1.24 | L13: 0.95 | M13: 0.56 | N13: 12.82 | O13: 12.50 | P13: 11.12 | Q13: 7.21 | R13: 2.09 | S13: 3.65 | T13: 6.03 | U13: 9.85 | V13: 0.99 | W13: 0.96 | X13: 0.84 | Y13: 0.68 | Z13: 1 | AA13: 1 | AB13: 0 | AC13: 1 | AD13: 0 | AE13: 0 | AF13: 0.1627053524 | AG13: 0.1627
A14: 286 | B14: 84 | C14: 30 | D14: 0.279 | E14: 24.526 | F14: 42.35 | G14: 17.36 | H14: 5.65 | I14: 1.51 | J14: 2.77 | K14: 1.75 | L14: 0.98 | M14: 0.70 | N14: 33.63 | O14: 32.19 | P14: 28.16 | Q14: 22.67 | R14: 7.49 | S14: 12.28 | T14: 19.99 | U14: 21.36 | V14: 0.97 | W14: 0.92 | X14: 0.70 | Y14: 0.33 | Z14: 1 | AA14: 1 | AB14: 0 | AC14: 0 | AD14: 0 | AE14: 1 | AF14: 0.2226665083 | AG14: 0.2227
A15: 289 | B15: 72.5 | C15: 38 | D15: 0.401 | E15: 34.312 | F15: 47.62 | G15: 22.17 | H15: 10.41 | I15: 2.49 | J15: 2.07 | K15: 1.32 | L15: 0.87 | M15: 0.97 | N15: 47.84 | O15: 46.21 | P15: 33.43 | Q15: 27.74 | R15: 8.42 | S15: 15.68 | T15: 36.81 | U15: 35.21 | V15: 0.98 | W15: 0.94 | X15: 0.42 | Y15: 0.62 | Z15: 1 | AA15: 1 | AB15: 1 | AC15: 0 | AD15: 0 | AE15: 0 | AF15: 0.1759497162 | AG15: 0.1759
A16: 322 | B16: 81 | C16: 29 | D16: 0.867 | E16: 97.504 | F16: 56.41 | G16: 20.62 | H16: 7.74 | I16: 3.74 | J16: 4.58 | K16: 3.04 | L16: 2.42 | M16: 1.77 | N16: 130.05 | O16: 129.37 | P16: 125.75 | Q16: 108.47 | R16: 9.97 | S16: 14.58 | T16: 27.37 | U16: 52.90 | V16: 1.00 | W16: 0.99 | X16: 0.98 | Y16: 0.87 | Z16: 1 | AA16: 0 | AB16: 1 | AC16: 0 | AD16: 0 | AE16: 0 | AF16: 0.07667918176 | AG16: 0.0767
A17: 385 | B17: 82.5 | C17: 23 | D17: 0.212 | E17: 17.482 | F17: 43.81 | G17: 13.48 | H17: 4.37 | I17: 0.99 | J17: 3.49 | K17: 1.93 | L17: 0.95 | M17: 0.88 | N17: 23.43 | O17: 22.54 | P17: 18.28 | Q17: 18.37 | R17: 7.75 | S17: 9.53 | T17: 15.46 | U17: 14.06 | V17: 0.94 | W17: 0.91 | X17: 0.53 | Y17: 0.64 | Z17: 1 | AA17: 0 | AB17: 1 | AC17: 0 | AD17: 0 | AE17: 0 | AF17: 0.3305329516 | AG17: 0.3305
A18: 404 | B18: 90 | C18: 32 | D18: 0.242 | E18: 21.873 | F18: 19.42 | G18: 12.00 | H18: 4.57 | I18: 1.18 | J18: 1.33 | K18: 1.08 | L18: 0.78 | M18: 0.64 | N18: 30.70 | O18: 29.43 | P18: 25.91 | Q18: 24.33 | R18: 3.43 | S18: 8.48 | T18: 16.15 | U18: 16.67 | V18: 0.99 | W18: 0.96 | X18: 0.78 | Y18: 0.73 | Z18: 1 | AA18: 0 | AB18: 0 | AC18: 0 | AD18: 1 | AE18: 0 | AF18: 0.1118050354 | AG18: 0.1118
A19: 463 | B19: 66 | C19: 10 | D19: 0.136 | E19: 8.857 | F19: 14.46 | G19: 6.84 | H19: 2.00 | I19: 0.50 | J19: 1.74 | K19: 1.44 | L19: 0.92 | M19: 0.83 | N19: 12.19 | O19: 11.44 | P19: 10.00 | Q19: 8.87 | R19: 2.56 | S19: 4.84 | T19: 7.06 | U19: 7.11 | V19: 0.98 | W19: 0.91 | X19: 0.71 | Y19: 0.60 | Z19: 1 | AA19: 1 | AB19: 0 | AC19: 0 | AD19: 0 | AE19: 1 | AF19: 0.2096172297 | AG19: 0.2096
A20: 533 | B20: 76 | C20: 23 | D20: 0.265 | E20: 21.865 | F20: 44.67 | G20: 15.40 | H20: 3.95 | I20: 1.31 | J20: 3.54 | K20: 2.27 | L20: 1.40 | M20: 1.06 | N20: 26.95 | O20: 25.82 | P20: 23.85 | Q20: 17.14 | R20: 7.90 | S20: 10.89 | T20: 13.96 | U20: 18.57 | V20: 0.96 | W20: 0.91 | X20: 0.81 | Y20: 0.38 | Z20: 1 | AA20: 0 | AB20: 0 | AC20: 1 | AD20: 0 | AE20: 0 | AF20: 0.2929732533 | AG20: 0.293
A21: 598 | B21: 94 | C21: 20 | D21: 0.273 | E21: 26.102 | F21: 54.32 | G21: 18.22 | H21: 5.64 | I21: 1.66 | J21: 3.08 | K21: 1.72 | L21: 0.97 | M21: 0.90 | N21: 29.66 | O21: 28.40 | P21: 24.32 | Q21: 19.87 | R21: 9.60 | S21: 12.89 | T21: 19.94 | U21: 23.54 | V21: 0.95 | W21: 0.89 | X21: 0.57 | Y21: 0.54 | Z21: 1 | AA21: 0 | AB21: 0 | AC21: 0 | AD21: 1 | AE21: 0 | AF21: 0.3236937611 | AG21: 0.3237
A22: 623 | B22: 85 | C22: 31 | D22: 0.277 | E22: 23.771 | F22: 49.84 | G22: 21.43 | H22: 6.19 | I22: 1.63 | J22: 2.89 | K22: 1.75 | L22: 0.94 | M22: 0.79 | N22: 31.43 | O22: 28.97 | P22: 24.12 | Q22: 23.10 | R22: 8.81 | S22: 15.16 | T22: 21.88 | U22: 23.08 | V22: 0.96 | W22: 0.85 | X22: 0.42 | Y22: 0.04 | Z22: 1 | AA22: 0 | AB22: 0 | AC22: 0 | AD22: 0 | AE22: 1 | AF22: 0.2803138723 | AG22: 0.2803
A23: 654 | B23: 79 | C23: 25 | D23: 0.462 | E23: 39.683 | F23: 48.44 | G23: 15.48 | H23: 5.47 | I23: 1.19 | J23: 3.27 | K23: 1.45 | L23: 0.80 | M23: 1.03 | N23: 25.85 | O23: 24.21 | P23: 18.10 | Q23: 20.58 | R23: 8.56 | S23: 10.94 | T23: 19.32 | U23: 16.78 | V23: 0.94 | W23: 0.89 | X23: 0.35 | Y23: 0.58 | Z23: 1 | AA23: 1 | AB23: 0 | AC23: 0 | AD23: 1 | AE23: 0 | AF23: 0.3313232995 | AG23: 0.3313
A24: 702 | B24: 79 | C24: 14 | D24: 0.214 | E24: 17.175 | F24: 53.43 | G24: 18.03 | H24: 4.36 | I24: 1.07 | J24: 3.68 | K24: 2.32 | L24: 1.56 | M24: 1.39 | N24: 22.08 | O24: 20.19 | P24: 17.50 | Q24: 15.49 | R24: 9.44 | S24: 12.75 | T24: 15.43 | U24: 15.14 | V24: 0.90 | W24: 0.78 | X24: 0.47 | Y24: 0.21 | Z24: 1 | AA24: 0 | AB24: 0 | AC24: 0 | AD24: 0 | AE24: 1 | AF24: 0.4277185297 | AG24: 0.4277
A25: 705 | B25: 75 | C25: 12 | D25: 0.345 | E25: 26.807 | F25: 34.57 | G25: 13.37 | H25: 2.94 | I25: 0.76 | J25: 5.06 | K25: 3.20 | L25: 1.76 | M25: 1.43 | N25: 15.12 | O25: 13.22 | P25: 12.52 | Q25: 10.48 | R25: 6.11 | S25: 9.46 | T25: 10.40 | U25: 10.68 | V25: 0.91 | W25: 0.70 | X25: 0.56 | Y25: 0.19 | Z25: 1 | AA25: 0 | AB25: 1 | AC25: 0 | AD25: 0 | AE25: 0 | AF25: 0.4042874907 | AG25: 0.4043
A26: 780 | B26: 84 | C26: 250 | D26: 0.750 | E26: 111.795 | F26: 53.74 | G26: 14.38 | H26: 3.08 | I26: 0.75 | J26: 6.09 | K26: 4.46 | L26: 2.48 | M26: 1.62 | N26: 15.63 | O26: 13.99 | P26: 13.55 | Q26: 11.19 | R26: 9.50 | S26: 10.17 | T26: 10.90 | U26: 10.57 | V26: 0.79 | W26: 0.69 | X26: 0.59 | Y26: 0.33 | Z26: 1 | AA26: 0 | AB26: 0 | AC26: 0 | AD26: 0 | AE26: 1 | AF26: 0.6079330964 | AG26: 0.6079
A27: 821 | B27: 60 | C27: 17 | D27: 0.264 | E27: 16.204 | F27: 69.25 | G27: 19.49 | H27: 3.44 | I27: 0.99 | J27: 4.05 | K27: 2.38 | L27: 1.27 | M27: 1.27 | N27: 19.34 | O27: 18.44 | P27: 15.07 | Q27: 13.32 | R27: 12.24 | S27: 13.78 | T27: 12.17 | U27: 14.00 | V27: 0.77 | W27: 0.66 | X27: 0.59 | Y27: 0.31 | Z27: 1 | AA27: 0 | AB27: 0 | AC27: 0 | AD27: 0 | AE27: 1 | AF27: 0.6330001213 | AG27: 0.633
A28: 853 | B28: 84 | C28: 22 | D28: 0.461 | E28: 35.794 | F28: 50.46 | G28: 13.37 | H28: 3.00 | I28: 0.80 | J28: 4.96 | K28: 3.47 | L28: 2.16 | M28: 1.20 | N28: 22.92 | O28: 22.90 | P28: 21.32 | Q28: 18.06 | R28: 8.92 | S28: 9.45 | T28: 10.59 | U28: 11.38 | V28: 0.92 | W28: 0.91 | X28: 0.87 | Y28: 0.78 | Z28: 1 | AA28: 0 | AB28: 0 | AC28: 0 | AD28: 1 | AE28: 0 | AF28: 0.3891718389 | AG28: 0.3892
A29: 882 | B29: 77 | C29: 14 | D29: 0.194 | E29: 14.781 | F29: 49.93 | G29: 13.17 | H29: 3.13 | I29: 0.79 | J29: 4.19 | K29: 2.72 | L29: 1.39 | M29: 1.45 | N29: 18.84 | O29: 18.54 | P29: 17.06 | Q29: 16.51 | R29: 8.83 | S29: 9.31 | T29: 11.07 | U29: 11.23 | V29: 0.88 | W29: 0.86 | X29: 0.76 | Y29: 0.73 | Z29: 1 | AA29: 0 | AB29: 1 | AC29: 0 | AD29: 0 | AE29: 0 | AF29: 0.4686266482 | AG29: 0.4686
A30: 895 | B30: 76 | C30: 8 | D30: 0.129 | E30: 9.729 | F30: 11.30 | G30: 5.11 | H30: 2.31 | I30: 0.56 | J30: 1.74 | K30: 1.42 | L30: 1.14 | M30: 0.93 | N30: 13.47 | O30: 12.69 | P30: 9.07 | Q30: 9.28 | R30: 2.00 | S30: 3.61 | T30: 8.17 | U30: 7.97 | V30: 0.99 | W30: 0.96 | X30: 0.43 | Y30: 0.51 | Z30: 1 | AA30: 1 | AB30: 0 | AC30: 0 | AD30: 1 | AE30: 0 | AF30: 0.1483627056 | AG30: 0.1484
A31: 913 | B31: 81 | C31: 12 | D31: 0.270 | E31: 22.364 | F31: 60.42 | G31: 21.22 | H31: 4.37 | I31: 1.13 | J31: 3.41 | K31: 2.16 | L31: 1.60 | M31: 1.68 | N31: 21.51 | O31: 18.10 | P31: 17.54 | Q31: 16.92 | R31: 10.68 | S31: 15.01 | T31: 15.45 | U31: 15.99 | V31: 0.87 | W31: 0.56 | X31: 0.47 | Y31: 0.33 | Z31: 1 | AA31: 0 | AB31: 0 | AC31: 0 | AD31: 0 | AE31: 1 | AF31: 0.4965524048 | AG31: 0.4966
A32: 917 | B32: 75 | C32: 15 | D32: 0.228 | E32: 16.860 | F32: 13.68 | G32: 6.90 | H32: 2.32 | I32: 0.80 | J32: 1.33 | K32: 1.09 | L32: 0.78 | M32: 0.80 | N32: 14.36 | O32: 13.62 | P32: 11.53 | Q32: 8.59 | R32: 2.42 | S32: 4.88 | T32: 8.20 | U32: 11.29 | V32: 0.99 | W32: 0.93 | X32: 0.70 | Y32: 0.65 | Z32: 1 | AA32: 0 | AB32: 1 | AC32: 0 | AD32: 0 | AE32: 0 | AF32: 0.168452486 | AG32: 0.1685
A33: 918 | B33: 74 | C33: 28 | D33: 0.372 | E33: 28.390 | F33: 20.72 | G33: 11.61 | H33: 3.79 | I33: 1.38 | J33: 2.03 | K33: 1.48 | L33: 0.83 | M33: 0.71 | N33: 28.13 | O33: 27.05 | P33: 23.45 | Q33: 18.06 | R33: 3.66 | S33: 8.21 | T33: 13.41 | U33: 19.55 | V33: 0.99 | W33: 0.95 | X33: 0.82 | Y33: 0.38 | Z33: 1 | AA33: 0 | AB33: 0 | AC33: 0 | AD33: 0 | AE33: 1 | AF33: 0.1301990845 | AG33: 0.1302
A34: 995 | B34: 67 | C34: 11.5 | D34: 0.406 | E34: 26.279 | F34: 38.32 | G34: 13.22 | H34: 3.81 | I34: 0.93 | J34: 4.37 | K34: 2.59 | L34: 1.55 | M34: 1.45 | N34: 19.65 | O34: 18.85 | P34: 15.48 | Q34: 16.48 | R34: 6.77 | S34: 9.34 | T34: 13.46 | U34: 13.12 | V34: 0.94 | W34: 0.87 | X34: 0.49 | Y34: 0.60 | Z34: 1 | AA34: 0 | AB34: 1 | AC34: 0 | AD34: 0 | AE34: 0 | AF34: 0.3448039657 | AG34: 0.3448
A35: 1068 | B35: 76 | C35: 25.25 | D35: 0.335 | E35: 26.617 | F35: 48.07 | G35: 20.56 | H35: 4.92 | I35: 1.24 | J35: 2.73 | K35: 1.70 | L35: 0.97 | M35: 0.97 | N35: 25.55 | O35: 23.48 | P35: 21.32 | Q35: 20.41 | R35: 8.50 | S35: 14.54 | T35: 17.41 | U35: 17.50 | V35: 0.94 | W35: 0.79 | X35: 0.58 | Y35: 0.51 | Z35: 1 | AA35: 1 | AB35: 0 | AC35: 0 | AD35: 1 | AE35: 0 | AF35: 0.3326207606 | AG35: 0.3326
A36: 1143 | B36: 77 | C36: 20 | D36: 0.379 | E36: 31.717 | F36: 38.55 | G36: 15.40 | H36: 5.99 | I36: 1.62 | J36: 4.86 | K36: 2.97 | L36: 1.74 | M36: 1.71 | N36: 43.94 | O36: 41.86 | P36: 29.29 | Q36: 26.06 | R36: 6.82 | S36: 10.89 | T36: 21.19 | U36: 22.97 | V36: 0.99 | W36: 0.97 | X36: 0.69 | Y36: 0.47 | Z36: 1 | AA36: 0 | AB36: 1 | AC36: 0 | AD36: 0 | AE36: 0 | AF36: 0.1550958679 | AG36: 0.1551
A37: 1193 | B37: 77 | C37: 8 | D37: 0.112 | E37: 8.703 | F37: 18.86 | G37: 6.38 | H37: 1.76 | I37: 0.44 | J37: 1.72 | K37: 1.21 | L37: 0.98 | M37: 0.86 | N37: 11.55 | O37: 10.86 | P37: 9.33 | Q37: 8.18 | R37: 3.33 | S37: 4.51 | T37: 6.23 | U37: 6.19 | V37: 0.96 | W37: 0.91 | X37: 0.74 | Y37: 0.65 | Z37: 1 | AA37: 1 | AB37: 0 | AC37: 0 | AD37: 1 | AE37: 0 | AF37: 0.2885953317 | AG37: 0.2886
A38: 1296 | B38: 82 | C38: 31 | D38: 0.245 | E38: 20.566 | F38: 53.02 | G38: 17.18 | H38: 4.20 | I38: 1.13 | J38: 4.30 | K38: 2.16 | L38: 1.26 | M38: 0.77 | N38: 25.48 | O38: 24.24 | P38: 22.77 | Q38: 19.13 | R38: 9.37 | S38: 12.15 | T38: 14.84 | U38: 15.91 | V38: 0.93 | W38: 0.87 | X38: 0.76 | Y38: 0.56 | Z38: 1 | AA38: 0 | AB38: 1 | AC38: 0 | AD38: 0 | AE38: 0 | AF38: 0.3678520624 | AG38: 0.3679
A39: 1302 | B39: 76 | C39: 19 | D39: 0.389 | E39: 30.805 | F39: 49.19 | G39: 15.49 | H39: 4.85 | I39: 1.22 | J39: 3.11 | K39: 1.57 | L39: 0.87 | M39: 0.85 | N39: 23.76 | O39: 22.74 | P39: 18.08 | Q39: 16.47 | R39: 8.69 | S39: 10.95 | T39: 17.14 | U39: 17.32 | V39: 0.93 | W39: 0.88 | X39: 0.32 | Y39: 0.31 | Z39: 1 | AA39: 0 | AB39: 0 | AC39: 0 | AD39: 0 | AE39: 1 | AF39: 0.3658886131 | AG39: 0.3659
A40: 1325 | B40: 73 | C40: 11 | D40: 0.757 | E40: 66.400 | F40: 58.90 | G40: 17.30 | H40: 4.11 | I40: 1.12 | J40: 3.47 | K40: 2.38 | L40: 1.29 | M40: 1.26 | N40: 18.39 | O40: 16.92 | P40: 16.58 | Q40: 17.05 | R40: 10.41 | S40: 12.23 | T40: 14.52 | U40: 15.77 | V40: 0.82 | W40: 0.69 | X40: 0.48 | Y40: 0.38 | Z40: 1 | AA40: 0 | AB40: 0 | AC40: 0 | AD40: 0 | AE40: 1 | AF40: 0.5663320634 | AG40: 0.5663
A41: 1387 | B41: 73 | C41: 12 | D41: 0.206 | E41: 15.324 | F41: 69.00 | G41: 17.68 | H41: 4.00 | I41: 1.16 | J41: 5.35 | K41: 3.63 | L41: 2.10 | M41: 1.51 | N41: 17.88 | O41: 17.74 | P41: 16.70 | Q41: 15.50 | R41: 12.20 | S41: 12.50 | T41: 14.16 | U41: 16.40 | V41: 0.73 | W41: 0.71 | X41: 0.53 | Y41: 0.33 | Z41: 1 | AA41: 0 | AB41: 0 | AC41: 0 | AD41: 0 | AE41: 1 | AF41: 0.6823073675 | AG41: 0.6823
A42: 1455 | B42: 64 | C42: 20 | D42: 0.546 | E42: 41.477 | F42: 47.14 | G42: 18.33 | H42: 6.56 | I42: 1.68 | J42: 3.36 | K42: 1.88 | L42: 1.58 | M42: 1.74 | N42: 43.24 | O42: 39.24 | P42: 29.09 | Q42: 27.89 | R42: 8.33 | S42: 12.96 | T42: 23.20 | U42: 23.83 | V42: 0.98 | W42: 0.94 | X42: 0.60 | Y42: 0.52 | Z42: 1 | AA42: 1 | AB42: 0 | AC42: 0 | AD42: 1 | AE42: 0 | AF42: 0.1927203766 | AG42: 0.1927
A43: 1547 | B43: 98 | C43: 17 | D43: 0.217 | E43: 21.248 | F43: 30.25 | G43: 10.81 | H43: 3.13 | I43: 1.02 | J43: 2.34 | K43: 1.56 | L43: 1.03 | M43: 1.00 | N43: 19.69 | O43: 18.93 | P43: 16.49 | Q43: 12.71 | R43: 5.35 | S43: 7.64 | T43: 11.08 | U43: 14.39 | V43: 0.96 | W43: 0.91 | X43: 0.74 | Y43: 0.47 | Z43: 1 | AA43: 0 | AB43: 0 | AC43: 0 | AD43: 0 | AE43: 1 | AF43: 0.2716739267 | AG43: 0.2717
A44: 1844 | B44: 74 | C44: 31 | D44: 0.797 | E44: 91.637 | F44: 44.28 | G44: 13.27 | H44: 3.33 | I44: 0.83 | J44: 2.83 | K44: 1.80 | L44: 1.26 | M44: 0.96 | N44: 23.06 | O44: 21.39 | P44: 20.33 | Q44: 18.95 | R44: 7.83 | S44: 9.38 | T44: 11.77 | U44: 11.80 | V44: 0.94 | W44: 0.90 | X44: 0.82 | Y44: 0.78 | Z44: 1 | AA44: 1 | AB44: 1 | AC44: 0 | AD44: 0 | AE44: 0 | AF44: 0.3395068109 | AG44: 0.3395
A45: 1848 | B45: 76 | C45: 20 | D45: 0.268 | E45: 20.983 | F45: 70.00 | G45: 22.02 | H45: 4.84 | I45: 1.24 | J45: 4.69 | K45: 2.74 | L45: 1.55 | M45: 1.38 | N45: 22.80 | O45: 20.55 | P45: 19.04 | Q45: 18.41 | R45: 12.37 | S45: 15.57 | T45: 17.13 | U45: 17.49 | V45: 0.84 | W45: 0.65 | X45: 0.44 | Y45: 0.31 | Z45: 1 | AA45: 0 | AB45: 1 | AC45: 0 | AD45: 0 | AE45: 0 | AF45: 0.5427039665 | AG45: 0.5427
A46: 1860 | B46: 85 | C46: 25 | D46: 0.301 | E46: 25.391 | F46: 38.35 | G46: 16.71 | H46: 4.70 | I46: 1.26 | J46: 3.33 | K46: 1.93 | L46: 1.03 | M46: 0.80 | N46: 24.91 | O46: 23.04 | P46: 19.09 | Q46: 17.84 | R46: 6.78 | S46: 11.82 | T46: 16.62 | U46: 17.86 | V46: 0.96 | W46: 0.86 | X46: 0.49 | Y46: 0.05 | Z46: 1 | AA46: 0 | AB46: 1 | AC46: 0 | AD46: 0 | AE46: 0 | AF46: 0.2721255868 | AG46: 0.2721
A47: 1927 | B47: 83 | C47: 10 | D47: 0.389 | E47: 33.724 | F47: 35.64 | G47: 17.11 | H47: 6.83 | I47: 1.91 | J47: 2.75 | K47: 2.38 | L47: 2.13 | M47: 2.22 | N47: 46.67 | O47: 43.55 | P47: 26.14 | Q47: 25.03 | R47: 6.30 | S47: 12.10 | T47: 24.15 | U47: 26.96 | V47: 0.99 | W47: 0.96 | X47: 0.38 | Y47: 0.37 | Z47: 1 | AA47: 0 | AB47: 0 | AC47: 1 | AD47: 0 | AE47: 0 | AF47: 0.1349953091 | AG47: 0.135
A48: 1978 | B48: 78 | C48: 9 | D48: 0.290 | E48: 22.554 | F48: 47.54 | G48: 16.47 | H48: 3.62 | I48: 1.01 | J48: 4.61 | K48: 3.36 | L48: 2.24 | M48: 1.68 | N48: 18.23 | O48: 16.26 | P48: 14.93 | Q48: 13.61 | R48: 8.40 | S48: 11.64 | T48: 12.79 | U48: 14.25 | V48: 0.89 | W48: 0.70 | X48: 0.52 | Y48: 0.30 | Z48: 1 | AA48: 0 | AB48: 0 | AC48: 0 | AD48: 1 | AE48: 0 | AF48: 0.4609118563 | AG48: 0.4609
A49: 2014 | B49: 76 | C49: 15 | D49: 0.462 | E49: 38.894 | F49: 41.92 | G49: 11.05 | H49: 2.63 | I49: 1.01 | J49: 6.40 | K49: 3.47 | L49: 1.70 | M49: 1.11 | N49: 18.02 | O49: 17.83 | P49: 16.94 | Q49: 13.28 | R49: 7.41 | S49: 7.81 | T49: 9.28 | U49: 14.23 | V49: 0.91 | W49: 0.90 | X49: 0.84 | Y49: 0.36 | Z49: 1 | AA49: 1 | AB49: 0 | AC49: 0 | AD49: 1 | AE49: 0 | AF49: 0.4111929973 | AG49: 0.4112
A50: 2053 | B50: 80 | C50: 18 | D50: 0.537 | E50: 44.714 | F50: 67.24 | G50: 18.91 | H50: 4.34 | I50: 1.13 | J50: 4.12 | K50: 2.63 | L50: 1.42 | M50: 1.22 | N50: 22.25 | O50: 21.38 | P50: 20.04 | Q50: 17.19 | R50: 11.89 | S50: 13.37 | T50: 15.34 | U50: 15.94 | V50: 0.85 | W50: 0.78 | X50: 0.64 | Y50: 0.37 | Z50: 1 | AA50: 0 | AB50: 0 | AC50: 0 | AD50: 0 | AE50: 1 | AF50: 0.5341099653 | AG50: 0.5341
A51: 2065 | B51: 66 | C51: 10 | D51: 0.494 | E51: 33.544 | F51: 41.52 | G51: 19.21 | H51: 6.40 | I51: 1.76 | J51: 6.55 | K51: 5.13 | L51: 3.61 | M51: 3.04 | N51: 46.07 | O51: 42.03 | P51: 26.96 | Q51: 26.41 | R51: 7.34 | S51: 13.59 | T51: 22.64 | U51: 24.86 | V51: 0.99 | W51: 0.95 | X51: 0.54 | Y51: 0.34 | Z51: 1 | AA51: 0 | AB51: 0 | AC51: 0 | AD51: 0 | AE51: 1 | AF51: 0.1593130076 | AG51: 0.1593
A52: 2074 | B52: 59 | C52: 10 | D52: 0.330 | E52: 19.866 | F52: 66.54 | G52: 16.05 | H52: 4.73 | I52: 1.14 | J52: 4.16 | K52: 2.44 | L52: 1.74 | M52: 1.70 | N52: 21.44 | O52: 21.58 | P52: 17.17 | Q52: 18.38 | R52: 11.76 | S52: 11.35 | T52: 16.73 | U52: 16.15 | V52: 0.84 | W52: 0.85 | X52: 0.23 | Y52: 0.48 | Z52: 1 | AA52: 1 | AB52: 0 | AC52: 0 | AD52: 0 | AE52: 1 | AF52: 0.5485103276 | AG52: 0.5485
A53: 2376 | B53: 85 | C53: 27 | D53: 0.229 | E53: 19.201 | F53: 44.33 | G53: 13.65 | H53: 4.24 | I53: 1.05 | J53: 3.52 | K53: 1.89 | L53: 0.96 | M53: 1.01 | N53: 25.60 | O53: 24.92 | P53: 21.53 | Q53: 21.22 | R53: 7.84 | S53: 9.65 | T53: 14.98 | U53: 14.92 | V53: 0.95 | W53: 0.92 | X53: 0.72 | Y53: 0.71 | Z53: 1 | AA53: 1 | AB53: 0 | AC53: 1 | AD53: 0 | AE53: 0 | AF53: 0.3061570485 | AG53: 0.3062
A54: 2405 | B54: 89 | C54: 35 | D54: 0.264 | E54: 24.771 | F54: 72.27 | G54: 21.66 | H54: 5.73 | I54: 1.74 | J54: 5.09 | K54: 2.74 | L54: 1.27 | M54: 0.79 | N54: 32.60 | O54: 31.52 | P54: 28.82 | Q54: 24.32 | R54: 12.78 | S54: 15.32 | T54: 20.28 | U54: 24.61 | V54: 0.92 | W54: 0.87 | X54: 0.71 | Y54: 0.15 | Z54: 1 | AA54: 0 | AB54: 1 | AC54: 0 | AD54: 0 | AE54: 0 | AF54: 0.3918413237 | AG54: 0.3918
A55: 2450 | B55: 61.5 | C55: 12 | D55: 0.278 | E55: 17.960 | F55: 62.26 | G55: 22.48 | H55: 4.78 | I55: 0.91 | J55: 6.56 | K55: 4.98 | L55: 3.03 | M55: 2.35 | N55: 22.91 | O55: 19.87 | P55: 19.03 | Q55: 15.97 | R55: 11.01 | S55: 15.90 | T55: 16.91 | U55: 12.88 | V55: 0.88 | W55: 0.60 | X55: 0.46 | Y55: 0.59 | Z55: 1 | AA55: 1 | AB55: 0 | AC55: 0 | AD55: 0 | AE55: 1 | AF55: 0.4804487938 | AG55: 0.4804
A56: 2453 | B56: 64 | C56: 11 | D56: 0.159 | E56: 9.855 | F56: 16.50 | G56: 6.13 | H56: 2.31 | I56: 0.53 | J56: 3.31 | K56: 1.97 | L56: 1.15 | M56: 0.91 | N56: 13.48 | O56: 12.64 | P56: 9.03 | Q56: 9.45 | R56: 2.92 | S56: 4.34 | T56: 8.17 | U56: 7.47 | V56: 0.98 | W56: 0.94 | X56: 0.43 | Y56: 0.61 | Z56: 1 | AA56: 1 | AB56: 0 | AC56: 0 | AD56: 0 | AE56: 1 | AF56: 0.2163270007 | AG56: 0.2163
A57: 2552 | B57: 66 | C57: 20 | D57: 0.380 | E57: 26.534 | F57: 26.95 | G57: 10.00 | H57: 2.87 | I57: 1.24 | J57: 3.14 | K57: 1.79 | L57: 1.17 | M57: 0.96 | N57: 28.33 | O57: 27.69 | P57: 25.38 | Q57: 18.98 | R57: 4.76 | S57: 7.07 | T57: 10.16 | U57: 17.50 | V57: 0.99 | W57: 0.97 | X57: 0.92 | Y57: 0.39 | Z57: 1 | AA57: 1 | AB57: 1 | AC57: 0 | AD57: 0 | AE57: 0 | AF57: 0.1681795585 | AG57: 0.1682
A58: 2555 | B58: 75 | C58: 17 | D58: 0.319 | E58: 25.338 | F58: 46.76 | G58: 16.10 | H58: 4.75 | I58: 1.42 | J58: 4.02 | K58: 2.56 | L58: 1.42 | M58: 1.35 | N58: 34.26 | O58: 32.96 | P58: 28.01 | Q58: 22.92 | R58: 8.27 | S58: 11.38 | T58: 16.78 | U58: 20.05 | V58: 0.97 | W58: 0.94 | X58: 0.80 | Y58: 0.48 | Z58: 1 | AA58: 1 | AB58: 0 | AC58: 1 | AD58: 0 | AE58: 0 | AF58: 0.2412755126 | AG58: 0.2413
A59: 2568 | B59: 71 | C59: 14 | D59: 0.498 | E59: 40.662 | F59: 48.03 | G59: 21.32 | H59: 7.44 | I59: 2.27 | J59: 4.18 | K59: 2.66 | L59: 1.90 | M59: 1.87 | N59: 56.40 | O59: 53.61 | P59: 39.59 | Q59: 30.89 | R59: 8.49 | S59: 15.08 | T59: 26.29 | U59: 32.14 | V59: 0.99 | W59: 0.96 | X59: 0.75 | Y59: 0.28 | Z59: 1 | AA59: 0 | AB59: 1 | AC59: 0 | AD59: 0 | AE59: 0 | AF59: 0.1505491322 | AG59: 0.1505
A60: 2617 | B60: 64 | C60: 20 | D60: 0.685 | E60: 35.749 | F60: 36.75 | G60: 12.75 | H60: 2.94 | I60: 0.95 | J60: 4.65 | K60: 3.47 | L60: 1.77 | M60: 1.01 | N60: 17.06 | O60: 15.54 | P60: 14.81 | Q60: 13.29 | R60: 6.50 | S60: 9.01 | T60: 10.39 | U60: 13.50 | V60: 0.92 | W60: 0.81 | X60: 0.71 | Y60: 0.18 | Z60: 1 | AA60: 0 | AB60: 0 | AC60: 0 | AD60: 0 | AE60: 1 | AF60: 0.3809226702 | AG60: 0.3809
A61: 2659 | B61: 85 | C61: 34.5 | D61: 0.865 | E61: 86.068 | F61: 48.67 | G61: 19.43 | H61: 5.89 | I61: 1.28 | J61: 3.33 | K61: 2.03 | L61: 1.12 | M61: 1.09 | N61: 32.07 | O61: 32.77 | P61: 27.59 | Q61: 26.28 | R61: 8.60 | S61: 13.74 | T61: 20.84 | U61: 18.17 | V61: 0.96 | W61: 0.91 | X61: 0.66 | Y61: 0.72 | Z61: 1 | AA61: 0 | AB61: 0 | AC61: 1 | AD61: 0 | AE61: 0 | AF61: 0.2682500892 | AG61: 0.2683
A62: 2696 | B62: 67 | C62: 18 | D62: 0.253 | E62: 17.102 | F62: 42.75 | G62: 13.02 | H62: 3.34 | I62: 0.98 | J62: 3.13 | K62: 1.86 | L62: 0.94 | M62: 0.80 | N62: 18.23 | O62: 17.20 | P62: 15.73 | Q62: 11.28 | R62: 7.56 | S62: 9.21 | T62: 11.81 | U62: 13.82 | V62: 0.91 | W62: 0.84 | X62: 0.66 | Y62: 0.58 | Z62: 1 | AA62: 1 | AB62: 0 | AC62: 0 | AD62: 0 | AE62: 1 | AF62: 0.4145007829 | AG62: 0.4145
A63: 2711 | B63: 65 | C63: 23 | D63: 0.254 | E63: 17.917 | F63: 61.97 | G63: 16.66 | H63: 4.15 | I63: 1.12 | J63: 4.53 | K63: 2.76 | L63: 1.65 | M63: 1.11 | N63: 22.86 | O63: 22.48 | P63: 20.96 | Q63: 18.88 | R63: 10.96 | S63: 11.78 | T63: 14.66 | U63: 15.87 | V63: 0.88 | W63: 0.85 | X63: 0.71 | Y63: 0.54 | Z63: 1 | AA63: 1 | AB63: 0 | AC63: 0 | AD63: 0 | AE63: 1 | AF63: 0.479316938 | AG63: 0.4793
A64: 2731 | B64: 75 | C64: 11 | D64: 0.248 | E64: 19.211 | F64: 60.37 | G64: 20.48 | H64: 4.64 | I64: 1.25 | J64: 4.79 | K64: 2.98 | L64: 1.78 | M64: 1.55 | N64: 24.75 | O64: 22.35 | P64: 20.33 | Q64: 16.36 | R64: 10.67 | S64: 14.48 | T64: 16.41 | U64: 17.63 | V64: 0.90 | W64: 0.76 | X64: 0.59 | Y64: 0.37 | Z64: 1 | AA64: 0 | AB64: 1 | AC64: 0 | AD64: 0 | AE64: 0 | AF64: 0.4311559701 | AG64: 0.4312
A65: 2781 | B65: 79 | C65: 13 | D65: 0.298 | E65: 22.051 | F65: 40.85 | G65: 12.96 | H65: 2.90 | I65: 0.72 | J65: 4.39 | K65: 3.21 | L65: 1.82 | M65: 1.42 | N65: 14.65 | O65: 13.48 | P65: 12.56 | Q65: 11.03 | R65: 7.22 | S65: 9.16 | T65: 10.26 | U65: 10.16 | V65: 0.87 | W65: 0.73 | X65: 0.58 | Y65: 0.39 | Z65: 1 | AA65: 1 | AB65: 0 | AC65: 1 | AD65: 0 | AE65: 0 | AF65: 0.4928621845 | AG65: 0.4929
A66: 2807 | B66: 65 | C66: 13 | D66: 0.423 | E66: 26.553 | F66: 24.67 | G66: 9.24 | H66: 2.82 | I66: 0.67 | J66: 2.56 | K66: 1.41 | L66: 1.00 | M66: 1.02 | N66: 16.07 | O66: 15.24 | P66: 12.86 | Q66: 12.98 | R66: 4.36 | S66: 6.53 | T66: 9.97 | U66: 9.45 | V66: 0.96 | W66: 0.90 | X66: 0.63 | Y66: 0.69 | Z66: 1 | AA66: 0 | AB66: 0 | AC66: 0 | AD66: 0 | AE66: 1 | AF66: 0.271399826 | AG66: 0.2714
A67: 2860 | B67: 67 | C67: 11 | D67: 0.213 | E67: 14.279 | F67: 43.52 | G67: 11.58 | H67: 2.22 | I67: 0.64 | J67: 6.65 | K67: 3.62 | L67: 1.54 | M67: 1.22 | N67: 14.73 | O67: 14.44 | P67: 12.31 | Q67: 11.42 | R67: 7.69 | S67: 8.19 | T67: 7.86 | U67: 9.04 | V67: 0.85 | W67: 0.82 | X67: 0.77 | Y67: 0.61 | Z67: 1 | AA67: 1 | AB67: 0 | AC67: 0 | AD67: 0 | AE67: 1 | AF67: =R67/N67 -> 0.5224319394 | AG67: =ROUND(AF67, 4) -> 0.5224
A68: 2875 | B68: 72 | C68: 13 | D68: 0.402 | E68: 26.817 | F68: 18.50 | G68: 6.82 | H68: 2.28 | I68: 0.65 | J68: 1.80 | K68: 1.29 | L68: 0.87 | M68: 0.81 | N68: 16.18 | O68: 15.58 | P68: 13.83 | Q68: 12.01 | R68: 3.27 | S68: 4.82 | T68: 8.05 | U68: 9.26 | V68: 0.98 | W68: 0.95 | X68: 0.81 | Y68: 0.64 | Z68: 1 | AA68: 0 | AB68: 0 | AC68: 0 | AD68: 0 | AE68: 1 | AF68: 0.2021882007 | AG68: 0.2022
A69: 2940 | B69: 71 | C69: 16.75 | D69: 0.561 | E69: 45.285 | F69: 83.77 | G69: 30.55 | H69: 8.80 | I69: 2.76 | J69: 2.45 | K69: 1.91 | L69: 1.52 | M69: 1.47 | N69: 60.17 | O69: 54.79 | P69: 39.94 | Q69: 36.78 | R69: 14.81 | S69: 21.60 | T69: 31.11 | U69: 39.07 | V69: 0.97 | W69: 0.92 | X69: 0.63 | Y69: 0.34 | Z69: 1 | AA69: 0 | AB69: 0 | AC69: 0 | AD69: 0 | AE69: 1 | AF69: 0.2461114373 | AG69: 0.2461
A70: 2950 | B70: 76 | C70: 9 | D70: 0.456 | E70: 37.541 | F70: 63.68 | G70: 22.54 | H70: 7.40 | I70: 2.01 | J70: 4.75 | K70: 3.72 | L70: 2.61 | M70: 2.16 | N70: 50.83 | O70: 47.64 | P70: 30.94 | Q70: 28.55 | R70: 11.26 | S70: 15.94 | T70: 26.18 | U70: 28.49 | V70: 0.98 | W70: 0.94 | X70: 0.53 | Y70: 0.07 | Z70: 1 | AA70: 0 | AB70: 0 | AC70: 0 | AD70: 1 | AE70: 0 | AF70: 0.2214575106 | AG70: 0.2215
A71: 2962 | B71: 56 | C71: 8 | D71: 0.759 | E71: 50.023 | F71: 49.58 | G71: 12.89 | H71: 3.31 | I71: 0.96 | J71: 4.76 | K71: 3.46 | L71: 2.27 | M71: 1.59 | N71: 19.50 | O71: 16.80 | P71: 17.21 | Q71: 15.13 | R71: 8.77 | S71: 9.11 | T71: 11.70 | U71: 13.51 | V71: 0.89 | W71: 0.84 | X71: 0.73 | Y71: 0.45 | Z71: 1 | AA71: 0 | AB71: 0 | AC71: 0 | AD71: 0 | AE71: 1 | AF71: 0.449477291 | AG71: 0.4495
A72: 3114 | B72: 79 | C72: 16 | D72: 0.211 | E72: 17.294 | F72: 53.80 | G72: 17.68 | H72: 3.98 | I72: 1.18 | J72: 5.00 | K72: 3.06 | L72: 1.42 | M72: 0.86 | N72: 22.31 | O72: 20.78 | P72: 19.98 | Q72: 16.36 | R72: 9.51 | S72: 12.50 | T72: 14.06 | U72: 16.68 | V72: 0.90 | W72: 0.80 | X72: 0.71 | Y72: 0.20 | Z72: 1 | AA72: 0 | AB72: 0 | AC72: 0 | AD72: 1 | AE72: 0 | AF72: 0.4262186694 | AG72: 0.4262
A73: 3177 | B73: 65 | C73: 19.75 | D73: 0.493 | E73: 36.928 | F73: 14.20 | G73: 8.07 | H73: 3.83 | I73: 1.47 | J73: 1.52 | K73: 1.26 | L73: 0.89 | M73: 0.62 | N73: 25.80 | O73: 24.91 | P73: 20.56 | Q73: 15.92 | R73: 2.51 | S73: 5.70 | T73: 13.55 | U73: 20.73 | V73: 1.00 | W73: 0.97 | X73: 0.75 | Y73: 0.64 | Z73: 1 | AA73: 0 | AB73: 0 | AC73: 0 | AD73: 0 | AE73: 1 | AF73: 0.09731830933 | AG73: 0.0973
A74: 3224 | B74: 83 | C74: 9 | D74: 0.439 | E74: 38.369 | F74: 10.26 | G74: 4.76 | H74: 1.48 | I74: 0.59 | J74: 1.62 | K74: 1.37 | L74: 1.09 | M74: 1.01 | N74: 15.27 | O74: 14.91 | P74: 13.64 | Q74: 10.34 | R74: 1.81 | S74: 3.37 | T74: 5.24 | U74: 8.32 | V74: 0.99 | W74: 0.97 | X74: 0.92 | Y74: 0.59 | Z74: 1 | AA74: 1 | AB74: 0 | AC74: 0 | AD74: 0 | AE74: 1 | AF74: 0.1188334796 | AG74: 0.1188
A75: 3277 | B75: 47.5 | C75: 23.5 | D75: 0.284 | E75: 14.720 | F75: 48.16 | G75: 12.27 | H75: 2.34 | I75: 0.91 | J75: 4.87 | K75: 2.96 | L75: 1.58 | M75: 1.01 | N75: 18.97 | O75: 18.95 | P75: 17.62 | Q75: 14.25 | R75: 8.51 | S75: 8.68 | T75: 8.26 | U75: 12.81 | V75: 0.89 | W75: 0.89 | X75: 0.88 | Y75: 0.44 | Z75: 1 | AA75: 0 | AB75: 0 | AC75: 1 | AD75: 0 | AE75: 0 | AF75: 0.4488060394 | AG75: 0.4488
A76: 3281 | B76: 69 | C76: 18 | D76: 0.256 | E76: 17.949 | F76: 60.46 | G76: 17.90 | H76: 4.75 | I76: 1.28 | J76: 3.67 | K76: 2.28 | L76: 1.34 | M76: 1.02 | N76: 23.02 | O76: 22.01 | P76: 19.36 | Q76: 18.86 | R76: 10.69 | S76: 12.66 | T76: 16.79 | U76: 18.15 | V76: 0.89 | W76: 0.82 | X76: 0.50 | Y76: 0.27 | Z76: 1 | AA76: 0 | AB76: 0 | AC76: 0 | AD76: 0 | AE76: 1 | AF76: 0.4641831131 | AG76: 0.4642
A77: 3288 | B77: 59 | C77: 11 | D77: 0.296 | E77: 18.472 | F77: 74.56 | G77: 19.54 | H77: 4.49 | I77: 1.19 | J77: 5.47 | K77: 3.25 | L77: 1.76 | M77: 1.17 | N77: 22.52 | O77: 22.04 | P77: 20.36 | Q77: 14.62 | R77: 13.18 | S77: 13.82 | T77: 15.88 | U77: 16.88 | V77: 0.81 | W77: 0.78 | X77: 0.63 | Y77: 0.50 | Z77: 1 | AA77: 0 | AB77: 0 | AC77: 0 | AD77: 0 | AE77: 1 | AF77: 0.5851540832 | AG77: 0.5852
A78: 3326 | B78: 85 | C78: 14 | D78: 0.126 | E78: 10.836 | F78: 20.53 | G78: 7.66 | H78: 2.54 | I78: 0.77 | J78: 2.33 | K78: 1.39 | L78: 0.91 | M78: 0.74 | N78: 14.85 | O78: 14.16 | P78: 11.90 | Q78: 9.76 | R78: 3.63 | S78: 5.42 | T78: 8.99 | U78: 10.89 | V78: 0.97 | W78: 0.92 | X78: 0.66 | Y78: 0.44 | Z78: 1 | AA78: 0 | AB78: 1 | AC78: 0 | AD78: 0 | AE78: 0 | AF78: 0.244433397 | AG78: 0.2444
A79: 3348 | B79: 69 | C79: 14 | D79: 0.274 | E79: 19.747 | F79: 49.61 | G79: 19.78 | H79: 4.53 | I79: 1.04 | J79: 3.87 | K79: 2.67 | L79: 1.55 | M79: 1.50 | N79: 20.22 | O79: 19.11 | P79: 17.08 | Q79: 17.15 | R79: 8.77 | S79: 13.98 | T79: 16.03 | U79: 14.75 | V79: 0.90 | W79: 0.68 | X79: 0.35 | Y79: 0.51 | Z79: 1 | AA79: 0 | AB79: 1 | AC79: 0 | AD79: 0 | AE79: 0 | AF79: 0.433812687 | AG79: 0.4338
A80: 3393 | B80: 88.5 | C80: 23 | D80: 0.251 | E80: 22.616 | F80: 49.56 | G80: 20.66 | H80: 4.56 | I80: 1.09 | J80: 2.48 | K80: 1.44 | L80: 0.91 | M80: 0.92 | N80: 26.21 | O80: 23.54 | P80: 22.62 | Q80: 20.36 | R80: 8.76 | S80: 14.61 | T80: 16.12 | U80: 15.39 | V80: 0.94 | W80: 0.78 | X80: 0.70 | Y80: 0.65 | Z80: 1 | AA80: 0 | AB80: 0 | AC80: 1 | AD80: 0 | AE80: 0 | AF80: 0.3342090453 | AG80: 0.3342
A81: 3500 | B81: 79 | C81: 16 | D81: 0.504 | E81: 44.085 | F81: 16.07 | G81: 6.75 | H81: 2.35 | I81: 0.70 | J81: 1.50 | K81: 1.21 | L81: 1.00 | M81: 0.77 | N81: 14.92 | O81: 14.37 | P81: 12.64 | Q81: 10.99 | R81: 2.84 | S81: 4.78 | T81: 8.30 | U81: 9.95 | V81: 0.98 | W81: 0.94 | X81: 0.75 | Y81: 0.42 | Z81: 1 | AA81: 0 | AB81: 0 | AC81: 0 | AD81: 1 | AE81: 0 | AF81: 0.1904407214 | AG81: 0.1904
A82: 3525 | B82: 72 | C82: 22 | D82: 0.165 | E82: 12.431 | F82: 18.60 | G82: 8.88 | H82: 2.59 | I82: 0.59 | J82: 1.86 | K82: 1.51 | L82: 1.03 | M82: 0.90 | N82: 17.27 | O82: 16.42 | P82: 14.62 | Q82: 14.10 | R82: 3.29 | S82: 6.28 | T82: 9.16 | U82: 8.39 | V82: 0.98 | W82: 0.92 | X82: 0.78 | Y82: 0.80 | Z82: 1 | AA82: 0 | AB82: 1 | AC82: 0 | AD82: 0 | AE82: 0 | AF82: 0.1904382863 | AG82: 0.1904
A83: 3539 | B83: 62 | C83: 16 | D83: 0.209 | E83: 13.392 | F83: 40.74 | G83: 12.84 | H83: 3.41 | I83: 0.83 | J83: 3.13 | K83: 1.71 | L83: 0.92 | M83: 1.11 | N83: 16.92 | O83: 15.67 | P83: 13.04 | Q83: 12.74 | R83: 7.20 | S83: 9.08 | T83: 12.05 | U83: 11.71 | V83: 0.90 | W83: 0.82 | X83: 0.38 | Y83: 0.40 | Z83: 1 | AA83: 0 | AB83: 0 | AC83: 0 | AD83: 1 | AE83: 0 | AF83: 0.4257000323 | AG83: 0.4257
A84: 3562 | B84: 70 | C84: 18.25 | D84: 0.215 | E84: 15.537 | F84: 18.16 | G84: 9.78 | H84: 4.12 | I84: 1.08 | J84: 1.46 | K84: 1.12 | L84: 0.90 | M84: 0.78 | N84: 21.74 | O84: 20.73 | P84: 15.43 | Q84: 15.22 | R84: 3.21 | S84: 6.92 | T84: 14.56 | U84: 15.27 | V84: 0.99 | W84: 0.94 | X84: 0.33 | Y84: 0.08 | Z84: 1 | AA84: 0 | AB84: 1 | AC84: 0 | AD84: 0 | AE84: 0 | AF84: 0.1477045976 | AG84: 0.1477
A85: 3596 | B85: 88 | C85: 40 | D85: 0.522 | E85: 48.530 | F85: 75.16 | G85: 25.49 | H85: 5.82 | I85: 1.61 | J85: 4.01 | K85: 2.94 | L85: 2.08 | M85: 1.51 | N85: 43.91 | O85: 38.57 | P85: 34.75 | Q85: 33.36 | R85: 13.29 | S85: 18.02 | T85: 20.57 | U85: 22.81 | V85: 0.95 | W85: 0.88 | X85: 0.81 | Y85: 0.73 | Z85: 1 | AA85: 0 | AB85: 0 | AC85: 0 | AD85: 1 | AE85: 0 | AF85: 0.3025905711 | AG85: 0.3026
A86: 3601 | B86: 70 | C86: 9 | D86: 0.348 | E86: 25.549 | F86: 33.92 | G86: 9.62 | H86: 2.89 | I86: 0.74 | J86: 5.18 | K86: 3.10 | L86: 1.60 | M86: 1.28 | N86: 16.42 | O86: 15.52 | P86: 12.70 | Q86: 12.76 | R86: 6.00 | S86: 6.80 | T86: 10.23 | U86: 10.51 | V86: 0.93 | W86: 0.90 | X86: 0.59 | Y86: 0.57 | Z86: 1 | AA86: 0 | AB86: 0 | AC86: 0 | AD86: 0 | AE86: 1 | AF86: 0.3651409292 | AG86: 0.3651
A87: 3617 | B87: 64 | C87: 8 | D87: 0.415 | E87: 27.868 | F87: 43.87 | G87: 14.81 | H87: 4.55 | I87: 1.27 | J87: 5.41 | K87: 3.71 | L87: 2.44 | M87: 2.39 | N87: 26.38 | O87: 22.74 | P87: 19.22 | Q87: 19.35 | R87: 7.76 | S87: 10.47 | T87: 16.09 | U87: 17.92 | V87: 0.96 | W87: 0.89 | X87: 0.55 | Y87: 0.38 | Z87: 1 | AA87: 1 | AB87: 0 | AC87: 1 | AD87: 0 | AE87: 0 | AF87: 0.2939620212 | AG87: 0.294
A88: 3630 | B88: 71 | C88: 14 | D88: 0.197 | E88: 13.712 | F88: 45.75 | G88: 12.23 | H88: 2.97 | I88: 0.75 | J88: 5.64 | K88: 3.07 | L88: 1.65 | M88: 0.89 | N88: 17.54 | O88: 16.92 | P88: 15.33 | Q88: 12.12 | R88: 8.09 | S88: 8.65 | T88: 10.49 | U88: 10.63 | V88: 0.89 | W88: 0.86 | X88: 0.73 | Y88: 0.48 | Z88: 1 | AA88: 0 | AB88: 0 | AC88: 0 | AD88: 1 | AE88: 0 | AF88: 0.4610214124 | AG88: 0.461
A89: 3703 | B89: 78.5 | C89: 28 | D89: 0.235 | E89: 18.915 | F89: 35.63 | G89: 12.68 | H89: 3.85 | I89: 0.97 | J89: 2.47 | K89: 1.49 | L89: 0.88 | M89: 0.75 | N89: 26.01 | O89: 25.01 | P89: 22.52 | Q89: 21.03 | R89: 6.30 | S89: 8.96 | T89: 13.60 | U89: 13.66 | V89: 0.97 | W89: 0.93 | X89: 0.80 | Y89: 0.76 | Z89: 1 | AA89: 0 | AB89: 0 | AC89: 0 | AD89: 1 | AE89: 0 | AF89: 0.2421622018 | AG89: 0.2422
A90: 3848 | B90: 63 | C90: 19 | D90: 0.183 | E90: 11.948 | F90: 9.21 | G90: 5.18 | H90: 2.02 | I90: 0.78 | J90: 1.10 | K90: 1.05 | L90: 0.99 | M90: 0.67 | N90: 16.80 | O90: 16.36 | P90: 15.00 | Q90: 12.52 | R90: 1.63 | S90: 3.66 | T90: 7.12 | U90: 10.97 | V90: 1.00 | W90: 0.97 | X90: 0.88 | Y90: 0.48 | Z90: 1 | AA90: 0 | AB90: 0 | AC90: 0 | AD90: 1 | AE90: 0 | AF90: 0.09686271747 | AG90: 0.0969
A91: 3875 | B91: 71 | C91: 11 | D91: 0.216 | E91: 15.146 | F91: 73.09 | G91: 18.50 | H91: 3.79 | I91: 1.09 | J91: 4.93 | K91: 3.55 | L91: 2.06 | M91: 1.64 | N91: 17.06 | O91: 17.02 | P91: 15.78 | Q91: 15.51 | R91: 12.92 | S91: 13.08 | T91: 13.40 | U91: 15.36 | V91: 0.65 | W91: 0.64 | X91: 0.53 | Y91: 0.14 | Z91: 1 | AA91: 0 | AB91: 1 | AC91: 0 | AD91: 0 | AE91: 0 | AF91: 0.7575342475 | AG91: 0.7575
A92: 3901 | B92: 79.5 | C92: 24 | D92: 0.245 | E92: 19.878 | F92: 53.16 | G92: 15.56 | H92: 4.92 | I92: 1.33 | J92: 3.50 | K92: 1.63 | L92: 0.89 | M92: 0.73 | N92: 25.80 | O92: 24.96 | P92: 19.70 | Q92: 18.82 | R92: 9.40 | S92: 11.00 | T92: 17.40 | U92: 18.80 | V92: 0.93 | W92: 0.90 | X92: 0.47 | Y92: 0.04 | Z92: 1 | AA92: 1 | AB92: 1 | AC92: 0 | AD92: 0 | AE92: 0 | AF92: 0.3642294364 | AG92: 0.3642
A93: 3929 | B93: 96 | C93: 12 | D93: 0.194 | E93: 17.746 | F93: 59.24 | G93: 17.26 | H93: 4.41 | I93: 1.35 | J93: 4.56 | K93: 3.04 | L93: 1.63 | M93: 1.07 | N93: 22.79 | O93: 21.88 | P93: 19.72 | Q93: 15.35 | R93: 10.47 | S93: 12.21 | T93: 15.59 | U93: 19.16 | V93: 0.89 | W93: 0.83 | X93: 0.61 | Y93: 0.60 | Z93: 1 | AA93: 0 | AB93: 0 | AC93: 0 | AD93: 0 | AE93: 1 | AF93: 0.4594863575 | AG93: 0.4595
A94: 3945 | B94: 77 | C94: 9 | D94: 0.174 | E94: 13.719 | F94: 49.55 | G94: 15.32 | H94: 3.58 | I94: 0.75 | J94: 6.05 | K94: 4.27 | L94: 2.67 | M94: 1.67 | N94: 17.30 | O94: 16.06 | P94: 14.47 | Q94: 11.92 | R94: 8.76 | S94: 10.83 | T94: 12.66 | U94: 10.67 | V94: 0.86 | W94: 0.74 | X94: 0.48 | Y94: 0.45 | Z94: 1 | AA94: 0 | AB94: 0 | AC94: 0 | AD94: 1 | AE94: 0 | AF94: 0.5063870283 | AG94: 0.5064
A95: 4031 | B95: 77 | C95: 26 | D95: 0.220 | E95: 17.813 | F95: 34.75 | G95: 11.00 | H95: 3.83 | I95: 1.17 | J95: 3.83 | K95: 1.91 | L95: 0.91 | M95: 0.88 | N95: 23.75 | O95: 23.08 | P95: 19.51 | Q95: 16.73 | R95: 6.14 | S95: 7.77 | T95: 13.55 | U95: 16.60 | V95: 0.97 | W95: 0.94 | X95: 0.72 | Y95: 0.12 | Z95: 1 | AA95: 0 | AB95: 0 | AC95: 0 | AD95: 0 | AE95: 1 | AF95: 0.2585906807 | AG95: 0.2586
A96: 4043 | B96: 75 | C96: 18 | D96: 0.186 | E96: 14.154 | F96: 17.15 | G96: 10.43 | H96: 4.05 | I96: 0.82 | J96: 1.89 | K96: 1.49 | L96: 0.73 | M96: 0.88 | N96: 19.18 | O96: 17.93 | P96: 13.19 | Q96: 14.59 | R96: 3.03 | S96: 7.37 | T96: 14.30 | U96: 11.62 | V96: 0.99 | W96: 0.91 | X96: 0.39 | Y96: 0.60 | Z96: 1 | AA96: 0 | AB96: 1 | AC96: 0 | AD96: 0 | AE96: 0 | AF96: 0.1580501007 | AG96: 0.1581
A97: 4051 | B97: 87 | C97: 7 | D97: 0.226 | E97: 18.535 | F97: 48.11 | G97: 12.61 | H97: 2.67 | I97: 0.81 | J97: 5.99 | K97: 4.12 | L97: 2.40 | M97: 1.83 | N97: 16.67 | O97: 16.51 | P97: 15.70 | Q97: 12.60 | R97: 8.50 | S97: 8.92 | T97: 9.44 | U97: 11.42 | V97: 0.86 | W97: 0.84 | X97: 0.80 | Y97: 0.42 | Z97: 1 | AA97: 1 | AB97: 0 | AC97: 0 | AD97: 0 | AE97: 1 | AF97: 0.5101697533 | AG97: 0.5102
A98: 4054 | B98: 94 | C98: 19.75 | D98: 0.165 | E98: 15.295 | F98: 24.43 | G98: 8.54 | H98: 2.93 | I98: 1.01 | J98: 1.94 | K98: 1.17 | L98: 0.85 | M98: 0.82 | N98: 21.08 | O98: 20.44 | P98: 17.85 | Q98: 12.69 | R98: 4.32 | S98: 6.04 | T98: 10.37 | U98: 14.30 | V98: 0.98 | W98: 0.96 | X98: 0.81 | Y98: 0.46 | Z98: 1 | AA98: 0 | AB98: 0 | AC98: 0 | AD98: 1 | AE98: 0 | AF98: 0.204908393 | AG98: 0.2049
A99: 4074 | B99: 69 | C99: 20 | D99: 0.243 | E99: 17.018 | F99: 46.43 | G99: 16.10 | H99: 4.15 | I99: 1.11 | J99: 4.08 | K99: 2.46 | L99: 1.29 | M99: 1.02 | N99: 21.91 | O99: 20.07 | P99: 17.29 | Q99: 17.40 | R99: 8.21 | S99: 11.38 | T99: 14.68 | U99: 15.70 | V99: 0.93 | W99: 0.82 | X99: 0.53 | Y99: 0.43 | Z99: 1 | AA99: 0 | AB99: 0 | AC99: 0 | AD99: 1 | AE99: 0 | AF99: 0.3746807212 | AG99: 0.3747
A100: 4243 | B100: 67 | C100: 19.25 | D100: 0.345 | E100: 22.978 | F100: 72.29 | G100: 27.75 | H100: 4.68 | I100: 1.29 | J100: 4.38 | K100: 3.25 | L100: 2.25 | M100: 1.51 | N100: 28.85 | O100: 23.69 | P100: 21.71 | Q100: 20.41 | R100: 12.78 | S100: 19.63 | T100: 16.54 | U100: 18.19 | V100: 0.90 | W100: 0.56 | X100: 0.65 | Y100: 0.45 | Z100: 1 | AA100: 0 | AB100: 0 | AC100: 0 | AD100: 0 | AE100: 1 | AF100: 0.4430271124 | AG100: 0.443
A101: 4255 | B101: 58 | C101: 12 | D101: 0.293 | E101: 17.590 | F101: 54.97 | G101: 16.31 | H101: 3.71 | I101: 1.03 | J101: 6.07 | K101: 4.25 | L101: 2.01 | M101: 1.16 | N101: 22.87 | O101: 21.94 | P101: 20.66 | Q101: 15.61 | R101: 9.72 | S101: 11.54 | T101: 13.12 | U101: 14.52 | V101: 0.91 | W101: 0.85 | X101: 0.77 | Y101: 0.37 | Z101: 1 | AA101: 0 | AB101: 0 | AC101: 0 | AD101: 0 | AE101: 1 | AF101: 0.4249569698 | AG101: 0.425
A102: 1 | B102: 75 | C102: 29.75 | D102: 0.264 | E102: 20.065 | F102: 30.19 | G102: 12.94 | H102: 3.78 | I102: 1.38 | J102: 2.05 | K102: 1.23 | L102: 0.92 | M102: 0.68 | N102: 27.29 | O102: 26.26 | P102: 23.54 | Q102: 19.66 | R102: 5.34 | S102: 9.15 | T102: 13.37 | U102: 19.49 | V102: 0.98 | W102: 0.94 | X102: 0.82 | Y102: 0.13 | Z102: 0 | AA102: 0 | AB102: 0 | AC102: 1 | AD102: 0 | AE102: 0 | AF102: 0.1955907685 | AG102: 0.1956
A103: 2 | B103: 73 | C103: 12 | D103: 0.158 | E103: 11.651 | F103: 30.84 | G103: 10.24 | H103: 2.80 | I103: 0.80 | J103: 3.16 | K103: 1.82 | L103: 1.23 | M103: 0.89 | N103: 14.90 | O103: 14.12 | P103: 12.29 | Q103: 11.33 | R103: 5.45 | S103: 7.24 | T103: 9.91 | U103: 11.29 | V103: 0.93 | W103: 0.86 | X103: 0.59 | Y103: 0.08 | Z103: 0 | AA103: 0 | AB103: 1 | AC103: 0 | AD103: 0 | AE103: 0 | AF103: 0.3657335243 | AG103: 0.3657
A104: 3 | B104: 69 | C104: 13 | D104: 0.222 | E104: 15.514 | F104: 58.44 | G104: 16.38 | H104: 3.97 | I104: 0.98 | J104: 5.32 | K104: 3.00 | L104: 1.52 | M104: 1.20 | N104: 19.04 | O104: 18.12 | P104: 16.25 | Q104: 13.47 | R104: 10.33 | S104: 11.58 | T104: 14.05 | U104: 13.92 | V104: 0.84 | W104: 0.77 | X104: 0.50 | Y104: 0.25 | Z104: 0 | AA104: 0 | AB104: 1 | AC104: 0 | AD104: 0 | AE104: 0 | AF104: 0.5425184082 | AG104: 0.5425
A105: 4 | B105: 87 | C105: 11.25 | D105: 0.186 | E105: 15.589 | F105: 28.33 | G105: 8.69 | H105: 2.17 | I105: 0.87 | J105: 2.56 | K105: 1.72 | L105: 1.17 | M105: 0.95 | N105: 19.93 | O105: 19.44 | P105: 17.96 | Q105: 12.69 | R105: 5.01 | S105: 6.14 | T105: 7.68 | U105: 12.29 | V105: 0.97 | W105: 0.95 | X105: 0.90 | Y105: 0.25 | Z105: 0 | AA105: 0 | AB105: 0 | AC105: 1 | AD105: 0 | AE105: 0 | AF105: 0.2512445658 | AG105: 0.2512
A106: 5 | B106: 73 | C106: 19 | D106: 0.224 | E106: 16.828 | F106: 19.89 | G106: 9.46 | H106: 3.54 | I106: 1.09 | J106: 1.91 | K106: 1.29 | L106: 1.04 | M106: 0.96 | N106: 22.87 | O106: 22.09 | P106: 19.01 | Q106: 16.03 | R106: 3.52 | S106: 6.69 | T106: 12.52 | U106: 15.47 | V106: 0.99 | W106: 0.95 | X106: 0.75 | Y106: 0.26 | Z106: 0 | AA106: 0 | AB106: 1 | AC106: 0 | AD106: 0 | AE106: 0 | AF106: 0.1537740814 | AG106: 0.1538
A107: 6 | B107: 76 | C107: 13 | D107: 0.155 | E107: 11.918 | F107: 22.59 | G107: 9.34 | H107: 2.50 | I107: 0.67 | J107: 1.93 | K107: 1.29 | L107: 0.90 | M107: 0.92 | N107: 14.80 | O107: 13.60 | P107: 11.84 | Q107: 10.89 | R107: 3.99 | S107: 6.61 | T107: 8.84 | U107: 9.49 | V107: 0.96 | W107: 0.87 | X107: 0.66 | Y107: 0.49 | Z107: 0 | AA107: 0 | AB107: 0 | AC107: 0 | AD107: 1 | AE107: 0 | AF107: 0.269953068 | AG107: 0.27
A108: 7 | B108: 74 | C108: 9 | D108: 0.299 | E108: 23.004 | F108: 70.03 | G108: 18.91 | H108: 4.34 | I108: 1.10 | J108: 5.83 | K108: 3.43 | L108: 1.85 | M108: 1.79 | N108: 16.62 | O108: 17.14 | P108: 15.69 | Q108: 15.83 | R108: 12.38 | S108: 13.37 | T108: 15.34 | U108: 15.56 | V108: 0.67 | W108: 0.63 | X108: 0.21 | Y108: 0.18 | Z108: 0 | AA108: 0 | AB108: 1 | AC108: 0 | AD108: 0 | AE108: 0 | AF108: 0.7451281795 | AG108: 0.7451
A109: 8 | B109: 87 | C109: 17 | D109: 0.453 | E109: 41.574 | F109: 40.45 | G109: 12.92 | H109: 3.75 | I109: 0.98 | J109: 3.32 | K109: 1.60 | L109: 1.02 | M109: 0.91 | N109: 17.60 | O109: 16.52 | P109: 13.61 | Q109: 13.68 | R109: 7.15 | S109: 9.14 | T109: 13.27 | U109: 13.81 | V109: 0.91 | W109: 0.83 | X109: 0.22 | Y109: 0.13 | Z109: 0 | AA109: 0 | AB109: 0 | AC109: 0 | AD109: 0 | AE109: 1 | AF109: 0.4062121033 | AG109: 0.4062
A110: 9 | B110: 75 | C110: 17 | D110: 0.312 | E110: 23.006 | F110: 72.78 | G110: 19.87 | H110: 4.87 | I110: 1.08 | J110: 4.05 | K110: 2.42 | L110: 1.18 | M110: 1.14 | N110: 20.54 | O110: 19.79 | P110: 16.92 | Q110: 14.20 | R110: 12.87 | S110: 14.05 | T110: 17.23 | U110: 15.24 | V110: 0.78 | W110: 0.70 | X110: 0.19 | Y110: 0.36 | Z110: 0 | AA110: 0 | AB110: 0 | AC110: 0 | AD110: 0 | AE110: 1 | AF110: 0.6264327662 | AG110: 0.6264
A111: 10 | B111: 68 | C111: 13.25 | D111: 0.295 | E111: 19.800 | F111: 49.96 | G111: 14.13 | H111: 3.62 | I111: 0.76 | J111: 4.34 | K111: 2.27 | L111: 1.23 | M111: 1.26 | N111: 16.29 | O111: 15.31 | P111: 12.96 | Q111: 12.47 | R111: 8.83 | S111: 9.99 | T111: 12.81 | U111: 10.73 | V111: 0.84 | W111: 0.76 | X111: 0.15 | Y111: 0.51 | Z111: 0 | AA111: 0 | AB111: 0 | AC111: 0 | AD111: 1 | AE111: 0 | AF111: 0.5421449104 | AG111: 0.5421
A112: 11 | B112: 76 | C112: 18 | D112: 0.286 | E112: 21.744 | F112: 61.31 | G112: 18.55 | H112: 4.79 | I112: 1.08 | J112: 3.19 | K112: 2.15 | L112: 1.33 | M112: 1.05 | N112: 22.94 | O112: 21.92 | P112: 18.45 | Q112: 15.05 | R112: 10.84 | S112: 13.11 | T112: 16.95 | U112: 15.31 | V112: 0.88 | W112: 0.80 | X112: 0.39 | Y112: 0.18 | Z112: 0 | AA112: 0 | AB112: 0 | AC112: 0 | AD112: 1 | AE112: 0 | AF112: 0.4725328695 | AG112: 0.4725
A113: 12 | B113: 79 | C113: 35.5 | D113: 0.443 | E113: 36.819 | F113: 95.72 | G113: 31.95 | H113: 7.64 | I113: 2.14 | J113: 3.40 | K113: 1.88 | L113: 1.16 | M113: 0.93 | N113: 35.61 | O113: 31.44 | P113: 31.84 | Q113: 23.20 | R113: 16.92 | S113: 22.59 | T113: 27.03 | U113: 30.26 | V113: 0.88 | W113: 0.70 | X113: 0.53 | Y113: 0.64 | Z113: 0 | AA113: 0 | AB113: 1 | AC113: 0 | AD113: 0 | AE113: 0 | AF113: 0.4751202547 | AG113: 0.4751
A114: 13 | B114: 73 | C114: 10 | D114: 0.354 | E114: 26.974 | F114: 101.69 | G114: 28.97 | H114: 6.03 | I114: 1.26 | J114: 3.79 | K114: 3.22 | L114: 2.58 | M114: 1.73 | N114: 27.91 | O114: 26.09 | P114: 25.06 | Q114: 19.00 | R114: 17.98 | S114: 20.48 | T114: 21.31 | U114: 17.87 | V114: 0.76 | W114: 0.62 | X114: 0.53 | Y114: 0.34 | Z114: 0 | AA114: 0 | AB114: 0 | AC114: 0 | AD114: 0 | AE114: 1 | AF114: 0.6441489343 | AG114: 0.6441
A115: 14 | B115: 69 | C115: 13 | D115: 0.225 | E115: 15.848 | F115: 56.22 | G115: 19.82 | H115: 4.19 | I115: 1.16 | J115: 6.28 | K115: 3.80 | L115: 1.99 | M115: 1.45 | N115: 20.06 | O115: 17.44 | P115: 17.10 | Q115: 17.02 | R115: 9.94 | S115: 14.01 | T115: 14.83 | U115: 16.35 | V115: 0.87 | W115: 0.60 | X115: 0.50 | Y115: 0.28 | Z115: 0 | AA115: 0 | AB115: 1 | AC115: 0 | AD115: 0 | AE115: 0 | AF115: 0.4955059831 | AG115: 0.4955
A116: 15 | B116: 76 | C116: 13 | D116: 0.279 | E116: 22.256 | F116: 81.16 | G116: 22.53 | H116: 4.85 | I116: 1.02 | J116: 4.47 | K116: 2.75 | L116: 1.74 | M116: 1.18 | N116: 19.49 | O116: 18.32 | P116: 17.76 | Q116: 14.93 | R116: 14.35 | S116: 15.93 | T116: 17.15 | U116: 14.45 | V116: 0.68 | W116: 0.49 | X116: 0.26 | Y116: 0.25 | Z116: 0 | AA116: 0 | AB116: 1 | AC116: 0 | AD116: 0 | AE116: 0 | AF116: 0.7361811246 | AG116: 0.7362
A117: 16 | B117: 77 | C117: 15 | D117: 0.277 | E117: 21.038 | F117: 82.82 | G117: 22.72 | H117: 5.15 | I117: 1.18 | J117: 4.35 | K117: 2.45 | L117: 1.51 | M117: 1.22 | N117: 22.96 | O117: 21.97 | P117: 20.54 | Q117: 15.67 | R117: 14.64 | S117: 16.07 | T117: 18.20 | U117: 16.63 | V117: 0.77 | W117: 0.68 | X117: 0.46 | Y117: 0.33 | Z117: 0 | AA117: 0 | AB117: 0 | AC117: 1 | AD117: 0 | AE117: 0 | AF117: 0.6376230999 | AG117: 0.6376
A118: 17 | B118: 78 | C118: 22 | D118: 0.278 | E118: 22.769 | F118: 81.55 | G118: 22.18 | H118: 4.92 | I118: 1.62 | J118: 4.13 | K118: 2.66 | L118: 1.69 | M118: 1.24 | N118: 27.20 | O118: 26.37 | P118: 24.66 | Q118: 18.43 | R118: 14.42 | S118: 15.69 | T118: 17.39 | U118: 22.95 | V118: 0.85 | W118: 0.80 | X118: 0.71 | Y118: 0.60 | Z118: 0 | AA118: 0 | AB118: 0 | AC118: 1 | AD118: 0 | AE118: 0 | AF118: 0.529994682 | AG118: 0.53
A119: 18 | B119: 87 | C119: 21 | D119: 0.249 | E119: 21.269 | F119: 68.93 | G119: 18.93 | H119: 5.09 | I119: 1.35 | J119: 3.87 | K119: 2.48 | L119: 1.36 | M119: 0.90 | N119: 22.11 | O119: 21.49 | P119: 18.28 | Q119: 18.12 | R119: 12.18 | S119: 13.39 | T119: 17.98 | U119: 19.05 | V119: 0.83 | W119: 0.78 | X119: 0.18 | Y119: 0.31 | Z119: 0 | AA119: 0 | AB119: 0 | AC119: 0 | AD119: 0 | AE119: 1 | AF119: 0.5510069398 | AG119: 0.551
A120: 19 | B120: 74 | C120: 14 | D120: 0.226 | E120: 17.179 | F120: 59.24 | G120: 18.79 | H120: 4.30 | I120: 0.93 | J120: 4.41 | K120: 2.76 | L120: 1.10 | M120: 0.97 | N120: 21.23 | O120: 19.53 | P120: 17.53 | Q120: 15.42 | R120: 10.47 | S120: 13.29 | T120: 15.22 | U120: 13.17 | V120: 0.87 | W120: 0.73 | X120: 0.50 | Y120: 0.52 | Z120: 0 | AA120: 0 | AB120: 0 | AC120: 0 | AD120: 1 | AE120: 0 | AF120: 0.4933676895 | AG120: 0.4934
A121: 20 | B121: 79 | C121: 23 | D121: 0.196 | E121: 15.898 | F121: 11.06 | G121: 7.15 | H121: 3.27 | I121: 1.04 | J121: 1.26 | K121: 1.08 | L121: 1.00 | M121: 0.79 | N121: 22.40 | O121: 21.92 | P121: 19.48 | Q121: 15.86 | R121: 1.95 | S121: 5.06 | T121: 11.57 | U121: 14.71 | V121: 1.00 | W121: 0.97 | X121: 0.80 | Y121: 0.37 | Z121: 0 | AA121: 0 | AB121: 1 | AC121: 0 | AD121: 0 | AE121: 0 | AF121: 0.08727279 | AG121: 0.0873
A122: 21 | B122: 81 | C122: 17 | D122: 0.304 | E122: 25.535 | F122: 54.02 | G122: 19.20 | H122: 4.19 | I122: 1.11 | J122: 3.80 | K122: 2.30 | L122: 1.22 | M122: 1.02 | N122: 19.51 | O122: 19.15 | P122: 17.00 | Q122: 13.08 | R122: 9.55 | S122: 13.58 | T122: 14.83 | U122: 15.64 | V122: 0.87 | W122: 0.71 | X122: 0.49 | Y122: 0.55 | Z122: 0 | AA122: 0 | AB122: 1 | AC122: 0 | AD122: 0 | AE122: 0 | AF122: 0.4894121962 | AG122: 0.4894
A123: 22 | B123: 70 | C123: 21 | D123: 0.550 | E123: 43.580 | F123: 40.94 | G123: 18.79 | H123: 7.50 | I123: 2.17 | J123: 3.98 | K123: 2.70 | L123: 1.69 | M123: 1.67 | N123: 60.13 | O123: 55.58 | P123: 38.02 | Q123: 37.83 | R123: 7.24 | S123: 13.29 | T123: 26.52 | U123: 30.75 | V123: 0.99 | W123: 0.97 | X123: 0.72 | Y123: 0.58 | Z123: 0 | AA123: 0 | AB123: 0 | AC123: 0 | AD123: 0 | AE123: 1 | AF123: 0.1203606751 | AG123: 0.1204
A124: 23 | B124: 91 | C124: 24 | D124: 0.327 | E124: 30.233 | F124: 59.72 | G124: 25.11 | H124: 6.10 | I124: 1.62 | J124: 3.08 | K124: 2.02 | L124: 1.18 | M124: 0.99 | N124: 31.61 | O124: 29.82 | P124: 28.52 | Q124: 21.83 | R124: 10.56 | S124: 17.76 | T124: 21.56 | U124: 22.88 | V124: 0.94 | W124: 0.80 | X124: 0.65 | Y124: 0.30 | Z124: 0 | AA124: 1 | AB124: 0 | AC124: 1 | AD124: 0 | AE124: 0 | AF124: 0.3340449329 | AG124: 0.334
A125: 24 | B125: 91 | C125: 17.75 | D125: 0.232 | E125: 21.120 | F125: 48.31 | G125: 13.95 | H125: 4.43 | I125: 0.96 | J125: 2.33 | K125: 1.56 | L125: 1.01 | M125: 0.91 | N125: 21.80 | O125: 21.01 | P125: 16.25 | Q125: 16.21 | R125: 8.54 | S125: 9.87 | T125: 15.65 | U125: 13.60 | V125: 0.92 | W125: 0.88 | X125: 0.27 | Y125: 0.54 | Z125: 0 | AA125: 0 | AB125: 0 | AC125: 1 | AD125: 0 | AE125: 0 | AF125: 0.3918603293 | AG125: 0.3919
A126: 25 | B126: 79 | C126: 21 | D126: 0.216 | E126: 17.100 | F126: 29.01 | G126: 11.17 | H126: 4.11 | I126: 1.01 | J126: 2.84 | K126: 1.43 | L126: 0.77 | M126: 0.77 | N126: 21.99 | O126: 21.02 | P126: 16.25 | Q126: 14.75 | R126: 5.13 | S126: 7.90 | T126: 14.52 | U126: 14.29 | V126: 0.97 | W126: 0.93 | X126: 0.45 | Y126: 0.25 | Z126: 0 | AA126: 0 | AB126: 0 | AC126: 0 | AD126: 1 | AE126: 0 | AF126: 0.2331871072 | AG126: 0.2332
A127: 26 | B127: 77 | C127: 18.75 | D127: 0.240 | E127: 18.872 | F127: 33.09 | G127: 12.32 | H127: 3.06 | I127: 0.82 | J127: 3.19 | K127: 2.48 | L127: 1.37 | M127: 0.90 | N127: 21.24 | O127: 20.39 | P127: 18.37 | Q127: 16.67 | R127: 5.85 | S127: 8.71 | T127: 10.82 | U127: 11.58 | V127: 0.96 | W127: 0.90 | X127: 0.81 | Y127: 0.72 | Z127: 0 | AA127: 0 | AB127: 0 | AC127: 0 | AD127: 0 | AE127: 1 | AF127: 0.2753290465 | AG127: 0.2753
A128: 27 | B128: 75 | C128: 13 | D128: 0.261 | E128: 20.136 | F128: 63.24 | G128: 15.64 | H128: 4.27 | I128: 1.09 | J128: 4.81 | K128: 2.65 | L128: 1.50 | M128: 0.96 | N128: 19.98 | O128: 19.92 | P128: 17.20 | Q128: 14.14 | R128: 11.18 | S128: 11.06 | T128: 15.09 | U128: 15.36 | V128: 0.83 | W128: 0.83 | X128: 0.48 | Y128: 0.39 | Z128: 0 | AA128: 0 | AB128: 0 | AC128: 0 | AD128: 1 | AE128: 0 | AF128: 0.5594426018 | AG128: 0.5594
A129: 28 | B129: 85 | C129: 21.25 | D129: 0.234 | E129: 18.957 | F129: 67.57 | G129: 18.75 | H129: 4.80 | I129: 1.34 | J129: 3.40 | K129: 1.96 | L129: 1.25 | M129: 0.88 | N129: 23.91 | O129: 22.92 | P129: 19.19 | Q129: 17.46 | R129: 11.94 | S129: 13.25 | T129: 16.96 | U129: 18.96 | V129: 0.87 | W129: 0.82 | X129: 0.47 | Y129: 0.39 | Z129: 0 | AA129: 0 | AB129: 1 | AC129: 0 | AD129: 0 | AE129: 0 | AF129: 0.4995509672 | AG129: 0.4996
A130: 29 | B130: 74 | C130: 10 | D130: 0.334 | E130: 25.024 | F130: 99.03 | G130: 24.78 | H130: 5.63 | I130: 1.29 | J130: 4.93 | K130: 3.41 | L130: 2.14 | M130: 1.41 | N130: 24.52 | O130: 23.76 | P130: 22.48 | Q130: 16.20 | R130: 17.51 | S130: 17.52 | T130: 19.90 | U130: 18.21 | V130: 0.70 | W130: 0.68 | X130: 0.47 | Y130: 0.46 | Z130: 0 | AA130: 0 | AB130: 0 | AC130: 1 | AD130: 0 | AE130: 0 | AF130: 0.7140166194 | AG130: 0.714
A131: 30 | B131: 91 | C131: 26 | D131: 0.211 | E131: 19.804 | F131: 38.76 | G131: 14.01 | H131: 3.32 | I131: 0.99 | J131: 4.44 | K131: 2.91 | L131: 1.57 | M131: 0.92 | N131: 27.17 | O131: 26.24 | P131: 25.17 | Q131: 21.73 | R131: 6.85 | S131: 9.91 | T131: 11.75 | U131: 14.02 | V131: 0.97 | W131: 0.93 | X131: 0.88 | Y131: 0.76 | Z131: 0 | AA131: 0 | AB131: 1 | AC131: 0 | AD131: 0 | AE131: 0 | AF131: =R131/N131 -> 0.2522000118 | AG131: =ROUND(AF131, 4) -> 0.2522
A132: 31 | B132: 73 | C132: 15 | D132: 0.197 | E132: 14.425 | F132: 44.53 | G132: 15.03 | H132: 3.77 | I132: 0.94 | J132: 3.15 | K132: 1.68 | L132: 0.99 | M132: 1.01 | N132: 18.78 | O132: 17.28 | P132: 14.79 | Q132: 14.24 | R132: 7.87 | S132: 10.63 | T132: 13.33 | U132: 13.36 | V132: 0.91 | W132: 0.79 | X132: 0.43 | Y132: 0.35 | Z132: 0 | AA132: 0 | AB132: 1 | AC132: 0 | AD132: 0 | AE132: 0 | AF132: 0.4192056397 | AG132: 0.4192
A133: 32 | B133: 73 | C133: 17 | D133: 0.292 | E133: 20.562 | F133: 54.11 | G133: 15.39 | H133: 3.87 | I133: 1.03 | J133: 3.60 | K133: 2.06 | L133: 1.31 | M133: 1.13 | N133: 23.45 | O133: 22.70 | P133: 20.76 | Q133: 19.92 | R133: 9.57 | S133: 10.88 | T133: 13.69 | U133: 14.60 | V133: 0.91 | W133: 0.88 | X133: 0.75 | Y133: 0.68 | Z133: 0 | AA133: 0 | AB133: 0 | AC133: 1 | AD133: 0 | AE133: 0 | AF133: 0.407955174 | AG133: 0.408
A134: 33 | B134: 70 | C134: 11 | D134: 0.138 | E134: 9.873 | F134: 20.61 | G134: 7.01 | H134: 2.28 | I134: 0.63 | J134: 3.58 | K134: 2.14 | L134: 1.23 | M134: 0.94 | N134: 13.42 | O134: 12.84 | P134: 10.73 | Q134: 9.48 | R134: 3.64 | S134: 4.95 | T134: 8.06 | U134: 8.86 | V134: 0.96 | W134: 0.92 | X134: 0.66 | Y134: 0.36 | Z134: 0 | AA134: 0 | AB134: 1 | AC134: 0 | AD134: 0 | AE134: 0 | AF134: 0.2714092151 | AG134: 0.2714
A135: 34 | B135: 76 | C135: 14 | D135: 0.163 | E135: 12.456 | F135: 13.05 | G135: 7.67 | H135: 3.23 | I135: 0.71 | J135: 1.24 | K135: 0.99 | L135: 0.83 | M135: 0.95 | N135: 17.38 | O135: 16.47 | P135: 12.57 | Q135: 12.05 | R135: 2.31 | S135: 5.42 | T135: 11.44 | U135: 10.01 | V135: 0.99 | W135: 0.94 | X135: 0.41 | Y135: 0.56 | Z135: 0 | AA135: 0 | AB135: 1 | AC135: 0 | AD135: 0 | AE135: 0 | AF135: 0.1327457097 | AG135: 0.1327
A136: 35 | B136: 76 | C136: 25 | D136: 0.301 | E136: 23.910 | F136: 63.35 | G136: 18.89 | H136: 5.01 | I136: 1.39 | J136: 3.35 | K136: 2.01 | L136: 1.17 | M136: 0.90 | N136: 25.93 | O136: 24.44 | P136: 20.82 | Q136: 16.70 | R136: 11.20 | S136: 13.36 | T136: 17.73 | U136: 19.63 | V136: 0.90 | W136: 0.84 | X136: 0.52 | Y136: 0.53 | Z136: 0 | AA136: 0 | AB136: 0 | AC136: 1 | AD136: 0 | AE136: 0 | AF136: 0.4317845416 | AG136: 0.4318
A137: 36 | B137: 72 | C137: 18 | D137: 0.335 | E137: 26.084 | F137: 103.03 | G137: 30.49 | H137: 6.22 | I137: 1.54 | J137: 5.96 | K137: 4.34 | L137: 3.22 | M137: 2.68 | N137: 28.22 | O137: 26.39 | P137: 26.34 | Q137: 24.30 | R137: 18.21 | S137: 21.56 | T137: 21.98 | U137: 21.78 | V137: 0.76 | W137: 0.58 | X137: 0.55 | Y137: 0.44 | Z137: 0 | AA137: 0 | AB137: 0 | AC137: 0 | AD137: 1 | AE137: 0 | AF137: 0.6454959463 | AG137: 0.6455
A138: 38 | B138: 80 | C138: 37 | D138: 0.318 | E138: 26.327 | F138: 45.09 | G138: 16.65 | H138: 6.96 | I138: 1.36 | J138: 2.85 | K138: 1.37 | L138: 0.75 | M138: 0.81 | N138: 32.36 | O138: 31.28 | P138: 22.71 | Q138: 25.34 | R138: 7.97 | S138: 11.78 | T138: 24.61 | U138: 19.21 | V138: 0.97 | W138: 0.93 | X138: 0.38 | Y138: 0.65 | Z138: 0 | AA138: 0 | AB138: 0 | AC138: 0 | AD138: 1 | AE138: 0 | AF138: 0.2463295258 | AG138: 0.2463
A139: 39 | B139: 80 | C139: 27 | D139: 0.249 | E139: 19.843 | F139: 28.54 | G139: 14.49 | H139: 4.90 | I139: 1.25 | J139: 2.17 | K139: 1.40 | L139: 0.87 | M139: 0.88 | N139: 26.38 | O139: 25.44 | P139: 20.96 | Q139: 18.41 | R139: 5.05 | S139: 10.25 | T139: 17.31 | U139: 17.71 | V139: 0.98 | W139: 0.92 | X139: 0.56 | Y139: 0.27 | Z139: 0 | AA139: 0 | AB139: 1 | AC139: 0 | AD139: 0 | AE139: 0 | AF139: 0.191255521 | AG139: 0.1913
A140: 40 | B140: 87 | C140: 16 | D140: 0.206 | E140: 17.570 | F140: 42.81 | G140: 13.03 | H140: 4.09 | I140: 1.13 | J140: 3.17 | K140: 1.90 | L140: 1.12 | M140: 0.96 | N140: 22.32 | O140: 21.67 | P140: 18.14 | Q140: 16.68 | R140: 7.57 | S140: 9.21 | T140: 14.46 | U140: 16.03 | V140: 0.94 | W140: 0.91 | X140: 0.60 | Y140: 0.28 | Z140: 0 | AA140: 0 | AB140: 0 | AC140: 1 | AD140: 0 | AE140: 0 | AF140: 0.3389466918 | AG140: 0.3389
A141: 41 | B141: 91.5 | C141: 18 | D141: 0.172 | E141: 15.052 | F141: 17.01 | G141: 8.11 | H141: 2.99 | I141: 0.78 | J141: 1.49 | K141: 1.06 | L141: 0.87 | M141: 0.63 | N141: 19.74 | O141: 19.11 | P141: 15.32 | Q141: 14.88 | R141: 3.01 | S141: 5.74 | T141: 10.59 | U141: 11.00 | V141: 0.99 | W141: 0.95 | X141: 0.72 | Y141: 0.67 | Z141: 0 | AA141: 0 | AB141: 0 | AC141: 1 | AD141: 0 | AE141: 0 | AF141: 0.1523850396 | AG141: 0.1524
